Workbook

Sheet Visor
A1: Programas de Apoyo a la Generación de Nuevo Empleo y al Empleo Joven
A2: Reporte por sector económico - consolidado nóminas de julio a abril 2022
A4: Seleccione el sector económico | D4: Industrias manufactureras | N4: =IFERROR(VLOOKUP(D4,Hoja4!$C$2:$D$23,2,FALSE),"") -> C
B7: Sección | D7: Jovenes | F7: Mujeres > 28 años | H7: Hombres > 28 años | J7: Total Empleados o Recursos | M7: % | Q7: Empleadores beneficiados
A9: Nuevos empleos | B9: General | D9: =SUMIFS(insumos2!$T$2:$T$400000,insumos2!$J$2:$J$400000,"Aprobado con subsidio") -> 369228 | F9: =SUMIFS(insumos2!$U$2:$U$400000,insumos2!$J$2:$J$400000,"Aprobado con subsidio") -> 64479 | H9: =SUMIFS(insumos2!$V$2:$V$400000,insumos2!$J$2:$J$400000,"Aprobado con subsidio") -> 53012 | J9: =Hoja4!K24 -> 486719 | M9: =J9/$J$9 -> 1 | Q9: =B9 -> General | S9: =Hoja4!I24 -> 21459
B10: ="Sección "&N4 -> Sección C | D10: =SUMIFS(insumos2!$BC$2:$BC$400000,insumos2!$AS$2:$AS$400000,"Aprobado con subsidio") -> 37452 | F10: =SUMIFS(insumos2!$BD$2:$BD$400000,insumos2!$AS$2:$AS$400000,"Aprobado con subsidio") -> 6435 | H10: =SUMIFS(insumos2!$BE$2:$BE$400000,insumos2!$AS$2:$AS$400000,"Aprobado con subsidio") -> 4946 | J10: =VLOOKUP(N4,Hoja4!$H$1:$M$24,4,FALSE) -> 48833 | M10: =J10/$J$9 -> 0.1003309918 | Q10: =B10 -> Sección C | S10: =VLOOKUP(N4,Hoja4!$H$1:$M$24,2,FALSE) -> 3304
A11: Millones en subsidios | B11: =B9 -> General | D11: =SUM(insumos1!$L$2:$L$150000)/1000000 -> 238441.08 | F11: =SUM(insumos1!$N$2:$N$300000)/1000000 -> 26497.28057 | H11: =SUM(insumos1!$M$2:$M$300000)/1000000 -> 13133.42282 | J11: =Hoja4!M24/1000000 -> 278071.7834 | M11: =J11/$J$11 -> 1
B12: =B10 -> Sección C | D12: =SUMIFS(insumos1!$L$2:$L$300000,insumos1!$H$2:$H$300000,Visor!$N$4)/1000000 -> 24498.04684 | F12: =SUMIFS(insumos1!$N$2:$N$300000,insumos1!$H$2:$H$300000,Visor!$N$4)/1000000 -> 2311.015404 | H12: =SUMIFS(insumos1!$M$2:$M$300000,insumos1!$H$2:$H$300000,Visor!$N$4)/1000000 -> 1126.266468 | J12: =VLOOKUP(N4,Hoja4!$H$1:$M$24,6,FALSE)/1000000 -> 27935.32871 | M12: =J12/$J$11 -> 0.1004608536 | P12: Tipo de documento del empleado
R13: Nacional | T13: Extranjero
P14: =B9 -> General | R14: =SUMIFS(insumos2!$W$2:$W$500000,insumos2!$J$2:$J$500000,"Aprobado con subsidio") -> 480198 | T14: =SUMIFS(insumos2!$X$2:$X$500000,insumos2!$J$2:$J$500000,"Aprobado con subsidio") -> 6521
P16: =B12 -> Sección C | R16: =SUMIFS(insumos2!$W$2:$W$500000,insumos2!$J$2:$J$500000,"Aprobado con subsidio",insumos2!$N$2:$N$500000,Visor!$N$4) -> 47792 | T16: =SUMIFS(insumos2!$X$2:$X$500000,insumos2!$J$2:$J$500000,"Aprobado con subsidio",insumos2!$N$2:$N$500000,Visor!$N$4) -> 1041
P18: * Los tipos de indentificación tomados par los extranjeros corresponden a CE, PE y PT
B30: Empleadores | E30: Natural | H30: Jurídica | L30: Recurso en millones | O30: Natural | R30: Jurídica
B31: ="Total sección "&N4 -> Total sección C | E31: =COUNTIFS(insumos2!$AS$1:$AS$399999,"Aprobado con subsidio",insumos2!$AP$1:$AP$399999,"Natural") -> 275 | H31: =COUNTIFS(insumos2!$AS$1:$AS$399999,"Aprobado con subsidio",insumos2!$AP$1:$AP$399999,"Jurídica") -> 3029 | L31: ="Total sección "&N4 -> Total sección C | O31: =SUMIFS(insumos1!$K$2:$K$372158,insumos1!$H$2:$H$372158,Visor!N4,insumos1!$I$2:$I$372158,"Natural")/1000000 -> 436.204124 | R31: =SUMIFS(insumos1!$K$2:$K$372158,insumos1!$H$2:$H$372158,Visor!N4,insumos1!$I$2:$I$372158,"Jurídica")/1000000 -> 27499.12459
B32: ="% sección "&N4 -> % sección C | E32: =E31/(E31+H31) -> 0.08323244552 | H32: =H31/(E31+H31) -> 0.9167675545 | L32: ="% sección "&N4 -> % sección C | O32: =O31/(O31+R31) -> 0.01561478401 | R32: =R31/(O31+R31) -> 0.984385216
B33: ="% general" -> % general | E33: 0.1646 | H33: 0.8354 | L33: ="% general" -> % general | O33: 0.0563 | R33: 0.9437
C36: Tamaño | E36: Empleadores | H36: % | J36: Empleados | N36: % | P36: Recursos en millones
C37: Micro | E37: =COUNTIFS(insumos2!$AS$2:$AS$399999,"Aprobado con subsidio",insumos2!$AT$2:$AT$399999,"MICRO") -> 1304 | H37: =E37/$E$42 -> 0.3946731235 | J37: =SUMIFS(insumos2!$AN$2:$AN$399999,insumos2!$AS$2:$AS$399999,"Aprobado con subsidio",insumos2!$AT$2:$AT$399999,"MICRO") -> 4674 | N37: =J37/$J$42 -> 0.09571396392 | P37: =SUMIFS(insumos1!$K$2:$K$372158,insumos1!$H$2:$H$372158,Visor!N4,insumos1!$J$2:$J$372158,"MICRO")/1000000 -> 2105.221589
C38: Pequeña | E38: =COUNTIFS(insumos2!$AS$2:$AS$399999,"Aprobado con subsidio",insumos2!$AT$2:$AT$399999,"PEQUEÑA") -> 1258 | H38: 0.3807506053 | J38: =SUMIFS(insumos2!$AN$2:$AN$399999,insumos2!$AS$2:$AS$399999,"Aprobado con subsidio",insumos2!$AT$2:$AT$399999,"PEQUEÑA") -> 9688 | N38: 0.1983904327 | P38: =SUMIFS(insumos1!$K$2:$K$372158,insumos1!$H$2:$H$372158,Visor!N4,insumos1!$J$2:$J$372158,"PEQUEÑA")/1000000 -> 4628.854309
C39: Mediana | E39: =COUNTIFS(insumos2!$AS$2:$AS$399999,"Aprobado con subsidio",insumos2!$AT$2:$AT$399999,"MEDIANA") -> 499 | H39: 0.1510290557 | J39: =SUMIFS(insumos2!$AN$2:$AN$399999,insumos2!$AS$2:$AS$399999,"Aprobado con subsidio",insumos2!$AT$2:$AT$399999,"MEDIANA") -> 9978 | N39: 0.2043290398 | P39: =SUMIFS(insumos1!$K$2:$K$372158,insumos1!$H$2:$H$372158,Visor!N4,insumos1!$J$2:$J$372158,"MEDIANA")/1000000 -> 5212.943561
C40: Grande | E40: =COUNTIFS(insumos2!$AS$2:$AS$399999,"Aprobado con subsidio",insumos2!$AT$2:$AT$399999,"GRANDE") -> 156 | H40: 0.04721549637 | J40: =SUMIFS(insumos2!$AN$2:$AN$399999,insumos2!$AS$2:$AS$399999,"Aprobado con subsidio",insumos2!$AT$2:$AT$399999,"GRANDE") -> 8166 | N40: 0.1672229845 | P40: =SUMIFS(insumos1!$K$2:$K$372158,insumos1!$H$2:$H$372158,Visor!N4,insumos1!$J$2:$J$372158,"GRANDE")/1000000 -> 4968.463017
C41: Muy grande | E41: =COUNTIFS(insumos2!$AS$2:$AS$399999,"Aprobado con subsidio",insumos2!$AT$2:$AT$399999,"MUY GRANDE") -> 87 | H41: 0.02633171913 | J41: =SUMIFS(insumos2!$AN$2:$AN$399999,insumos2!$AS$2:$AS$399999,"Aprobado con subsidio",insumos2!$AT$2:$AT$399999,"MUY GRANDE") -> 16327 | N41: 0.3343435791 | P41: =SUMIFS(insumos1!$K$2:$K$372158,insumos1!$H$2:$H$372158,Visor!N4,insumos1!$J$2:$J$372158,"MUY GRANDE")/1000000 -> 11019.84623
C42: Total | E42: =COUNTIFS(insumos2!$AS$2:$AS$399999,"Aprobado con subsidio") -> 3304 | H42: 1 | J42: =SUMIFS(insumos2!$AN$2:$AN$399999,insumos2!$AS$2:$AS$399999,"Aprobado con subsidio") -> 48833 | N42: 1 | P42: =P41+P40+P39+P37+P38 -> 27935.32871
B44: Tamaño | C44: ="Sección "&N4 -> Sección C | D44: general | E44: ="Sección "&N4 -> Sección C | F44: general
B45: Micro | C45: =H37 -> 0.3946731235 | D45: 0.6376801371 | E45: =N37 -> 0.09571396392 | F45: 0.104427293
B46: Pequeña | C46: =H38 -> 0.3807506053 | D46: 0.2743797922 | E46: =N38 -> 0.1983904327 | F46: 0.1894298344
B47: Mediana | C47: =H39 -> 0.1510290557 | D47: 0.06616490439 | E47: =N39 -> 0.2043290398 | F47: 0.1934365931
B48: Grande | C48: =H40 -> 0.04721549637 | D48: 0.01371264116 | E48: =N40 -> 0.1672229845 | F48: 0.1301781558
B49: Muy Grande | C49: =H41 -> 0.02633171913 | D49: 0.008062525129 | E49: =N41 -> 0.3343435791 | F49: 0.3835281237
G60: Actividad económica | J60: =D4 -> Industrias manufactureras | U60: =N4 -> C
A65: Distribución Departamental | K65: Distribución en los principales municipios del País
A66: Departamento | D66: Empleadores | F66: % | G66: Empleados | I66: % | K66: Departamento | M66: Municipio | P66: Empleadores | R66: % | S66: Empleados | U66: %
A67: =IFERROR(insumos2!BP2,"") -> Bogotá | D67: =insumos2!BQ2 -> 979 | F67: =IFERROR(D67/$D$95,"") -> 0.2963075061 | G67: =insumos2!BR2 -> 14114 | I67: =G67/$G$95 -> 0.2890258637 | K67: =IFERROR(insumos2!BY2,"") -> Bogotá | M67: =IFERROR(insumos2!BZ2,"") -> Bogotá, d.c. | P67: =IF(K67<>"",insumos2!CA2,"") -> 979 | R67: =IFERROR(P67/$P$95,"") -> 0.2963075061 | S67: =IF(K67<>"",insumos2!CB2,"") -> 14114 | U67: =IFERROR(S67/$S$95,"") -> 0.2890258637
A68: =IFERROR(insumos2!BP3,"") -> Antioquia | D68: =insumos2!BQ3 -> 930 | F68: =IFERROR(D68/$D$95,"") -> 0.2814769976 | G68: =insumos2!BR3 -> 15395 | I68: 0.3152581246 | K68: =IFERROR(insumos2!BY3,"") -> Antioquia | M68: =IFERROR(insumos2!BZ3,"") -> Medellín | P68: =IF(K68<>"",insumos2!CA3,"") -> 463 | R68: =IFERROR(P68/$P$95,"") -> 0.1401331719 | S68: =IF(K68<>"",insumos2!CB3,"") -> 7825 | U68: =IFERROR(S68/$S$95,"") -> 0.1602400016
A69: =IFERROR(insumos2!BP4,"") -> Valle del cauca | D69: =insumos2!BQ4 -> 337 | F69: 0.1019975787 | G69: =insumos2!BR4 -> 5961 | I69: 0.1220690926 | K69: =IFERROR(insumos2!BY4,"") -> Valle del cauca | M69: =IFERROR(insumos2!BZ4,"") -> Cali | P69: =IF(K69<>"",insumos2!CA4,"") -> 211 | R69: 0.06386198547 | S69: =IF(K69<>"",insumos2!CB4,"") -> 2526 | U69: 0.05172731554
A70: =IFERROR(insumos2!BP5,"") -> Cundinamarca | D70: =insumos2!BQ5 -> 214 | F70: 0.06476997579 | G70: =insumos2!BR5 -> 2604 | I70: 0.05332459607 | K70: =IFERROR(insumos2!BY5,"") -> Antioquia | M70: =IFERROR(insumos2!BZ5,"") -> Itagüí | P70: =IF(K70<>"",insumos2!CA5,"") -> 123 | R70: 0.03722760291 | S70: =IF(K70<>"",insumos2!CB5,"") -> 1547 | U70: 0.03167939713
A71: =IFERROR(insumos2!BP6,"") -> Santander | D71: =insumos2!BQ6 -> 186 | F71: 0.05629539952 | G71: =insumos2!BR6 -> 1591 | I71: 0.03258042717 | K71: =IFERROR(insumos2!BY6,"") -> Santander | M71: =IFERROR(insumos2!BZ6,"") -> Bucaramanga | P71: =IF(K71<>"",insumos2!CA6,"") -> 114 | R71: 0.03450363196 | S71: =IF(K71<>"",insumos2!CB6,"") -> 1046 | U71: 0.02141994143
A72: =IFERROR(insumos2!BP7,"") -> Atlántico | D72: =insumos2!BQ7 -> 113 | F72: 0.03420096852 | G72: =insumos2!BR7 -> 2329 | I72: 0.04769315832 | K72: =IFERROR(insumos2!BY7,"") -> Atlántico | M72: =IFERROR(insumos2!BZ7,"") -> Barranquilla | P72: =IF(K72<>"",insumos2!CA7,"") -> 94 | R72: 0.0284503632 | S72: =IF(K72<>"",insumos2!CB7,"") -> 1888 | U72: 0.03866237995
A73: =IFERROR(insumos2!BP8,"") -> Risaralda | D73: =insumos2!BQ8 -> 94 | F73: 0.0284503632 | G73: =insumos2!BR8 -> 1663 | I73: 0.03405483996 | K73: =IFERROR(insumos2!BY8,"") -> Norte de stder | M73: =IFERROR(insumos2!BZ8,"") -> Cucuta | P73: =IF(K73<>"",insumos2!CA8,"") -> 68 | R73: 0.0205811138 | S73: =IF(K73<>"",insumos2!CB8,"") -> 589 | U73: 0.01206151578
A74: =IFERROR(insumos2!BP9,"") -> Norte de stder | D74: =insumos2!BQ9 -> 82 | F74: 0.02481840194 | G74: =insumos2!BR9 -> 707 | I74: 0.01447791453 | K74: =IFERROR(insumos2!BY9,"") -> Antioquia | M74: =IFERROR(insumos2!BZ9,"") -> La estrella | P74: =IF(K74<>"",insumos2!CA9,"") -> 53 | R74: 0.01604116223 | S74: =IF(K74<>"",insumos2!CB9,"") -> 597 | U74: 0.01222533942
A75: =IFERROR(insumos2!BP10,"") -> Caldas | D75: =insumos2!BQ10 -> 60 | F75: 0.0181598063 | G75: =insumos2!BR10 -> 540 | I75: 0.01105809596 | K75: =IFERROR(insumos2!BY10,"") -> Caldas | M75: =IFERROR(insumos2!BZ10,"") -> Manizales | P75: =IF(K75<>"",insumos2!CA10,"") -> 51 | R75: 0.01543583535 | S75: =IF(K75<>"",insumos2!CB10,"") -> 481 | U75: 0.009849896586
A76: =IFERROR(insumos2!BP11,"") -> Tolima | D76: =insumos2!BQ11 -> 47 | F76: 0.0142251816 | G76: =insumos2!BR11 -> 475 | I76: 0.009727028853 | K76: =IFERROR(insumos2!BY11,"") -> Valle del cauca | M76: =IFERROR(insumos2!BZ11,"") -> Yumbo | P76: =IF(K76<>"",insumos2!CA11,"") -> 46 | R76: 0.01392251816 | S76: =IF(K76<>"",insumos2!CB11,"") -> 2209 | U76: 0.04523580366
A77: =IFERROR(insumos2!BP12,"") -> Quindío | D77: =insumos2!BQ12 -> 36 | F77: 0.01089588378 | G77: =insumos2!BR12 -> 434 | I77: 0.008887432679 | K77: =IFERROR(insumos2!BY12,"") -> Antioquia | M77: =IFERROR(insumos2!BZ12,"") -> Sabaneta | P77: =IF(K77<>"",insumos2!CA12,"") -> 45 | R77: 0.01361985472 | S77: =IF(K77<>"",insumos2!CB12,"") -> 808 | U77: 0.01654618803
A78: =IFERROR(insumos2!BP13,"") -> Boyacá | D78: =insumos2!BQ13 -> 33 | F78: 0.009987893462 | G78: =insumos2!BR13 -> 461 | I78: 0.009440337477 | K78: =IFERROR(insumos2!BY13,"") -> Risaralda | M78: =IFERROR(insumos2!BZ13,"") -> Dosquebradas | P78: =IF(K78<>"",insumos2!CA13,"") -> 45 | R78: 0.01361985472 | S78: =IF(K78<>"",insumos2!CB13,"") -> 857 | U78: 0.01754960785
A79: =IFERROR(insumos2!BP14,"") -> Bolívar | D79: =insumos2!BQ14 -> 29 | F79: 0.008777239709 | G79: =insumos2!BR14 -> 813 | I79: 0.01664857781 | K79: =IFERROR(insumos2!BY14,"") -> Risaralda | M79: =IFERROR(insumos2!BZ14,"") -> Pereira | P79: =IF(K79<>"",insumos2!CA14,"") -> 45 | R79: 0.01361985472 | S79: =IF(K79<>"",insumos2!CB14,"") -> 730 | U79: 0.0149489075
A80: =IFERROR(insumos2!BP15,"") -> Meta | D80: =insumos2!BQ15 -> 26 | F80: 0.007869249395 | G80: =insumos2!BR15 -> 169 | I80: 0.003460774476 | K80: =IFERROR(insumos2!BY15,"") -> Cundinamarca | M80: =IFERROR(insumos2!BZ15,"") -> Cota | P80: =IF(K80<>"",insumos2!CA15,"") -> 43 | R80: 0.01301452785 | S80: =IF(K80<>"",insumos2!CB15,"") -> 326 | U80: 0.006675813487
A81: =IFERROR(insumos2!BP16,"") -> Nariño | D81: =insumos2!BQ16 -> 25 | F81: 0.007566585956 | G81: =insumos2!BR16 -> 112 | I81: 0.002293531014 | K81: =IFERROR(insumos2!BY16,"") -> Tolima | M81: =IFERROR(insumos2!BZ16,"") -> Ibagué | P81: =IF(K81<>"",insumos2!CA16,"") -> 41 | R81: 0.01240920097 | S81: =IF(K81<>"",insumos2!CB16,"") -> 453 | U81: 0.009276513833
A82: =IFERROR(insumos2!BP17,"") -> Huila | D82: =insumos2!BQ17 -> 21 | F82: 0.006355932203 | G82: =insumos2!BR17 -> 110 | I82: 0.002252575103 | K82: =IFERROR(insumos2!BY17,"") -> Antioquia | M82: =IFERROR(insumos2!BZ17,"") -> Envigado | P82: =IF(K82<>"",insumos2!CA17,"") -> 40 | R82: 0.01210653753 | S82: =IF(K82<>"",insumos2!CB17,"") -> 912 | U82: 0.0186758954
A83: =IFERROR(insumos2!BP18,"") -> Cauca | D83: =insumos2!BQ18 -> 18 | F83: 0.005447941889 | G83: =insumos2!BR18 -> 370 | I83: 0.007576843528 | K83: =IFERROR(insumos2!BY18,"") -> Antioquia | M83: =IFERROR(insumos2!BZ18,"") -> Rionegro | P83: =IF(K83<>"",insumos2!CA18,"") -> 35 | R83: 0.01059322034 | S83: =IF(K83<>"",insumos2!CB18,"") -> 1277 | U83: 0.02615034915
A84: =IFERROR(insumos2!BP19,"") -> Córdoba | D84: =insumos2!BQ19 -> 16 | F84: 0.004842615012 | G84: =insumos2!BR19 -> 463 | I84: 0.009481293388 | K84: =IFERROR(insumos2!BY19,"") -> Valle del cauca | M84: =IFERROR(insumos2!BZ19,"") -> Palmira | P84: =IF(K84<>"",insumos2!CA19,"") -> 35 | R84: 0.01059322034 | S84: =IF(K84<>"",insumos2!CB19,"") -> 463 | U84: 0.009481293388
A85: =IFERROR(insumos2!BP20,"") -> Magdalena | D85: =insumos2!BQ20 -> 14 | F85: 0.004237288136 | G85: =insumos2!BR20 -> 50 | I85: 0.001023897774 | K85: =IFERROR(insumos2!BY20,"") -> Cundinamarca | M85: =IFERROR(insumos2!BZ20,"") -> Soacha | P85: =IF(K85<>"",insumos2!CA20,"") -> 30 | R85: 0.009079903148 | S85: =IF(K85<>"",insumos2!CB20,"") -> 325 | U85: 0.006655335531
A86: =IFERROR(insumos2!BP21,"") -> Casanare | D86: =insumos2!BQ21 -> 11 | F86: 0.003329297821 | G86: =insumos2!BR21 -> 114 | I86: 0.002334486925 | K86: =IFERROR(insumos2!BY21,"") -> Antioquia | M86: =IFERROR(insumos2!BZ21,"") -> Bello | P86: =IF(K86<>"",insumos2!CA21,"") -> 28 | R86: 0.008474576271 | S86: =IF(K86<>"",insumos2!CB21,"") -> 210 | U86: 0.004300370651
A87: =IFERROR(insumos2!BP22,"") -> Cesar | D87: =insumos2!BQ22 -> 11 | F87: 0.003329297821 | G87: =insumos2!BR22 -> 98 | I87: 0.002006839637 | K87: =IFERROR(insumos2!BY22,"") -> Bolívar | M87: =IFERROR(insumos2!BZ22,"") -> Cartagena de ind | P87: =IF(K87<>"",insumos2!CA22,"") -> 27 | R87: 0.008171912833 | S87: =IF(K87<>"",insumos2!CB22,"") -> 509 | U87: 0.01042327934
A88: =IFERROR(insumos2!BP23,"") -> Sucre | D88: =insumos2!BQ23 -> 10 | F88: 0.003026634383 | G88: =insumos2!BR23 -> 31 | I88: 0.0006348166199 | K88: =IFERROR(insumos2!BY23,"") -> Santander | M88: =IFERROR(insumos2!BZ23,"") -> Girón | P88: =IF(K88<>"",insumos2!CA23,"") -> 25 | R88: 0.007566585956 | S88: =IF(K88<>"",insumos2!CB23,"") -> 347 | U88: 0.007105850552
A89: =IFERROR(insumos2!BP24,"") -> Caquetá | D89: =insumos2!BQ24 -> 7 | F89: 0.002118644068 | G89: =insumos2!BR24 -> 29 | I89: 0.0005938607089 | K89: =IFERROR(insumos2!BY24,"") -> Cundinamarca | M89: =IFERROR(insumos2!BZ24,"") -> Mosquera | P89: =IF(K89<>"",insumos2!CA24,"") -> 25 | R89: 0.007566585956 | S89: =IF(K89<>"",insumos2!CB24,"") -> 283 | U89: 0.005795261401
A90: =IFERROR(insumos2!BP25,"") -> Putumayo | D90: =insumos2!BQ25 -> 3 | F90: 0.0009079903148 | G90: =insumos2!BR25 -> 5 | I90: 0.0001023897774 | K90: =IFERROR(insumos2!BY25,"") -> Quindío | M90: =IFERROR(insumos2!BZ25,"") -> Armenia | P90: =IF(K90<>"",insumos2!CA25,"") -> 24 | R90: 0.007263922518 | S90: =IF(K90<>"",insumos2!CB25,"") -> 260 | U90: 0.005324268425
A91: =IFERROR(insumos2!BP26,"") -> Arauca | D91: =insumos2!BQ26 -> 2 | F91: =D91/$D$95 -> 0.0006053268765 | G91: =insumos2!BR26 -> 195 | I91: 0.003993201319 | K91: =IFERROR(insumos2!BY26,"") -> Cundinamarca | M91: =IFERROR(insumos2!BZ26,"") -> Funza | P91: =IF(K91<>"",insumos2!CA26,"") -> 24 | R91: 0.007263922518 | S91: =IF(K91<>"",insumos2!CB26,"") -> 221 | U91: 0.004525628161
A92: =IFERROR(insumos2!BP27,"") -> Vaupés | D92: =insumos2!BQ27 -> 0 | F92: 0 | G92: =insumos2!BR27 -> 0 | I92: 0 | K92: =IFERROR(insumos2!BY27,"") -> Nariño | M92: =IFERROR(insumos2!BZ27,"") -> Pasto | P92: =IF(K92<>"",insumos2!CA27,"") -> 19 | R92: 0.005750605327 | S92: =IF(K92<>"",insumos2!CB27,"") -> 94 | U92: 0.001924927815
A93: =IFERROR(insumos2!BP28,"") -> La guajira | D93: =insumos2!BQ28 -> 0 | F93: 0 | G93: =insumos2!BR28 -> 0 | I93: 0 | K93: =IFERROR(insumos2!BY28,"") -> Meta | M93: =IFERROR(insumos2!BZ28,"") -> Villavicencio | P93: =IF(K93<>"",insumos2!CA28,"") -> 19 | R93: 0.005750605327 | S93: =IF(K93<>"",insumos2!CB28,"") -> 137 | U93: 0.002805479901
A94: =IFERROR(insumos2!BP29,"") -> Otros | D94: =insumos2!BQ29 -> 0 | F94: 0 | G94: =insumos2!BR29 -> 0 | I94: 0 | K94: =IF(K93="","",IFERROR(insumos2!BY29,"")) -> Otros | M94: =IF(M93="","",IFERROR(insumos2!BZ29,"")) -> Otros | P94: =IF(K94<>"",insumos2!CA29,"") -> 552 | R94: 0.1670702179 | S94: =IF(K94<>"",insumos2!CB29,"") -> 7799 | U94: 0.1597075748
A95: =insumos2!BP30 -> Total | D95: =insumos2!BQ30 -> 3304 | F95: =D95/$D$95 -> 1 | G95: =insumos2!BR30 -> 48833 | I95: 1 | K95: =insumos2!BY30 -> Total | P95: =insumos2!CA30 -> 3304 | R95: =P95/$P$95 -> 1 | S95: =insumos2!CB30 -> 48833 | U95: =S95/$S$95 -> 1
G126: Actividad económica | J126: =J60 -> Industrias manufactureras | U126: =U60 -> C
B130: Sexo | D130: ="Total empleadores sección "&N4 -> Total empleadores sección C | G130: %
B132: Hombres | D132: =VLOOKUP(N4,Hoja4!$H$2:$P$23,7,FALSE) -> 23218 | G132: =D132/$D$135 -> 0.4754571704
B133: Mujeres | D133: =VLOOKUP(N4,Hoja4!$H$2:$P$23,8,FALSE) -> 25520 | G133: =D133/$D$135 -> 0.5225974239
B134: No disponible | D134: =VLOOKUP(N4,Hoja4!$H$2:$P$23,9,FALSE) -> 95 | G134: =D134/$D$135 -> 0.001945405771
B135: Total | D135: =D134+D133+D132 -> 48833 | G135: =D135/$D$135 -> 1
B138: ="Para la Sección "&U126&" hay "&ROUND(VLOOKUP(U126,Hoja4!$H$2:$R$23,11,FALSE),0)&" mujeres por cada 100 hombres beneficiados del Programa." -> Para la Sección C hay 110 mujeres por cada 100 hombres beneficiados del Programa.
G203: Actividad económica | J203: =J126 -> Industrias manufactureras | U203: =U126 -> C
B213: ="Grupo o División de la sección "&U126 -> Grupo o División de la sección C | I213: Empleadores | M213: % | O213: Empleados | S213: %
B214: =IF(insumos2!CG2=0,"",insumos2!CG2) -> Elaboración de productos alimenticios | I214: =IF(insumos2!CG2=0,"",insumos2!CH2) -> 644 | M214: =IFERROR(I214/insumos2!$CE$28,"") -> 0.1949152542 | O214: =IF(insumos2!CI2=0,"",insumos2!CI2) -> 11132 | S214: =IFERROR(O214/insumos2!$CF$28,"") -> 0.2279606004
B215: =IF(insumos2!CG3=0,"",insumos2!CG3) -> Confección de prendas de vestir | I215: =IF(insumos2!CG3=0,"",insumos2!CH3) -> 618 | M215: =IFERROR(I215/insumos2!$CE$28,"") -> 0.1870460048 | O215: =IF(insumos2!CI3=0,"",insumos2!CI3) -> 15409 | S215: =IFERROR(O215/insumos2!$CF$28,"") -> 0.315544816
B216: =IF(insumos2!CG4=0,"",insumos2!CG4) -> Instalación, mantenimiento y reparación especializado de maquinaria y equipo | I216: =IF(insumos2!CG4=0,"",insumos2!CH4) -> 286 | M216: =IFERROR(I216/insumos2!$CE$28,"") -> 0.08656174334 | O216: =IF(insumos2!CI4=0,"",insumos2!CI4) -> 2475 | S216: =IFERROR(O216/insumos2!$CF$28,"") -> 0.05068293982
B217: =IF(insumos2!CG5=0,"",insumos2!CG5) -> Fabricación de productos elaborados de metal, excepto maquinaria y equipo | I217: =IF(insumos2!CG5=0,"",insumos2!CH5) -> 269 | M217: =IFERROR(I217/insumos2!$CE$28,"") -> 0.08141646489 | O217: =IF(insumos2!CI5=0,"",insumos2!CI5) -> 2364 | S217: =IFERROR(O217/insumos2!$CF$28,"") -> 0.04840988676
B218: =IF(insumos2!CG6=0,"",insumos2!CG6) -> Fabricación de productos de caucho y de plástico | I218: =IF(insumos2!CG6=0,"",insumos2!CH6) -> 180 | M218: =IFERROR(I218/insumos2!$CE$28,"") -> 0.05447941889 | O218: =IF(insumos2!CI6=0,"",insumos2!CI6) -> 2315 | S218: =IFERROR(O218/insumos2!$CF$28,"") -> 0.04740646694
B219: =IF(insumos2!CG7=0,"",insumos2!CG7) -> Fabricación de sustancias y productos químicos | I219: =IF(insumos2!CG7=0,"",insumos2!CH7) -> 151 | M219: =IFERROR(I219/insumos2!$CE$28,"") -> 0.04570217918 | O219: =IF(insumos2!CI7=0,"",insumos2!CI7) -> 1465 | S219: =IFERROR(O219/insumos2!$CF$28,"") -> 0.03000020478
B220: =IF(insumos2!CG8=0,"",insumos2!CG8) -> Fabricación de productos textiles | I220: =IF(insumos2!CG8=0,"",insumos2!CH8) -> 146 | M220: =IFERROR(I220/insumos2!$CE$28,"") -> 0.04418886199 | O220: =IF(insumos2!CI8=0,"",insumos2!CI8) -> 2329 | S220: =IFERROR(O220/insumos2!$CF$28,"") -> 0.04769315832
B221: =IF(insumos2!CG9=0,"",insumos2!CG9) -> Otras industrias manufactureras | I221: =IF(insumos2!CG9=0,"",insumos2!CH9) -> 120 | M221: =IFERROR(I221/insumos2!$CE$28,"") -> 0.03631961259 | O221: =IF(insumos2!CI9=0,"",insumos2!CI9) -> 1112 | S221: =IFERROR(O221/insumos2!$CF$28,"") -> 0.02277148649
B222: =IF(insumos2!CG10=0,"",insumos2!CG10) -> Fabricación de muebles, colchones y somieres | I222: =IF(insumos2!CG10=0,"",insumos2!CH10) -> 111 | M222: =IFERROR(I222/insumos2!$CE$28,"") -> 0.03359564165 | O222: =IF(insumos2!CI10=0,"",insumos2!CI10) -> 887 | S222: =IFERROR(O222/insumos2!$CF$28,"") -> 0.01816394651
B223: =IF(insumos2!CG11=0,"",insumos2!CG11) -> Curtido y recurtido de cueros; fabricación de calzado; fabricación de artículos de viaje, maletas, bolsos de mano y artículos similares, y fabricación de artículos de talabartería y guarnicionería; adobo y teñido de pieles | I223: =IF(insumos2!CG11=0,"",insumos2!CH11) -> 101 | M223: =IFERROR(I223/insumos2!$CE$28,"") -> 0.03056900726 | O223: =IF(insumos2!CI11=0,"",insumos2!CI11) -> 1427 | S223: =IFERROR(O223/insumos2!$CF$28,"") -> 0.02922204247
B224: =IF(insumos2!CG12=0,"",insumos2!CG12) -> Actividades de impresión y de producción de copias a partir de grabaciones originales | I224: =IF(insumos2!CG12=0,"",insumos2!CH12) -> 99 | M224: =IFERROR(I224/insumos2!$CE$28,"") -> 0.02996368039 | O224: =IF(insumos2!CI12=0,"",insumos2!CI12) -> 538 | S224: =IFERROR(O224/insumos2!$CF$28,"") -> 0.01101714005
B225: =IF(insumos2!CG13=0,"",insumos2!CG13) -> Fabricación de maquinaria y equipo n.c.p. | I225: =IF(insumos2!CG13=0,"",insumos2!CH13) -> 86 | M225: =IFERROR(I225/insumos2!$CE$28,"") -> 0.02602905569 | O225: =IF(insumos2!CI13=0,"",insumos2!CI13) -> 940 | S225: =IFERROR(O225/insumos2!$CF$28,"") -> 0.01924927815
B226: =IF(insumos2!CG14=0,"",insumos2!CG14) -> Fabricación de otros productos minerales no metálicos | I226: =IF(insumos2!CG14=0,"",insumos2!CH14) -> 81 | M226: =IFERROR(I226/insumos2!$CE$28,"") -> 0.0245157385 | O226: =IF(insumos2!CI14=0,"",insumos2!CI14) -> 1219 | S226: =IFERROR(O226/insumos2!$CF$28,"") -> 0.02496262773
B227: =IF(insumos2!CG15=0,"",insumos2!CG15) -> Transformación de la madera y fabricación de productos de madera y de corcho, excepto muebles; fabricación de artículos de cestería y espartería | I227: =IF(insumos2!CG15=0,"",insumos2!CH15) -> 73 | M227: =IFERROR(I227/insumos2!$CE$28,"") -> 0.02209443099 | O227: =IF(insumos2!CI15=0,"",insumos2!CI15) -> 503 | S227: =IFERROR(O227/insumos2!$CF$28,"") -> 0.01030041161
B228: =IF(insumos2!CG16=0,"",insumos2!CG16) -> Fabricación de papel, cartón y productos de papel y cartón | I228: =IF(insumos2!CG16=0,"",insumos2!CH16) -> 69 | M228: =IFERROR(I228/insumos2!$CE$28,"") -> 0.02088377724 | O228: =IF(insumos2!CI16=0,"",insumos2!CI16) -> 430 | S228: =IFERROR(O228/insumos2!$CF$28,"") -> 0.008805520857
B229: =IF(insumos2!CG17=0,"",insumos2!CG17) -> Fabricación de aparatos y equipo eléctrico | I229: =IF(insumos2!CG17=0,"",insumos2!CH17) -> 56 | M229: =IFERROR(I229/insumos2!$CE$28,"") -> 0.01694915254 | O229: =IF(insumos2!CI17=0,"",insumos2!CI17) -> 1176 | S229: =IFERROR(O229/insumos2!$CF$28,"") -> 0.02408207565
B230: =IF(insumos2!CG18=0,"",insumos2!CG18) -> Fabricación de vehículos automotores, remolques y semirremolques | I230: =IF(insumos2!CG18=0,"",insumos2!CH18) -> 52 | M230: =IFERROR(I230/insumos2!$CE$28,"") -> 0.01573849879 | O230: =IF(insumos2!CI18=0,"",insumos2!CI18) -> 606 | S230: =IFERROR(O230/insumos2!$CF$28,"") -> 0.01240964102
B231: =IF(insumos2!CG19=0,"",insumos2!CG19) -> Elaboración de bebidas | I231: =IF(insumos2!CG19=0,"",insumos2!CH19) -> 43 | M231: =IFERROR(I231/insumos2!$CE$28,"") -> 0.01301452785 | O231: =IF(insumos2!CI19=0,"",insumos2!CI19) -> 484 | S231: =IFERROR(O231/insumos2!$CF$28,"") -> 0.009911330453
B232: =IF(insumos2!CG20=0,"",insumos2!CG20) -> Fabricación de productos farmacéuticos, sustancias químicas medicinales y productos botánicos de uso farmacéutico | I232: =IF(insumos2!CG20=0,"",insumos2!CH20) -> 42 | M232: =IFERROR(I232/insumos2!$CE$28,"") -> 0.01271186441 | O232: =IF(insumos2!CI20=0,"",insumos2!CI20) -> 618 | S232: =IFERROR(O232/insumos2!$CF$28,"") -> 0.01265537649
B233: =IF(insumos2!CG21=0,"",insumos2!CG21) -> Fabricación de productos metalúrgicos básicos | I233: =IF(insumos2!CG21=0,"",insumos2!CH21) -> 37 | M233: =IFERROR(I233/insumos2!$CE$28,"") -> 0.01119854722 | O233: =IF(insumos2!CI21=0,"",insumos2!CI21) -> 594 | S233: =IFERROR(O233/insumos2!$CF$28,"") -> 0.01216390556
B234: =IF(insumos2!CG22=0,"",insumos2!CG22) -> Fabricación de productos informáticos, electrónicos y ópticos | I234: =IF(insumos2!CG22=0,"",insumos2!CH22) -> 19 | M234: =IFERROR(I234/insumos2!$CE$28,"") -> 0.005750605327 | O234: =IF(insumos2!CI22=0,"",insumos2!CI22) -> 206 | S234: =IFERROR(O234/insumos2!$CF$28,"") -> 0.004218458829
B235: =IF(insumos2!CG23=0,"",insumos2!CG23) -> Fabricación de otros tipos de equipo de transporte | I235: =IF(insumos2!CG23=0,"",insumos2!CH23) -> 11 | M235: =IFERROR(I235/insumos2!$CE$28,"") -> 0.003329297821 | O235: =IF(insumos2!CI23=0,"",insumos2!CI23) -> 448 | S235: =IFERROR(O235/insumos2!$CF$28,"") -> 0.009174124055
B236: =IF(insumos2!CG24=0,"",insumos2!CG24) -> Coquización, fabricación de productos de la refinación del petróleo y actividad de mezcla de combustibles | I236: =IF(insumos2!CG24=0,"",insumos2!CH24) -> 8 | M236: =IFERROR(I236/insumos2!$CE$28,"") -> 0.002421307506 | O236: =IF(insumos2!CI24=0,"",insumos2!CI24) -> 43 | S236: =IFERROR(O236/insumos2!$CF$28,"") -> 0.0008805520857
B237: =IF(insumos2!CG25=0,"",insumos2!CG25) -> Elaboración de productos de tabaco | I237: =IF(insumos2!CG25=0,"",insumos2!CH25) -> 2 | M237: =IFERROR(I237/insumos2!$CE$28,"") -> 0.0006053268765 | O237: =IF(insumos2!CI25=0,"",insumos2!CI25) -> 113 | S237: =IFERROR(O237/insumos2!$CF$28,"") -> 0.002314008969
B238: =IF(insumos2!CG26=0,"",insumos2!CG26) ->  | I238: =IF(insumos2!CG26=0,"",insumos2!CH26) ->  | M238: =IFERROR(I238/insumos2!$CE$28,"") ->  | O238: =IF(insumos2!CI26=0,"",insumos2!CI26) ->  | S238: =IFERROR(O238/insumos2!$CF$28,"") -> 
B241: Postulaciones recibidas en la sección | F241: Cantidad | I241: % | L241: Empleados postulados en la sección | P241: Cantidad | S241: %
B242: Total solicitudes | F242: =COUNT(insumos2!$AN$2:$AN$399999) -> 5456 | I242: =F242/$F$242 -> 1 | L242: Total empleados | P242: =SUM(insumos2!$AN$2:$AO$399999) -> 134340 | S242: =P242/$P$242 -> 1
B243: Empleadores con beneficiados | F243: =COUNTIFS(insumos2!$AS$2:$AS$399999,"Aprobado con subsidio") -> 3304 | I243: =F243/$F$242 -> 0.6055718475 | L243: Conformidad | P243: =SUMIFS(insumos2!$AN$2:$AN$399999,insumos2!$AS$2:$AS$399999,"Aprobado con subsidio") -> 48833 | S243: =P243/$P$242 -> 0.363503052
B244: Empleadores sin beneficio | F244: =F242-F243 -> 2152 | I244: =F244/$F$242 -> 0.3944281525 | L244: No conformidad | P244: =P242-P243 -> 85507 | S244: =P244/$P$242 -> 0.636496948

Sheet insumos1 (hidden)
A1: Ciclo | B1: DIVIPOLA1 | C1: MpioNOM | D1: Depto | E1: DeptoNOM | F1: NOM_AECONOMICA1 | G1: SECTOR_ECONOMICO1 | H1: actividad | I1: TIPO_PERSONA1 | J1: SIZE1 | K1: Suma de RECURSOS1 | L1: Recursos_Jovenes | M1: Recursos_Masculino | N1: Recursos_Femenino | Q1: Suma de Suma de RECURSOS1 | R1: Etiquetas de columna
B2: 63001 | C2: ARMENIA | D2: 63 | E2: QUINDÍO | F2: ALOJAMIENTO Y SERVICIOS DE COMIDA | G2: 5611 | H2: I | I2: Natural | J2: MICRO | K2: 227131 | L2: 227131 | M2: 0 | N2: 0 | Q2: Etiquetas de fila | R2: (en blanco) | S2: Total general
B3: 5001 | C3: MEDELLÍN | D3: 5 | E3: ANTIOQUIA | F3: AGRICULTURA, GANADERÍA, CAZA, SILVICULTURA Y PESCA | G3: 141 | H3: A | I3: Natural | J3: MICRO | K3: 454262 | L3: 454262 | M3: 0 | N3: 0 | Q3: ACTIVIDADES ARTÍSTICAS, DE ENTRETENIMIENTO Y RECREACIÓN | R3: 753769500 | S3: 753769500
B4: 25307 | C4: GIRARDOT | D4: 25 | E4: CUNDINAMARCA | F4: COMERCIO AL POR MAYOR Y AL POR MENOR; REPARACIÓN DE VEHÍCULOS AUTOMOTORES Y MOTOCICLETAS | G4: 4530 | H4: G | I4: Natural | J4: MICRO | K4: 250000 | L4: 250000 | M4: 0 | N4: 0 | Q4: ACTIVIDADES DE ATENCIÓN DE LA SALUD HUMANA Y DE ASISTENCIA SOCIAL | R4: 2381098500 | S4: 2381098500
B5: 11001 | C5: BOGOTÁ, D.C. | D5: 11 | E5: BOGOTÁ, D.C. | F5: COMERCIO AL POR MAYOR Y AL POR MENOR; REPARACIÓN DE VEHÍCULOS AUTOMOTORES Y MOTOCICLETAS | G5: 4663 | H5: G | I5: Natural | J5: MICRO | K5: 1727131 | L5: 1727131 | M5: 0 | N5: 0 | Q5: ACTIVIDADES DE LOS HOGARES INDIVIDUALES EN CALIDAD DE EMPLEADORES; ACTIVIDADES NO DIFERENCIADAS DE LOS HOGARES INDIVIDUALES COMO PRODUCTORES DE BIENES Y SERVICIOS PARA USO PROPIO | R5: 17424000 | S5: 17424000
B6: 15176 | C6: CHIQUINQUIRÁ | D6: 15 | E6: BOYACÁ | F6: COMERCIO AL POR MAYOR Y AL POR MENOR; REPARACIÓN DE VEHÍCULOS AUTOMOTORES Y MOTOCICLETAS | G6: 4752 | H6: G | I6: Natural | J6: MICRO | K6: 908524 | L6: 908524 | M6: 0 | N6: 0 | Q6: ACTIVIDADES DE SERVICIOS ADMINISTRATIVOS Y DE APOYO | R6: 10798161000 | S6: 10798161000
B7: 76001 | C7: CALI | D7: 76 | E7: VALLE DEL CAUCA | F7: COMERCIO AL POR MAYOR Y AL POR MENOR; REPARACIÓN DE VEHÍCULOS AUTOMOTORES Y MOTOCICLETAS | G7: 4774 | H7: G | I7: Natural | J7: MICRO | K7: 454262 | L7: 454262 | M7: 0 | N7: 0 | Q7: ACTIVIDADES FINANCIERAS Y DE SEGUROS | R7: 617644500 | S7: 617644500
B8: 76001 | C8: CALI | D8: 76 | E8: VALLE DEL CAUCA | F8: ALOJAMIENTO Y SERVICIOS DE COMIDA | G8: 5511 | H8: I | I8: Natural | J8: MICRO | K8: 454262 | L8: 454262 | M8: 0 | N8: 0 | Q8: ACTIVIDADES INMOBILIARIAS | R8: 522357000 | S8: 522357000
B9: 41001 | C9: NEIVA | D9: 41 | E9: HUILA | F9: COMERCIO AL POR MAYOR Y AL POR MENOR; REPARACIÓN DE VEHÍCULOS AUTOMOTORES Y MOTOCICLETAS | G9: 4729 | H9: G | I9: Natural | J9: MICRO | K9: 1550000 | L9: 500000 | M9: 0 | N9: 1050000 | Q9: ACTIVIDADES PROFESIONALES, CIENTÍFICAS Y TÉCNICAS | R9: 5504169000 | S9: 5504169000
B10: 52356 | C10: IPIALES | D10: 52 | E10: NARIÑO | F10: TRANSPORTE Y ALMACENAMIENTO | G10: 4923 | H10: H | I10: Natural | J10: MICRO | K10: 400000 | L10: 0 | M10: 400000 | N10: 0 | Q10: ADMINISTRACIÓN PÚBLICA Y DEFENSA; PLANES DE SEGURIDAD SOCIAL DE AFILIACIÓN OBLIGATORIA | R10: 109263000 | S10: 109263000
B11: 54001 | C11: CÚCUTA | D11: 54 | E11: NORTE DE SANTANDER | F11: OTRAS | G11: 90 | H11: Otras | I11: Natural | J11: PEQUEÑA | K11: 1300000 | L11: 0 | M11: 1000000 | N11: 300000 | Q11: AGRICULTURA, GANADERÍA, CAZA, SILVICULTURA Y PESCA | R11: 4285033500 | S11: 4285033500
B12: 54405 | C12: LOS PATIOS | D12: 54 | E12: NORTE DE SANTANDER | F12: TRANSPORTE Y ALMACENAMIENTO | G12: 4923 | H12: H | I12: Natural | J12: MICRO | K12: 317983 | L12: 227131 | M12: 90852 | N12: 0 | Q12: ALOJAMIENTO Y SERVICIOS DE COMIDA | R12: 3928567500 | S12: 3928567500
B13: 68276 | C13: FLORIDABLANCA | D13: 68 | E13: SANTANDER | F13: AGRICULTURA, GANADERÍA, CAZA, SILVICULTURA Y PESCA | G13: 126 | H13: A | I13: Natural | J13: MICRO | K13: 227131 | L13: 227131 | M13: 0 | N13: 0 | Q13: COMERCIO AL POR MAYOR Y AL POR MENOR; REPARACIÓN DE VEHÍCULOS AUTOMOTORES Y MOTOCICLETAS | R13: 21186495000 | S13: 21186495000
B14: 76828 | C14: TRUJILLO | D14: 76 | E14: VALLE DEL CAUCA | F14: COMERCIO AL POR MAYOR Y AL POR MENOR; REPARACIÓN DE VEHÍCULOS AUTOMOTORES Y MOTOCICLETAS | G14: 4752 | H14: G | I14: Natural | J14: MICRO | K14: 2331080 | L14: 1658524 | M14: 672556 | N14: 0 | Q14: CONSTRUCCIÓN | R14: 9549078000 | S14: 9549078000
B15: 76001 | C15: CALI | D15: 76 | E15: VALLE DEL CAUCA | F15: AGRICULTURA, GANADERÍA, CAZA, SILVICULTURA Y PESCA | G15: 121 | H15: A | I15: Natural | J15: MICRO | K15: 227131 | L15: 227131 | M15: 0 | N15: 0 | Q15: DISTRIBUCIÓN DE AGUA; EVACUACIÓN Y TRATAMIENTO DE AGUAS RESIDUALES, GESTIÓN DE DESECHOS Y ACTIVIDADES DE SANEAMIENTO AMBIENTAL | R15: 246477000 | S15: 246477000
B16: 11001 | C16: BOGOTÁ, D.C. | D16: 11 | E16: BOGOTÁ, D.C. | F16: INDUSTRIAS MANUFACTURERAS | G16: 1313 | H16: C | I16: Natural | J16: MICRO | K16: 726818 | L16: 454262 | M16: 0 | N16: 272556 | Q16: EDUCACIÓN | R16: 1614442500 | S16: 1614442500
B17: 11001 | C17: BOGOTÁ, D.C. | D17: 11 | E17: BOGOTÁ, D.C. | F17: COMERCIO AL POR MAYOR Y AL POR MENOR; REPARACIÓN DE VEHÍCULOS AUTOMOTORES Y MOTOCICLETAS | G17: 4754 | H17: G | I17: Natural | J17: MICRO | K17: 1000000 | L17: 1000000 | M17: 0 | N17: 0 | Q17: EXPLOTACIÓN DE MINAS Y CANTERAS | R17: 571906500 | S17: 571906500
B18: 11001 | C18: BOGOTÁ, D.C. | D18: 11 | E18: BOGOTÁ, D.C. | F18: EDUCACIÓN | G18: 8512 | H18: P | I18: Natural | J18: MICRO | K18: 450000 | L18: 0 | M18: 0 | N18: 450000 | Q18: INDUSTRIAS MANUFACTURERAS | R18: 28151013000 | S18: 28151013000
B19: 25181 | C19: CHOACHÍ | D19: 25 | E19: CUNDINAMARCA | F19: COMERCIO AL POR MAYOR Y AL POR MENOR; REPARACIÓN DE VEHÍCULOS AUTOMOTORES Y MOTOCICLETAS | G19: 4663 | H19: G | I19: Natural | J19: PEQUEÑA | K19: 181704 | L19: 0 | M19: 181704 | N19: 0 | Q19: INFORMACIÓN Y COMUNICACIONES | R19: 1208790000 | S19: 1208790000
B20: 25279 | C20: FOMEQUE | D20: 25 | E20: CUNDINAMARCA | F20: AGRICULTURA, GANADERÍA, CAZA, SILVICULTURA Y PESCA | G20: 145 | H20: A | I20: Natural | J20: PEQUEÑA | K20: 250000 | L20: 250000 | M20: 0 | N20: 0 | Q20: OTRAS | R20: 676995000 | S20: 676995000
B21: 5001 | C21: MEDELLÍN | D21: 5 | E21: ANTIOQUIA | F21: COMERCIO AL POR MAYOR Y AL POR MENOR; REPARACIÓN DE VEHÍCULOS AUTOMOTORES Y MOTOCICLETAS | G21: 4520 | H21: G | I21: Natural | J21: PEQUEÑA | K21: 227131 | L21: 227131 | M21: 0 | N21: 0 | Q21: OTRAS ACTIVIDADES DE SERVICIOS | R21: 965217000 | S21: 965217000
B22: 25214 | C22: COTA | D22: 25 | E22: CUNDINAMARCA | F22: CONSTRUCCIÓN | G22: 4290 | H22: F | I22: Natural | J22: MICRO | K22: 90852 | L22: 0 | M22: 90852 | N22: 0 | Q22: SUMINISTRO DE ELECTRICIDAD, GAS, VAPOR Y AIRE ACONDICIONADO | R22: 43015500 | S22: 43015500
B23: 25758 | C23: SOPÓ | D23: 25 | E23: CUNDINAMARCA | F23: AGRICULTURA, GANADERÍA, CAZA, SILVICULTURA Y PESCA | G23: 141 | H23: A | I23: Natural | J23: MICRO | K23: 250000 | L23: 250000 | M23: 0 | N23: 0 | Q23: TRANSPORTE Y ALMACENAMIENTO | R23: 14265537000 | S23: 14265537000
B24: 25297 | C24: GACHETÁ | D24: 25 | E24: CUNDINAMARCA | F24: COMERCIO AL POR MAYOR Y AL POR MENOR; REPARACIÓN DE VEHÍCULOS AUTOMOTORES Y MOTOCICLETAS | G24: 4663 | H24: G | I24: Natural | J24: MICRO | K24: 500000 | L24: 500000 | M24: 0 | N24: 0 | Q24: (en blanco)
B25: 11001 | C25: BOGOTÁ, D.C. | D25: 11 | E25: BOGOTÁ, D.C. | F25: EDUCACIÓN | G25: 8521 | H25: P | I25: Natural | J25: PEQUEÑA | K25: 227131 | L25: 227131 | M25: 0 | N25: 0 | Q25: Total general | R25: 107396454000 | S25: 107396454000
B26: 11001 | C26: BOGOTÁ, D.C. | D26: 11 | E26: BOGOTÁ, D.C. | F26: ACTIVIDADES PROFESIONALES, CIENTÍFICAS Y TÉCNICAS | G26: 7310 | H26: M | I26: Natural | J26: MICRO | K26: 227131 | L26: 227131 | M26: 0 | N26: 0
B27: 11001 | C27: BOGOTÁ, D.C. | D27: 11 | E27: BOGOTÁ, D.C. | F27: ACTIVIDADES PROFESIONALES, CIENTÍFICAS Y TÉCNICAS | G27: 6910 | H27: M | I27: Natural | J27: PEQUEÑA | K27: 10448026 | L27: 10448026 | M27: 0 | N27: 0
B28: 11001 | C28: BOGOTÁ, D.C. | D28: 11 | E28: BOGOTÁ, D.C. | F28: COMERCIO AL POR MAYOR Y AL POR MENOR; REPARACIÓN DE VEHÍCULOS AUTOMOTORES Y MOTOCICLETAS | G28: 4751 | H28: G | I28: Natural | J28: MICRO | K28: 681393 | L28: 681393 | M28: 0 | N28: 0
B29: 25785 | C29: TABIO | D29: 25 | E29: CUNDINAMARCA | F29: ACTIVIDADES ARTÍSTICAS, DE ENTRETENIMIENTO Y RECREACIÓN | G29: 9004 | H29: R | I29: Natural | J29: MICRO | K29: 250000 | L29: 250000 | M29: 0 | N29: 0
B30: 50001 | C30: VILLAVICENCIO | D30: 50 | E30: META | F30: COMERCIO AL POR MAYOR Y AL POR MENOR; REPARACIÓN DE VEHÍCULOS AUTOMOTORES Y MOTOCICLETAS | G30: 4729 | H30: G | I30: Natural | J30: MICRO | K30: 1454262 | L30: 1454262 | M30: 0 | N30: 0
B31: 25875 | C31: VILLETA | D31: 25 | E31: CUNDINAMARCA | F31: INDUSTRIAS MANUFACTURERAS | G31: 1081 | H31: C | I31: Natural | J31: PEQUEÑA | K31: 454262 | L31: 454262 | M31: 0 | N31: 0
B32: 25269 | C32: FACATATIVÁ | D32: 25 | E32: CUNDINAMARCA | F32: EDUCACIÓN | G32: 8559 | H32: P | I32: Natural | J32: MICRO | K32: 1250000 | L32: 750000 | M32: 500000 | N32: 0
B33: 85001 | C33: YOPAL | D33: 85 | E33: CASANARE | F33: COMERCIO AL POR MAYOR Y AL POR MENOR; REPARACIÓN DE VEHÍCULOS AUTOMOTORES Y MOTOCICLETAS | G33: 4769 | H33: G | I33: Natural | J33: MICRO | K33: 1950000 | L33: 1500000 | M33: 0 | N33: 450000
B34: 5001 | C34: MEDELLÍN | D34: 5 | E34: ANTIOQUIA | F34: OTRAS | G34: 90 | H34: Otras | I34: Natural | J34: MICRO | K34: 200000 | L34: 0 | M34: 200000 | N34: 0
B35: 5001 | C35: MEDELLÍN | D35: 5 | E35: ANTIOQUIA | F35: ALOJAMIENTO Y SERVICIOS DE COMIDA | G35: 5611 | H35: I | I35: Natural | J35: MICRO | K35: 100000 | L35: 0 | M35: 100000 | N35: 0
B36: 5001 | C36: MEDELLÍN | D36: 5 | E36: ANTIOQUIA | F36: COMERCIO AL POR MAYOR Y AL POR MENOR; REPARACIÓN DE VEHÍCULOS AUTOMOTORES Y MOTOCICLETAS | G36: 4722 | H36: G | I36: Natural | J36: MICRO | K36: 2000000 | L36: 1000000 | M36: 400000 | N36: 600000
B37: 5001 | C37: MEDELLÍN | D37: 5 | E37: ANTIOQUIA | F37: INDUSTRIAS MANUFACTURERAS | G37: 3240 | H37: C | I37: Natural | J37: MICRO | K37: 1758524 | L37: 1658524 | M37: 100000 | N37: 0
B38: 5001 | C38: MEDELLÍN | D38: 5 | E38: ANTIOQUIA | F38: COMERCIO AL POR MAYOR Y AL POR MENOR; REPARACIÓN DE VEHÍCULOS AUTOMOTORES Y MOTOCICLETAS | G38: 4771 | H38: G | I38: Natural | J38: MICRO | K38: 1135655 | L38: 1135655 | M38: 0 | N38: 0
B39: 5001 | C39: MEDELLÍN | D39: 5 | E39: ANTIOQUIA | F39: COMERCIO AL POR MAYOR Y AL POR MENOR; REPARACIÓN DE VEHÍCULOS AUTOMOTORES Y MOTOCICLETAS | G39: 4663 | H39: G | I39: Natural | J39: MICRO | K39: 454262 | L39: 454262 | M39: 0 | N39: 0
B40: 11001 | C40: BOGOTÁ, D.C. | D40: 11 | E40: BOGOTÁ, D.C. | F40: COMERCIO AL POR MAYOR Y AL POR MENOR; REPARACIÓN DE VEHÍCULOS AUTOMOTORES Y MOTOCICLETAS | G40: 4771 | H40: G | I40: Natural | J40: PEQUEÑA | K40: 454262 | L40: 454262 | M40: 0 | N40: 0
B41: 5001 | C41: MEDELLÍN | D41: 5 | E41: ANTIOQUIA | F41: INDUSTRIAS MANUFACTURERAS | G41: 3110 | H41: C | I41: Natural | J41: MICRO | K41: 454262 | L41: 454262 | M41: 0 | N41: 0
B42: 5697 | C42: EL SANTUARIO | D42: 5 | E42: ANTIOQUIA | F42: COMERCIO AL POR MAYOR Y AL POR MENOR; REPARACIÓN DE VEHÍCULOS AUTOMOTORES Y MOTOCICLETAS | G42: 4773 | H42: G | I42: Natural | J42: MICRO | K42: 681393 | L42: 681393 | M42: 0 | N42: 0
B43: 11001 | C43: BOGOTÁ, D.C. | D43: 11 | E43: BOGOTÁ, D.C. | F43: COMERCIO AL POR MAYOR Y AL POR MENOR; REPARACIÓN DE VEHÍCULOS AUTOMOTORES Y MOTOCICLETAS | G43: 4652 | H43: G | I43: Natural | J43: MICRO | K43: 227131 | L43: 227131 | M43: 0 | N43: 0
B44: 54001 | C44: CÚCUTA | D44: 54 | E44: NORTE DE SANTANDER | F44: COMERCIO AL POR MAYOR Y AL POR MENOR; REPARACIÓN DE VEHÍCULOS AUTOMOTORES Y MOTOCICLETAS | G44: 4631 | H44: G | I44: Natural | J44: PEQUEÑA | K44: 454262 | L44: 454262 | M44: 0 | N44: 0
B45: 5001 | C45: MEDELLÍN | D45: 5 | E45: ANTIOQUIA | F45: ACTIVIDADES INMOBILIARIAS | G45: 6810 | H45: L | I45: Natural | J45: MICRO | K45: 90852 | L45: 0 | M45: 90852 | N45: 0
B46: 15759 | C46: SOGAMOSO | D46: 15 | E46: BOYACÁ | F46: EDUCACIÓN | G46: 8512 | H46: P | I46: Natural | J46: MICRO | K46: 1250000 | L46: 500000 | M46: 0 | N46: 750000
B47: 15176 | C47: CHIQUINQUIRÁ | D47: 15 | E47: BOYACÁ | F47: INDUSTRIAS MANUFACTURERAS | G47: 1081 | H47: C | I47: Natural | J47: MICRO | K47: 500000 | L47: 500000 | M47: 0 | N47: 0
B48: 15238 | C48: DUITAMA | D48: 15 | E48: BOYACÁ | F48: TRANSPORTE Y ALMACENAMIENTO | G48: 4923 | H48: H | I48: Natural | J48: MICRO | K48: 500000 | L48: 500000 | M48: 0 | N48: 0
B49: 85001 | C49: YOPAL | D49: 85 | E49: CASANARE | F49: COMERCIO AL POR MAYOR Y AL POR MENOR; REPARACIÓN DE VEHÍCULOS AUTOMOTORES Y MOTOCICLETAS | G49: 4542 | H49: G | I49: Natural | J49: MICRO | K49: 1908524 | L49: 1908524 | M49: 0 | N49: 0
B50: 15537 | C50: PAZ DE RÍO | D50: 15 | E50: BOYACÁ | F50: TRANSPORTE Y ALMACENAMIENTO | G50: 4923 | H50: H | I50: Natural | J50: PEQUEÑA | K50: 681393 | L50: 681393 | M50: 0 | N50: 0
B51: 11001 | C51: BOGOTÁ, D.C. | D51: 11 | E51: BOGOTÁ, D.C. | F51: COMERCIO AL POR MAYOR Y AL POR MENOR; REPARACIÓN DE VEHÍCULOS AUTOMOTORES Y MOTOCICLETAS | G51: 4663 | H51: G | I51: Natural | J51: MICRO | K51: 500000 | L51: 500000 | M51: 0 | N51: 0
B52: 15753 | C52: SOATÁ | D52: 15 | E52: BOYACÁ | F52: COMERCIO AL POR MAYOR Y AL POR MENOR; REPARACIÓN DE VEHÍCULOS AUTOMOTORES Y MOTOCICLETAS | G52: 4631 | H52: G | I52: Natural | J52: MICRO | K52: 381704 | L52: 0 | M52: 381704 | N52: 0
B53: 11001 | C53: BOGOTÁ, D.C. | D53: 11 | E53: BOGOTÁ, D.C. | F53: INDUSTRIAS MANUFACTURERAS | G53: 1081 | H53: C | I53: Natural | J53: MICRO | K53: 1908524 | L53: 1908524 | M53: 0 | N53: 0
B54: 11001 | C54: BOGOTÁ, D.C. | D54: 11 | E54: BOGOTÁ, D.C. | F54: TRANSPORTE Y ALMACENAMIENTO | G54: 4923 | H54: H | I54: Natural | J54: MICRO | K54: 2526818 | L54: 1954262 | M54: 272556 | N54: 300000
B55: 11001 | C55: BOGOTÁ, D.C. | D55: 11 | E55: BOGOTÁ, D.C. | F55: ALOJAMIENTO Y SERVICIOS DE COMIDA | G55: 5611 | H55: I | I55: Natural | J55: MICRO | K55: 1200000 | L55: 0 | M55: 600000 | N55: 600000
B56: 5266 | C56: ENVIGADO | D56: 5 | E56: ANTIOQUIA | F56: COMERCIO AL POR MAYOR Y AL POR MENOR; REPARACIÓN DE VEHÍCULOS AUTOMOTORES Y MOTOCICLETAS | G56: 4541 | H56: G | I56: Natural | J56: MICRO | K56: 681393 | L56: 681393 | M56: 0 | N56: 0
B57: 66001 | C57: PEREIRA | D57: 66 | E57: RISARALDA | F57: CONSTRUCCIÓN | G57: 4290 | H57: F | I57: Natural | J57: MICRO | K57: 1362784 | L57: 908524 | M57: 181704 | N57: 272556
B58: 66001 | C58: PEREIRA | D58: 66 | E58: RISARALDA | F58: COMERCIO AL POR MAYOR Y AL POR MENOR; REPARACIÓN DE VEHÍCULOS AUTOMOTORES Y MOTOCICLETAS | G58: 4773 | H58: G | I58: Natural | J58: PEQUEÑA | K58: 227131 | L58: 227131 | M58: 0 | N58: 0
B59: 66170 | C59: DOSQUEBRADAS | D59: 66 | E59: RISARALDA | F59: COMERCIO AL POR MAYOR Y AL POR MENOR; REPARACIÓN DE VEHÍCULOS AUTOMOTORES Y MOTOCICLETAS | G59: 4775 | H59: G | I59: Natural | J59: MICRO | K59: 750000 | L59: 750000 | M59: 0 | N59: 0
B60: 66170 | C60: DOSQUEBRADAS | D60: 66 | E60: RISARALDA | F60: ACTIVIDADES PROFESIONALES, CIENTÍFICAS Y TÉCNICAS | G60: 6910 | H60: M | I60: Natural | J60: PEQUEÑA | K60: 3950000 | L60: 2750000 | M60: 0 | N60: 1200000
B61: 18205 | C61: CURILLO | D61: 18 | E61: CAQUETÁ | F61: INDUSTRIAS MANUFACTURERAS | G61: 1040 | H61: C | I61: Natural | J61: MICRO | K61: 500000 | L61: 500000 | M61: 0 | N61: 0
B62: 19001 | C62: POPAYÁN | D62: 19 | E62: CAUCA | F62: EDUCACIÓN | G62: 8559 | H62: P | I62: Natural | J62: MICRO | K62: 317982 | L62: 0 | M62: 181704 | N62: 136278
B63: 76001 | C63: CALI | D63: 76 | E63: VALLE DEL CAUCA | F63: COMERCIO AL POR MAYOR Y AL POR MENOR; REPARACIÓN DE VEHÍCULOS AUTOMOTORES Y MOTOCICLETAS | G63: 4752 | H63: G | I63: Natural | J63: MICRO | K63: 4248441 | L63: 4248441 | M63: 0 | N63: 0
B64: 41001 | C64: NEIVA | D64: 41 | E64: HUILA | F64: COMERCIO AL POR MAYOR Y AL POR MENOR; REPARACIÓN DE VEHÍCULOS AUTOMOTORES Y MOTOCICLETAS | G64: 4752 | H64: G | I64: Natural | J64: PEQUEÑA | K64: 9350000 | L64: 5250000 | M64: 3800000 | N64: 300000
B65: 41001 | C65: NEIVA | D65: 41 | E65: HUILA | F65: COMERCIO AL POR MAYOR Y AL POR MENOR; REPARACIÓN DE VEHÍCULOS AUTOMOTORES Y MOTOCICLETAS | G65: 4711 | H65: G | I65: Natural | J65: PEQUEÑA | K65: 227131 | L65: 227131 | M65: 0 | N65: 0
B66: 41551 | C66: PITALITO | D66: 41 | E66: HUILA | F66: COMERCIO AL POR MAYOR Y AL POR MENOR; REPARACIÓN DE VEHÍCULOS AUTOMOTORES Y MOTOCICLETAS | G66: 4754 | H66: G | I66: Natural | J66: MICRO | K66: 363409 | L66: 227131 | M66: 0 | N66: 136278
B67: 41551 | C67: PITALITO | D67: 41 | E67: HUILA | F67: COMERCIO AL POR MAYOR Y AL POR MENOR; REPARACIÓN DE VEHÍCULOS AUTOMOTORES Y MOTOCICLETAS | G67: 4620 | H67: G | I67: Natural | J67: MICRO | K67: 1000000 | L67: 1000000 | M67: 0 | N67: 0
B68: 54498 | C68: OCAÑA | D68: 54 | E68: NORTE DE SANTANDER | F68: COMERCIO AL POR MAYOR Y AL POR MENOR; REPARACIÓN DE VEHÍCULOS AUTOMOTORES Y MOTOCICLETAS | G68: 4541 | H68: G | I68: Natural | J68: MICRO | K68: 1135655 | L68: 1135655 | M68: 0 | N68: 0
B69: 52001 | C69: PASTO | D69: 52 | E69: NARIÑO | F69: COMERCIO AL POR MAYOR Y AL POR MENOR; REPARACIÓN DE VEHÍCULOS AUTOMOTORES Y MOTOCICLETAS | G69: 4731 | H69: G | I69: Natural | J69: PEQUEÑA | K69: 227131 | L69: 227131 | M69: 0 | N69: 0
B70: 52317 | C70: GUACHUCAL | D70: 52 | E70: NARIÑO | F70: COMERCIO AL POR MAYOR Y AL POR MENOR; REPARACIÓN DE VEHÍCULOS AUTOMOTORES Y MOTOCICLETAS | G70: 4731 | H70: G | I70: Natural | J70: PEQUEÑA | K70: 750000 | L70: 750000 | M70: 0 | N70: 0
B71: 52560 | C71: POTOSÍ | D71: 52 | E71: NARIÑO | F71: INDUSTRIAS MANUFACTURERAS | G71: 1040 | H71: C | I71: Natural | J71: MICRO | K71: 500000 | L71: 500000 | M71: 0 | N71: 0
B72: 52683 | C72: SANDONÁ | D72: 52 | E72: NARIÑO | F72: COMERCIO AL POR MAYOR Y AL POR MENOR; REPARACIÓN DE VEHÍCULOS AUTOMOTORES Y MOTOCICLETAS | G72: 4711 | H72: G | I72: Natural | J72: MICRO | K72: 250000 | L72: 0 | M72: 100000 | N72: 150000
B73: 54001 | C73: CÚCUTA | D73: 54 | E73: NORTE DE SANTANDER | F73: INDUSTRIAS MANUFACTURERAS | G73: 2599 | H73: C | I73: Natural | J73: MICRO | K73: 227131 | L73: 227131 | M73: 0 | N73: 0
B74: 54001 | C74: CÚCUTA | D74: 54 | E74: NORTE DE SANTANDER | F74: TRANSPORTE Y ALMACENAMIENTO | G74: 4923 | H74: H | I74: Natural | J74: MICRO | K74: 250000 | L74: 250000 | M74: 0 | N74: 0
B75: 54518 | C75: PAMPLONA | D75: 54 | E75: NORTE DE SANTANDER | F75: ALOJAMIENTO Y SERVICIOS DE COMIDA | G75: 5611 | H75: I | I75: Natural | J75: PEQUEÑA | K75: 454262 | L75: 454262 | M75: 0 | N75: 0
B76: 68001 | C76: BUCARAMANGA | D76: 68 | E76: SANTANDER | F76: INDUSTRIAS MANUFACTURERAS | G76: 1610 | H76: C | I76: Natural | J76: PEQUEÑA | K76: 250000 | L76: 250000 | M76: 0 | N76: 0
B77: 68001 | C77: BUCARAMANGA | D77: 68 | E77: SANTANDER | F77: COMERCIO AL POR MAYOR Y AL POR MENOR; REPARACIÓN DE VEHÍCULOS AUTOMOTORES Y MOTOCICLETAS | G77: 4774 | H77: G | I77: Natural | J77: MICRO | K77: 2500000 | L77: 2500000 | M77: 0 | N77: 0
B78: 11001 | C78: BOGOTÁ, D.C. | D78: 11 | E78: BOGOTÁ, D.C. | F78: COMERCIO AL POR MAYOR Y AL POR MENOR; REPARACIÓN DE VEHÍCULOS AUTOMOTORES Y MOTOCICLETAS | G78: 4731 | H78: G | I78: Natural | J78: MICRO | K78: 6266421 | L78: 4794179 | M78: 463408 | N78: 1008834
B79: 54001 | C79: CÚCUTA | D79: 54 | E79: NORTE DE SANTANDER | F79: INDUSTRIAS MANUFACTURERAS | G79: 1410 | H79: C | I79: Natural | J79: MICRO | K79: 1158524 | L79: 1158524 | M79: 0 | N79: 0
B80: 68001 | C80: BUCARAMANGA | D80: 68 | E80: SANTANDER | F80: ACTIVIDADES PROFESIONALES, CIENTÍFICAS Y TÉCNICAS | G80: 7420 | H80: M | I80: Natural | J80: MICRO | K80: 300000 | L80: 0 | M80: 300000 | N80: 0
B81: 68679 | C81: SAN GIL | D81: 68 | E81: SANTANDER | F81: COMERCIO AL POR MAYOR Y AL POR MENOR; REPARACIÓN DE VEHÍCULOS AUTOMOTORES Y MOTOCICLETAS | G81: 4711 | H81: G | I81: Natural | J81: PEQUEÑA | K81: 3000000 | L81: 3000000 | M81: 0 | N81: 0
B82: 68861 | C82: VÉLEZ | D82: 68 | E82: SANTANDER | F82: INDUSTRIAS MANUFACTURERAS | G82: 1089 | H82: C | I82: Natural | J82: MICRO | K82: 954262 | L82: 954262 | M82: 0 | N82: 0
B83: 68001 | C83: BUCARAMANGA | D83: 68 | E83: SANTANDER | F83: ACTIVIDADES FINANCIERAS Y DE SEGUROS | G83: 6621 | H83: K | I83: Natural | J83: MICRO | K83: 227131 | L83: 227131 | M83: 0 | N83: 0
B84: 68001 | C84: BUCARAMANGA | D84: 68 | E84: SANTANDER | F84: COMERCIO AL POR MAYOR Y AL POR MENOR; REPARACIÓN DE VEHÍCULOS AUTOMOTORES Y MOTOCICLETAS | G84: 4711 | H84: G | I84: Natural | J84: MEDIANA | K84: 1000000 | L84: 1000000 | M84: 0 | N84: 0
B85: 11001 | C85: BOGOTÁ, D.C. | D85: 11 | E85: BOGOTÁ, D.C. | F85: ACTIVIDADES DE SERVICIOS ADMINISTRATIVOS Y DE APOYO | G85: 8121 | H85: N | I85: Natural | J85: MICRO | K85: 400000 | L85: 0 | M85: 100000 | N85: 300000
B86: 73001 | C86: IBAGUÉ | D86: 73 | E86: TOLIMA | F86: COMERCIO AL POR MAYOR Y AL POR MENOR; REPARACIÓN DE VEHÍCULOS AUTOMOTORES Y MOTOCICLETAS | G86: 4773 | H86: G | I86: Natural | J86: MICRO | K86: 550000 | L86: 0 | M86: 100000 | N86: 450000
B87: 76001 | C87: CALI | D87: 76 | E87: VALLE DEL CAUCA | F87: INDUSTRIAS MANUFACTURERAS | G87: 1811 | H87: C | I87: Natural | J87: MICRO | K87: 750000 | L87: 750000 | M87: 0 | N87: 0
B88: 73001 | C88: IBAGUÉ | D88: 73 | E88: TOLIMA | F88: COMERCIO AL POR MAYOR Y AL POR MENOR; REPARACIÓN DE VEHÍCULOS AUTOMOTORES Y MOTOCICLETAS | G88: 4752 | H88: G | I88: Natural | J88: MICRO | K88: 2135655 | L88: 2135655 | M88: 0 | N88: 0
B89: 50001 | C89: VILLAVICENCIO | D89: 50 | E89: META | F89: ALOJAMIENTO Y SERVICIOS DE COMIDA | G89: 5511 | H89: I | I89: Natural | J89: PEQUEÑA | K89: 2753949 | L89: 2181393 | M89: 0 | N89: 572556
B90: 76834 | C90: TULUÁ | D90: 76 | E90: VALLE DEL CAUCA | F90: COMERCIO AL POR MAYOR Y AL POR MENOR; REPARACIÓN DE VEHÍCULOS AUTOMOTORES Y MOTOCICLETAS | G90: 4751 | H90: G | I90: Natural | J90: PEQUEÑA | K90: 150000 | L90: 0 | M90: 0 | N90: 150000
B91: 76020 | C91: ALCALÁ | D91: 76 | E91: VALLE DEL CAUCA | F91: COMERCIO AL POR MAYOR Y AL POR MENOR; REPARACIÓN DE VEHÍCULOS AUTOMOTORES Y MOTOCICLETAS | G91: 4752 | H91: G | I91: Natural | J91: MICRO | K91: 2000000 | L91: 1000000 | M91: 400000 | N91: 600000
B92: 76001 | C92: CALI | D92: 76 | E92: VALLE DEL CAUCA | F92: ALOJAMIENTO Y SERVICIOS DE COMIDA | G92: 5611 | H92: I | I92: Natural | J92: MICRO | K92: 950000 | L92: 750000 | M92: 200000 | N92: 0
B93: 76122 | C93: CAICEDONIA | D93: 76 | E93: VALLE DEL CAUCA | F93: ACTIVIDADES PROFESIONALES, CIENTÍFICAS Y TÉCNICAS | G93: 6920 | H93: M | I93: Natural | J93: MICRO | K93: 250000 | L93: 250000 | M93: 0 | N93: 0
B94: 76400 | C94: LA UNIÓN | D94: 76 | E94: VALLE DEL CAUCA | F94: AGRICULTURA, GANADERÍA, CAZA, SILVICULTURA Y PESCA | G94: 130 | H94: A | I94: Natural | J94: PEQUEÑA | K94: 5529834 | L94: 5429834 | M94: 100000 | N94: 0
B95: 76001 | C95: CALI | D95: 76 | E95: VALLE DEL CAUCA | F95: COMERCIO AL POR MAYOR Y AL POR MENOR; REPARACIÓN DE VEHÍCULOS AUTOMOTORES Y MOTOCICLETAS | G95: 4741 | H95: G | I95: Natural | J95: MICRO | K95: 290852 | L95: 0 | M95: 290852 | N95: 0
B96: 76001 | C96: CALI | D96: 76 | E96: VALLE DEL CAUCA | F96: INDUSTRIAS MANUFACTURERAS | G96: 1081 | H96: C | I96: Natural | J96: MICRO | K96: 500000 | L96: 0 | M96: 200000 | N96: 300000
B97: 76122 | C97: CAICEDONIA | D97: 76 | E97: VALLE DEL CAUCA | F97: COMERCIO AL POR MAYOR Y AL POR MENOR; REPARACIÓN DE VEHÍCULOS AUTOMOTORES Y MOTOCICLETAS | G97: 4669 | H97: G | I97: Natural | J97: MEDIANA | K97: 227131 | L97: 227131 | M97: 0 | N97: 0
B98: 76001 | C98: CALI | D98: 76 | E98: VALLE DEL CAUCA | F98: INDUSTRIAS MANUFACTURERAS | G98: 1410 | H98: C | I98: Natural | J98: PEQUEÑA | K98: 227131 | L98: 227131 | M98: 0 | N98: 0
B99: 76834 | C99: TULUÁ | D99: 76 | E99: VALLE DEL CAUCA | F99: COMERCIO AL POR MAYOR Y AL POR MENOR; REPARACIÓN DE VEHÍCULOS AUTOMOTORES Y MOTOCICLETAS | G99: 4774 | H99: G | I99: Natural | J99: MICRO | K99: 11741368 | L99: 9451144 | M99: 0 | N99: 2290224
B100: 76111 | C100: GUADALAJARA DE BUGA | D100: 76 | E100: VALLE DEL CAUCA | F100: TRANSPORTE Y ALMACENAMIENTO | G100: 4923 | H100: H | I100: Natural | J100: MICRO | K100: 90852 | L100: 0 | M100: 90852 | N100: 0
B101: 5088 | C101: BELLO | D101: 5 | E101: ANTIOQUIA | F101: COMERCIO AL POR MAYOR Y AL POR MENOR; REPARACIÓN DE VEHÍCULOS AUTOMOTORES Y MOTOCICLETAS | G101: 4752 | H101: G | I101: Natural | J101: MICRO | K101: 750000 | L101: 750000 | M101: 0 | N101: 0
B102: 41551 | C102: PITALITO | D102: 41 | E102: HUILA | F102: COMERCIO AL POR MAYOR Y AL POR MENOR; REPARACIÓN DE VEHÍCULOS AUTOMOTORES Y MOTOCICLETAS | G102: 4711 | H102: G | I102: Natural | J102: MEDIANA | K102: 227131 | L102: 227131 | M102: 0 | N102: 0
B103: 11001 | C103: BOGOTÁ, D.C. | D103: 11 | E103: BOGOTÁ, D.C. | F103: EDUCACIÓN | G103: 8521 | H103: P | I103: Natural | J103: PEQUEÑA | K103: 908524 | L103: 908524 | M103: 0 | N103: 0
B104: 11001 | C104: BOGOTÁ, D.C. | D104: 11 | E104: BOGOTÁ, D.C. | F104: ALOJAMIENTO Y SERVICIOS DE COMIDA | G104: 5611 | H104: I | I104: Natural | J104: MICRO | K104: 2704262 | L104: 2704262 | M104: 0 | N104: 0
B105: 11001 | C105: BOGOTÁ, D.C. | D105: 11 | E105: BOGOTÁ, D.C. | F105: CONSTRUCCIÓN | G105: 4210 | H105: F | I105: Natural | J105: PEQUEÑA | K105: 9417048 | L105: 8067048 | M105: 300000 | N105: 1050000
B106: 5631 | C106: SABANETA | D106: 5 | E106: ANTIOQUIA | F106: COMERCIO AL POR MAYOR Y AL POR MENOR; REPARACIÓN DE VEHÍCULOS AUTOMOTORES Y MOTOCICLETAS | G106: 4711 | H106: G | I106: Natural | J106: MICRO | K106: 1658524 | L106: 1658524 | M106: 0 | N106: 0
B107: 18001 | C107: FLORENCIA | D107: 18 | E107: CAQUETÁ | F107: COMERCIO AL POR MAYOR Y AL POR MENOR; REPARACIÓN DE VEHÍCULOS AUTOMOTORES Y MOTOCICLETAS | G107: 4643 | H107: G | I107: Natural | J107: MICRO | K107: 1953949 | L107: 1681393 | M107: 0 | N107: 272556
B108: 18001 | C108: FLORENCIA | D108: 18 | E108: CAQUETÁ | F108: ACTIVIDADES DE SERVICIOS ADMINISTRATIVOS Y DE APOYO | G108: 8020 | H108: N | I108: Natural | J108: MICRO | K108: 454262 | L108: 454262 | M108: 0 | N108: 0
B109: 18001 | C109: FLORENCIA | D109: 18 | E109: CAQUETÁ | F109: COMERCIO AL POR MAYOR Y AL POR MENOR; REPARACIÓN DE VEHÍCULOS AUTOMOTORES Y MOTOCICLETAS | G109: 4741 | H109: G | I109: Natural | J109: MICRO | K109: 1500000 | L109: 1500000 | M109: 0 | N109: 0
B110: 70001 | C110: SINCELEJO | D110: 70 | E110: SUCRE | F110: COMERCIO AL POR MAYOR Y AL POR MENOR; REPARACIÓN DE VEHÍCULOS AUTOMOTORES Y MOTOCICLETAS | G110: 4530 | H110: G | I110: Natural | J110: MICRO | K110: 250000 | L110: 250000 | M110: 0 | N110: 0
B111: 23001 | C111: MONTERÍA | D111: 23 | E111: CÓRDOBA | F111: COMERCIO AL POR MAYOR Y AL POR MENOR; REPARACIÓN DE VEHÍCULOS AUTOMOTORES Y MOTOCICLETAS | G111: 4541 | H111: G | I111: Natural | J111: MICRO | K111: 3612786 | L111: 3612786 | M111: 0 | N111: 0
B112: 23001 | C112: MONTERÍA | D112: 23 | E112: CÓRDOBA | F112: COMERCIO AL POR MAYOR Y AL POR MENOR; REPARACIÓN DE VEHÍCULOS AUTOMOTORES Y MOTOCICLETAS | G112: 4752 | H112: G | I112: Natural | J112: PEQUEÑA | K112: 1900000 | L112: 1750000 | M112: 0 | N112: 150000
B113: 91001 | C113: LETICIA | D113: 91 | E113: AMAZONAS | F113: ALOJAMIENTO Y SERVICIOS DE COMIDA | G113: 5613 | H113: I | I113: Natural | J113: MICRO | K113: 590540 | L113: 454262 | M113: 0 | N113: 136278
B114: 15776 | C114: SUTAMARCHÁN | D114: 15 | E114: BOYACÁ | F114: ALOJAMIENTO Y SERVICIOS DE COMIDA | G114: 5611 | H114: I | I114: Natural | J114: PEQUEÑA | K114: 2558211 | L114: 2135655 | M114: 0 | N114: 422556
B115: 15001 | C115: TUNJA | D115: 15 | E115: BOYACÁ | F115: ACTIVIDADES PROFESIONALES, CIENTÍFICAS Y TÉCNICAS | G115: 7310 | H115: M | I115: Natural | J115: MICRO | K115: 704262 | L115: 704262 | M115: 0 | N115: 0
B116: 15001 | C116: TUNJA | D116: 15 | E116: BOYACÁ | F116: ACTIVIDADES ARTÍSTICAS, DE ENTRETENIMIENTO Y RECREACIÓN | G116: 9311 | H116: R | I116: Natural | J116: MICRO | K116: 4434406 | L116: 3725572 | M116: 0 | N116: 708834
B117: 15001 | C117: TUNJA | D117: 15 | E117: BOYACÁ | F117: ACTIVIDADES PROFESIONALES, CIENTÍFICAS Y TÉCNICAS | G117: 6920 | H117: M | I117: Natural | J117: MICRO | K117: 227131 | L117: 227131 | M117: 0 | N117: 0
B118: 15238 | C118: DUITAMA | D118: 15 | E118: BOYACÁ | F118: COMERCIO AL POR MAYOR Y AL POR MENOR; REPARACIÓN DE VEHÍCULOS AUTOMOTORES Y MOTOCICLETAS | G118: 4732 | H118: G | I118: Natural | J118: MICRO | K118: 250000 | L118: 250000 | M118: 0 | N118: 0
B119: 85139 | C119: MANÍ | D119: 85 | E119: CASANARE | F119: COMERCIO AL POR MAYOR Y AL POR MENOR; REPARACIÓN DE VEHÍCULOS AUTOMOTORES Y MOTOCICLETAS | G119: 4731 | H119: G | I119: Natural | J119: PEQUEÑA | K119: 1000000 | L119: 1000000 | M119: 0 | N119: 0
B120: 15238 | C120: DUITAMA | D120: 15 | E120: BOYACÁ | F120: INDUSTRIAS MANUFACTURERAS | G120: 1392 | H120: C | I120: Natural | J120: MICRO | K120: 600000 | L120: 500000 | M120: 100000 | N120: 0
B121: 15759 | C121: SOGAMOSO | D121: 15 | E121: BOYACÁ | F121: ALOJAMIENTO Y SERVICIOS DE COMIDA | G121: 5619 | H121: I | I121: Natural | J121: MICRO | K121: 1362786 | L121: 1362786 | M121: 0 | N121: 0
B122: 11001 | C122: BOGOTÁ, D.C. | D122: 11 | E122: BOGOTÁ, D.C. | F122: INDUSTRIAS MANUFACTURERAS | G122: 1081 | H122: C | I122: Natural | J122: MICRO | K122: 272556 | L122: 0 | M122: 0 | N122: 272556
B123: 15238 | C123: DUITAMA | D123: 15 | E123: BOYACÁ | F123: COMERCIO AL POR MAYOR Y AL POR MENOR; REPARACIÓN DE VEHÍCULOS AUTOMOTORES Y MOTOCICLETAS | G123: 4722 | H123: G | I123: Natural | J123: PEQUEÑA | K123: 136278 | L123: 0 | M123: 0 | N123: 136278
B124: 11001 | C124: BOGOTÁ, D.C. | D124: 11 | E124: BOGOTÁ, D.C. | F124: COMERCIO AL POR MAYOR Y AL POR MENOR; REPARACIÓN DE VEHÍCULOS AUTOMOTORES Y MOTOCICLETAS | G124: 4752 | H124: G | I124: Natural | J124: MICRO | K124: 454262 | L124: 454262 | M124: 0 | N124: 0
B125: 15176 | C125: CHIQUINQUIRÁ | D125: 15 | E125: BOYACÁ | F125: CONSTRUCCIÓN | G125: 4112 | H125: F | I125: Natural | J125: MICRO | K125: 3489602 | L125: 2362786 | M125: 1126816 | N125: 0
B126: 8001 | C126: BARRANQUILLA | D126: 8 | E126: ATLÁNTICO | F126: INDUSTRIAS MANUFACTURERAS | G126: 1081 | H126: C | I126: Natural | J126: PEQUEÑA | K126: 227131 | L126: 227131 | M126: 0 | N126: 0
B127: 47001 | C127: SANTA MARTA | D127: 47 | E127: MAGDALENA | F127: COMERCIO AL POR MAYOR Y AL POR MENOR; REPARACIÓN DE VEHÍCULOS AUTOMOTORES Y MOTOCICLETAS | G127: 4773 | H127: G | I127: Natural | J127: MICRO | K127: 500000 | L127: 500000 | M127: 0 | N127: 0
B128: 63001 | C128: ARMENIA | D128: 63 | E128: QUINDÍO | F128: CONSTRUCCIÓN | G128: 4330 | H128: F | I128: Natural | J128: PEQUEÑA | K128: 1408209 | L128: 681393 | M128: 726816 | N128: 0
B129: 63001 | C129: ARMENIA | D129: 63 | E129: QUINDÍO | F129: CONSTRUCCIÓN | G129: 4111 | H129: F | I129: Natural | J129: MICRO | K129: 1044801 | L129: 681393 | M129: 363408 | N129: 0
B130: 76834 | C130: TULUÁ | D130: 76 | E130: VALLE DEL CAUCA | F130: COMERCIO AL POR MAYOR Y AL POR MENOR; REPARACIÓN DE VEHÍCULOS AUTOMOTORES Y MOTOCICLETAS | G130: 4530 | H130: G | I130: Natural | J130: MICRO | K130: 227131 | L130: 227131 | M130: 0 | N130: 0
B131: 5266 | C131: ENVIGADO | D131: 5 | E131: ANTIOQUIA | F131: ACTIVIDADES PROFESIONALES, CIENTÍFICAS Y TÉCNICAS | G131: 7111 | H131: M | I131: Natural | J131: MICRO | K131: 2776195 | L131: 2339917 | M131: 0 | N131: 436278
B132: 25899 | C132: ZIPAQUIRÁ | D132: 25 | E132: CUNDINAMARCA | F132: ALOJAMIENTO Y SERVICIOS DE COMIDA | G132: 5511 | H132: I | I132: Natural | J132: MICRO | K132: 3454262 | L132: 3454262 | M132: 0 | N132: 0
B133: 63001 | C133: ARMENIA | D133: 63 | E133: QUINDÍO | F133: COMERCIO AL POR MAYOR Y AL POR MENOR; REPARACIÓN DE VEHÍCULOS AUTOMOTORES Y MOTOCICLETAS | G133: 4661 | H133: G | I133: Natural | J133: PEQUEÑA | K133: 454262 | L133: 454262 | M133: 0 | N133: 0
B134: 20001 | C134: VALLEDUPAR | D134: 20 | E134: CESAR | F134: INDUSTRIAS MANUFACTURERAS | G134: 1410 | H134: C | I134: Natural | J134: PEQUEÑA | K134: 3500000 | L134: 1500000 | M134: 800000 | N134: 1200000
B135: 44001 | C135: RIOHACHA | D135: 44 | E135: LA GUAJIRA | F135: COMERCIO AL POR MAYOR Y AL POR MENOR; REPARACIÓN DE VEHÍCULOS AUTOMOTORES Y MOTOCICLETAS | G135: 4530 | H135: G | I135: Natural | J135: MICRO | K135: 500000 | L135: 500000 | M135: 0 | N135: 0
B136: 5318 | C136: GUARNE | D136: 5 | E136: ANTIOQUIA | F136: INDUSTRIAS MANUFACTURERAS | G136: 2221 | H136: C | I136: Natural | J136: PEQUEÑA | K136: 1650000 | L136: 750000 | M136: 0 | N136: 900000
B137: 76001 | C137: CALI | D137: 76 | E137: VALLE DEL CAUCA | F137: INDUSTRIAS MANUFACTURERAS | G137: 1313 | H137: C | I137: Natural | J137: PEQUEÑA | K137: 227131 | L137: 227131 | M137: 0 | N137: 0
B138: 73001 | C138: IBAGUÉ | D138: 73 | E138: TOLIMA | F138: COMERCIO AL POR MAYOR Y AL POR MENOR; REPARACIÓN DE VEHÍCULOS AUTOMOTORES Y MOTOCICLETAS | G138: 4729 | H138: G | I138: Natural | J138: MICRO | K138: 9345943 | L138: 7928275 | M138: 0 | N138: 1417668
B139: 41001 | C139: NEIVA | D139: 41 | E139: HUILA | F139: INDUSTRIAS MANUFACTURERAS | G139: 1081 | H139: C | I139: Natural | J139: MICRO | K139: 454262 | L139: 454262 | M139: 0 | N139: 0
B140: 41001 | C140: NEIVA | D140: 41 | E140: HUILA | F140: COMERCIO AL POR MAYOR Y AL POR MENOR; REPARACIÓN DE VEHÍCULOS AUTOMOTORES Y MOTOCICLETAS | G140: 4752 | H140: G | I140: Natural | J140: MICRO | K140: 750000 | L140: 750000 | M140: 0 | N140: 0
B141: 41001 | C141: NEIVA | D141: 41 | E141: HUILA | F141: COMERCIO AL POR MAYOR Y AL POR MENOR; REPARACIÓN DE VEHÍCULOS AUTOMOTORES Y MOTOCICLETAS | G141: 4653 | H141: G | I141: Natural | J141: MICRO | K141: 250000 | L141: 250000 | M141: 0 | N141: 0
B142: 41298 | C142: GARZÓN | D142: 41 | E142: HUILA | F142: EDUCACIÓN | G142: 8530 | H142: P | I142: Natural | J142: MICRO | K142: 250000 | L142: 250000 | M142: 0 | N142: 0
B143: 41551 | C143: PITALITO | D143: 41 | E143: HUILA | F143: TRANSPORTE Y ALMACENAMIENTO | G143: 4923 | H143: H | I143: Natural | J143: MICRO | K143: 750000 | L143: 750000 | M143: 0 | N143: 0
B144: 41001 | C144: NEIVA | D144: 41 | E144: HUILA | F144: ACTIVIDADES DE SERVICIOS ADMINISTRATIVOS Y DE APOYO | G144: 8230 | H144: N | I144: Natural | J144: MICRO | K144: 2581079 | L144: 1431393 | M144: 290852 | N144: 858834
B145: 18753 | C145: SAN VICENTE DEL CAGUÁN | D145: 18 | E145: CAQUETÁ | F145: INDUSTRIAS MANUFACTURERAS | G145: 1040 | H145: C | I145: Natural | J145: MICRO | K145: 500000 | L145: 500000 | M145: 0 | N145: 0
B146: 13001 | C146: CARTAGENA | D146: 13 | E146: BOLÍVAR | F146: TRANSPORTE Y ALMACENAMIENTO | G146: 5310 | H146: H | I146: Natural | J146: MICRO | K146: 300000 | L146: 0 | M146: 0 | N146: 300000
B147: 25001 | C147: AGUA DE DIOS | D147: 25 | E147: CUNDINAMARCA | F147: COMERCIO AL POR MAYOR Y AL POR MENOR; REPARACIÓN DE VEHÍCULOS AUTOMOTORES Y MOTOCICLETAS | G147: 4723 | H147: G | I147: Natural | J147: MICRO | K147: 454262 | L147: 454262 | M147: 0 | N147: 0
B148: 5001 | C148: MEDELLÍN | D148: 5 | E148: ANTIOQUIA | F148: INDUSTRIAS MANUFACTURERAS | G148: 2511 | H148: C | I148: Natural | J148: MICRO | K148: 727131 | L148: 727131 | M148: 0 | N148: 0
B149: 5631 | C149: SABANETA | D149: 5 | E149: ANTIOQUIA | F149: ALOJAMIENTO Y SERVICIOS DE COMIDA | G149: 5630 | H149: I | I149: Natural | J149: MICRO | K149: 1463096 | L149: 454262 | M149: 0 | N149: 1008834
B150: 5001 | C150: MEDELLÍN | D150: 5 | E150: ANTIOQUIA | F150: ACTIVIDADES PROFESIONALES, CIENTÍFICAS Y TÉCNICAS | G150: 7420 | H150: M | I150: Natural | J150: MICRO | K150: 250000 | L150: 250000 | M150: 0 | N150: 0
B151: 5001 | C151: MEDELLÍN | D151: 5 | E151: ANTIOQUIA | F151: COMERCIO AL POR MAYOR Y AL POR MENOR; REPARACIÓN DE VEHÍCULOS AUTOMOTORES Y MOTOCICLETAS | G151: 4711 | H151: G | I151: Natural | J151: PEQUEÑA | K151: 681393 | L151: 681393 | M151: 0 | N151: 0
B152: 5154 | C152: CAUCASIA | D152: 5 | E152: ANTIOQUIA | F152: COMERCIO AL POR MAYOR Y AL POR MENOR; REPARACIÓN DE VEHÍCULOS AUTOMOTORES Y MOTOCICLETAS | G152: 4541 | H152: G | I152: Natural | J152: MICRO | K152: 681393 | L152: 681393 | M152: 0 | N152: 0
B153: 23466 | C153: MONTELÍBANO | D153: 23 | E153: CÓRDOBA | F153: AGRICULTURA, GANADERÍA, CAZA, SILVICULTURA Y PESCA | G153: 141 | H153: A | I153: Natural | J153: MICRO | K153: 200000 | L153: 0 | M153: 200000 | N153: 0
B154: 5001 | C154: MEDELLÍN | D154: 5 | E154: ANTIOQUIA | F154: ALOJAMIENTO Y SERVICIOS DE COMIDA | G154: 5612 | H154: I | I154: Natural | J154: MICRO | K154: 1950000 | L154: 750000 | M154: 300000 | N154: 900000
B155: 5001 | C155: MEDELLÍN | D155: 5 | E155: ANTIOQUIA | F155: INDUSTRIAS MANUFACTURERAS | G155: 1081 | H155: C | I155: Natural | J155: MICRO | K155: 227131 | L155: 227131 | M155: 0 | N155: 0
B156: 5001 | C156: MEDELLÍN | D156: 5 | E156: ANTIOQUIA | F156: COMERCIO AL POR MAYOR Y AL POR MENOR; REPARACIÓN DE VEHÍCULOS AUTOMOTORES Y MOTOCICLETAS | G156: 4711 | H156: G | I156: Natural | J156: MICRO | K156: 454262 | L156: 454262 | M156: 0 | N156: 0
B157: 5001 | C157: MEDELLÍN | D157: 5 | E157: ANTIOQUIA | F157: TRANSPORTE Y ALMACENAMIENTO | G157: 4923 | H157: H | I157: Natural | J157: MICRO | K157: 227131 | L157: 227131 | M157: 0 | N157: 0
B158: 5686 | C158: SANTA ROSA DE OSOS | D158: 5 | E158: ANTIOQUIA | F158: AGRICULTURA, GANADERÍA, CAZA, SILVICULTURA Y PESCA | G158: 141 | H158: A | I158: Natural | J158: MICRO | K158: 100000 | L158: 0 | M158: 100000 | N158: 0
B159: 5686 | C159: SANTA ROSA DE OSOS | D159: 5 | E159: ANTIOQUIA | F159: INDUSTRIAS MANUFACTURERAS | G159: 1610 | H159: C | I159: Natural | J159: MICRO | K159: 100000 | L159: 0 | M159: 100000 | N159: 0
B160: 5001 | C160: MEDELLÍN | D160: 5 | E160: ANTIOQUIA | F160: COMERCIO AL POR MAYOR Y AL POR MENOR; REPARACIÓN DE VEHÍCULOS AUTOMOTORES Y MOTOCICLETAS | G160: 4741 | H160: G | I160: Natural | J160: MICRO | K160: 1907900 | L160: 1817048 | M160: 90852 | N160: 0
B161: 5001 | C161: MEDELLÍN | D161: 5 | E161: ANTIOQUIA | F161: INDUSTRIAS MANUFACTURERAS | G161: 1410 | H161: C | I161: Natural | J161: MICRO | K161: 227131 | L161: 227131 | M161: 0 | N161: 0
B162: 5001 | C162: MEDELLÍN | D162: 5 | E162: ANTIOQUIA | F162: INDUSTRIAS MANUFACTURERAS | G162: 1081 | H162: C | I162: Natural | J162: PEQUEÑA | K162: 227131 | L162: 227131 | M162: 0 | N162: 0
B163: 50001 | C163: VILLAVICENCIO | D163: 50 | E163: META | F163: ALOJAMIENTO Y SERVICIOS DE COMIDA | G163: 5511 | H163: I | I163: Natural | J163: PEQUEÑA | K163: 550000 | L163: 250000 | M163: 0 | N163: 300000
B164: 23001 | C164: MONTERÍA | D164: 23 | E164: CÓRDOBA | F164: ALOJAMIENTO Y SERVICIOS DE COMIDA | G164: 5611 | H164: I | I164: Natural | J164: PEQUEÑA | K164: 150000 | L164: 0 | M164: 0 | N164: 150000
B165: 5001 | C165: MEDELLÍN | D165: 5 | E165: ANTIOQUIA | F165: ACTIVIDADES FINANCIERAS Y DE SEGUROS | G165: 6495 | H165: K | I165: Natural | J165: MICRO | K165: 250000 | L165: 250000 | M165: 0 | N165: 0
B166: 5266 | C166: ENVIGADO | D166: 5 | E166: ANTIOQUIA | F166: COMERCIO AL POR MAYOR Y AL POR MENOR; REPARACIÓN DE VEHÍCULOS AUTOMOTORES Y MOTOCICLETAS | G166: 4620 | H166: G | I166: Natural | J166: MICRO | K166: 350000 | L166: 0 | M166: 200000 | N166: 150000
B167: 47001 | C167: SANTA MARTA | D167: 47 | E167: MAGDALENA | F167: ALOJAMIENTO Y SERVICIOS DE COMIDA | G167: 5611 | H167: I | I167: Natural | J167: MICRO | K167: 3199374 | L167: 1454262 | M167: 0 | N167: 1745112
B168: 5631 | C168: SABANETA | D168: 5 | E168: ANTIOQUIA | F168: INDUSTRIAS MANUFACTURERAS | G168: 3110 | H168: C | I168: Natural | J168: PEQUEÑA | K168: 1200000 | L168: 500000 | M168: 100000 | N168: 600000
B169: 5001 | C169: MEDELLÍN | D169: 5 | E169: ANTIOQUIA | F169: COMERCIO AL POR MAYOR Y AL POR MENOR; REPARACIÓN DE VEHÍCULOS AUTOMOTORES Y MOTOCICLETAS | G169: 4530 | H169: G | I169: Natural | J169: MICRO | K169: 227131 | L169: 227131 | M169: 0 | N169: 0
B170: 5001 | C170: MEDELLÍN | D170: 5 | E170: ANTIOQUIA | F170: COMERCIO AL POR MAYOR Y AL POR MENOR; REPARACIÓN DE VEHÍCULOS AUTOMOTORES Y MOTOCICLETAS | G170: 4711 | H170: G | I170: Natural | J170: PEQUEÑA | K170: 727131 | L170: 727131 | M170: 0 | N170: 0
B171: 5368 | C171: JERICÓ | D171: 5 | E171: ANTIOQUIA | F171: INDUSTRIAS MANUFACTURERAS | G171: 1084 | H171: C | I171: Natural | J171: PEQUEÑA | K171: 9048126 | L171: 7021310 | M171: 281704 | N171: 1745112
B172: 5631 | C172: SABANETA | D172: 5 | E172: ANTIOQUIA | F172: COMERCIO AL POR MAYOR Y AL POR MENOR; REPARACIÓN DE VEHÍCULOS AUTOMOTORES Y MOTOCICLETAS | G172: 4541 | H172: G | I172: Natural | J172: MICRO | K172: 2608211 | L172: 2135655 | M172: 472556 | N172: 0
B173: 5001 | C173: MEDELLÍN | D173: 5 | E173: ANTIOQUIA | F173: COMERCIO AL POR MAYOR Y AL POR MENOR; REPARACIÓN DE VEHÍCULOS AUTOMOTORES Y MOTOCICLETAS | G173: 4723 | H173: G | I173: Natural | J173: MICRO | K173: 200000 | L173: 0 | M173: 200000 | N173: 0
B174: 5736 | C174: SEGOVIA | D174: 5 | E174: ANTIOQUIA | F174: COMERCIO AL POR MAYOR Y AL POR MENOR; REPARACIÓN DE VEHÍCULOS AUTOMOTORES Y MOTOCICLETAS | G174: 4723 | H174: G | I174: Natural | J174: MICRO | K174: 5752703 | L174: 5202703 | M174: 100000 | N174: 450000
B175: 5837 | C175: TURBO | D175: 5 | E175: ANTIOQUIA | F175: COMERCIO AL POR MAYOR Y AL POR MENOR; REPARACIÓN DE VEHÍCULOS AUTOMOTORES Y MOTOCICLETAS | G175: 4761 | H175: G | I175: Natural | J175: PEQUEÑA | K175: 5388978 | L175: 4271310 | M175: 272556 | N175: 845112
B176: 5001 | C176: MEDELLÍN | D176: 5 | E176: ANTIOQUIA | F176: INDUSTRIAS MANUFACTURERAS | G176: 1811 | H176: C | I176: Natural | J176: PEQUEÑA | K176: 227131 | L176: 227131 | M176: 0 | N176: 0
B177: 5001 | C177: MEDELLÍN | D177: 5 | E177: ANTIOQUIA | F177: ACTIVIDADES PROFESIONALES, CIENTÍFICAS Y TÉCNICAS | G177: 6920 | H177: M | I177: Natural | J177: MICRO | K177: 1226818 | L177: 954262 | M177: 0 | N177: 272556
B178: 70001 | C178: SINCELEJO | D178: 70 | E178: SUCRE | F178: COMERCIO AL POR MAYOR Y AL POR MENOR; REPARACIÓN DE VEHÍCULOS AUTOMOTORES Y MOTOCICLETAS | G178: 4530 | H178: G | I178: Natural | J178: MICRO | K178: 1176818 | L178: 704262 | M178: 472556 | N178: 0
B179: 8638 | C179: SABANALARGA | D179: 8 | E179: ATLÁNTICO | F179: COMERCIO AL POR MAYOR Y AL POR MENOR; REPARACIÓN DE VEHÍCULOS AUTOMOTORES Y MOTOCICLETAS | G179: 4773 | H179: G | I179: Natural | J179: PEQUEÑA | K179: 13748128 | L179: 11225572 | M179: 0 | N179: 2522556
B180: 8001 | C180: BARRANQUILLA | D180: 8 | E180: ATLÁNTICO | F180: ACTIVIDADES DE ATENCIÓN DE LA SALUD HUMANA Y DE ASISTENCIA SOCIAL | G180: 8621 | H180: Q | I180: Natural | J180: MICRO | K180: 227131 | L180: 227131 | M180: 0 | N180: 0
B181: 5001 | C181: MEDELLÍN | D181: 5 | E181: ANTIOQUIA | F181: ALOJAMIENTO Y SERVICIOS DE COMIDA | G181: 5611 | H181: I | I181: Natural | J181: MICRO | K181: 454262 | L181: 454262 | M181: 0 | N181: 0
B182: 13001 | C182: CARTAGENA | D182: 13 | E182: BOLÍVAR | F182: ALOJAMIENTO Y SERVICIOS DE COMIDA | G182: 5611 | H182: I | I182: Natural | J182: PEQUEÑA | K182: 908524 | L182: 908524 | M182: 0 | N182: 0
B183: 13001 | C183: CARTAGENA | D183: 13 | E183: BOLÍVAR | F183: COMERCIO AL POR MAYOR Y AL POR MENOR; REPARACIÓN DE VEHÍCULOS AUTOMOTORES Y MOTOCICLETAS | G183: 4759 | H183: G | I183: Natural | J183: MICRO | K183: 1513409 | L183: 1227131 | M183: 0 | N183: 286278
B184: 15759 | C184: SOGAMOSO | D184: 15 | E184: BOYACÁ | F184: COMERCIO AL POR MAYOR Y AL POR MENOR; REPARACIÓN DE VEHÍCULOS AUTOMOTORES Y MOTOCICLETAS | G184: 4752 | H184: G | I184: Natural | J184: MICRO | K184: 227131 | L184: 227131 | M184: 0 | N184: 0
B185: 15759 | C185: SOGAMOSO | D185: 15 | E185: BOYACÁ | F185: COMERCIO AL POR MAYOR Y AL POR MENOR; REPARACIÓN DE VEHÍCULOS AUTOMOTORES Y MOTOCICLETAS | G185: 4530 | H185: G | I185: Natural | J185: PEQUEÑA | K185: 2385655 | L185: 2385655 | M185: 0 | N185: 0
B186: 15759 | C186: SOGAMOSO | D186: 15 | E186: BOYACÁ | F186: ALOJAMIENTO Y SERVICIOS DE COMIDA | G186: 5613 | H186: I | I186: Natural | J186: PEQUEÑA | K186: 227131 | L186: 227131 | M186: 0 | N186: 0
B187: 11001 | C187: BOGOTÁ, D.C. | D187: 11 | E187: BOGOTÁ, D.C. | F187: ACTIVIDADES PROFESIONALES, CIENTÍFICAS Y TÉCNICAS | G187: 6920 | H187: M | I187: Natural | J187: MICRO | K187: 1600000 | L187: 1000000 | M187: 0 | N187: 600000
B188: 15759 | C188: SOGAMOSO | D188: 15 | E188: BOYACÁ | F188: INFORMACIÓN Y COMUNICACIONES | G188: 6201 | H188: J | I188: Natural | J188: PEQUEÑA | K188: 454262 | L188: 454262 | M188: 0 | N188: 0
B189: 85139 | C189: MANÍ | D189: 85 | E189: CASANARE | F189: INDUSTRIAS MANUFACTURERAS | G189: 1630 | H189: C | I189: Natural | J189: MICRO | K189: 635966 | L189: 454262 | M189: 181704 | N189: 0
B190: 85430 | C190: TRINIDAD | D190: 85 | E190: CASANARE | F190: ALOJAMIENTO Y SERVICIOS DE COMIDA | G190: 5511 | H190: I | I190: Natural | J190: MICRO | K190: 1135655 | L190: 1135655 | M190: 0 | N190: 0
B191: 85001 | C191: YOPAL | D191: 85 | E191: CASANARE | F191: INDUSTRIAS MANUFACTURERAS | G191: 3312 | H191: C | I191: Natural | J191: PEQUEÑA | K191: 3450000 | L191: 1750000 | M191: 1400000 | N191: 300000
B192: 20011 | C192: AGUACHICA | D192: 20 | E192: CESAR | F192: INDUSTRIAS MANUFACTURERAS | G192: 2511 | H192: C | I192: Natural | J192: PEQUEÑA | K192: 6889917 | L192: 6589917 | M192: 0 | N192: 300000
B193: 63001 | C193: ARMENIA | D193: 63 | E193: QUINDÍO | F193: TRANSPORTE Y ALMACENAMIENTO | G193: 4923 | H193: H | I193: Natural | J193: MICRO | K193: 1281704 | L193: 1000000 | M193: 281704 | N193: 0
B194: 63001 | C194: ARMENIA | D194: 63 | E194: QUINDÍO | F194: TRANSPORTE Y ALMACENAMIENTO | G194: 4923 | H194: H | I194: Natural | J194: MICRO | K194: 795114 | L194: 704262 | M194: 90852 | N194: 0
B195: 63001 | C195: ARMENIA | D195: 63 | E195: QUINDÍO | F195: ACTIVIDADES PROFESIONALES, CIENTÍFICAS Y TÉCNICAS | G195: 7112 | H195: M | I195: Natural | J195: MICRO | K195: 227131 | L195: 227131 | M195: 0 | N195: 0
B196: 63001 | C196: ARMENIA | D196: 63 | E196: QUINDÍO | F196: TRANSPORTE Y ALMACENAMIENTO | G196: 4923 | H196: H | I196: Natural | J196: MICRO | K196: 317983 | L196: 227131 | M196: 90852 | N196: 0
B197: 63001 | C197: ARMENIA | D197: 63 | E197: QUINDÍO | F197: INDUSTRIAS MANUFACTURERAS | G197: 1410 | H197: C | I197: Natural | J197: MICRO | K197: 1227131 | L197: 1227131 | M197: 0 | N197: 0
B198: 52001 | C198: PASTO | D198: 52 | E198: NARIÑO | F198: TRANSPORTE Y ALMACENAMIENTO | G198: 4923 | H198: H | I198: Natural | J198: MICRO | K198: 227131 | L198: 227131 | M198: 0 | N198: 0
B199: 63001 | C199: ARMENIA | D199: 63 | E199: QUINDÍO | F199: COMERCIO AL POR MAYOR Y AL POR MENOR; REPARACIÓN DE VEHÍCULOS AUTOMOTORES Y MOTOCICLETAS | G199: 4719 | H199: G | I199: Natural | J199: MICRO | K199: 1303949 | L199: 931393 | M199: 372556 | N199: 0
B200: 66001 | C200: PEREIRA | D200: 66 | E200: RISARALDA | F200: ALOJAMIENTO Y SERVICIOS DE COMIDA | G200: 5613 | H200: I | I200: Natural | J200: MICRO | K200: 3225259 | L200: 2952703 | M200: 0 | N200: 272556
... 4300 more rows

Sheet insumos2 (hidden)
A1: TIPO DE IDENTIFICACION POSTULANTE | B1: NUMERO IDENTIFICACION EMPRESA | C1: CIUDAD - DIVIPOLA - R | D1: Municipio | E1: TOTAL COTIZANTES CON CONCEPTO DE CONFORMIDAD TOTAL A GIRAR | F1: TOTAL COTIZANTES CON CONCEPTO DE NO CONFORMIDAD | G1: TIPO DE PERSONA | H1: Departamento DIVIPOLA (P) | I1: Nombre dpto | J1: ESTADO_TOTAL A GIRAR | K1: Tamaño del Empleador | L1: STRCODPAR_CIIU_EMPRESA | M1: ACTIVIDAD ECONOMICA | N1: ACTIVIDAD ECONOMICA | O1: Division 3DC_TD 3D | P1: grupo especial 2DC_TD 3D | Q1: SEXO_F_ | R1: SEXO_M_ | S1: SEXO_ND_ | T1: Jovenes | U1: Mujeres 28 años | V1: Hombres 28 años | W1: Cot_nacional | X1: Cot_extranjero | Z1: Departamentos | AA1: empleadores | AB1: Departamentos | AC1: empleadores | AJ1: TIPO DE IDENTIFICACION POSTULANTE | AK1: NUMERO IDENTIFICACION EMPRESA | AL1: CIUDAD - DIVIPOLA - R | AM1: Municipio | AN1: TOTAL COTIZANTES CON CONCEPTO DE CONFORMIDAD TOTAL A GIRAR | AO1: TOTAL COTIZANTES CON CONCEPTO DE NO CONFORMIDAD | AP1: TIPO DE PERSONA | AQ1: Departamento DIVIPOLA (P) | AR1: Nombre dpto | AS1: ESTADO_TOTAL A GIRAR | AT1: Tamaño del Empleador | AU1: STRCODPAR_CIIU_EMPRESA | AV1: ACTIVIDAD ECONOMICA | AW1: ACTIVIDAD ECONOMICA | AX1: Division 3DC_TD 3D | AY1: grupo especial 2DC_TD 3D | AZ1: SEXO_F_ | BA1: SEXO_M_ | BB1: SEXO_ND_ | BC1: Jovenes | BD1: Mujeres 28 años | BE1: Hombres 28 años | BF1: Cot_nacional | BG1: Cot_extranjero | BJ1: Departamentos | BK1: empleadores | BL1: Departamentos | BM1: empleadores | BN1: nomdpto | BP1: =BN1 -> nomdpto | BQ1: empleadores | BR1: empleados | BT1: codmunicipio | BU1: aportantes | BV1: codmunicipio | BW1: aportantes | BX1: cod_dpto | BY1: nom_dpto | BZ1: nom_mpio | CA1: empleadores | CB1: empleados | CD1: Grupo | CE1: empleadores | CF1: empleados | CG1: Grupo | CH1: empleadores | CI1: empleados | CN1: Jovenes | CO1: Mujeres > 28 años | CP1: Hombres> 28 años | CT1: Jovenes | CU1: Mujeres > 28 años | CV1: Hombres> 28 años | CY1: Jovenes | CZ1: Mujeres > 28 años | DA1: Hombres> 28 años
C2: 63001 | D2: ARMENIA | E2: 1 | F2: 0 | G2: Natural | H2: 63 | I2: QUINDÍO | J2: Aprobado con subsidio | K2: MICRO | L2: 5611 | M2: ALOJAMIENTO Y SERVICIOS DE COMIDA | N2: I | O2: Actividades de restaurantes, cafeterías y servicio móvil de comidas | P2: Actividades de restaurantes, cafeterías y servicio móvil de comidas | Q2: 0 | R2: 1 | S2: 0 | T2: 1 | U2: 0 | V2: 0 | W2: 1 | X2: 0 | Z2: 68 | AA2: =COUNTIFS($J$2:$J$399999,"Aprobado con subsidio",$H$2:$H$399999,Z2) -> 1053 | AB2: =_xlfn._xlws.SORT($Z$2:$AA$34,2,-1) -> 11 | AC2: 7182 | AD2: =VLOOKUP(AB2,Hoja4!$A$29:$B$61,2,FALSE) -> Bogotá | AJ2: =_xlfn._xlws.FILTER($A$2:$X$399999,$N$2:$N$399999=Visor!$N$4,"") -> 0 | AK2: 0 | AL2: 5001 | AM2: MEDELLÍN | AN2: 0 | AO2: 1 | AP2: Natural | AQ2: 5 | AR2: ANTIOQUIA | AS2: 0 | AT2: MICRO | AU2: 3315 | AV2: INDUSTRIAS MANUFACTURERAS | AW2: C | AX2: Mantenimiento y reparación especializado de productos elaborados en metal y de maquinaria y equipo | AY2: Instalación, mantenimiento y reparación especializado de maquinaria y equipo | AZ2: 0 | BA2: 0 | BB2: 0 | BC2: 0 | BD2: 0 | BE2: 0 | BF2: 0 | BG2: 0 | BJ2: 68 | BK2: =COUNTIFS($AS$2:$AS$399999,"Aprobado con subsidio",$AQ$2:$AQ$399999,BJ2) -> 186 | BL2: =_xlfn._xlws.SORT($BJ$2:$BK$34,2,-1) -> 11 | BM2: 979 | BN2: =VLOOKUP(BL2,Hoja4!$A$29:$B$61,2,FALSE) -> Bogotá | BP2: =BN2 -> Bogotá | BQ2: =BM2 -> 979 | BR2: =SUMIFS($AN$2:$AN$399999,$AS$2:$AS$399999,"Aprobado con subsidio",$AQ$2:$AQ$399999,BL2) -> 14114 | BT2: =_xlfn.UNIQUE($AL$2:$AL$399999) -> 5001 | BU2: =COUNTIFS($AS$2:$AS$399999,"Aprobado con subsidio",$AL$2:$AL$399999,BT2) -> 463 | BV2: =_xlfn._xlws.SORT($BT$2:$BU$1122,2,-1) -> 11001 | BW2: 979 | BX2: =IF(LEN(BV2)=5,MID(BV2,1,2),MID(BV2,1,1))*1 -> 11 | BY2: =VLOOKUP(BX2,Hoja4!$A$29:$B$61,2,FALSE) -> Bogotá | BZ2: =VLOOKUP(BV2,Hoja4!$D$29:$E$1150,2,FALSE) -> Bogotá, d.c. | CA2: =BW2 -> 979 | CB2: =SUMIFS($AN$2:$AN$399999,$AL$2:$AL$399999,BV2) -> 14114 | CD2: =_xlfn.UNIQUE($AY$2:$AY$399999) -> Instalación, mantenimiento y reparación especializado de maquinaria y equipo | CE2: =COUNTIFS($AY$2:$AY$399999,CD2,$AS$2:$AS$399999,"Aprobado con subsidio") -> 286 | CF2: =SUMIFS($AN$2:$AN$399999,$AY$2:$AY$399999,CD2,$AS$2:$AS$399999,"Aprobado con subsidio") -> 2475 | CG2: =_xlfn._xlws.SORT(CD2:CF26,2,-1) -> Elaboración de productos alimenticios | CH2: 644 | CI2: 11132 | CM2: =_xlfn.UNIQUE($M$2:$M$400000) -> ALOJAMIENTO Y SERVICIOS DE COMIDA | CN2: =SUMIFS(T$2:T$400000,$M$2:$M$400000,$CM2,$J$2:$J$400000,"Aprobado con subsidio") -> 18045 | CO2: =SUMIFS(U$2:U$400000,$M$2:$M$400000,$CM2,$J$2:$J$400000,"Aprobado con subsidio") -> 4412 | CP2: =SUMIFS(V$2:V$400000,$M$2:$M$400000,$CM2,$J$2:$J$400000,"Aprobado con subsidio") -> 1976 | CS2: =_xlfn._xlws.SORT(CM2:CP23,2,-1) -> ACTIVIDADES DE SERVICIOS ADMINISTRATIVOS Y DE APOYO | CT2: 150438 | CU2: 25358 | CV2: 8223 | CX2: =IF(CS23=0,"TOTAL",CS23) -> TOTAL | CY2: =IF(CX2="Total",SUM($CT$2:$CT$23)/SUM($CT$2:$CV$23),CT23/SUM($CT23:$CV23)) -> 0.7586060951 | CZ2: =IF(CX2="Total",SUM($CU$2:$CU$23)/SUM($CT$2:$CV$23),CU23/SUM($CT23:$CV23)) -> 0.1324768501 | DA2: =IF(CX2="Total",SUM($CV$2:$CV$23)/SUM($CT$2:$CV$23),CV23/SUM($CT23:$CV23)) -> 0.1089170548
C3: 17380 | D3: LA DORADA | E3: 0 | F3: 0 | G3: Natural | H3: 17 | I3: CALDAS | J3: 0 | K3: MICRO | L3: 141 | M3: AGRICULTURA, GANADERÍA, CAZA, SILVICULTURA Y PESCA | N3: A | O3: Ganadería | P3: Ganadería | Q3: 0 | R3: 0 | S3: 0 | T3: 0 | U3: 0 | V3: 0 | W3: 0 | X3: 0 | Z3: 13 | AA3: =COUNTIFS($J$2:$J$399999,"Aprobado con subsidio",$H$2:$H$399999,Z3) -> 400 | AB3: 5 | AC3: 4545 | AD3: =VLOOKUP(AB3,Hoja4!$A$29:$B$61,2,FALSE) -> Antioquia | AJ3: 0 | AK3: 0 | AL3: 5615 | AM3: RIONEGRO | AN3: 0 | AO3: 0 | AP3: Natural | AQ3: 5 | AR3: ANTIOQUIA | AS3: 0 | AT3: PEQUEÑA | AU3: 2012 | AV3: INDUSTRIAS MANUFACTURERAS | AW3: C | AX3: Fabricación de sustancias químicas básicas, abonos y compuestos inorgánicos nitrogenados, plásticos y caucho sintético en formas primarias | AY3: Fabricación de sustancias y productos químicos | AZ3: 0 | BA3: 0 | BB3: 0 | BC3: 0 | BD3: 0 | BE3: 0 | BF3: 0 | BG3: 0 | BJ3: 13 | BK3: 29 | BL3: 5 | BM3: 930 | BN3: =VLOOKUP(BL3,Hoja4!$A$29:$B$61,2,FALSE) -> Antioquia | BP3: =BN3 -> Antioquia | BQ3: =BM3 -> 930 | BR3: 15395 | BT3: 5615 | BU3: 35 | BV3: 5001 | BW3: 463 | BX3: =IF(LEN(BV3)=5,MID(BV3,1,2),MID(BV3,1,1))*1 -> 5 | BY3: =VLOOKUP(BX3,Hoja4!$A$29:$B$61,2,FALSE) -> Antioquia | BZ3: =VLOOKUP(BV3,Hoja4!$D$29:$E$1150,2,FALSE) -> Medellín | CA3: 463 | CB3: 7825 | CD3: Fabricación de sustancias y productos químicos | CE3: 151 | CF3: 1465 | CG3: Confección de prendas de vestir | CH3: 618 | CI3: 15409 | CM3: AGRICULTURA, GANADERÍA, CAZA, SILVICULTURA Y PESCA | CN3: 10551 | CO3: 1086 | CP3: 1036 | CS3: COMERCIO AL POR MAYOR Y AL POR MENOR; REPARACIÓN DE VEHÍCULOS AUTOMOTORES Y MOTOCICLETAS | CT3: 37831 | CU3: 5943 | CV3: 3861 | CX3: =IF(CS2=0,"Total",CS2) -> ACTIVIDADES DE SERVICIOS ADMINISTRATIVOS Y DE APOYO | CY3: =IF(CX3="Total",SUM($CT$2:$CT$23)/SUM($CT$2:$CV$23),CT2/SUM($CT2:$CV2)) -> 0.8175134089 | CZ3: =IF(CX3="Total",SUM($CU$2:$CU$23)/SUM($CT$2:$CV$23),CU2/SUM($CT2:$CV2)) -> 0.1378009879 | DA3: =IF(CX3="Total",SUM($CV$2:$CV$23)/SUM($CT$2:$CV$23),CV2/SUM($CT2:$CV2)) -> 0.04468560312
C4: 25035 | D4: ANAPOIMA | E4: 0 | F4: 0 | G4: Natural | H4: 25 | I4: CUNDINAMARCA | J4: 0 | K4: MICRO | L4: 7730 | M4: ACTIVIDADES DE SERVICIOS ADMINISTRATIVOS Y DE APOYO | N4: N | O4: Alquiler y arrendamiento de otros tipos de maquinaria, equipo y bienes tangibles n.c.p. | P4: Alquiler y arrendamiento de otros tipos de maquinaria, equipo y bienes tangibles n.c.p. | Q4: 0 | R4: 0 | S4: 0 | T4: 0 | U4: 0 | V4: 0 | W4: 0 | X4: 0 | Z4: 15 | AA4: 306 | AB4: 76 | AC4: 1958 | AD4: =VLOOKUP(AB4,Hoja4!$A$29:$B$61,2,FALSE) -> Valle del cauca | AJ4: 0 | AK4: 0 | AL4: 11001 | AM4: BOGOTÁ, D.C. | AN4: 2 | AO4: 1 | AP4: Natural | AQ4: 11 | AR4: BOGOTÁ, D.C. | AS4: Aprobado con subsidio | AT4: MICRO | AU4: 1313 | AV4: INDUSTRIAS MANUFACTURERAS | AW4: C | AX4: Preparación, hilatura, tejeduría y acabado de productos textiles | AY4: Fabricación de productos textiles | AZ4: 2 | BA4: 0 | BB4: 0 | BC4: 1 | BD4: 1 | BE4: 0 | BF4: 2 | BG4: 0 | BJ4: 15 | BK4: 33 | BL4: 76 | BM4: 337 | BN4: =VLOOKUP(BL4,Hoja4!$A$29:$B$61,2,FALSE) -> Valle del cauca | BP4: Valle del cauca | BQ4: 337 | BR4: 5961 | BT4: 11001 | BU4: 979 | BV4: 76001 | BW4: 211 | BX4: 76 | BY4: =VLOOKUP(BX4,Hoja4!$A$29:$B$61,2,FALSE) -> Valle del cauca | BZ4: =VLOOKUP(BV4,Hoja4!$D$29:$E$1150,2,FALSE) -> Cali | CA4: 211 | CB4: 2526 | CD4: Fabricación de productos textiles | CE4: 146 | CF4: 2329 | CG4: Instalación, mantenimiento y reparación especializado de maquinaria y equipo | CH4: 286 | CI4: 2475 | CM4: ACTIVIDADES DE SERVICIOS ADMINISTRATIVOS Y DE APOYO | CN4: 150438 | CO4: 25358 | CP4: 8223 | CS4: INDUSTRIAS MANUFACTURERAS | CT4: 37452 | CU4: 6435 | CV4: 4946 | CX4: COMERCIO AL POR MAYOR Y AL POR MENOR; REPARACIÓN DE VEHÍCULOS AUTOMOTORES Y MOTOCICLETAS | CY4: 0.794184948 | CZ4: 0.124761205 | DA4: 0.08105384696
C5: 68001 | D5: BUCARAMANGA | E5: 0 | F5: 0 | G5: Natural | H5: 68 | I5: SANTANDER | J5: 0 | K5: 0 | L5: 4771 | M5: COMERCIO AL POR MAYOR Y AL POR MENOR; REPARACIÓN DE VEHÍCULOS AUTOMOTORES Y MOTOCICLETAS | N5: G | O5: Comercio al por menor de otros productos en establecimientos especializados | P5: Comercio al por menor de otros productos en establecimientos especializados | Q5: 0 | R5: 0 | S5: 0 | T5: 0 | U5: 0 | V5: 0 | W5: 0 | X5: 0 | Z5: 5 | AA5: 4545 | AB5: 68 | AC5: 1053 | AD5: =VLOOKUP(AB5,Hoja4!$A$29:$B$61,2,FALSE) -> Santander | AJ5: 0 | AK5: 0 | AL5: 11001 | AM5: BOGOTÁ, D.C. | AN5: 0 | AO5: 0 | AP5: Natural | AQ5: 11 | AR5: BOGOTÁ, D.C. | AS5: 0 | AT5: PEQUEÑA | AU5: 1513 | AV5: INDUSTRIAS MANUFACTURERAS | AW5: C | AX5: Curtido y recurtido de cueros; fabricación de artículos de viaje, bolsos de mano y artículos similares, y fabricación de artículos de talabartería y guarnicionería; adobo y teñido de pieles | AY5: Curtido y recurtido de cueros; fabricación de calzado; fabricación de artículos de viaje, maletas, bolsos de mano y artículos similares, y fabricación de artículos de talabartería y guarnicionería; adobo y teñido de pieles | AZ5: 0 | BA5: 0 | BB5: 0 | BC5: 0 | BD5: 0 | BE5: 0 | BF5: 0 | BG5: 0 | BJ5: 5 | BK5: 930 | BL5: 25 | BM5: 214 | BN5: =VLOOKUP(BL5,Hoja4!$A$29:$B$61,2,FALSE) -> Cundinamarca | BP5: Cundinamarca | BQ5: 214 | BR5: 2604 | BT5: 25875 | BU5: 2 | BV5: 5360 | BW5: 123 | BX5: 5 | BY5: =VLOOKUP(BX5,Hoja4!$A$29:$B$61,2,FALSE) -> Antioquia | BZ5: =VLOOKUP(BV5,Hoja4!$D$29:$E$1150,2,FALSE) -> Itagüí | CA5: 123 | CB5: 1547 | CD5: Curtido y recurtido de cueros; fabricación de calzado; fabricación de artículos de viaje, maletas, bolsos de mano y artículos similares, y fabricación de artículos de talabartería y guarnicionería; adobo y teñido de pieles | CE5: 101 | CF5: 1427 | CG5: Fabricación de productos elaborados de metal, excepto maquinaria y equipo | CH5: 269 | CI5: 2364 | CM5: COMERCIO AL POR MAYOR Y AL POR MENOR; REPARACIÓN DE VEHÍCULOS AUTOMOTORES Y MOTOCICLETAS | CN5: 37831 | CO5: 5943 | CP5: 3861 | CS5: CONSTRUCCIÓN | CT5: 24257 | CU5: 3432 | CV5: 17890 | CX5: INDUSTRIAS MANUFACTURERAS | CY5: 0.7669403887 | CZ5: 0.1317756435 | DA5: 0.1012839678
C6: 5001 | D6: MEDELLÍN | E6: 2 | F6: 1 | G6: Natural | H6: 5 | I6: ANTIOQUIA | J6: Aprobado con subsidio | K6: MICRO | L6: 141 | M6: AGRICULTURA, GANADERÍA, CAZA, SILVICULTURA Y PESCA | N6: A | O6: Ganadería | P6: Ganadería | Q6: 0 | R6: 2 | S6: 0 | T6: 2 | U6: 0 | V6: 0 | W6: 2 | X6: 0 | Z6: 76 | AA6: 1958 | AB6: 25 | AC6: 1012 | AD6: =VLOOKUP(AB6,Hoja4!$A$29:$B$61,2,FALSE) -> Cundinamarca | AJ6: 0 | AK6: 0 | AL6: 25875 | AM6: VILLETA | AN6: 1 | AO6: 0 | AP6: Natural | AQ6: 25 | AR6: CUNDINAMARCA | AS6: Aprobado con subsidio | AT6: PEQUEÑA | AU6: 1081 | AV6: INDUSTRIAS MANUFACTURERAS | AW6: C | AX6: Elaboración de otros productos alimenticios | AY6: Elaboración de productos alimenticios | AZ6: 1 | BA6: 0 | BB6: 0 | BC6: 1 | BD6: 0 | BE6: 0 | BF6: 1 | BG6: 0 | BJ6: 76 | BK6: 337 | BL6: 68 | BM6: 186 | BN6: =VLOOKUP(BL6,Hoja4!$A$29:$B$61,2,FALSE) -> Santander | BP6: Santander | BQ6: 186 | BR6: 1591 | BT6: 15176 | BU6: 1 | BV6: 68001 | BW6: 114 | BX6: 68 | BY6: =VLOOKUP(BX6,Hoja4!$A$29:$B$61,2,FALSE) -> Santander | BZ6: =VLOOKUP(BV6,Hoja4!$D$29:$E$1150,2,FALSE) -> Bucaramanga | CA6: 114 | CB6: 1046 | CD6: Elaboración de productos alimenticios | CE6: 644 | CF6: 11132 | CG6: Fabricación de productos de caucho y de plástico | CH6: 180 | CI6: 2315 | CM6: INDUSTRIAS MANUFACTURERAS | CN6: 37452 | CO6: 6435 | CP6: 4946 | CS6: INFORMACIÓN Y COMUNICACIONES | CT6: 20810 | CU6: 2465 | CV6: 2643 | CX6: CONSTRUCCIÓN | CY6: 0.532196845 | CZ6: 0.07529783453 | DA6: 0.3925053204
C7: 41001 | D7: NEIVA | E7: 0 | F7: 0 | G7: Natural | H7: 41 | I7: HUILA | J7: 0 | K7: 0 | L7: 4773 | M7: COMERCIO AL POR MAYOR Y AL POR MENOR; REPARACIÓN DE VEHÍCULOS AUTOMOTORES Y MOTOCICLETAS | N7: G | O7: Comercio al por menor de otros productos en establecimientos especializados | P7: Comercio al por menor de otros productos en establecimientos especializados | Q7: 0 | R7: 0 | S7: 0 | T7: 0 | U7: 0 | V7: 0 | W7: 0 | X7: 0 | Z7: 54 | AA7: 511 | AB7: 8 | AC7: 811 | AD7: =VLOOKUP(AB7,Hoja4!$A$29:$B$61,2,FALSE) -> Atlántico | AJ7: 0 | AK7: 0 | AL7: 5001 | AM7: MEDELLÍN | AN7: 3 | AO7: 0 | AP7: Natural | AQ7: 5 | AR7: ANTIOQUIA | AS7: Aprobado con subsidio | AT7: MICRO | AU7: 3240 | AV7: INDUSTRIAS MANUFACTURERAS | AW7: C | AX7: Fabricación de juegos, juguetes y rompecabezas | AY7: Otras industrias manufactureras | AZ7: 2 | BA7: 1 | BB7: 0 | BC7: 2 | BD7: 0 | BE7: 1 | BF7: 3 | BG7: 0 | BJ7: 54 | BK7: 82 | BL7: 8 | BM7: 113 | BN7: =VLOOKUP(BL7,Hoja4!$A$29:$B$61,2,FALSE) -> Atlántico | BP7: Atlántico | BQ7: 113 | BR7: 2329 | BT7: 18205 | BU7: 1 | BV7: 8001 | BW7: 94 | BX7: 8 | BY7: =VLOOKUP(BX7,Hoja4!$A$29:$B$61,2,FALSE) -> Atlántico | BZ7: =VLOOKUP(BV7,Hoja4!$D$29:$E$1150,2,FALSE) -> Barranquilla | CA7: 94 | CB7: 1888 | CD7: Otras industrias manufactureras | CE7: 120 | CF7: 1112 | CG7: Fabricación de sustancias y productos químicos | CH7: 151 | CI7: 1465 | CM7: TRANSPORTE Y ALMACENAMIENTO | CN7: 13936 | CO7: 2241 | CP7: 5336 | CS7: ACTIVIDADES DE ATENCIÓN DE LA SALUD HUMANA Y DE ASISTENCIA SOCIAL | CT7: 19058 | CU7: 4384 | CV7: 783 | CX7: INFORMACIÓN Y COMUNICACIONES | CY7: 0.8029168917 | CZ7: 0.09510764719 | DA7: 0.1019754611
C8: 25307 | D8: GIRARDOT | E8: 1 | F8: 3 | G8: Natural | H8: 25 | I8: CUNDINAMARCA | J8: Aprobado con subsidio | K8: MICRO | L8: 4530 | M8: COMERCIO AL POR MAYOR Y AL POR MENOR; REPARACIÓN DE VEHÍCULOS AUTOMOTORES Y MOTOCICLETAS | N8: G | O8: Comercio de partes, piezas (autopartes) y accesorios (lujos) para vehículos automotores | P8: Comercio de partes, piezas (autopartes) y accesorios (lujos) para vehículos automotores | Q8: 1 | R8: 0 | S8: 0 | T8: 1 | U8: 0 | V8: 0 | W8: 1 | X8: 0 | Z8: 11 | AA8: 7182 | AB8: 54 | AC8: 511 | AD8: =VLOOKUP(AB8,Hoja4!$A$29:$B$61,2,FALSE) -> Norte de stder | AJ8: 0 | AK8: 0 | AL8: 5001 | AM8: MEDELLÍN | AN8: 0 | AO8: 0 | AP8: Natural | AQ8: 5 | AR8: ANTIOQUIA | AS8: 0 | AT8: PEQUEÑA | AU8: 1011 | AV8: INDUSTRIAS MANUFACTURERAS | AW8: C | AX8: Procesamiento y conservación de carne, pescado, crustáceos y moluscos | AY8: Elaboración de productos alimenticios | AZ8: 0 | BA8: 0 | BB8: 0 | BC8: 0 | BD8: 0 | BE8: 0 | BF8: 0 | BG8: 0 | BJ8: 11 | BK8: 979 | BL8: 66 | BM8: 94 | BN8: =VLOOKUP(BL8,Hoja4!$A$29:$B$61,2,FALSE) -> Risaralda | BP8: Risaralda | BQ8: 94 | BR8: 1663 | BT8: 52560 | BU8: 1 | BV8: 54001 | BW8: 68 | BX8: 54 | BY8: =VLOOKUP(BX8,Hoja4!$A$29:$B$61,2,FALSE) -> Norte de stder | BZ8: =VLOOKUP(BV8,Hoja4!$D$29:$E$1150,2,FALSE) -> Cucuta | CA8: 68 | CB8: 589 | CD8: Confección de prendas de vestir | CE8: 618 | CF8: 15409 | CG8: Fabricación de productos textiles | CH8: 146 | CI8: 2329 | CM8: OTRAS | CN8: 7 | CO8: 4 | CP8: 10 | CS8: ALOJAMIENTO Y SERVICIOS DE COMIDA | CT8: 18045 | CU8: 4412 | CV8: 1976 | CX8: ACTIVIDADES DE ATENCIÓN DE LA SALUD HUMANA Y DE ASISTENCIA SOCIAL | CY8: 0.7867079463 | CZ8: 0.1809700722 | DA8: 0.03232198142
C9: 54001 | D9: CÚCUTA | E9: 0 | F9: 0 | G9: Natural | H9: 54 | I9: NORTE DE SANTANDER | J9: 0 | K9: 0 | L9: 5611 | M9: ALOJAMIENTO Y SERVICIOS DE COMIDA | N9: I | O9: Actividades de restaurantes, cafeterías y servicio móvil de comidas | P9: Actividades de restaurantes, cafeterías y servicio móvil de comidas | Q9: 0 | R9: 0 | S9: 0 | T9: 0 | U9: 0 | V9: 0 | W9: 0 | X9: 0 | Z9: 66 | AA9: 506 | AB9: 66 | AC9: 506 | AD9: =VLOOKUP(AB9,Hoja4!$A$29:$B$61,2,FALSE) -> Risaralda | AJ9: 0 | AK9: 0 | AL9: 11001 | AM9: BOGOTÁ, D.C. | AN9: 0 | AO9: 0 | AP9: Natural | AQ9: 11 | AR9: BOGOTÁ, D.C. | AS9: 0 | AT9: MICRO | AU9: 1410 | AV9: INDUSTRIAS MANUFACTURERAS | AW9: C | AX9: Confección de prendas de vestir, excepto prendas de piel | AY9: Confección de prendas de vestir | AZ9: 0 | BA9: 0 | BB9: 0 | BC9: 0 | BD9: 0 | BE9: 0 | BF9: 0 | BG9: 0 | BJ9: 66 | BK9: 94 | BL9: 54 | BM9: 82 | BN9: =VLOOKUP(BL9,Hoja4!$A$29:$B$61,2,FALSE) -> Norte de stder | BP9: Norte de stder | BQ9: 82 | BR9: 707 | BT9: 54001 | BU9: 68 | BV9: 5380 | BW9: 53 | BX9: 5 | BY9: =VLOOKUP(BX9,Hoja4!$A$29:$B$61,2,FALSE) -> Antioquia | BZ9: =VLOOKUP(BV9,Hoja4!$D$29:$E$1150,2,FALSE) -> La estrella | CA9: 53 | CB9: 597 | CD9: Fabricación de muebles, colchones y somieres | CE9: 111 | CF9: 887 | CG9: Otras industrias manufactureras | CH9: 120 | CI9: 1112 | CM9: ACTIVIDADES PROFESIONALES, CIENTÍFICAS Y TÉCNICAS | CN9: 14957 | CO9: 2834 | CP9: 3924 | CS9: ACTIVIDADES PROFESIONALES, CIENTÍFICAS Y TÉCNICAS | CT9: 14957 | CU9: 2834 | CV9: 3924 | CX9: ALOJAMIENTO Y SERVICIOS DE COMIDA | CY9: 0.7385503213 | CZ9: 0.1805754512 | DA9: 0.08087422748
C10: 5001 | D10: MEDELLÍN | E10: 0 | F10: 1 | G10: Natural | H10: 5 | I10: ANTIOQUIA | J10: 0 | K10: MICRO | L10: 3315 | M10: INDUSTRIAS MANUFACTURERAS | N10: C | O10: Mantenimiento y reparación especializado de productos elaborados en metal y de maquinaria y equipo | P10: Instalación, mantenimiento y reparación especializado de maquinaria y equipo | Q10: 0 | R10: 0 | S10: 0 | T10: 0 | U10: 0 | V10: 0 | W10: 0 | X10: 0 | Z10: 52 | AA10: 285 | AB10: 13 | AC10: 400 | AD10: =VLOOKUP(AB10,Hoja4!$A$29:$B$61,2,FALSE) -> Bolívar | AJ10: 0 | AK10: 0 | AL10: 5001 | AM10: MEDELLÍN | AN10: 2 | AO10: 0 | AP10: Natural | AQ10: 5 | AR10: ANTIOQUIA | AS10: Aprobado con subsidio | AT10: MICRO | AU10: 3110 | AV10: INDUSTRIAS MANUFACTURERAS | AW10: C | AX10: Fabricación de muebles | AY10: Fabricación de muebles, colchones y somieres | AZ10: 1 | BA10: 1 | BB10: 0 | BC10: 2 | BD10: 0 | BE10: 0 | BF10: 2 | BG10: 0 | BJ10: 52 | BK10: 25 | BL10: 17 | BM10: 60 | BN10: =VLOOKUP(BL10,Hoja4!$A$29:$B$61,2,FALSE) -> Caldas | BP10: Caldas | BQ10: 60 | BR10: 540 | BT10: 68001 | BU10: 114 | BV10: 17001 | BW10: 51 | BX10: 17 | BY10: =VLOOKUP(BX10,Hoja4!$A$29:$B$61,2,FALSE) -> Caldas | BZ10: =VLOOKUP(BV10,Hoja4!$D$29:$E$1150,2,FALSE) -> Manizales | CA10: 51 | CB10: 481 | CD10: Fabricación de productos elaborados de metal, excepto maquinaria y equipo | CE10: 269 | CF10: 2364 | CG10: Fabricación de muebles, colchones y somieres | CH10: 111 | CI10: 887 | CM10: EDUCACIÓN | CN10: 4791 | CO10: 2406 | CP10: 314 | CS10: TRANSPORTE Y ALMACENAMIENTO | CT10: 13936 | CU10: 2241 | CV10: 5336 | CX10: ACTIVIDADES PROFESIONALES, CIENTÍFICAS Y TÉCNICAS | CY10: 0.6887865531 | CZ10: 0.1305088648 | DA10: 0.1807045821
C11: 5001 | D11: MEDELLÍN | E11: 0 | F11: 0 | G11: Natural | H11: 5 | I11: ANTIOQUIA | J11: 0 | K11: MICRO | L11: 5611 | M11: ALOJAMIENTO Y SERVICIOS DE COMIDA | N11: I | O11: Actividades de restaurantes, cafeterías y servicio móvil de comidas | P11: Actividades de restaurantes, cafeterías y servicio móvil de comidas | Q11: 0 | R11: 0 | S11: 0 | T11: 0 | U11: 0 | V11: 0 | W11: 0 | X11: 0 | Z11: 19 | AA11: 136 | AB11: 73 | AC11: 392 | AD11: =VLOOKUP(AB11,Hoja4!$A$29:$B$61,2,FALSE) -> Tolima | AJ11: 0 | AK11: 0 | AL11: 15176 | AM11: CHIQUINQUIRÁ | AN11: 2 | AO11: 5 | AP11: Natural | AQ11: 15 | AR11: BOYACÁ | AS11: Aprobado con subsidio | AT11: MICRO | AU11: 1081 | AV11: INDUSTRIAS MANUFACTURERAS | AW11: C | AX11: Elaboración de otros productos alimenticios | AY11: Elaboración de productos alimenticios | AZ11: 1 | BA11: 1 | BB11: 0 | BC11: 2 | BD11: 0 | BE11: 0 | BF11: 2 | BG11: 0 | BJ11: 19 | BK11: 18 | BL11: 73 | BM11: 47 | BN11: =VLOOKUP(BL11,Hoja4!$A$29:$B$61,2,FALSE) -> Tolima | BP11: Tolima | BQ11: 47 | BR11: 475 | BT11: 68861 | BU11: 2 | BV11: 76892 | BW11: 46 | BX11: 76 | BY11: =VLOOKUP(BX11,Hoja4!$A$29:$B$61,2,FALSE) -> Valle del cauca | BZ11: =VLOOKUP(BV11,Hoja4!$D$29:$E$1150,2,FALSE) -> Yumbo | CA11: 46 | CB11: 2209 | CD11: Transformación de la madera y fabricación de productos de madera y de corcho, excepto muebles; fabricación de artículos de cestería y espartería | CE11: 73 | CF11: 503 | CG11: Curtido y recurtido de cueros; fabricación de calzado; fabricación de artículos de viaje, maletas, bolsos de mano y artículos similares, y fabricación de artículos de talabartería y guarnicionería; adobo y teñido de pieles | CH11: 101 | CI11: 1427 | CM11: CONSTRUCCIÓN | CN11: 24257 | CO11: 3432 | CP11: 17890 | CS11: AGRICULTURA, GANADERÍA, CAZA, SILVICULTURA Y PESCA | CT11: 10551 | CU11: 1086 | CV11: 1036 | CX11: TRANSPORTE Y ALMACENAMIENTO | CY11: 0.6477943569 | CZ11: 0.1041695719 | DA11: 0.2480360712
C12: 11001 | D12: BOGOTÁ, D.C. | E12: 2 | F12: 4 | G12: Natural | H12: 11 | I12: BOGOTÁ, D.C. | J12: Aprobado con subsidio | K12: MICRO | L12: 4663 | M12: COMERCIO AL POR MAYOR Y AL POR MENOR; REPARACIÓN DE VEHÍCULOS AUTOMOTORES Y MOTOCICLETAS | N12: G | O12: Comercio al por mayor especializado de otros productos | P12: Comercio al por mayor especializado de otros productos | Q12: 0 | R12: 2 | S12: 0 | T12: 2 | U12: 0 | V12: 0 | W12: 2 | X12: 0 | Z12: 47 | AA12: 195 | AB12: 50 | AC12: 378 | AD12: =VLOOKUP(AB12,Hoja4!$A$29:$B$61,2,FALSE) -> Meta | AJ12: 0 | AK12: 0 | AL12: 11001 | AM12: BOGOTÁ, D.C. | AN12: 0 | AO12: 0 | AP12: Natural | AQ12: 11 | AR12: BOGOTÁ, D.C. | AS12: 0 | AT12: PEQUEÑA | AU12: 1410 | AV12: INDUSTRIAS MANUFACTURERAS | AW12: C | AX12: Confección de prendas de vestir, excepto prendas de piel | AY12: Confección de prendas de vestir | AZ12: 0 | BA12: 0 | BB12: 0 | BC12: 0 | BD12: 0 | BE12: 0 | BF12: 0 | BG12: 0 | BJ12: 47 | BK12: 14 | BL12: 63 | BM12: 36 | BN12: =VLOOKUP(BL12,Hoja4!$A$29:$B$61,2,FALSE) -> Quindío | BP12: Quindío | BQ12: 36 | BR12: 434 | BT12: 76001 | BU12: 211 | BV12: 5631 | BW12: 45 | BX12: 5 | BY12: =VLOOKUP(BX12,Hoja4!$A$29:$B$61,2,FALSE) -> Antioquia | BZ12: =VLOOKUP(BV12,Hoja4!$D$29:$E$1150,2,FALSE) -> Sabaneta | CA12: 45 | CB12: 808 | CD12: Actividades de impresión y de producción de copias a partir de grabaciones originales | CE12: 99 | CF12: 538 | CG12: Actividades de impresión y de producción de copias a partir de grabaciones originales | CH12: 99 | CI12: 538 | CM12: ACTIVIDADES ARTÍSTICAS, DE ENTRETENIMIENTO Y RECREACIÓN | CN12: 4569 | CO12: 842 | CP12: 306 | CS12: EDUCACIÓN | CT12: 4791 | CU12: 2406 | CV12: 314 | CX12: AGRICULTURA, GANADERÍA, CAZA, SILVICULTURA Y PESCA | CY12: 0.8325574055 | CZ12: 0.08569399511 | DA12: 0.08174859938
C13: 15176 | D13: CHIQUINQUIRÁ | E13: 1 | F13: 1 | G13: Natural | H13: 15 | I13: BOYACÁ | J13: Aprobado con subsidio | K13: MICRO | L13: 4752 | M13: COMERCIO AL POR MAYOR Y AL POR MENOR; REPARACIÓN DE VEHÍCULOS AUTOMOTORES Y MOTOCICLETAS | N13: G | O13: Comercio al por menor de otros enseres domésticos en establecimientos especializados | P13: Comercio al por menor de otros enseres domésticos en establecimientos especializados | Q13: 0 | R13: 1 | S13: 0 | T13: 1 | U13: 0 | V13: 0 | W13: 1 | X13: 0 | Z13: 50 | AA13: 378 | AB13: 17 | AC13: 357 | AD13: =VLOOKUP(AB13,Hoja4!$A$29:$B$61,2,FALSE) -> Caldas | AJ13: 0 | AK13: 0 | AL13: 11001 | AM13: BOGOTÁ, D.C. | AN13: 2 | AO13: 4 | AP13: Natural | AQ13: 11 | AR13: BOGOTÁ, D.C. | AS13: Aprobado con subsidio | AT13: MICRO | AU13: 1081 | AV13: INDUSTRIAS MANUFACTURERAS | AW13: C | AX13: Elaboración de otros productos alimenticios | AY13: Elaboración de productos alimenticios | AZ13: 1 | BA13: 1 | BB13: 0 | BC13: 2 | BD13: 0 | BE13: 0 | BF13: 2 | BG13: 0 | BJ13: 50 | BK13: 26 | BL13: 15 | BM13: 33 | BN13: =VLOOKUP(BL13,Hoja4!$A$29:$B$61,2,FALSE) -> Boyacá | BP13: Boyacá | BQ13: 33 | BR13: 461 | BT13: 76248 | BU13: 3 | BV13: 66170 | BW13: 45 | BX13: 66 | BY13: =VLOOKUP(BX13,Hoja4!$A$29:$B$61,2,FALSE) -> Risaralda | BZ13: =VLOOKUP(BV13,Hoja4!$D$29:$E$1150,2,FALSE) -> Dosquebradas | CA13: 45 | CB13: 857 | CD13: Fabricación de productos de caucho y de plástico | CE13: 180 | CF13: 2315 | CG13: Fabricación de maquinaria y equipo n.c.p. | CH13: 86 | CI13: 940 | CM13: ACTIVIDADES INMOBILIARIAS | CN13: 1251 | CO13: 424 | CP13: 288 | CS13: ACTIVIDADES ARTÍSTICAS, DE ENTRETENIMIENTO Y RECREACIÓN | CT13: 4569 | CU13: 842 | CV13: 306 | CX13: EDUCACIÓN | CY13: 0.6378644655 | CZ13: 0.3203301824 | DA13: 0.04180535215
C14: 76001 | D14: CALI | E14: 1 | F14: 0 | G14: Natural | H14: 76 | I14: VALLE DEL CAUCA | J14: Aprobado con subsidio | K14: MICRO | L14: 4774 | M14: COMERCIO AL POR MAYOR Y AL POR MENOR; REPARACIÓN DE VEHÍCULOS AUTOMOTORES Y MOTOCICLETAS | N14: G | O14: Comercio al por menor de otros productos en establecimientos especializados | P14: Comercio al por menor de otros productos en establecimientos especializados | Q14: 0 | R14: 1 | S14: 0 | T14: 1 | U14: 0 | V14: 0 | W14: 1 | X14: 0 | Z14: 63 | AA14: 267 | AB14: 41 | AC14: 314 | AD14: =VLOOKUP(AB14,Hoja4!$A$29:$B$61,2,FALSE) -> Huila | AJ14: 0 | AK14: 0 | AL14: 11001 | AM14: BOGOTÁ, D.C. | AN14: 0 | AO14: 0 | AP14: Natural | AQ14: 11 | AR14: BOGOTÁ, D.C. | AS14: 0 | AT14: MICRO | AU14: 2592 | AV14: INDUSTRIAS MANUFACTURERAS | AW14: C | AX14: Fabricación de otros productos elaborados de metal y actividades de servicios relacionadas con el trabajo de metales | AY14: Fabricación de productos elaborados de metal, excepto maquinaria y equipo | AZ14: 0 | BA14: 0 | BB14: 0 | BC14: 0 | BD14: 0 | BE14: 0 | BF14: 0 | BG14: 0 | BJ14: 63 | BK14: 36 | BL14: 13 | BM14: 29 | BN14: =VLOOKUP(BL14,Hoja4!$A$29:$B$61,2,FALSE) -> Bolívar | BP14: Bolívar | BQ14: 29 | BR14: 813 | BT14: 76892 | BU14: 46 | BV14: 66001 | BW14: 45 | BX14: 66 | BY14: =VLOOKUP(BX14,Hoja4!$A$29:$B$61,2,FALSE) -> Risaralda | BZ14: =VLOOKUP(BV14,Hoja4!$D$29:$E$1150,2,FALSE) -> Pereira | CA14: 45 | CB14: 730 | CD14: Fabricación de aparatos y equipo eléctrico | CE14: 56 | CF14: 1176 | CG14: Fabricación de otros productos minerales no metálicos | CH14: 81 | CI14: 1219 | CM14: EXPLOTACIÓN DE MINAS Y CANTERAS | CN14: 1630 | CO14: 144 | CP14: 705 | CS14: OTRAS ACTIVIDADES DE SERVICIOS | CT14: 3082 | CU14: 866 | CV14: 448 | CX14: ACTIVIDADES ARTÍSTICAS, DE ENTRETENIMIENTO Y RECREACIÓN | CY14: 0.7991953822 | CZ14: 0.147280042 | DA14: 0.05352457583
C15: 76001 | D15: CALI | E15: 2 | F15: 1 | G15: Natural | H15: 76 | I15: VALLE DEL CAUCA | J15: Aprobado con subsidio | K15: MICRO | L15: 5511 | M15: ALOJAMIENTO Y SERVICIOS DE COMIDA | N15: I | O15: Actividades de alojamiento de estancias cortas | P15: Actividades de alojamiento de estancias cortas | Q15: 2 | R15: 0 | S15: 0 | T15: 2 | U15: 0 | V15: 0 | W15: 2 | X15: 0 | Z15: 70 | AA15: 77 | AB15: 15 | AC15: 306 | AD15: =VLOOKUP(AB15,Hoja4!$A$29:$B$61,2,FALSE) -> Boyacá | AJ15: 0 | AK15: 0 | AL15: 18205 | AM15: CURILLO | AN15: 2 | AO15: 8 | AP15: Natural | AQ15: 18 | AR15: CAQUETÁ | AS15: Aprobado con subsidio | AT15: MICRO | AU15: 1040 | AV15: INDUSTRIAS MANUFACTURERAS | AW15: C | AX15: Elaboración de productos lácteos | AY15: Elaboración de productos alimenticios | AZ15: 0 | BA15: 2 | BB15: 0 | BC15: 2 | BD15: 0 | BE15: 0 | BF15: 2 | BG15: 0 | BJ15: 70 | BK15: 10 | BL15: 50 | BM15: 26 | BN15: =VLOOKUP(BL15,Hoja4!$A$29:$B$61,2,FALSE) -> Meta | BP15: Meta | BQ15: 26 | BR15: 169 | BT15: 15238 | BU15: 8 | BV15: 25214 | BW15: 43 | BX15: 25 | BY15: =VLOOKUP(BX15,Hoja4!$A$29:$B$61,2,FALSE) -> Cundinamarca | BZ15: =VLOOKUP(BV15,Hoja4!$D$29:$E$1150,2,FALSE) -> Cota | CA15: 43 | CB15: 326 | CD15: Fabricación de otros productos minerales no metálicos | CE15: 81 | CF15: 1219 | CG15: Transformación de la madera y fabricación de productos de madera y de corcho, excepto muebles; fabricación de artículos de cestería y espartería | CH15: 73 | CI15: 503 | CM15: ACTIVIDADES FINANCIERAS Y DE SEGUROS | CN15: 2832 | CO15: 692 | CP15: 89 | CS15: ACTIVIDADES FINANCIERAS Y DE SEGUROS | CT15: 2832 | CU15: 692 | CV15: 89 | CX15: OTRAS ACTIVIDADES DE SERVICIOS | CY15: 0.7010919017 | CZ15: 0.1969972702 | DA15: 0.101910828
C16: 41001 | D16: NEIVA | E16: 4 | F16: 1 | G16: Natural | H16: 41 | I16: HUILA | J16: Aprobado con subsidio | K16: MICRO | L16: 4729 | M16: COMERCIO AL POR MAYOR Y AL POR MENOR; REPARACIÓN DE VEHÍCULOS AUTOMOTORES Y MOTOCICLETAS | N16: G | O16: Comercio al por menor de alimentos (víveres en general), bebidas y tabaco, en establecimientos especializados | P16: Comercio al por menor de alimentos (víveres en general), bebidas y tabaco, en establecimientos especializados | Q16: 4 | R16: 0 | S16: 0 | T16: 1 | U16: 3 | V16: 0 | W16: 4 | X16: 0 | Z16: 41 | AA16: 314 | AB16: 52 | AC16: 285 | AD16: =VLOOKUP(AB16,Hoja4!$A$29:$B$61,2,FALSE) -> Nariño | AJ16: 0 | AK16: 0 | AL16: 52560 | AM16: POTOSÍ | AN16: 2 | AO16: 4 | AP16: Natural | AQ16: 52 | AR16: NARIÑO | AS16: Aprobado con subsidio | AT16: MICRO | AU16: 1040 | AV16: INDUSTRIAS MANUFACTURERAS | AW16: C | AX16: Elaboración de productos lácteos | AY16: Elaboración de productos alimenticios | AZ16: 1 | BA16: 1 | BB16: 0 | BC16: 2 | BD16: 0 | BE16: 0 | BF16: 2 | BG16: 0 | BJ16: 41 | BK16: 21 | BL16: 52 | BM16: 25 | BN16: =VLOOKUP(BL16,Hoja4!$A$29:$B$61,2,FALSE) -> Nariño | BP16: Nariño | BQ16: 25 | BR16: 112 | BT16: 85010 | BU16: 1 | BV16: 73001 | BW16: 41 | BX16: 73 | BY16: =VLOOKUP(BX16,Hoja4!$A$29:$B$61,2,FALSE) -> Tolima | BZ16: =VLOOKUP(BV16,Hoja4!$D$29:$E$1150,2,FALSE) -> Ibagué | CA16: 41 | CB16: 453 | CD16: Fabricación de papel, cartón y productos de papel y cartón | CE16: 69 | CF16: 430 | CG16: Fabricación de papel, cartón y productos de papel y cartón | CH16: 69 | CI16: 430 | CM16: ACTIVIDADES DE ATENCIÓN DE LA SALUD HUMANA Y DE ASISTENCIA SOCIAL | CN16: 19058 | CO16: 4384 | CP16: 783 | CS16: ADMINISTRACIÓN PÚBLICA Y DEFENSA; PLANES DE SEGURIDAD SOCIAL DE AFILIACIÓN OBLIGATORIA | CT16: 2391 | CU16: 306 | CV16: 4 | CX16: ACTIVIDADES FINANCIERAS Y DE SEGUROS | CY16: 0.7838361472 | CZ16: 0.191530584 | DA16: 0.02463326875
C17: 52356 | D17: IPIALES | E17: 2 | F17: 0 | G17: Natural | H17: 52 | I17: NARIÑO | J17: Aprobado con subsidio | K17: MICRO | L17: 4923 | M17: TRANSPORTE Y ALMACENAMIENTO | N17: H | O17: Transporte terrestre publico automotor | P17: Transporte terrestre publico automotor | Q17: 0 | R17: 2 | S17: 0 | T17: 0 | U17: 0 | V17: 2 | W17: 2 | X17: 0 | Z17: 25 | AA17: 1012 | AB17: 63 | AC17: 267 | AD17: =VLOOKUP(AB17,Hoja4!$A$29:$B$61,2,FALSE) -> Quindío | AJ17: 0 | AK17: 0 | AL17: 54001 | AM17: CÚCUTA | AN17: 1 | AO17: 8 | AP17: Natural | AQ17: 54 | AR17: NORTE DE SANTANDER | AS17: Aprobado con subsidio | AT17: MICRO | AU17: 2599 | AV17: INDUSTRIAS MANUFACTURERAS | AW17: C | AX17: Fabricación de otros productos elaborados de metal y actividades de servicios relacionadas con el trabajo de metales | AY17: Fabricación de productos elaborados de metal, excepto maquinaria y equipo | AZ17: 0 | BA17: 1 | BB17: 0 | BC17: 1 | BD17: 0 | BE17: 0 | BF17: 1 | BG17: 0 | BJ17: 25 | BK17: 214 | BL17: 41 | BM17: 21 | BN17: =VLOOKUP(BL17,Hoja4!$A$29:$B$61,2,FALSE) -> Huila | BP17: Huila | BQ17: 21 | BR17: 110 | BT17: 8001 | BU17: 94 | BV17: 5266 | BW17: 40 | BX17: 5 | BY17: =VLOOKUP(BX17,Hoja4!$A$29:$B$61,2,FALSE) -> Antioquia | BZ17: =VLOOKUP(BV17,Hoja4!$D$29:$E$1150,2,FALSE) -> Envigado | CA17: 40 | CB17: 912 | CD17: Coquización, fabricación de productos de la refinación del petróleo y actividad de mezcla de combustibles | CE17: 8 | CF17: 43 | CG17: Fabricación de aparatos y equipo eléctrico | CH17: 56 | CI17: 1176 | CM17: OTRAS ACTIVIDADES DE SERVICIOS | CN17: 3082 | CO17: 866 | CP17: 448 | CS17: EXPLOTACIÓN DE MINAS Y CANTERAS | CT17: 1630 | CU17: 144 | CV17: 705 | CX17: ADMINISTRACIÓN PÚBLICA Y DEFENSA; PLANES DE SEGURIDAD SOCIAL DE AFILIACIÓN OBLIGATORIA | CY17: 0.8852276934 | CZ17: 0.1132913736 | DA17: 0.001480932988
C18: 54001 | D18: CÚCUTA | E18: 7 | F18: 12 | G18: Natural | H18: 54 | I18: NORTE DE SANTANDER | J18: Aprobado con subsidio | K18: PEQUEÑA | L18: 90 | M18: OTRAS | N18: Otras | O18: Otras | P18: Otras | Q18: 1 | R18: 6 | S18: 0 | T18: 0 | U18: 1 | V18: 6 | W18: 7 | X18: 0 | Z18: 8 | AA18: 811 | AB18: 23 | AC18: 205 | AD18: =VLOOKUP(AB18,Hoja4!$A$29:$B$61,2,FALSE) -> Córdoba | AJ18: 0 | AK18: 0 | AL18: 68001 | AM18: BUCARAMANGA | AN18: 1 | AO18: 1 | AP18: Natural | AQ18: 68 | AR18: SANTANDER | AS18: Aprobado con subsidio | AT18: PEQUEÑA | AU18: 1610 | AV18: INDUSTRIAS MANUFACTURERAS | AW18: C | AX18: Aserrado, acepillado e impregnación de la madera | AY18: Transformación de la madera y fabricación de productos de madera y de corcho, excepto muebles; fabricación de artículos de cestería y espartería | AZ18: 0 | BA18: 1 | BB18: 0 | BC18: 1 | BD18: 0 | BE18: 0 | BF18: 1 | BG18: 0 | BJ18: 8 | BK18: 113 | BL18: 19 | BM18: 18 | BN18: =VLOOKUP(BL18,Hoja4!$A$29:$B$61,2,FALSE) -> Cauca | BP18: Cauca | BQ18: 18 | BR18: 370 | BT18: 63001 | BU18: 24 | BV18: 5615 | BW18: 35 | BX18: 5 | BY18: =VLOOKUP(BX18,Hoja4!$A$29:$B$61,2,FALSE) -> Antioquia | BZ18: =VLOOKUP(BV18,Hoja4!$D$29:$E$1150,2,FALSE) -> Rionegro | CA18: 35 | CB18: 1277 | CD18: Elaboración de bebidas | CE18: 43 | CF18: 484 | CG18: Fabricación de vehículos automotores, remolques y semirremolques | CH18: 52 | CI18: 606 | CM18: INFORMACIÓN Y COMUNICACIONES | CN18: 20810 | CO18: 2465 | CP18: 2643 | CS18: ACTIVIDADES INMOBILIARIAS | CT18: 1251 | CU18: 424 | CV18: 288 | CX18: EXPLOTACIÓN DE MINAS Y CANTERAS | CY18: 0.6575231948 | CZ18: 0.05808793868 | DA18: 0.2843888665
C19: 54405 | D19: LOS PATIOS | E19: 2 | F19: 0 | G19: Natural | H19: 54 | I19: NORTE DE SANTANDER | J19: Aprobado con subsidio | K19: MICRO | L19: 4923 | M19: TRANSPORTE Y ALMACENAMIENTO | N19: H | O19: Transporte terrestre publico automotor | P19: Transporte terrestre publico automotor | Q19: 1 | R19: 1 | S19: 0 | T19: 1 | U19: 0 | V19: 1 | W19: 2 | X19: 0 | Z19: 85 | AA19: 122 | AB19: 47 | AC19: 195 | AD19: =VLOOKUP(AB19,Hoja4!$A$29:$B$61,2,FALSE) -> Magdalena | AJ19: 0 | AK19: 0 | AL19: 54001 | AM19: CÚCUTA | AN19: 2 | AO19: 2 | AP19: Natural | AQ19: 54 | AR19: NORTE DE SANTANDER | AS19: Aprobado con subsidio | AT19: MICRO | AU19: 1410 | AV19: INDUSTRIAS MANUFACTURERAS | AW19: C | AX19: Confección de prendas de vestir, excepto prendas de piel | AY19: Confección de prendas de vestir | AZ19: 1 | BA19: 1 | BB19: 0 | BC19: 2 | BD19: 0 | BE19: 0 | BF19: 2 | BG19: 0 | BJ19: 85 | BK19: 11 | BL19: 23 | BM19: 16 | BN19: =VLOOKUP(BL19,Hoja4!$A$29:$B$61,2,FALSE) -> Córdoba | BP19: Córdoba | BQ19: 16 | BR19: 463 | BT19: 20001 | BU19: 6 | BV19: 76520 | BW19: 35 | BX19: 76 | BY19: =VLOOKUP(BX19,Hoja4!$A$29:$B$61,2,FALSE) -> Valle del cauca | BZ19: =VLOOKUP(BV19,Hoja4!$D$29:$E$1150,2,FALSE) -> Palmira | CA19: 35 | CB19: 463 | CD19: Fabricación de productos metalúrgicos básicos | CE19: 37 | CF19: 594 | CG19: Elaboración de bebidas | CH19: 43 | CI19: 484 | CM19: ACTIVIDADES DE LOS HOGARES INDIVIDUALES EN CALIDAD DE EMPLEADORES; ACTIVIDADES NO DIFERENCIADAS DE LOS HOGARES INDIVIDUALES COMO PRODUCTORES DE BIENES Y SERVICIOS PARA USO PROPIO | CN19: 26 | CO19: 25 | CP19: 0 | CS19: DISTRIBUCIÓN DE AGUA; EVACUACIÓN Y TRATAMIENTO DE AGUAS RESIDUALES, GESTIÓN DE DESECHOS Y ACTIVIDADES DE SANEAMIENTO AMBIENTAL | CT19: 1102 | CU19: 157 | CV19: 198 | CX19: ACTIVIDADES INMOBILIARIAS | CY19: 0.6372898625 | CZ19: 0.2159959246 | DA19: 0.1467142129
C20: 68276 | D20: FLORIDABLANCA | E20: 1 | F20: 2 | G20: Natural | H20: 68 | I20: SANTANDER | J20: Aprobado con subsidio | K20: MICRO | L20: 126 | M20: AGRICULTURA, GANADERÍA, CAZA, SILVICULTURA Y PESCA | N20: A | O20: Cultivos agrícolas permanentes | P20: Cultivos agrícolas permanentes | Q20: 0 | R20: 1 | S20: 0 | T20: 1 | U20: 0 | V20: 0 | W20: 1 | X20: 0 | Z20: 73 | AA20: 392 | AB20: 20 | AC20: 167 | AD20: =VLOOKUP(AB20,Hoja4!$A$29:$B$61,2,FALSE) -> Cesar | AJ20: 0 | AK20: 0 | AL20: 68861 | AM20: VÉLEZ | AN20: 1 | AO20: 0 | AP20: Natural | AQ20: 68 | AR20: SANTANDER | AS20: Aprobado con subsidio | AT20: MICRO | AU20: 1089 | AV20: INDUSTRIAS MANUFACTURERAS | AW20: C | AX20: Elaboración de otros productos alimenticios | AY20: Elaboración de productos alimenticios | AZ20: 1 | BA20: 0 | BB20: 0 | BC20: 1 | BD20: 0 | BE20: 0 | BF20: 1 | BG20: 0 | BJ20: 73 | BK20: 47 | BL20: 47 | BM20: 14 | BN20: =VLOOKUP(BL20,Hoja4!$A$29:$B$61,2,FALSE) -> Magdalena | BP20: Magdalena | BQ20: 14 | BR20: 50 | BT20: 5318 | BU20: 17 | BV20: 25754 | BW20: 30 | BX20: 25 | BY20: =VLOOKUP(BX20,Hoja4!$A$29:$B$61,2,FALSE) -> Cundinamarca | BZ20: =VLOOKUP(BV20,Hoja4!$D$29:$E$1150,2,FALSE) -> Soacha | CA20: 30 | CB20: 325 | CD20: Fabricación de maquinaria y equipo n.c.p. | CE20: 86 | CF20: 940 | CG20: Fabricación de productos farmacéuticos, sustancias químicas medicinales y productos botánicos de uso farmacéutico | CH20: 42 | CI20: 618 | CM20: SUMINISTRO DE ELECTRICIDAD, GAS, VAPOR Y AIRE ACONDICIONADO | CN20: 212 | CO20: 23 | CP20: 32 | CS20: SUMINISTRO DE ELECTRICIDAD, GAS, VAPOR Y AIRE ACONDICIONADO | CT20: 212 | CU20: 23 | CV20: 32 | CX20: DISTRIBUCIÓN DE AGUA; EVACUACIÓN Y TRATAMIENTO DE AGUAS RESIDUALES, GESTIÓN DE DESECHOS Y ACTIVIDADES DE SANEAMIENTO AMBIENTAL | CY20: 0.7563486616 | CZ20: 0.1077556623 | DA20: 0.135895676
C21: 54001 | D21: CÚCUTA | E21: 0 | F21: 0 | G21: Natural | H21: 54 | I21: NORTE DE SANTANDER | J21: 0 | K21: PEQUEÑA | L21: 6910 | M21: ACTIVIDADES PROFESIONALES, CIENTÍFICAS Y TÉCNICAS | N21: M | O21: Actividades jurídicas | P21: Actividades jurídicas | Q21: 0 | R21: 0 | S21: 0 | T21: 0 | U21: 0 | V21: 0 | W21: 0 | X21: 0 | Z21: 20 | AA21: 167 | AB21: 19 | AC21: 136 | AD21: =VLOOKUP(AB21,Hoja4!$A$29:$B$61,2,FALSE) -> Cauca | AJ21: 0 | AK21: 0 | AL21: 76001 | AM21: CALI | AN21: 2 | AO21: 9 | AP21: Natural | AQ21: 76 | AR21: VALLE DEL CAUCA | AS21: Aprobado con subsidio | AT21: MICRO | AU21: 1811 | AV21: INDUSTRIAS MANUFACTURERAS | AW21: C | AX21: Actividades de impresión y actividades de servicios relacionados con la impresión | AY21: Actividades de impresión y de producción de copias a partir de grabaciones originales | AZ21: 2 | BA21: 0 | BB21: 0 | BC21: 2 | BD21: 0 | BE21: 0 | BF21: 2 | BG21: 0 | BJ21: 20 | BK21: 11 | BL21: 85 | BM21: 11 | BN21: =VLOOKUP(BL21,Hoja4!$A$29:$B$61,2,FALSE) -> Casanare | BP21: Casanare | BQ21: 11 | BR21: 114 | BT21: 41001 | BU21: 18 | BV21: 5088 | BW21: 28 | BX21: 5 | BY21: =VLOOKUP(BX21,Hoja4!$A$29:$B$61,2,FALSE) -> Antioquia | BZ21: =VLOOKUP(BV21,Hoja4!$D$29:$E$1150,2,FALSE) -> Bello | CA21: 28 | CB21: 210 | CD21: Fabricación de vehículos automotores, remolques y semirremolques | CE21: 52 | CF21: 606 | CG21: Fabricación de productos metalúrgicos básicos | CH21: 37 | CI21: 594 | CM21: ADMINISTRACIÓN PÚBLICA Y DEFENSA; PLANES DE SEGURIDAD SOCIAL DE AFILIACIÓN OBLIGATORIA | CN21: 2391 | CO21: 306 | CP21: 4 | CS21: ACTIVIDADES DE LOS HOGARES INDIVIDUALES EN CALIDAD DE EMPLEADORES; ACTIVIDADES NO DIFERENCIADAS DE LOS HOGARES INDIVIDUALES COMO PRODUCTORES DE BIENES Y SERVICIOS PARA USO PROPIO | CT21: 26 | CU21: 25 | CV21: 0 | CX21: SUMINISTRO DE ELECTRICIDAD, GAS, VAPOR Y AIRE ACONDICIONADO | CY21: 0.7940074906 | CZ21: 0.0861423221 | DA21: 0.1198501873
C22: 76400 | D22: LA UNIÓN | E22: 0 | F22: 0 | G22: Natural | H22: 76 | I22: VALLE DEL CAUCA | J22: 0 | K22: MICRO | L22: 4620 | M22: COMERCIO AL POR MAYOR Y AL POR MENOR; REPARACIÓN DE VEHÍCULOS AUTOMOTORES Y MOTOCICLETAS | N22: G | O22: Comercio al por mayor de materias primas agropecuarias; animales vivos | P22: Comercio al por mayor de materias primas agropecuarias; animales vivos | Q22: 0 | R22: 0 | S22: 0 | T22: 0 | U22: 0 | V22: 0 | W22: 0 | X22: 0 | Z22: 97 | AA22: 2 | AB22: 85 | AC22: 122 | AD22: =VLOOKUP(AB22,Hoja4!$A$29:$B$61,2,FALSE) -> Casanare | AJ22: 0 | AK22: 0 | AL22: 11001 | AM22: BOGOTÁ, D.C. | AN22: 0 | AO22: 0 | AP22: Natural | AQ22: 11 | AR22: BOGOTÁ, D.C. | AS22: 0 | AT22: MICRO | AU22: 2599 | AV22: INDUSTRIAS MANUFACTURERAS | AW22: C | AX22: Fabricación de otros productos elaborados de metal y actividades de servicios relacionadas con el trabajo de metales | AY22: Fabricación de productos elaborados de metal, excepto maquinaria y equipo | AZ22: 0 | BA22: 0 | BB22: 0 | BC22: 0 | BD22: 0 | BE22: 0 | BF22: 0 | BG22: 0 | BJ22: 97 | BK22: 0 | BL22: 20 | BM22: 11 | BN22: =VLOOKUP(BL22,Hoja4!$A$29:$B$61,2,FALSE) -> Cesar | BP22: Cesar | BQ22: 11 | BR22: 98 | BT22: 18753 | BU22: 2 | BV22: 13001 | BW22: 27 | BX22: 13 | BY22: =VLOOKUP(BX22,Hoja4!$A$29:$B$61,2,FALSE) -> Bolívar | BZ22: =VLOOKUP(BV22,Hoja4!$D$29:$E$1150,2,FALSE) -> Cartagena de ind | CA22: 27 | CB22: 509 | CD22: Fabricación de productos farmacéuticos, sustancias químicas medicinales y productos botánicos de uso farmacéutico | CE22: 42 | CF22: 618 | CG22: Fabricación de productos informáticos, electrónicos y ópticos | CH22: 19 | CI22: 206 | CM22: DISTRIBUCIÓN DE AGUA; EVACUACIÓN Y TRATAMIENTO DE AGUAS RESIDUALES, GESTIÓN DE DESECHOS Y ACTIVIDADES DE SANEAMIENTO AMBIENTAL | CN22: 1102 | CO22: 157 | CP22: 198 | CS22: OTRAS | CT22: 7 | CU22: 4 | CV22: 10 | CX22: ACTIVIDADES DE LOS HOGARES INDIVIDUALES EN CALIDAD DE EMPLEADORES; ACTIVIDADES NO DIFERENCIADAS DE LOS HOGARES INDIVIDUALES COMO PRODUCTORES DE BIENES Y SERVICIOS PARA USO PROPIO | CY22: 0.5098039216 | CZ22: 0.4901960784 | DA22: 0
C23: 63001 | D23: ARMENIA | E23: 0 | F23: 0 | G23: Natural | H23: 63 | I23: QUINDÍO | J23: 0 | K23: PEQUEÑA | L23: 4771 | M23: COMERCIO AL POR MAYOR Y AL POR MENOR; REPARACIÓN DE VEHÍCULOS AUTOMOTORES Y MOTOCICLETAS | N23: G | O23: Comercio al por menor de otros productos en establecimientos especializados | P23: Comercio al por menor de otros productos en establecimientos especializados | Q23: 0 | R23: 0 | S23: 0 | T23: 0 | U23: 0 | V23: 0 | W23: 0 | X23: 0 | Z23: 81 | AA23: 39 | AB23: 18 | AC23: 82 | AD23: =VLOOKUP(AB23,Hoja4!$A$29:$B$61,2,FALSE) -> Caquetá | AJ23: 0 | AK23: 0 | AL23: 5001 | AM23: MEDELLÍN | AN23: 0 | AO23: 0 | AP23: Natural | AQ23: 5 | AR23: ANTIOQUIA | AS23: 0 | AT23: PEQUEÑA | AU23: 1410 | AV23: INDUSTRIAS MANUFACTURERAS | AW23: C | AX23: Confección de prendas de vestir, excepto prendas de piel | AY23: Confección de prendas de vestir | AZ23: 0 | BA23: 0 | BB23: 0 | BC23: 0 | BD23: 0 | BE23: 0 | BF23: 0 | BG23: 0 | BJ23: 81 | BK23: 2 | BL23: 70 | BM23: 10 | BN23: =VLOOKUP(BL23,Hoja4!$A$29:$B$61,2,FALSE) -> Sucre | BP23: Sucre | BQ23: 10 | BR23: 31 | BT23: 95001 | BU23: 0 | BV23: 68307 | BW23: 25 | BX23: 68 | BY23: =VLOOKUP(BX23,Hoja4!$A$29:$B$61,2,FALSE) -> Santander | BZ23: =VLOOKUP(BV23,Hoja4!$D$29:$E$1150,2,FALSE) -> Girón | CA23: 25 | CB23: 347 | CD23: Fabricación de productos informáticos, electrónicos y ópticos | CE23: 19 | CF23: 206 | CG23: Fabricación de otros tipos de equipo de transporte | CH23: 11 | CI23: 448 | CM23: 0 | CN23: 0 | CO23: 0 | CP23: 0 | CS23: 0 | CT23: 0 | CU23: 0 | CV23: 0 | CX23: OTRAS | CY23: 0.3333333333 | CZ23: 0.1904761905 | DA23: 0.4761904762
C24: 52001 | D24: PASTO | E24: 0 | F24: 0 | G24: Natural | H24: 52 | I24: NARIÑO | J24: 0 | K24: MICRO | L24: 5611 | M24: ALOJAMIENTO Y SERVICIOS DE COMIDA | N24: I | O24: Actividades de restaurantes, cafeterías y servicio móvil de comidas | P24: Actividades de restaurantes, cafeterías y servicio móvil de comidas | Q24: 0 | R24: 0 | S24: 0 | T24: 0 | U24: 0 | V24: 0 | W24: 0 | X24: 0 | Z24: 44 | AA24: 45 | AB24: 70 | AC24: 77 | AD24: =VLOOKUP(AB24,Hoja4!$A$29:$B$61,2,FALSE) -> Sucre | AJ24: 0 | AK24: 0 | AL24: 76248 | AM24: EL CERRITO | AN24: 0 | AO24: 0 | AP24: Natural | AQ24: 76 | AR24: VALLE DEL CAUCA | AS24: 0 | AT24: MICRO | AU24: 3110 | AV24: INDUSTRIAS MANUFACTURERAS | AW24: C | AX24: Fabricación de muebles | AY24: Fabricación de muebles, colchones y somieres | AZ24: 0 | BA24: 0 | BB24: 0 | BC24: 0 | BD24: 0 | BE24: 0 | BF24: 0 | BG24: 0 | BJ24: 44 | BK24: 0 | BL24: 18 | BM24: 7 | BN24: =VLOOKUP(BL24,Hoja4!$A$29:$B$61,2,FALSE) -> Caquetá | BP24: Caquetá | BQ24: 7 | BR24: 29 | BT24: 5686 | BU24: 5 | BV24: 25473 | BW24: 25 | BX24: 25 | BY24: =VLOOKUP(BX24,Hoja4!$A$29:$B$61,2,FALSE) -> Cundinamarca | BZ24: =VLOOKUP(BV24,Hoja4!$D$29:$E$1150,2,FALSE) -> Mosquera | CA24: 25 | CB24: 283 | CD24: Fabricación de otros tipos de equipo de transporte | CE24: 11 | CF24: 448 | CG24: Coquización, fabricación de productos de la refinación del petróleo y actividad de mezcla de combustibles | CH24: 8 | CI24: 43
C25: 76828 | D25: TRUJILLO | E25: 6 | F25: 0 | G25: Natural | H25: 76 | I25: VALLE DEL CAUCA | J25: Aprobado con subsidio | K25: MICRO | L25: 4752 | M25: COMERCIO AL POR MAYOR Y AL POR MENOR; REPARACIÓN DE VEHÍCULOS AUTOMOTORES Y MOTOCICLETAS | N25: G | O25: Comercio al por menor de otros enseres domésticos en establecimientos especializados | P25: Comercio al por menor de otros enseres domésticos en establecimientos especializados | Q25: 3 | R25: 3 | S25: 0 | T25: 3 | U25: 0 | V25: 3 | W25: 6 | X25: 0 | Z25: 17 | AA25: 357 | AB25: 44 | AC25: 45 | AD25: =VLOOKUP(AB25,Hoja4!$A$29:$B$61,2,FALSE) -> La guajira | AJ25: 0 | AK25: 0 | AL25: 76892 | AM25: YUMBO | AN25: 0 | AO25: 0 | AP25: Natural | AQ25: 76 | AR25: VALLE DEL CAUCA | AS25: 0 | AT25: MICRO | AU25: 1690 | AV25: INDUSTRIAS MANUFACTURERAS | AW25: C | AX25: Fabricación de otros productos de madera; fabricación de artículos de corcho, cestería y espartería | AY25: Transformación de la madera y fabricación de productos de madera y de corcho, excepto muebles; fabricación de artículos de cestería y espartería | AZ25: 0 | BA25: 0 | BB25: 0 | BC25: 0 | BD25: 0 | BE25: 0 | BF25: 0 | BG25: 0 | BJ25: 17 | BK25: 60 | BL25: 86 | BM25: 3 | BN25: =VLOOKUP(BL25,Hoja4!$A$29:$B$61,2,FALSE) -> Putumayo | BP25: =BN25 -> Putumayo | BQ25: =BM25 -> 3 | BR25: 5 | BT25: 5631 | BU25: 45 | BV25: 63001 | BW25: 24 | BX25: 63 | BY25: =VLOOKUP(BX25,Hoja4!$A$29:$B$61,2,FALSE) -> Quindío | BZ25: =VLOOKUP(BV25,Hoja4!$D$29:$E$1150,2,FALSE) -> Armenia | CA25: 24 | CB25: 260 | CD25: Elaboración de productos de tabaco | CE25: 2 | CF25: 113 | CG25: Elaboración de productos de tabaco | CH25: 2 | CI25: 113
C26: 76001 | D26: CALI | E26: 1 | F26: 1 | G26: Natural | H26: 76 | I26: VALLE DEL CAUCA | J26: Aprobado con subsidio | K26: MICRO | L26: 121 | M26: AGRICULTURA, GANADERÍA, CAZA, SILVICULTURA Y PESCA | N26: A | O26: Cultivos agrícolas permanentes | P26: Cultivos agrícolas permanentes | Q26: 1 | R26: 0 | S26: 0 | T26: 1 | U26: 0 | V26: 0 | W26: 1 | X26: 0 | Z26: 18 | AA26: 82 | AB26: 86 | AC26: 43 | AD26: =VLOOKUP(AB26,Hoja4!$A$29:$B$61,2,FALSE) -> Putumayo | AJ26: 0 | AK26: 0 | AL26: 76001 | AM26: CALI | AN26: 2 | AO26: 1 | AP26: Natural | AQ26: 76 | AR26: VALLE DEL CAUCA | AS26: Aprobado con subsidio | AT26: MICRO | AU26: 1081 | AV26: INDUSTRIAS MANUFACTURERAS | AW26: C | AX26: Elaboración de otros productos alimenticios | AY26: Elaboración de productos alimenticios | AZ26: 1 | BA26: 1 | BB26: 0 | BC26: 0 | BD26: 1 | BE26: 1 | BF26: 2 | BG26: 0 | BJ26: 18 | BK26: 7 | BL26: 81 | BM26: 2 | BN26: =VLOOKUP(BL26,Hoja4!$A$29:$B$61,2,FALSE) -> Arauca | BP26: Arauca | BQ26: =BM26 -> 2 | BR26: 195 | BT26: 5368 | BU26: 1 | BV26: 25286 | BW26: 24 | BX26: 25 | BY26: =VLOOKUP(BX26,Hoja4!$A$29:$B$61,2,FALSE) -> Cundinamarca | BZ26: =VLOOKUP(BV26,Hoja4!$D$29:$E$1150,2,FALSE) -> Funza | CA26: 24 | CB26: 221 | CD26: 0 | CE26: 0 | CF26: 0 | CG26: 0 | CH26: 0 | CI26: 0
C27: 5615 | D27: RIONEGRO | E27: 0 | F27: 0 | G27: Natural | H27: 5 | I27: ANTIOQUIA | J27: 0 | K27: PEQUEÑA | L27: 2012 | M27: INDUSTRIAS MANUFACTURERAS | N27: C | O27: Fabricación de sustancias químicas básicas, abonos y compuestos inorgánicos nitrogenados, plásticos y caucho sintético en formas primarias | P27: Fabricación de sustancias y productos químicos | Q27: 0 | R27: 0 | S27: 0 | T27: 0 | U27: 0 | V27: 0 | W27: 0 | X27: 0 | Z27: 23 | AA27: 205 | AB27: 81 | AC27: 39 | AD27: =VLOOKUP(AB27,Hoja4!$A$29:$B$61,2,FALSE) -> Arauca | AJ27: 0 | AK27: 0 | AL27: 76001 | AM27: CALI | AN27: 1 | AO27: 9 | AP27: Natural | AQ27: 76 | AR27: VALLE DEL CAUCA | AS27: Aprobado con subsidio | AT27: PEQUEÑA | AU27: 1410 | AV27: INDUSTRIAS MANUFACTURERAS | AW27: C | AX27: Confección de prendas de vestir, excepto prendas de piel | AY27: Confección de prendas de vestir | AZ27: 1 | BA27: 0 | BB27: 0 | BC27: 1 | BD27: 0 | BE27: 0 | BF27: 1 | BG27: 0 | BJ27: 23 | BK27: 16 | BL27: 97 | BM27: 0 | BN27: =VLOOKUP(BL27,Hoja4!$A$29:$B$61,2,FALSE) -> Vaupés | BP27: Vaupés | BQ27: =BM27 -> 0 | BR27: 0 | BT27: 15759 | BU27: 8 | BV27: 52001 | BW27: 19 | BX27: 52 | BY27: =VLOOKUP(BX27,Hoja4!$A$29:$B$61,2,FALSE) -> Nariño | BZ27: =VLOOKUP(BV27,Hoja4!$D$29:$E$1150,2,FALSE) -> Pasto | CA27: 19 | CB27: 94 | CE27: 0 | CF27: 0
C28: 11001 | D28: BOGOTÁ, D.C. | E28: 2 | F28: 1 | G28: Natural | H28: 11 | I28: BOGOTÁ, D.C. | J28: Aprobado con subsidio | K28: MICRO | L28: 1313 | M28: INDUSTRIAS MANUFACTURERAS | N28: C | O28: Preparación, hilatura, tejeduría y acabado de productos textiles | P28: Fabricación de productos textiles | Q28: 2 | R28: 0 | S28: 0 | T28: 1 | U28: 1 | V28: 0 | W28: 2 | X28: 0 | Z28: 88 | AA28: 26 | AB28: 88 | AC28: 26 | AD28: =VLOOKUP(AB28,Hoja4!$A$29:$B$61,2,FALSE) -> San Andrés | AJ28: 0 | AK28: 0 | AL28: 15238 | AM28: DUITAMA | AN28: 2 | AO28: 0 | AP28: Natural | AQ28: 15 | AR28: BOYACÁ | AS28: Aprobado con subsidio | AT28: MICRO | AU28: 1392 | AV28: INDUSTRIAS MANUFACTURERAS | AW28: C | AX28: Fabricación de otros productos textiles | AY28: Fabricación de productos textiles | AZ28: 0 | BA28: 2 | BB28: 0 | BC28: 1 | BD28: 0 | BE28: 1 | BF28: 2 | BG28: 0 | BJ28: 88 | BK28: 0 | BL28: 44 | BM28: 0 | BN28: =VLOOKUP(BL28,Hoja4!$A$29:$B$61,2,FALSE) -> La guajira | BP28: La guajira | BQ28: =BM28 -> 0 | BR28: 0 | BT28: 15087 | BU28: 0 | BV28: 50001 | BW28: 19 | BX28: 50 | BY28: =VLOOKUP(BX28,Hoja4!$A$29:$B$61,2,FALSE) -> Meta | BZ28: =VLOOKUP(BV28,Hoja4!$D$29:$E$1150,2,FALSE) -> Villavicencio | CA28: 19 | CB28: 137 | CE28: =SUM(CE2:CE27) -> 3304 | CF28: =SUM(CF2:CF27) -> 48833
C29: 25214 | D29: COTA | E29: 0 | F29: 0 | G29: Natural | H29: 25 | I29: CUNDINAMARCA | J29: 0 | K29: PEQUEÑA | L29: 8530 | M29: EDUCACIÓN | N29: P | O29: Establecimientos que combinan diferentes niveles de educación | P29: Establecimientos que combinan diferentes niveles de educación | Q29: 0 | R29: 0 | S29: 0 | T29: 0 | U29: 0 | V29: 0 | W29: 0 | X29: 0 | Z29: 91 | AA29: 14 | AB29: 27 | AC29: 16 | AD29: =VLOOKUP(AB29,Hoja4!$A$29:$B$61,2,FALSE) -> Chocó | AJ29: 0 | AK29: 0 | AL29: 11001 | AM29: BOGOTÁ, D.C. | AN29: 1 | AO29: 0 | AP29: Natural | AQ29: 11 | AR29: BOGOTÁ, D.C. | AS29: Aprobado con subsidio | AT29: MICRO | AU29: 1081 | AV29: INDUSTRIAS MANUFACTURERAS | AW29: C | AX29: Elaboración de otros productos alimenticios | AY29: Elaboración de productos alimenticios | AZ29: 1 | BA29: 0 | BB29: 0 | BC29: 0 | BD29: 1 | BE29: 0 | BF29: 1 | BG29: 0 | BJ29: 91 | BK29: 0 | BL29: 88 | BM29: 0 | BN29: =VLOOKUP(BL29,Hoja4!$A$29:$B$61,2,FALSE) -> San Andrés | BP29: Otros | BQ29: =SUM(BM29:BM34) -> 0 | BR29: =SUMIFS($AN$2:$AN$399999,$AS$2:$AS$399999,"Aprobado con subsidio")-SUM(BR2:BR28) -> 0 | BT29: 85139 | BU29: 1 | BV29: 41001 | BW29: 18 | BY29: Otros | BZ29: Otros | CA29: =SUM(BW29:BW1000) -> 552 | CB29: =SUMIFS($AN$2:$AN$399999,$AS$2:$AS$399999,"Aprobado con subsidio")-SUM(CB2:CB28) -> 7799
C30: 50001 | D30: VILLAVICENCIO | E30: 0 | F30: 0 | G30: Natural | H30: 50 | I30: META | J30: 0 | K30: MICRO | L30: 4530 | M30: COMERCIO AL POR MAYOR Y AL POR MENOR; REPARACIÓN DE VEHÍCULOS AUTOMOTORES Y MOTOCICLETAS | N30: G | O30: Comercio de partes, piezas (autopartes) y accesorios (lujos) para vehículos automotores | P30: Comercio de partes, piezas (autopartes) y accesorios (lujos) para vehículos automotores | Q30: 0 | R30: 0 | S30: 0 | T30: 0 | U30: 0 | V30: 0 | W30: 0 | X30: 0 | Z30: 95 | AA30: 7 | AB30: 91 | AC30: 14 | AD30: =VLOOKUP(AB30,Hoja4!$A$29:$B$61,2,FALSE) -> Amazonas | AJ30: 0 | AK30: 0 | AL30: 15238 | AM30: DUITAMA | AN30: 0 | AO30: 0 | AP30: Natural | AQ30: 15 | AR30: BOYACÁ | AS30: 0 | AT30: MICRO | AU30: 1040 | AV30: INDUSTRIAS MANUFACTURERAS | AW30: C | AX30: Elaboración de productos lácteos | AY30: Elaboración de productos alimenticios | AZ30: 0 | BA30: 0 | BB30: 0 | BC30: 0 | BD30: 0 | BE30: 0 | BF30: 0 | BG30: 0 | BJ30: 95 | BK30: 0 | BL30: 91 | BM30: 0 | BN30: =VLOOKUP(BL30,Hoja4!$A$29:$B$61,2,FALSE) -> Amazonas | BP30: Total | BQ30: =SUM(BQ2:BQ29) -> 3304 | BR30: =SUM(BR2:BR29) -> 48833 | BT30: 85001 | BU30: 8 | BV30: 25817 | BW30: 18 | BY30: Total | CA30: =SUM(CA2:CA29) -> 3304 | CB30: =SUM(CB2:CB29) -> 48833
C31: 11001 | D31: BOGOTÁ, D.C. | E31: 1 | F31: 1 | G31: Natural | H31: 11 | I31: BOGOTÁ, D.C. | J31: Aprobado con subsidio | K31: MICRO | L31: 4754 | M31: COMERCIO AL POR MAYOR Y AL POR MENOR; REPARACIÓN DE VEHÍCULOS AUTOMOTORES Y MOTOCICLETAS | N31: G | O31: Comercio al por menor de otros enseres domésticos en establecimientos especializados | P31: Comercio al por menor de otros enseres domésticos en establecimientos especializados | Q31: 0 | R31: 1 | S31: 0 | T31: 1 | U31: 0 | V31: 0 | W31: 1 | X31: 0 | Z31: 86 | AA31: 43 | AB31: 95 | AC31: 7 | AD31: =VLOOKUP(AB31,Hoja4!$A$29:$B$61,2,FALSE) -> Guaviare | AJ31: 0 | AK31: 0 | AL31: 85010 | AM31: AGUAZUL | AN31: 0 | AO31: 0 | AP31: Natural | AQ31: 85 | AR31: CASANARE | AS31: 0 | AT31: GRANDE | AU31: 3311 | AV31: INDUSTRIAS MANUFACTURERAS | AW31: C | AX31: Mantenimiento y reparación especializado de productos elaborados en metal y de maquinaria y equipo | AY31: Instalación, mantenimiento y reparación especializado de maquinaria y equipo | AZ31: 0 | BA31: 0 | BB31: 0 | BC31: 0 | BD31: 0 | BE31: 0 | BF31: 0 | BG31: 0 | BJ31: 86 | BK31: 3 | BL31: 95 | BM31: 0 | BN31: =VLOOKUP(BL31,Hoja4!$A$29:$B$61,2,FALSE) -> Guaviare | BT31: 20011 | BU31: 1 | BV31: 5318 | BW31: 17
C32: 11001 | D32: BOGOTÁ, D.C. | E32: 2 | F32: 2 | G32: Natural | H32: 11 | I32: BOGOTÁ, D.C. | J32: Aprobado con subsidio | K32: MICRO | L32: 8512 | M32: EDUCACIÓN | N32: P | O32: Educación de la primera infancia, preescolar y básica primaria | P32: Educación de la primera infancia, preescolar y básica primaria | Q32: 2 | R32: 0 | S32: 0 | T32: 0 | U32: 2 | V32: 0 | W32: 2 | X32: 0 | Z32: 27 | AA32: 16 | AB32: 94 | AC32: 4 | AD32: =VLOOKUP(AB32,Hoja4!$A$29:$B$61,2,FALSE) -> Guainía | AJ32: 0 | AK32: 0 | AL32: 8001 | AM32: BARRANQUILLA | AN32: 1 | AO32: 3 | AP32: Natural | AQ32: 8 | AR32: ATLÁNTICO | AS32: Aprobado con subsidio | AT32: PEQUEÑA | AU32: 1081 | AV32: INDUSTRIAS MANUFACTURERAS | AW32: C | AX32: Elaboración de otros productos alimenticios | AY32: Elaboración de productos alimenticios | AZ32: 0 | BA32: 1 | BB32: 0 | BC32: 1 | BD32: 0 | BE32: 0 | BF32: 1 | BG32: 0 | BJ32: 27 | BK32: 0 | BL32: 27 | BM32: 0 | BN32: =VLOOKUP(BL32,Hoja4!$A$29:$B$61,2,FALSE) -> Chocó | BT32: 66170 | BU32: 45 | BV32: 5697 | BW32: 16
C33: 25181 | D33: CHOACHÍ | E33: 0 | F33: 0 | G33: Natural | H33: 25 | I33: CUNDINAMARCA | J33: 0 | K33: MICRO | L33: 145 | M33: AGRICULTURA, GANADERÍA, CAZA, SILVICULTURA Y PESCA | N33: A | O33: Ganadería | P33: Ganadería | Q33: 0 | R33: 0 | S33: 0 | T33: 0 | U33: 0 | V33: 0 | W33: 0 | X33: 0 | Z33: 94 | AA33: 4 | AB33: 97 | AC33: 2 | AD33: =VLOOKUP(AB33,Hoja4!$A$29:$B$61,2,FALSE) -> Vaupés | AJ33: 0 | AK33: 0 | AL33: 63001 | AM33: ARMENIA | AN33: 0 | AO33: 0 | AP33: Natural | AQ33: 63 | AR33: QUINDÍO | AS33: 0 | AT33: MICRO | AU33: 2511 | AV33: INDUSTRIAS MANUFACTURERAS | AW33: C | AX33: Fabricación de productos metálicos para uso estructural, tanques, depósitos y generadores de vapor. | AY33: Fabricación de productos elaborados de metal, excepto maquinaria y equipo | AZ33: 0 | BA33: 0 | BB33: 0 | BC33: 0 | BD33: 0 | BE33: 0 | BF33: 0 | BG33: 0 | BJ33: 94 | BK33: 0 | BL33: 94 | BM33: 0 | BN33: =VLOOKUP(BL33,Hoja4!$A$29:$B$61,2,FALSE) -> Guainía | BT33: 66682 | BU33: 2 | BV33: 68276 | BW33: 16
C34: 25181 | D34: CHOACHÍ | E34: 1 | F34: 1 | G34: Natural | H34: 25 | I34: CUNDINAMARCA | J34: Aprobado con subsidio | K34: PEQUEÑA | L34: 4663 | M34: COMERCIO AL POR MAYOR Y AL POR MENOR; REPARACIÓN DE VEHÍCULOS AUTOMOTORES Y MOTOCICLETAS | N34: G | O34: Comercio al por mayor especializado de otros productos | P34: Comercio al por mayor especializado de otros productos | Q34: 0 | R34: 1 | S34: 0 | T34: 0 | U34: 0 | V34: 1 | W34: 1 | X34: 0 | Z34: 99 | AA34: 2 | AB34: 99 | AC34: 2 | AD34: =VLOOKUP(AB34,Hoja4!$A$29:$B$61,2,FALSE) -> Vichada | AJ34: 0 | AK34: 0 | AL34: 20001 | AM34: VALLEDUPAR | AN34: 11 | AO34: 0 | AP34: Natural | AQ34: 20 | AR34: CESAR | AS34: Aprobado con subsidio | AT34: PEQUEÑA | AU34: 1410 | AV34: INDUSTRIAS MANUFACTURERAS | AW34: C | AX34: Confección de prendas de vestir, excepto prendas de piel | AY34: Confección de prendas de vestir | AZ34: 6 | BA34: 5 | BB34: 0 | BC34: 3 | BD34: 4 | BE34: 4 | BF34: 11 | BG34: 0 | BJ34: 99 | BK34: 0 | BL34: 99 | BM34: 0 | BN34: =VLOOKUP(BL34,Hoja4!$A$29:$B$61,2,FALSE) -> Vichada | BT34: 66001 | BU34: 45 | BV34: 25430 | BW34: 15
C35: 11001 | D35: BOGOTÁ, D.C. | E35: 0 | F35: 0 | G35: Natural | H35: 11 | I35: BOGOTÁ, D.C. | J35: 0 | K35: PEQUEÑA | L35: 4520 | M35: COMERCIO AL POR MAYOR Y AL POR MENOR; REPARACIÓN DE VEHÍCULOS AUTOMOTORES Y MOTOCICLETAS | N35: G | O35: Mantenimiento y reparación de vehículos automotores | P35: Mantenimiento y reparación de vehículos automotores | Q35: 0 | R35: 0 | S35: 0 | T35: 0 | U35: 0 | V35: 0 | W35: 0 | X35: 0 | AJ35: 0 | AK35: 0 | AL35: 5318 | AM35: GUARNE | AN35: 6 | AO35: 12 | AP35: Natural | AQ35: 5 | AR35: ANTIOQUIA | AS35: Aprobado con subsidio | AT35: PEQUEÑA | AU35: 2221 | AV35: INDUSTRIAS MANUFACTURERAS | AW35: C | AX35: Fabricación de productos de plástico | AY35: Fabricación de productos de caucho y de plástico | AZ35: 4 | BA35: 2 | BB35: 0 | BC35: 2 | BD35: 4 | BE35: 0 | BF35: 6 | BG35: 0 | BT35: 5088 | BU35: 28 | BV35: 5440 | BW35: 14
C36: 25279 | D36: FOMEQUE | E36: 1 | F36: 5 | G36: Natural | H36: 25 | I36: CUNDINAMARCA | J36: Aprobado con subsidio | K36: PEQUEÑA | L36: 145 | M36: AGRICULTURA, GANADERÍA, CAZA, SILVICULTURA Y PESCA | N36: A | O36: Ganadería | P36: Ganadería | Q36: 0 | R36: 1 | S36: 0 | T36: 1 | U36: 0 | V36: 0 | W36: 1 | X36: 0 | AJ36: 0 | AK36: 0 | AL36: 76001 | AM36: CALI | AN36: 1 | AO36: 1 | AP36: Natural | AQ36: 76 | AR36: VALLE DEL CAUCA | AS36: Aprobado con subsidio | AT36: PEQUEÑA | AU36: 1313 | AV36: INDUSTRIAS MANUFACTURERAS | AW36: C | AX36: Preparación, hilatura, tejeduría y acabado de productos textiles | AY36: Fabricación de productos textiles | AZ36: 1 | BA36: 0 | BB36: 0 | BC36: 1 | BD36: 0 | BE36: 0 | BF36: 1 | BG36: 0 | BT36: 17380 | BU36: 1 | BV36: 68081 | BW36: 13
C37: 5001 | D37: MEDELLÍN | E37: 1 | F37: 0 | G37: Natural | H37: 5 | I37: ANTIOQUIA | J37: Aprobado con subsidio | K37: PEQUEÑA | L37: 4520 | M37: COMERCIO AL POR MAYOR Y AL POR MENOR; REPARACIÓN DE VEHÍCULOS AUTOMOTORES Y MOTOCICLETAS | N37: G | O37: Mantenimiento y reparación de vehículos automotores | P37: Mantenimiento y reparación de vehículos automotores | Q37: 0 | R37: 1 | S37: 0 | T37: 1 | U37: 0 | V37: 0 | W37: 1 | X37: 0 | AJ37: 0 | AK37: 0 | AL37: 41001 | AM37: NEIVA | AN37: 2 | AO37: 3 | AP37: Natural | AQ37: 41 | AR37: HUILA | AS37: Aprobado con subsidio | AT37: MICRO | AU37: 1081 | AV37: INDUSTRIAS MANUFACTURERAS | AW37: C | AX37: Elaboración de otros productos alimenticios | AY37: Elaboración de productos alimenticios | AZ37: 1 | BA37: 1 | BB37: 0 | BC37: 2 | BD37: 0 | BE37: 0 | BF37: 2 | BG37: 0 | BT37: 17001 | BU37: 51 | BV37: 47001 | BW37: 13
C38: 25214 | D38: COTA | E38: 1 | F38: 6 | G38: Natural | H38: 25 | I38: CUNDINAMARCA | J38: Aprobado con subsidio | K38: MICRO | L38: 4290 | M38: CONSTRUCCIÓN | N38: F | O38: Construcción de otras obras de ingeniería civil | P38: Construcción de otras obras de ingeniería civil | Q38: 0 | R38: 1 | S38: 0 | T38: 0 | U38: 0 | V38: 1 | W38: 1 | X38: 0 | AJ38: 0 | AK38: 0 | AL38: 41001 | AM38: NEIVA | AN38: 0 | AO38: 0 | AP38: Natural | AQ38: 41 | AR38: HUILA | AS38: 0 | AT38: MICRO | AU38: 3110 | AV38: INDUSTRIAS MANUFACTURERAS | AW38: C | AX38: Fabricación de muebles | AY38: Fabricación de muebles, colchones y somieres | AZ38: 0 | BA38: 0 | BB38: 0 | BC38: 0 | BD38: 0 | BE38: 0 | BF38: 0 | BG38: 0 | BT38: 19698 | BU38: 1 | BV38: 23001 | BW38: 12
C39: 25758 | D39: SOPÓ | E39: 1 | F39: 1 | G39: Natural | H39: 25 | I39: CUNDINAMARCA | J39: Aprobado con subsidio | K39: MICRO | L39: 141 | M39: AGRICULTURA, GANADERÍA, CAZA, SILVICULTURA Y PESCA | N39: A | O39: Ganadería | P39: Ganadería | Q39: 0 | R39: 1 | S39: 0 | T39: 1 | U39: 0 | V39: 0 | W39: 1 | X39: 0 | AJ39: 0 | AK39: 0 | AL39: 18753 | AM39: SAN VICENTE DEL CAGUÁN | AN39: 2 | AO39: 3 | AP39: Natural | AQ39: 18 | AR39: CAQUETÁ | AS39: Aprobado con subsidio | AT39: MICRO | AU39: 1040 | AV39: INDUSTRIAS MANUFACTURERAS | AW39: C | AX39: Elaboración de productos lácteos | AY39: Elaboración de productos alimenticios | AZ39: 0 | BA39: 2 | BB39: 0 | BC39: 2 | BD39: 0 | BE39: 0 | BF39: 2 | BG39: 0 | BT39: 52835 | BU39: 1 | BV39: 5308 | BW39: 12
C40: 25297 | D40: GACHETÁ | E40: 1 | F40: 2 | G40: Natural | H40: 25 | I40: CUNDINAMARCA | J40: Aprobado con subsidio | K40: MICRO | L40: 4663 | M40: COMERCIO AL POR MAYOR Y AL POR MENOR; REPARACIÓN DE VEHÍCULOS AUTOMOTORES Y MOTOCICLETAS | N40: G | O40: Comercio al por mayor especializado de otros productos | P40: Comercio al por mayor especializado de otros productos | Q40: 1 | R40: 0 | S40: 0 | T40: 1 | U40: 0 | V40: 0 | W40: 1 | X40: 0 | AJ40: 0 | AK40: 0 | AL40: 95001 | AM40: SAN JOSÉ DEL GUAVIARE | AN40: 0 | AO40: 0 | AP40: Natural | AQ40: 95 | AR40: GUAVIARE | AS40: 0 | AT40: MICRO | AU40: 1040 | AV40: INDUSTRIAS MANUFACTURERAS | AW40: C | AX40: Elaboración de productos lácteos | AY40: Elaboración de productos alimenticios | AZ40: 0 | BA40: 0 | BB40: 0 | BC40: 0 | BD40: 0 | BE40: 0 | BF40: 0 | BG40: 0 | BT40: 52001 | BU40: 19 | BV40: 5237 | BW40: 11
C41: 11001 | D41: BOGOTÁ, D.C. | E41: 0 | F41: 0 | G41: Natural | H41: 11 | I41: BOGOTÁ, D.C. | J41: 0 | K41: MICRO | L41: 7500 | M41: ACTIVIDADES PROFESIONALES, CIENTÍFICAS Y TÉCNICAS | N41: M | O41: Actividades veterinarias | P41: Actividades veterinarias | Q41: 0 | R41: 0 | S41: 0 | T41: 0 | U41: 0 | V41: 0 | W41: 0 | X41: 0 | AJ41: 0 | AK41: 0 | AL41: 5001 | AM41: MEDELLÍN | AN41: 1 | AO41: 2 | AP41: Natural | AQ41: 5 | AR41: ANTIOQUIA | AS41: Aprobado con subsidio | AT41: MICRO | AU41: 2511 | AV41: INDUSTRIAS MANUFACTURERAS | AW41: C | AX41: Fabricación de productos metálicos para uso estructural, tanques, depósitos y generadores de vapor. | AY41: Fabricación de productos elaborados de metal, excepto maquinaria y equipo | AZ41: 0 | BA41: 1 | BB41: 0 | BC41: 1 | BD41: 0 | BE41: 0 | BF41: 1 | BG41: 0 | BT41: 68307 | BU41: 25 | BV41: 5212 | BW41: 10
C42: 11001 | D42: BOGOTÁ, D.C. | E42: 1 | F42: 6 | G42: Natural | H42: 11 | I42: BOGOTÁ, D.C. | J42: Aprobado con subsidio | K42: PEQUEÑA | L42: 8521 | M42: EDUCACIÓN | N42: P | O42: Educación secundaria y de formación laboral | P42: Educación secundaria y de formación laboral | Q42: 1 | R42: 0 | S42: 0 | T42: 1 | U42: 0 | V42: 0 | W42: 1 | X42: 0 | AJ42: 0 | AK42: 0 | AL42: 5001 | AM42: MEDELLÍN | AN42: 0 | AO42: 0 | AP42: Natural | AQ42: 5 | AR42: ANTIOQUIA | AS42: 0 | AT42: MICRO | AU42: 1089 | AV42: INDUSTRIAS MANUFACTURERAS | AW42: C | AX42: Elaboración de otros productos alimenticios | AY42: Elaboración de productos alimenticios | AZ42: 0 | BA42: 0 | BB42: 0 | BC42: 0 | BD42: 0 | BE42: 0 | BF42: 0 | BG42: 0 | BT42: 68081 | BU42: 13 | BV42: 76147 | BW42: 9
C43: 11001 | D43: BOGOTÁ, D.C. | E43: 0 | F43: 0 | G43: Natural | H43: 11 | I43: BOGOTÁ, D.C. | J43: 0 | K43: PEQUEÑA | L43: 1513 | M43: INDUSTRIAS MANUFACTURERAS | N43: C | O43: Curtido y recurtido de cueros; fabricación de artículos de viaje, bolsos de mano y artículos similares, y fabricación de artículos de talabartería y guarnicionería; adobo y teñido de pieles | P43: Curtido y recurtido de cueros; fabricación de calzado; fabricación de artículos de viaje, maletas, bolsos de mano y artículos similares, y fabricación de artículos de talabartería y guarnicionería; adobo y teñido de pieles | Q43: 0 | R43: 0 | S43: 0 | T43: 0 | U43: 0 | V43: 0 | W43: 0 | X43: 0 | AJ43: 0 | AK43: 0 | AL43: 5001 | AM43: MEDELLÍN | AN43: 1 | AO43: 0 | AP43: Natural | AQ43: 5 | AR43: ANTIOQUIA | AS43: Aprobado con subsidio | AT43: MICRO | AU43: 1081 | AV43: INDUSTRIAS MANUFACTURERAS | AW43: C | AX43: Elaboración de otros productos alimenticios | AY43: Elaboración de productos alimenticios | AZ43: 0 | BA43: 1 | BB43: 0 | BC43: 1 | BD43: 0 | BE43: 0 | BF43: 1 | BG43: 0 | BT43: 50006 | BU43: 2 | BV43: 15238 | BW43: 8
C44: 11001 | D44: BOGOTÁ, D.C. | E44: 1 | F44: 3 | G44: Natural | H44: 11 | I44: BOGOTÁ, D.C. | J44: Aprobado con subsidio | K44: MICRO | L44: 7310 | M44: ACTIVIDADES PROFESIONALES, CIENTÍFICAS Y TÉCNICAS | N44: M | O44: Publicidad | P44: Publicidad | Q44: 0 | R44: 1 | S44: 0 | T44: 1 | U44: 0 | V44: 0 | W44: 1 | X44: 0 | AJ44: 0 | AK44: 0 | AL44: 5686 | AM44: SANTA ROSA DE OSOS | AN44: 1 | AO44: 5 | AP44: Natural | AQ44: 5 | AR44: ANTIOQUIA | AS44: Aprobado con subsidio | AT44: MICRO | AU44: 1610 | AV44: INDUSTRIAS MANUFACTURERAS | AW44: C | AX44: Aserrado, acepillado e impregnación de la madera | AY44: Transformación de la madera y fabricación de productos de madera y de corcho, excepto muebles; fabricación de artículos de cestería y espartería | AZ44: 0 | BA44: 1 | BB44: 0 | BC44: 0 | BD44: 0 | BE44: 1 | BF44: 1 | BG44: 0 | BT44: 76834 | BU44: 4 | BV44: 15759 | BW44: 8
C45: 15407 | D45: VILLA DE LEYVA | E45: 0 | F45: 0 | G45: Natural | H45: 15 | I45: BOYACÁ | J45: 0 | K45: MICRO | L45: 5511 | M45: ALOJAMIENTO Y SERVICIOS DE COMIDA | N45: I | O45: Actividades de alojamiento de estancias cortas | P45: Actividades de alojamiento de estancias cortas | Q45: 0 | R45: 0 | S45: 0 | T45: 0 | U45: 0 | V45: 0 | W45: 0 | X45: 0 | AJ45: 0 | AK45: 0 | AL45: 5001 | AM45: MEDELLÍN | AN45: 1 | AO45: 0 | AP45: Natural | AQ45: 5 | AR45: ANTIOQUIA | AS45: Aprobado con subsidio | AT45: MICRO | AU45: 1410 | AV45: INDUSTRIAS MANUFACTURERAS | AW45: C | AX45: Confección de prendas de vestir, excepto prendas de piel | AY45: Confección de prendas de vestir | AZ45: 1 | BA45: 0 | BB45: 0 | BC45: 1 | BD45: 0 | BE45: 0 | BF45: 1 | BG45: 0 | BT45: 76670 | BU45: 1 | BV45: 85001 | BW45: 8
C46: 25572 | D46: PUERTO SALGAR | E46: 0 | F46: 0 | G46: Natural | H46: 25 | I46: CUNDINAMARCA | J46: 0 | K46: PEQUEÑA | L46: 4290 | M46: CONSTRUCCIÓN | N46: F | O46: Construcción de otras obras de ingeniería civil | P46: Construcción de otras obras de ingeniería civil | Q46: 0 | R46: 0 | S46: 0 | T46: 0 | U46: 0 | V46: 0 | W46: 0 | X46: 0 | AJ46: 0 | AK46: 0 | AL46: 5001 | AM46: MEDELLÍN | AN46: 1 | AO46: 5 | AP46: Natural | AQ46: 5 | AR46: ANTIOQUIA | AS46: Aprobado con subsidio | AT46: PEQUEÑA | AU46: 1081 | AV46: INDUSTRIAS MANUFACTURERAS | AW46: C | AX46: Elaboración de otros productos alimenticios | AY46: Elaboración de productos alimenticios | AZ46: 0 | BA46: 1 | BB46: 0 | BC46: 1 | BD46: 0 | BE46: 0 | BF46: 1 | BG46: 0 | BT46: 5360 | BU46: 123 | BV46: 5129 | BW46: 8
C47: 11001 | D47: BOGOTÁ, D.C. | E47: 14 | F47: 12 | G47: Natural | H47: 11 | I47: BOGOTÁ, D.C. | J47: Aprobado con subsidio | K47: PEQUEÑA | L47: 6910 | M47: ACTIVIDADES PROFESIONALES, CIENTÍFICAS Y TÉCNICAS | N47: M | O47: Actividades jurídicas | P47: Actividades jurídicas | Q47: 9 | R47: 5 | S47: 0 | T47: 14 | U47: 0 | V47: 0 | W47: 14 | X47: 0 | AJ47: 0 | AK47: 0 | AL47: 5631 | AM47: SABANETA | AN47: 5 | AO47: 16 | AP47: Natural | AQ47: 5 | AR47: ANTIOQUIA | AS47: Aprobado con subsidio | AT47: PEQUEÑA | AU47: 3110 | AV47: INDUSTRIAS MANUFACTURERAS | AW47: C | AX47: Fabricación de muebles | AY47: Fabricación de muebles, colchones y somieres | AZ47: 3 | BA47: 2 | BB47: 0 | BC47: 1 | BD47: 3 | BE47: 1 | BF47: 5 | BG47: 0 | BT47: 5761 | BU47: 0 | BV47: 63401 | BW47: 8
C48: 11001 | D48: BOGOTÁ, D.C. | E48: 1 | F48: 2 | G48: Natural | H48: 11 | I48: BOGOTÁ, D.C. | J48: Aprobado con subsidio | K48: MICRO | L48: 4751 | M48: COMERCIO AL POR MAYOR Y AL POR MENOR; REPARACIÓN DE VEHÍCULOS AUTOMOTORES Y MOTOCICLETAS | N48: G | O48: Comercio al por menor de otros enseres domésticos en establecimientos especializados | P48: Comercio al por menor de otros enseres domésticos en establecimientos especializados | Q48: 1 | R48: 0 | S48: 0 | T48: 1 | U48: 0 | V48: 0 | W48: 1 | X48: 0 | AJ48: 0 | AK48: 0 | AL48: 5368 | AM48: JERICÓ | AN48: 11 | AO48: 4 | AP48: Natural | AQ48: 5 | AR48: ANTIOQUIA | AS48: Aprobado con subsidio | AT48: PEQUEÑA | AU48: 1084 | AV48: INDUSTRIAS MANUFACTURERAS | AW48: C | AX48: Elaboración de otros productos alimenticios | AY48: Elaboración de productos alimenticios | AZ48: 7 | BA48: 4 | BB48: 0 | BC48: 7 | BD48: 4 | BE48: 0 | BF48: 11 | BG48: 0 | BT48: 5148 | BU48: 2 | BV48: 25899 | BW48: 7
C49: 25785 | D49: TABIO | E49: 1 | F49: 2 | G49: Natural | H49: 25 | I49: CUNDINAMARCA | J49: Aprobado con subsidio | K49: MICRO | L49: 9004 | M49: ACTIVIDADES ARTÍSTICAS, DE ENTRETENIMIENTO Y RECREACIÓN | N49: R | O49: Actividades creativas, artísticas y de entretenimiento | P49: Actividades creativas, artísticas y de entretenimiento | Q49: 1 | R49: 0 | S49: 0 | T49: 1 | U49: 0 | V49: 0 | W49: 1 | X49: 0 | AJ49: 0 | AK49: 0 | AL49: 5001 | AM49: MEDELLÍN | AN49: 1 | AO49: 3 | AP49: Natural | AQ49: 5 | AR49: ANTIOQUIA | AS49: Aprobado con subsidio | AT49: PEQUEÑA | AU49: 1811 | AV49: INDUSTRIAS MANUFACTURERAS | AW49: C | AX49: Actividades de impresión y actividades de servicios relacionados con la impresión | AY49: Actividades de impresión y de producción de copias a partir de grabaciones originales | AZ49: 0 | BA49: 1 | BB49: 0 | BC49: 1 | BD49: 0 | BE49: 0 | BF49: 1 | BG49: 0 | BT49: 19130 | BU49: 1 | BV49: 25126 | BW49: 7
C50: 25799 | D50: TENJO | E50: 0 | F50: 0 | G50: Natural | H50: 25 | I50: CUNDINAMARCA | J50: 0 | K50: PEQUEÑA | L50: 4711 | M50: COMERCIO AL POR MAYOR Y AL POR MENOR; REPARACIÓN DE VEHÍCULOS AUTOMOTORES Y MOTOCICLETAS | N50: G | O50: Comercio al por menor en establecimientos no especializados | P50: Comercio al por menor en establecimientos no especializados | Q50: 0 | R50: 0 | S50: 0 | T50: 0 | U50: 0 | V50: 0 | W50: 0 | X50: 0 | AJ50: 0 | AK50: 0 | AL50: 68001 | AM50: BUCARAMANGA | AN50: 0 | AO50: 0 | AP50: Natural | AQ50: 68 | AR50: SANTANDER | AS50: 0 | AT50: MICRO | AU50: 1089 | AV50: INDUSTRIAS MANUFACTURERAS | AW50: C | AX50: Elaboración de otros productos alimenticios | AY50: Elaboración de productos alimenticios | AZ50: 0 | BA50: 0 | BB50: 0 | BC50: 0 | BD50: 0 | BE50: 0 | BF50: 0 | BG50: 0 | BT50: 5376 | BU50: 4 | BV50: 76130 | BW50: 7
C51: 50001 | D51: VILLAVICENCIO | E51: 5 | F51: 3 | G51: Natural | H51: 50 | I51: META | J51: Aprobado con subsidio | K51: MICRO | L51: 4729 | M51: COMERCIO AL POR MAYOR Y AL POR MENOR; REPARACIÓN DE VEHÍCULOS AUTOMOTORES Y MOTOCICLETAS | N51: G | O51: Comercio al por menor de alimentos (víveres en general), bebidas y tabaco, en establecimientos especializados | P51: Comercio al por menor de alimentos (víveres en general), bebidas y tabaco, en establecimientos especializados | Q51: 0 | R51: 5 | S51: 0 | T51: 5 | U51: 0 | V51: 0 | W51: 5 | X51: 0 | AJ51: 0 | AK51: 0 | AL51: 8001 | AM51: BARRANQUILLA | AN51: 0 | AO51: 0 | AP51: Natural | AQ51: 8 | AR51: ATLÁNTICO | AS51: 0 | AT51: MICRO | AU51: 3312 | AV51: INDUSTRIAS MANUFACTURERAS | AW51: C | AX51: Mantenimiento y reparación especializado de productos elaborados en metal y de maquinaria y equipo | AY51: Instalación, mantenimiento y reparación especializado de maquinaria y equipo | AZ51: 0 | BA51: 0 | BB51: 0 | BC51: 0 | BD51: 0 | BE51: 0 | BF51: 0 | BG51: 0 | BT51: 73001 | BU51: 41 | BV51: 20001 | BW51: 6
C52: 25875 | D52: VILLETA | E52: 1 | F52: 0 | G52: Natural | H52: 25 | I52: CUNDINAMARCA | J52: Aprobado con subsidio | K52: PEQUEÑA | L52: 1081 | M52: INDUSTRIAS MANUFACTURERAS | N52: C | O52: Elaboración de otros productos alimenticios | P52: Elaboración de productos alimenticios | Q52: 1 | R52: 0 | S52: 0 | T52: 1 | U52: 0 | V52: 0 | W52: 1 | X52: 0 | AJ52: 0 | AK52: 0 | AL52: 15759 | AM52: SOGAMOSO | AN52: 0 | AO52: 0 | AP52: Natural | AQ52: 15 | AR52: BOYACÁ | AS52: 0 | AT52: MICRO | AU52: 2790 | AV52: INDUSTRIAS MANUFACTURERAS | AW52: C | AX52: Fabricación de otros tipos de equipo eléctrico n.c.p. | AY52: Fabricación de aparatos y equipo eléctrico | AZ52: 0 | BA52: 0 | BB52: 0 | BC52: 0 | BD52: 0 | BE52: 0 | BF52: 0 | BG52: 0 | BT52: 76147 | BU52: 9 | BV52: 15001 | BW52: 6
C53: 25269 | D53: FACATATIVÁ | E53: 5 | F53: 2 | G53: Natural | H53: 25 | I53: CUNDINAMARCA | J53: Aprobado con subsidio | K53: MICRO | L53: 8559 | M53: EDUCACIÓN | N53: P | O53: Otros tipos de educación | P53: Otros tipos de educación | Q53: 2 | R53: 3 | S53: 0 | T53: 2 | U53: 0 | V53: 3 | W53: 5 | X53: 0 | AJ53: 0 | AK53: 0 | AL53: 15087 | AM53: BELÉN | AN53: 0 | AO53: 0 | AP53: Natural | AQ53: 15 | AR53: BOYACÁ | AS53: 0 | AT53: PEQUEÑA | AU53: 1040 | AV53: INDUSTRIAS MANUFACTURERAS | AW53: C | AX53: Elaboración de productos lácteos | AY53: Elaboración de productos alimenticios | AZ53: 0 | BA53: 0 | BB53: 0 | BC53: 0 | BD53: 0 | BE53: 0 | BF53: 0 | BG53: 0 | BT53: 25290 | BU53: 5 | BV53: 25175 | BW53: 6
C54: 85001 | D54: YOPAL | E54: 4 | F54: 1 | G54: Natural | H54: 85 | I54: CASANARE | J54: Aprobado con subsidio | K54: MICRO | L54: 4769 | M54: COMERCIO AL POR MAYOR Y AL POR MENOR; REPARACIÓN DE VEHÍCULOS AUTOMOTORES Y MOTOCICLETAS | N54: G | O54: Comercio al por menor de artículos culturales y de entretenimiento, en establecimientos especializados | P54: Comercio al por menor de artículos culturales y de entretenimiento, en establecimientos especializados | Q54: 3 | R54: 1 | S54: 0 | T54: 3 | U54: 1 | V54: 0 | W54: 4 | X54: 0 | AJ54: 0 | AK54: 0 | AL54: 85139 | AM54: MANÍ | AN54: 2 | AO54: 0 | AP54: Natural | AQ54: 85 | AR54: CASANARE | AS54: Aprobado con subsidio | AT54: MICRO | AU54: 1630 | AV54: INDUSTRIAS MANUFACTURERAS | AW54: C | AX54: Fabricación de partes y piezas de madera, de carpintería y ebanistería para la construcción | AY54: Transformación de la madera y fabricación de productos de madera y de corcho, excepto muebles; fabricación de artículos de cestería y espartería | AZ54: 0 | BA54: 2 | BB54: 0 | BC54: 1 | BD54: 0 | BE54: 1 | BF54: 2 | BG54: 0 | BT54: 50001 | BU54: 19 | BV54: 5079 | BW54: 6
C55: 50001 | D55: VILLAVICENCIO | E55: 0 | F55: 0 | G55: Natural | H55: 50 | I55: META | J55: 0 | K55: MICRO | L55: 6810 | M55: ACTIVIDADES INMOBILIARIAS | N55: L | O55: Actividades inmobiliarias realizadas con bienes propios o arrendados | P55: Actividades inmobiliarias realizadas con bienes propios o arrendados | Q55: 0 | R55: 0 | S55: 0 | T55: 0 | U55: 0 | V55: 0 | W55: 0 | X55: 0 | AJ55: 0 | AK55: 0 | AL55: 85001 | AM55: YOPAL | AN55: 15 | AO55: 28 | AP55: Natural | AQ55: 85 | AR55: CASANARE | AS55: Aprobado con subsidio | AT55: PEQUEÑA | AU55: 3312 | AV55: INDUSTRIAS MANUFACTURERAS | AW55: C | AX55: Mantenimiento y reparación especializado de productos elaborados en metal y de maquinaria y equipo | AY55: Instalación, mantenimiento y reparación especializado de maquinaria y equipo | AZ55: 1 | BA55: 14 | BB55: 0 | BC55: 5 | BD55: 1 | BE55: 9 | BF55: 15 | BG55: 0 | BT55: 18001 | BU55: 4 | BV55: 8296 | BW55: 6
C56: 5001 | D56: MEDELLÍN | E56: 1 | F56: 0 | G56: Natural | H56: 5 | I56: ANTIOQUIA | J56: Aprobado con subsidio | K56: MICRO | L56: 90 | M56: OTRAS | N56: Otras | O56: Otras | P56: Otras | Q56: 0 | R56: 1 | S56: 0 | T56: 0 | U56: 0 | V56: 1 | W56: 1 | X56: 0 | AJ56: 0 | AK56: 0 | AL56: 20011 | AM56: AGUACHICA | AN56: 8 | AO56: 3 | AP56: Natural | AQ56: 20 | AR56: CESAR | AS56: Aprobado con subsidio | AT56: PEQUEÑA | AU56: 2511 | AV56: INDUSTRIAS MANUFACTURERAS | AW56: C | AX56: Fabricación de productos metálicos para uso estructural, tanques, depósitos y generadores de vapor. | AY56: Fabricación de productos elaborados de metal, excepto maquinaria y equipo | AZ56: 2 | BA56: 6 | BB56: 0 | BC56: 7 | BD56: 1 | BE56: 0 | BF56: 8 | BG56: 0 | BT56: 66400 | BU56: 1 | BV56: 25799 | BW56: 6
C57: 15759 | D57: SOGAMOSO | E57: 0 | F57: 0 | G57: Natural | H57: 15 | I57: BOYACÁ | J57: 0 | K57: MICRO | L57: 4799 | M57: COMERCIO AL POR MAYOR Y AL POR MENOR; REPARACIÓN DE VEHÍCULOS AUTOMOTORES Y MOTOCICLETAS | N57: G | O57: Comercio al por menor no realizado en establecimientos, puestos de venta o mercados | P57: Comercio al por menor no realizado en establecimientos, puestos de venta o mercados | Q57: 0 | R57: 0 | S57: 0 | T57: 0 | U57: 0 | V57: 0 | W57: 0 | X57: 0 | AJ57: 0 | AK57: 0 | AL57: 63001 | AM57: ARMENIA | AN57: 1 | AO57: 0 | AP57: Natural | AQ57: 63 | AR57: QUINDÍO | AS57: Aprobado con subsidio | AT57: MICRO | AU57: 1410 | AV57: INDUSTRIAS MANUFACTURERAS | AW57: C | AX57: Confección de prendas de vestir, excepto prendas de piel | AY57: Confección de prendas de vestir | AZ57: 0 | BA57: 1 | BB57: 0 | BC57: 1 | BD57: 0 | BE57: 0 | BF57: 1 | BG57: 0 | BT57: 25754 | BU57: 30 | BV57: 8758 | BW57: 6
C58: 5001 | D58: MEDELLÍN | E58: 0 | F58: 0 | G58: Natural | H58: 5 | I58: ANTIOQUIA | J58: 0 | K58: MICRO | L58: 141 | M58: AGRICULTURA, GANADERÍA, CAZA, SILVICULTURA Y PESCA | N58: A | O58: Ganadería | P58: Ganadería | Q58: 0 | R58: 0 | S58: 0 | T58: 0 | U58: 0 | V58: 0 | W58: 0 | X58: 0 | AJ58: 0 | AK58: 0 | AL58: 66170 | AM58: DOSQUEBRADAS | AN58: 0 | AO58: 0 | AP58: Natural | AQ58: 66 | AR58: RISARALDA | AS58: 0 | AT58: PEQUEÑA | AU58: 2395 | AV58: INDUSTRIAS MANUFACTURERAS | AW58: C | AX58: Fabricación de productos minerales no metálicos n.c.p. | AY58: Fabricación de otros productos minerales no metálicos | AZ58: 0 | BA58: 0 | BB58: 0 | BC58: 0 | BD58: 0 | BE58: 0 | BF58: 0 | BG58: 0 | BT58: 47288 | BU58: 1 | BV58: 76364 | BW58: 6
C59: 5001 | D59: MEDELLÍN | E59: 1 | F59: 1 | G59: Natural | H59: 5 | I59: ANTIOQUIA | J59: Aprobado con subsidio | K59: MICRO | L59: 5611 | M59: ALOJAMIENTO Y SERVICIOS DE COMIDA | N59: I | O59: Actividades de restaurantes, cafeterías y servicio móvil de comidas | P59: Actividades de restaurantes, cafeterías y servicio móvil de comidas | Q59: 0 | R59: 1 | S59: 0 | T59: 0 | U59: 0 | V59: 1 | W59: 1 | X59: 0 | AJ59: 0 | AK59: 0 | AL59: 66170 | AM59: DOSQUEBRADAS | AN59: 0 | AO59: 0 | AP59: Natural | AQ59: 66 | AR59: RISARALDA | AS59: 0 | AT59: PEQUEÑA | AU59: 3311 | AV59: INDUSTRIAS MANUFACTURERAS | AW59: C | AX59: Mantenimiento y reparación especializado de productos elaborados en metal y de maquinaria y equipo | AY59: Instalación, mantenimiento y reparación especializado de maquinaria y equipo | AZ59: 0 | BA59: 0 | BB59: 0 | BC59: 0 | BD59: 0 | BE59: 0 | BF59: 0 | BG59: 0 | BT59: 5045 | BU59: 2 | BV59: 54405 | BW59: 6
C60: 5001 | D60: MEDELLÍN | E60: 3 | F60: 0 | G60: Natural | H60: 5 | I60: ANTIOQUIA | J60: Aprobado con subsidio | K60: MICRO | L60: 4722 | M60: COMERCIO AL POR MAYOR Y AL POR MENOR; REPARACIÓN DE VEHÍCULOS AUTOMOTORES Y MOTOCICLETAS | N60: G | O60: Comercio al por menor de alimentos (víveres en general), bebidas y tabaco, en establecimientos especializados | P60: Comercio al por menor de alimentos (víveres en general), bebidas y tabaco, en establecimientos especializados | Q60: 1 | R60: 2 | S60: 0 | T60: 1 | U60: 1 | V60: 1 | W60: 3 | X60: 0 | AJ60: 0 | AK60: 0 | AL60: 66682 | AM60: SANTA ROSA DE CABAL | AN60: 0 | AO60: 0 | AP60: Natural | AQ60: 66 | AR60: RISARALDA | AS60: 0 | AT60: PEQUEÑA | AU60: 2712 | AV60: INDUSTRIAS MANUFACTURERAS | AW60: C | AX60: Fabricación de motores, generadores y transformadores eléctricos y de aparatos de distribución y control de la energía eléctrica | AY60: Fabricación de aparatos y equipo eléctrico | AZ60: 0 | BA60: 0 | BB60: 0 | BC60: 0 | BD60: 0 | BE60: 0 | BF60: 0 | BG60: 0 | BT60: 5266 | BU60: 40 | BV60: 5686 | BW60: 5
C61: 5001 | D61: MEDELLÍN | E61: 3 | F61: 0 | G61: Natural | H61: 5 | I61: ANTIOQUIA | J61: Aprobado con subsidio | K61: MICRO | L61: 3240 | M61: INDUSTRIAS MANUFACTURERAS | N61: C | O61: Fabricación de juegos, juguetes y rompecabezas | P61: Otras industrias manufactureras | Q61: 2 | R61: 1 | S61: 0 | T61: 2 | U61: 0 | V61: 1 | W61: 3 | X61: 0 | AJ61: 0 | AK61: 0 | AL61: 66001 | AM61: PEREIRA | AN61: 0 | AO61: 0 | AP61: Natural | AQ61: 66 | AR61: RISARALDA | AS61: 0 | AT61: MICRO | AU61: 1081 | AV61: INDUSTRIAS MANUFACTURERAS | AW61: C | AX61: Elaboración de otros productos alimenticios | AY61: Elaboración de productos alimenticios | AZ61: 0 | BA61: 0 | BB61: 0 | BC61: 0 | BD61: 0 | BE61: 0 | BF61: 0 | BG61: 0 | BT61: 70001 | BU61: 5 | BV61: 25290 | BW61: 5
C62: 5001 | D62: MEDELLÍN | E62: 1 | F62: 0 | G62: Natural | H62: 5 | I62: ANTIOQUIA | J62: Aprobado con subsidio | K62: MICRO | L62: 4771 | M62: COMERCIO AL POR MAYOR Y AL POR MENOR; REPARACIÓN DE VEHÍCULOS AUTOMOTORES Y MOTOCICLETAS | N62: G | O62: Comercio al por menor de otros productos en establecimientos especializados | P62: Comercio al por menor de otros productos en establecimientos especializados | Q62: 1 | R62: 0 | S62: 0 | T62: 1 | U62: 0 | V62: 0 | W62: 1 | X62: 0 | AJ62: 0 | AK62: 0 | AL62: 5088 | AM62: BELLO | AN62: 0 | AO62: 0 | AP62: Natural | AQ62: 5 | AR62: ANTIOQUIA | AS62: 0 | AT62: MICRO | AU62: 1081 | AV62: INDUSTRIAS MANUFACTURERAS | AW62: C | AX62: Elaboración de otros productos alimenticios | AY62: Elaboración de productos alimenticios | AZ62: 0 | BA62: 0 | BB62: 0 | BC62: 0 | BD62: 0 | BE62: 0 | BF62: 0 | BG62: 0 | BT62: 25269 | BU62: 3 | BV62: 70001 | BW62: 5
C63: 41001 | D63: NEIVA | E63: 0 | F63: 0 | G63: Natural | H63: 41 | I63: HUILA | J63: 0 | K63: MICRO | L63: 4755 | M63: COMERCIO AL POR MAYOR Y AL POR MENOR; REPARACIÓN DE VEHÍCULOS AUTOMOTORES Y MOTOCICLETAS | N63: G | O63: Comercio al por menor de otros enseres domésticos en establecimientos especializados | P63: Comercio al por menor de otros enseres domésticos en establecimientos especializados | Q63: 0 | R63: 0 | S63: 0 | T63: 0 | U63: 0 | V63: 0 | W63: 0 | X63: 0 | AJ63: 0 | AK63: 0 | AL63: 17380 | AM63: LA DORADA | AN63: 1 | AO63: 0 | AP63: Natural | AQ63: 17 | AR63: CALDAS | AS63: Aprobado con subsidio | AT63: MICRO | AU63: 1610 | AV63: INDUSTRIAS MANUFACTURERAS | AW63: C | AX63: Aserrado, acepillado e impregnación de la madera | AY63: Transformación de la madera y fabricación de productos de madera y de corcho, excepto muebles; fabricación de artículos de cestería y espartería | AZ63: 0 | BA63: 1 | BB63: 0 | BC63: 1 | BD63: 0 | BE63: 0 | BF63: 1 | BG63: 0 | BT63: 54518 | BU63: 1 | BV63: 68547 | BW63: 5
C64: 5591 | D64: PUERTO TRIUNFO | E64: 0 | F64: 0 | G64: Natural | H64: 5 | I64: ANTIOQUIA | J64: 0 | K64: MICRO | L64: 4711 | M64: COMERCIO AL POR MAYOR Y AL POR MENOR; REPARACIÓN DE VEHÍCULOS AUTOMOTORES Y MOTOCICLETAS | N64: G | O64: Comercio al por menor en establecimientos no especializados | P64: Comercio al por menor en establecimientos no especializados | Q64: 0 | R64: 0 | S64: 0 | T64: 0 | U64: 0 | V64: 0 | W64: 0 | X64: 0 | AJ64: 0 | AK64: 0 | AL64: 17001 | AM64: MANIZALES | AN64: 0 | AO64: 0 | AP64: Natural | AQ64: 17 | AR64: CALDAS | AS64: 0 | AT64: MICRO | AU64: 3110 | AV64: INDUSTRIAS MANUFACTURERAS | AW64: C | AX64: Fabricación de muebles | AY64: Fabricación de muebles, colchones y somieres | AZ64: 0 | BA64: 0 | BB64: 0 | BC64: 0 | BD64: 0 | BE64: 0 | BF64: 0 | BG64: 0 | BT64: 68079 | BU64: 1 | BV64: 54874 | BW64: 5
C65: 5001 | D65: MEDELLÍN | E65: 2 | F65: 1 | G65: Natural | H65: 5 | I65: ANTIOQUIA | J65: Aprobado con subsidio | K65: MICRO | L65: 4663 | M65: COMERCIO AL POR MAYOR Y AL POR MENOR; REPARACIÓN DE VEHÍCULOS AUTOMOTORES Y MOTOCICLETAS | N65: G | O65: Comercio al por mayor especializado de otros productos | P65: Comercio al por mayor especializado de otros productos | Q65: 0 | R65: 0 | S65: 2 | T65: 2 | U65: 0 | V65: 0 | W65: 0 | X65: 2 | AJ65: 0 | AK65: 0 | AL65: 17001 | AM65: MANIZALES | AN65: 0 | AO65: 0 | AP65: Natural | AQ65: 17 | AR65: CALDAS | AS65: 0 | AT65: MEDIANA | AU65: 1523 | AV65: INDUSTRIAS MANUFACTURERAS | AW65: C | AX65: Fabricación de calzado | AY65: Curtido y recurtido de cueros; fabricación de calzado; fabricación de artículos de viaje, maletas, bolsos de mano y artículos similares, y fabricación de artículos de talabartería y guarnicionería; adobo y teñido de pieles | AZ65: 0 | BA65: 0 | BB65: 0 | BC65: 0 | BD65: 0 | BE65: 0 | BF65: 0 | BG65: 0 | BT65: 23001 | BU65: 12 | BV65: 76111 | BW65: 5
C66: 5001 | D66: MEDELLÍN | E66: 0 | F66: 0 | G66: Natural | H66: 5 | I66: ANTIOQUIA | J66: 0 | K66: MICRO | L66: 4923 | M66: TRANSPORTE Y ALMACENAMIENTO | N66: H | O66: Transporte terrestre publico automotor | P66: Transporte terrestre publico automotor | Q66: 0 | R66: 0 | S66: 0 | T66: 0 | U66: 0 | V66: 0 | W66: 0 | X66: 0 | AJ66: 0 | AK66: 0 | AL66: 19698 | AM66: SANTANDER DE QUILICHAO | AN66: 0 | AO66: 0 | AP66: Natural | AQ66: 19 | AR66: CAUCA | AS66: 0 | AT66: MICRO | AU66: 1052 | AV66: INDUSTRIAS MANUFACTURERAS | AW66: C | AX66: Elaboración de productos de molinería, almidones y productos derivados del almidón | AY66: Elaboración de productos alimenticios | AZ66: 0 | BA66: 0 | BB66: 0 | BC66: 0 | BD66: 0 | BE66: 0 | BF66: 0 | BG66: 0 | BT66: 25899 | BU66: =COUNTIFS($AS$2:$AS$399999,"Aprobado con subsidio",$AL$2:$AL$399999,BT66) -> 7 | BV66: 76834 | BW66: 4
C67: 5264 | D67: ENTRERRIOS | E67: 0 | F67: 0 | G67: Natural | H67: 5 | I67: ANTIOQUIA | J67: 0 | K67: MEDIANA | L67: 121 | M67: AGRICULTURA, GANADERÍA, CAZA, SILVICULTURA Y PESCA | N67: A | O67: Cultivos agrícolas permanentes | P67: Cultivos agrícolas permanentes | Q67: 0 | R67: 0 | S67: 0 | T67: 0 | U67: 0 | V67: 0 | W67: 0 | X67: 0 | AJ67: 0 | AK67: 0 | AL67: 11001 | AM67: BOGOTÁ, D.C. | AN67: 0 | AO67: 0 | AP67: Natural | AQ67: 11 | AR67: BOGOTÁ, D.C. | AS67: 0 | AT67: MICRO | AU67: 2591 | AV67: INDUSTRIAS MANUFACTURERAS | AW67: C | AX67: Fabricación de otros productos elaborados de metal y actividades de servicios relacionadas con el trabajo de metales | AY67: Fabricación de productos elaborados de metal, excepto maquinaria y equipo | AZ67: 0 | BA67: 0 | BB67: 0 | BC67: 0 | BD67: 0 | BE67: 0 | BF67: 0 | BG67: 0 | BT67: 68547 | BU67: 5 | BV67: 5376 | BW67: 4
C68: 5264 | D68: ENTRERRIOS | E68: 0 | F68: 0 | G68: Natural | H68: 5 | I68: ANTIOQUIA | J68: 0 | K68: MICRO | L68: 4724 | M68: COMERCIO AL POR MAYOR Y AL POR MENOR; REPARACIÓN DE VEHÍCULOS AUTOMOTORES Y MOTOCICLETAS | N68: G | O68: Comercio al por menor de alimentos (víveres en general), bebidas y tabaco, en establecimientos especializados | P68: Comercio al por menor de alimentos (víveres en general), bebidas y tabaco, en establecimientos especializados | Q68: 0 | R68: 0 | S68: 0 | T68: 0 | U68: 0 | V68: 0 | W68: 0 | X68: 0 | AJ68: 0 | AK68: 0 | AL68: 11001 | AM68: BOGOTÁ, D.C. | AN68: 1 | AO68: 0 | AP68: Natural | AQ68: 11 | AR68: BOGOTÁ, D.C. | AS68: Aprobado con subsidio | AT68: MICRO | AU68: 1410 | AV68: INDUSTRIAS MANUFACTURERAS | AW68: C | AX68: Confección de prendas de vestir, excepto prendas de piel | AY68: Confección de prendas de vestir | AZ68: 0 | BA68: 1 | BB68: 0 | BC68: 1 | BD68: 0 | BE68: 0 | BF68: 1 | BG68: 0 | BT68: 15001 | BU68: 6 | BV68: 18001 | BW68: 4
C69: 5264 | D69: ENTRERRIOS | E69: 0 | F69: 0 | G69: Natural | H69: 5 | I69: ANTIOQUIA | J69: 0 | K69: MICRO | L69: 121 | M69: AGRICULTURA, GANADERÍA, CAZA, SILVICULTURA Y PESCA | N69: A | O69: Cultivos agrícolas permanentes | P69: Cultivos agrícolas permanentes | Q69: 0 | R69: 0 | S69: 0 | T69: 0 | U69: 0 | V69: 0 | W69: 0 | X69: 0 | AJ69: 0 | AK69: 0 | AL69: 11001 | AM69: BOGOTÁ, D.C. | AN69: 3 | AO69: 5 | AP69: Natural | AQ69: 11 | AR69: BOGOTÁ, D.C. | AS69: Aprobado con subsidio | AT69: MICRO | AU69: 2394 | AV69: INDUSTRIAS MANUFACTURERAS | AW69: C | AX69: Fabricación de productos minerales no metálicos n.c.p. | AY69: Fabricación de otros productos minerales no metálicos | AZ69: 2 | BA69: 1 | BB69: 0 | BC69: 2 | BD69: 1 | BE69: 0 | BF69: 3 | BG69: 0 | BT69: 54820 | BU69: 1 | BV69: 68679 | BW69: 4
C70: 5360 | D70: ITAGUI | E70: 0 | F70: 0 | G70: Natural | H70: 5 | I70: ANTIOQUIA | J70: 0 | K70: MICRO | L70: 4721 | M70: COMERCIO AL POR MAYOR Y AL POR MENOR; REPARACIÓN DE VEHÍCULOS AUTOMOTORES Y MOTOCICLETAS | N70: G | O70: Comercio al por menor de alimentos (víveres en general), bebidas y tabaco, en establecimientos especializados | P70: Comercio al por menor de alimentos (víveres en general), bebidas y tabaco, en establecimientos especializados | Q70: 0 | R70: 0 | S70: 0 | T70: 0 | U70: 0 | V70: 0 | W70: 0 | X70: 0 | AJ70: 0 | AK70: 0 | AL70: 20001 | AM70: VALLEDUPAR | AN70: 0 | AO70: 0 | AP70: Natural | AQ70: 20 | AR70: CESAR | AS70: 0 | AT70: MICRO | AU70: 1089 | AV70: INDUSTRIAS MANUFACTURERAS | AW70: C | AX70: Elaboración de otros productos alimenticios | AY70: Elaboración de productos alimenticios | AZ70: 0 | BA70: 0 | BB70: 0 | BC70: 0 | BD70: 0 | BE70: 0 | BF70: 0 | BG70: 0 | BT70: 76109 | BU70: 2 | BV70: 19001 | BW70: 4
C71: 5001 | D71: MEDELLÍN | E71: 0 | F71: 0 | G71: Natural | H71: 5 | I71: ANTIOQUIA | J71: 0 | K71: PEQUEÑA | L71: 1011 | M71: INDUSTRIAS MANUFACTURERAS | N71: C | O71: Procesamiento y conservación de carne, pescado, crustáceos y moluscos | P71: Elaboración de productos alimenticios | Q71: 0 | R71: 0 | S71: 0 | T71: 0 | U71: 0 | V71: 0 | W71: 0 | X71: 0 | AJ71: 0 | AK71: 0 | AL71: 52835 | AM71: SAN ANDRES DE TUMACO | AN71: 3 | AO71: 0 | AP71: Natural | AQ71: 52 | AR71: NARIÑO | AS71: Aprobado con subsidio | AT71: MICRO | AU71: 1410 | AV71: INDUSTRIAS MANUFACTURERAS | AW71: C | AX71: Confección de prendas de vestir, excepto prendas de piel | AY71: Confección de prendas de vestir | AZ71: 2 | BA71: 1 | BB71: 0 | BC71: 2 | BD71: 1 | BE71: 0 | BF71: 3 | BG71: 0 | BT71: 5237 | BU71: 11 | BV71: 25758 | BW71: 4
C72: 23001 | D72: MONTERÍA | E72: 0 | F72: 0 | G72: Natural | H72: 23 | I72: CÓRDOBA | J72: 0 | K72: MEDIANA | L72: 4711 | M72: COMERCIO AL POR MAYOR Y AL POR MENOR; REPARACIÓN DE VEHÍCULOS AUTOMOTORES Y MOTOCICLETAS | N72: G | O72: Comercio al por menor en establecimientos no especializados | P72: Comercio al por menor en establecimientos no especializados | Q72: 0 | R72: 0 | S72: 0 | T72: 0 | U72: 0 | V72: 0 | W72: 0 | X72: 0 | AJ72: 0 | AK72: 0 | AL72: 52001 | AM72: PASTO | AN72: 0 | AO72: 0 | AP72: Natural | AQ72: 52 | AR72: NARIÑO | AS72: 0 | AT72: MICRO | AU72: 1081 | AV72: INDUSTRIAS MANUFACTURERAS | AW72: C | AX72: Elaboración de otros productos alimenticios | AY72: Elaboración de productos alimenticios | AZ72: 0 | BA72: 0 | BB72: 0 | BC72: 0 | BD72: 0 | BE72: 0 | BF72: 0 | BG72: 0 | BT72: 5642 | BU72: 2 | BV72: 8433 | BW72: 4
C73: 5001 | D73: MEDELLÍN | E73: 0 | F73: 0 | G73: Natural | H73: 5 | I73: ANTIOQUIA | J73: 0 | K73: PEQUEÑA | L73: 4711 | M73: COMERCIO AL POR MAYOR Y AL POR MENOR; REPARACIÓN DE VEHÍCULOS AUTOMOTORES Y MOTOCICLETAS | N73: G | O73: Comercio al por menor en establecimientos no especializados | P73: Comercio al por menor en establecimientos no especializados | Q73: 0 | R73: 0 | S73: 0 | T73: 0 | U73: 0 | V73: 0 | W73: 0 | X73: 0 | AJ73: 0 | AK73: 0 | AL73: 52001 | AM73: PASTO | AN73: 4 | AO73: 3 | AP73: Natural | AQ73: 52 | AR73: NARIÑO | AS73: Aprobado con subsidio | AT73: MICRO | AU73: 1811 | AV73: INDUSTRIAS MANUFACTURERAS | AW73: C | AX73: Actividades de impresión y actividades de servicios relacionados con la impresión | AY73: Actividades de impresión y de producción de copias a partir de grabaciones originales | AZ73: 4 | BA73: 0 | BB73: 0 | BC73: 1 | BD73: 3 | BE73: 0 | BF73: 4 | BG73: 0 | BT73: 5129 | BU73: 8 | BV73: 5030 | BW73: 4
C74: 11001 | D74: BOGOTÁ, D.C. | E74: 0 | F74: 0 | G74: Natural | H74: 11 | I74: BOGOTÁ, D.C. | J74: 0 | K74: MICRO | L74: 1410 | M74: INDUSTRIAS MANUFACTURERAS | N74: C | O74: Confección de prendas de vestir, excepto prendas de piel | P74: Confección de prendas de vestir | Q74: 0 | R74: 0 | S74: 0 | T74: 0 | U74: 0 | V74: 0 | W74: 0 | X74: 0 | AJ74: 0 | AK74: 0 | AL74: 54001 | AM74: CÚCUTA | AN74: 3 | AO74: 1 | AP74: Natural | AQ74: 54 | AR74: NORTE DE SANTANDER | AS74: Aprobado con subsidio | AT74: PEQUEÑA | AU74: 1610 | AV74: INDUSTRIAS MANUFACTURERAS | AW74: C | AX74: Aserrado, acepillado e impregnación de la madera | AY74: Transformación de la madera y fabricación de productos de madera y de corcho, excepto muebles; fabricación de artículos de cestería y espartería | AZ74: 0 | BA74: 3 | BB74: 0 | BC74: 3 | BD74: 0 | BE74: 0 | BF74: 3 | BG74: 0 | BT74: 5209 | BU74: 1 | BV74: 5670 | BW74: 4
C75: 11001 | D75: BOGOTÁ, D.C. | E75: 1 | F75: 7 | G75: Natural | H75: 11 | I75: BOGOTÁ, D.C. | J75: Aprobado con subsidio | K75: PEQUEÑA | L75: 4771 | M75: COMERCIO AL POR MAYOR Y AL POR MENOR; REPARACIÓN DE VEHÍCULOS AUTOMOTORES Y MOTOCICLETAS | N75: G | O75: Comercio al por menor de otros productos en establecimientos especializados | P75: Comercio al por menor de otros productos en establecimientos especializados | Q75: 1 | R75: 0 | S75: 0 | T75: 1 | U75: 0 | V75: 0 | W75: 0 | X75: 1 | AJ75: 0 | AK75: 0 | AL75: 54001 | AM75: CÚCUTA | AN75: 2 | AO75: 3 | AP75: Natural | AQ75: 54 | AR75: NORTE DE SANTANDER | AS75: Aprobado con subsidio | AT75: PEQUEÑA | AU75: 1630 | AV75: INDUSTRIAS MANUFACTURERAS | AW75: C | AX75: Fabricación de partes y piezas de madera, de carpintería y ebanistería para la construcción | AY75: Transformación de la madera y fabricación de productos de madera y de corcho, excepto muebles; fabricación de artículos de cestería y espartería | AZ75: 0 | BA75: 2 | BB75: 0 | BC75: 2 | BD75: 0 | BE75: 0 | BF75: 2 | BG75: 0 | BT75: 5212 | BU75: 10 | BV75: 76248 | BW75: 3
C76: 5001 | D76: MEDELLÍN | E76: 2 | F76: 0 | G76: Natural | H76: 5 | I76: ANTIOQUIA | J76: Aprobado con subsidio | K76: MICRO | L76: 3110 | M76: INDUSTRIAS MANUFACTURERAS | N76: C | O76: Fabricación de muebles | P76: Fabricación de muebles, colchones y somieres | Q76: 1 | R76: 1 | S76: 0 | T76: 2 | U76: 0 | V76: 0 | W76: 2 | X76: 0 | AJ76: 0 | AK76: 0 | AL76: 54001 | AM76: CÚCUTA | AN76: 0 | AO76: 0 | AP76: Natural | AQ76: 54 | AR76: NORTE DE SANTANDER | AS76: 0 | AT76: MICRO | AU76: 1313 | AV76: INDUSTRIAS MANUFACTURERAS | AW76: C | AX76: Preparación, hilatura, tejeduría y acabado de productos textiles | AY76: Fabricación de productos textiles | AZ76: 0 | BA76: 0 | BB76: 0 | BC76: 0 | BD76: 0 | BE76: 0 | BF76: 0 | BG76: 0 | BT76: 5697 | BU76: 16 | BV76: 25269 | BW76: 3
C77: 5209 | D77: CONCORDIA | E77: 0 | F77: 0 | G77: Natural | H77: 5 | I77: ANTIOQUIA | J77: 0 | K77: MICRO | L77: 123 | M77: AGRICULTURA, GANADERÍA, CAZA, SILVICULTURA Y PESCA | N77: A | O77: Cultivos agrícolas permanentes | P77: Cultivos agrícolas permanentes | Q77: 0 | R77: 0 | S77: 0 | T77: 0 | U77: 0 | V77: 0 | W77: 0 | X77: 0 | AJ77: 0 | AK77: 0 | AL77: 54001 | AM77: CÚCUTA | AN77: 0 | AO77: 0 | AP77: Natural | AQ77: 54 | AR77: NORTE DE SANTANDER | AS77: 0 | AT77: MICRO | AU77: 3313 | AV77: INDUSTRIAS MANUFACTURERAS | AW77: C | AX77: Mantenimiento y reparación especializado de productos elaborados en metal y de maquinaria y equipo | AY77: Instalación, mantenimiento y reparación especializado de maquinaria y equipo | AZ77: 0 | BA77: 0 | BB77: 0 | BC77: 0 | BD77: 0 | BE77: 0 | BF77: 0 | BG77: 0 | BT77: 25175 | BU77: 6 | BV77: 86001 | BW77: 3
C78: 5001 | D78: MEDELLÍN | E78: 0 | F78: 0 | G78: Natural | H78: 5 | I78: ANTIOQUIA | J78: 0 | K78: MICRO | L78: 4731 | M78: COMERCIO AL POR MAYOR Y AL POR MENOR; REPARACIÓN DE VEHÍCULOS AUTOMOTORES Y MOTOCICLETAS | N78: G | O78: Comercio al por menor de combustible, lubricantes, aditivos y productos de limpieza para automotores, en establecimientos especializados | P78: Comercio al por menor de combustible, lubricantes, aditivos y productos de limpieza para automotores, en establecimientos especializados | Q78: 0 | R78: 0 | S78: 0 | T78: 0 | U78: 0 | V78: 0 | W78: 0 | X78: 0 | AJ78: 0 | AK78: 0 | AL78: 68307 | AM78: GIRÓN | AN78: 0 | AO78: 0 | AP78: Natural | AQ78: 68 | AR78: SANTANDER | AS78: 0 | AT78: MICRO | AU78: 2511 | AV78: INDUSTRIAS MANUFACTURERAS | AW78: C | AX78: Fabricación de productos metálicos para uso estructural, tanques, depósitos y generadores de vapor. | AY78: Fabricación de productos elaborados de metal, excepto maquinaria y equipo | AZ78: 0 | BA78: 0 | BB78: 0 | BC78: 0 | BD78: 0 | BE78: 0 | BF78: 0 | BG78: 0 | BT78: 25123 | BU78: 1 | BV78: 5607 | BW78: 3
C79: 5697 | D79: EL SANTUARIO | E79: 1 | F79: 1 | G79: Natural | H79: 5 | I79: ANTIOQUIA | J79: Aprobado con subsidio | K79: MICRO | L79: 4773 | M79: COMERCIO AL POR MAYOR Y AL POR MENOR; REPARACIÓN DE VEHÍCULOS AUTOMOTORES Y MOTOCICLETAS | N79: G | O79: Comercio al por menor de otros productos en establecimientos especializados | P79: Comercio al por menor de otros productos en establecimientos especializados | Q79: 1 | R79: 0 | S79: 0 | T79: 1 | U79: 0 | V79: 0 | W79: 1 | X79: 0 | AJ79: 0 | AK79: 0 | AL79: 68081 | AM79: BARRANCABERMEJA | AN79: 1 | AO79: 0 | AP79: Natural | AQ79: 68 | AR79: SANTANDER | AS79: Aprobado con subsidio | AT79: MICRO | AU79: 3311 | AV79: INDUSTRIAS MANUFACTURERAS | AW79: C | AX79: Mantenimiento y reparación especializado de productos elaborados en metal y de maquinaria y equipo | AY79: Instalación, mantenimiento y reparación especializado de maquinaria y equipo | AZ79: 0 | BA79: 1 | BB79: 0 | BC79: 1 | BD79: 0 | BE79: 0 | BF79: 1 | BG79: 0 | BT79: 15542 | BU79: 1 | BV79: 19845 | BW79: 3
C80: 5001 | D80: MEDELLÍN | E80: 0 | F80: 0 | G80: Natural | H80: 5 | I80: ANTIOQUIA | J80: 0 | K80: PEQUEÑA | L80: 722 | M80: EXPLOTACIÓN DE MINAS Y CANTERAS | N80: B | O80: Extracción de minerales metalíferos no ferrosos | P80: Extracción de minerales metalíferos no ferrosos | Q80: 0 | R80: 0 | S80: 0 | T80: 0 | U80: 0 | V80: 0 | W80: 0 | X80: 0 | AJ80: 0 | AK80: 0 | AL80: 68001 | AM80: BUCARAMANGA | AN80: 1 | AO80: 1 | AP80: Natural | AQ80: 68 | AR80: SANTANDER | AS80: Aprobado con subsidio | AT80: MICRO | AU80: 1410 | AV80: INDUSTRIAS MANUFACTURERAS | AW80: C | AX80: Confección de prendas de vestir, excepto prendas de piel | AY80: Confección de prendas de vestir | AZ80: 1 | BA80: 0 | BB80: 0 | BC80: 0 | BD80: 1 | BE80: 0 | BF80: 1 | BG80: 0 | BT80: 47001 | BU80: 13 | BV80: 17873 | BW80: 3
C81: 5001 | D81: MEDELLÍN | E81: 0 | F81: 0 | G81: Natural | H81: 5 | I81: ANTIOQUIA | J81: 0 | K81: PEQUEÑA | L81: 141 | M81: AGRICULTURA, GANADERÍA, CAZA, SILVICULTURA Y PESCA | N81: A | O81: Ganadería | P81: Ganadería | Q81: 0 | R81: 0 | S81: 0 | T81: 0 | U81: 0 | V81: 0 | W81: 0 | X81: 0 | AJ81: 0 | AK81: 0 | AL81: 68001 | AM81: BUCARAMANGA | AN81: 1 | AO81: 2 | AP81: Natural | AQ81: 68 | AR81: SANTANDER | AS81: Aprobado con subsidio | AT81: MICRO | AU81: 1410 | AV81: INDUSTRIAS MANUFACTURERAS | AW81: C | AX81: Confección de prendas de vestir, excepto prendas de piel | AY81: Confección de prendas de vestir | AZ81: 1 | BA81: 0 | BB81: 0 | BC81: 1 | BD81: 0 | BE81: 0 | BF81: 1 | BG81: 0 | BT81: 54874 | BU81: 5 | BV81: 25769 | BW81: 3
C82: 11001 | D82: BOGOTÁ, D.C. | E82: 1 | F82: 1 | G82: Natural | H82: 11 | I82: BOGOTÁ, D.C. | J82: Aprobado con subsidio | K82: MICRO | L82: 4652 | M82: COMERCIO AL POR MAYOR Y AL POR MENOR; REPARACIÓN DE VEHÍCULOS AUTOMOTORES Y MOTOCICLETAS | N82: G | O82: Comercio al por mayor de maquinaria y equipo | P82: Comercio al por mayor de maquinaria y equipo | Q82: 0 | R82: 1 | S82: 0 | T82: 1 | U82: 0 | V82: 0 | W82: 1 | X82: 0 | AJ82: 0 | AK82: 0 | AL82: 50006 | AM82: ACACÍAS | AN82: 0 | AO82: 0 | AP82: Natural | AQ82: 50 | AR82: META | AS82: 0 | AT82: PEQUEÑA | AU82: 3110 | AV82: INDUSTRIAS MANUFACTURERAS | AW82: C | AX82: Fabricación de muebles | AY82: Fabricación de muebles, colchones y somieres | AZ82: 0 | BA82: 0 | BB82: 0 | BC82: 0 | BD82: 0 | BE82: 0 | BF82: 0 | BG82: 0 | BT82: 68276 | BU82: 16 | BV82: 19573 | BW82: 3
C83: 54001 | D83: CÚCUTA | E83: 2 | F83: 0 | G83: Natural | H83: 54 | I83: NORTE DE SANTANDER | J83: Aprobado con subsidio | K83: PEQUEÑA | L83: 4631 | M83: COMERCIO AL POR MAYOR Y AL POR MENOR; REPARACIÓN DE VEHÍCULOS AUTOMOTORES Y MOTOCICLETAS | N83: G | O83: Comercio al por mayor de alimentos, bebidas y tabaco | P83: Comercio al por mayor de alimentos, bebidas y tabaco | Q83: 0 | R83: 2 | S83: 0 | T83: 2 | U83: 0 | V83: 0 | W83: 2 | X83: 0 | AJ83: 0 | AK83: 0 | AL83: 11001 | AM83: BOGOTÁ, D.C. | AN83: 0 | AO83: 0 | AP83: Natural | AQ83: 11 | AR83: BOGOTÁ, D.C. | AS83: 0 | AT83: PEQUEÑA | AU83: 1410 | AV83: INDUSTRIAS MANUFACTURERAS | AW83: C | AX83: Confección de prendas de vestir, excepto prendas de piel | AY83: Confección de prendas de vestir | AZ83: 0 | BA83: 0 | BB83: 0 | BC83: 0 | BD83: 0 | BE83: 0 | BF83: 0 | BG83: 0 | BT83: 68679 | BU83: 4 | BV83: 25875 | BW83: 2
C84: 5001 | D84: MEDELLÍN | E84: 1 | F84: 2 | G84: Natural | H84: 5 | I84: ANTIOQUIA | J84: Aprobado con subsidio | K84: MICRO | L84: 6810 | M84: ACTIVIDADES INMOBILIARIAS | N84: L | O84: Actividades inmobiliarias realizadas con bienes propios o arrendados | P84: Actividades inmobiliarias realizadas con bienes propios o arrendados | Q84: 0 | R84: 1 | S84: 0 | T84: 0 | U84: 0 | V84: 1 | W84: 1 | X84: 0 | AJ84: 0 | AK84: 0 | AL84: 68001 | AM84: BUCARAMANGA | AN84: 1 | AO84: 0 | AP84: Natural | AQ84: 68 | AR84: SANTANDER | AS84: Aprobado con subsidio | AT84: MICRO | AU84: 3110 | AV84: INDUSTRIAS MANUFACTURERAS | AW84: C | AX84: Fabricación de muebles | AY84: Fabricación de muebles, colchones y somieres | AZ84: 0 | BA84: 1 | BB84: 0 | BC84: 0 | BD84: 0 | BE84: 1 | BF84: 1 | BG84: 0 | BT84: 76520 | BU84: 35 | BV84: 68861 | BW84: 2
C85: 15667 | D85: SAN LUIS DE GACENO | E85: 0 | F85: 0 | G85: Natural | H85: 15 | I85: BOYACÁ | J85: 0 | K85: MICRO | L85: 4711 | M85: COMERCIO AL POR MAYOR Y AL POR MENOR; REPARACIÓN DE VEHÍCULOS AUTOMOTORES Y MOTOCICLETAS | N85: G | O85: Comercio al por menor en establecimientos no especializados | P85: Comercio al por menor en establecimientos no especializados | Q85: 0 | R85: 0 | S85: 0 | T85: 0 | U85: 0 | V85: 0 | W85: 0 | X85: 0 | AJ85: 0 | AK85: 0 | AL85: 76834 | AM85: TULUÁ | AN85: 0 | AO85: 0 | AP85: Natural | AQ85: 76 | AR85: VALLE DEL CAUCA | AS85: 0 | AT85: PEQUEÑA | AU85: 3110 | AV85: INDUSTRIAS MANUFACTURERAS | AW85: C | AX85: Fabricación de muebles | AY85: Fabricación de muebles, colchones y somieres | AZ85: 0 | BA85: 0 | BB85: 0 | BC85: 0 | BD85: 0 | BE85: 0 | BF85: 0 | BG85: 0 | BT85: 5079 | BU85: 6 | BV85: 18753 | BW85: 2
C86: 15759 | D86: SOGAMOSO | E86: 4 | F86: 4 | G86: Natural | H86: 15 | I86: BOYACÁ | J86: Aprobado con subsidio | K86: MICRO | L86: 8512 | M86: EDUCACIÓN | N86: P | O86: Educación de la primera infancia, preescolar y básica primaria | P86: Educación de la primera infancia, preescolar y básica primaria | Q86: 4 | R86: 0 | S86: 0 | T86: 1 | U86: 3 | V86: 0 | W86: 4 | X86: 0 | AJ86: 0 | AK86: 0 | AL86: 76670 | AM86: SAN PEDRO | AN86: 7 | AO86: 4 | AP86: Natural | AQ86: 76 | AR86: VALLE DEL CAUCA | AS86: Aprobado con subsidio | AT86: PEQUEÑA | AU86: 1620 | AV86: INDUSTRIAS MANUFACTURERAS | AW86: C | AX86: Fabricación de hojas de madera para enchapado; fabricación de tableros contrachapados, tableros laminados, tableros de partículas y otros tableros y paneles | AY86: Transformación de la madera y fabricación de productos de madera y de corcho, excepto muebles; fabricación de artículos de cestería y espartería | AZ86: 5 | BA86: 2 | BB86: 0 | BC86: 2 | BD86: 4 | BE86: 1 | BF86: 7 | BG86: 0 | BT86: 5664 | BU86: 2 | BV86: 66682 | BW86: 2
C87: 15176 | D87: CHIQUINQUIRÁ | E87: 2 | F87: 5 | G87: Natural | H87: 15 | I87: BOYACÁ | J87: Aprobado con subsidio | K87: MICRO | L87: 1081 | M87: INDUSTRIAS MANUFACTURERAS | N87: C | O87: Elaboración de otros productos alimenticios | P87: Elaboración de productos alimenticios | Q87: 1 | R87: 1 | S87: 0 | T87: 2 | U87: 0 | V87: 0 | W87: 2 | X87: 0 | AJ87: 0 | AK87: 0 | AL87: 5001 | AM87: MEDELLÍN | AN87: 12 | AO87: 31 | AP87: Natural | AQ87: 5 | AR87: ANTIOQUIA | AS87: Aprobado con subsidio | AT87: PEQUEÑA | AU87: 1410 | AV87: INDUSTRIAS MANUFACTURERAS | AW87: C | AX87: Confección de prendas de vestir, excepto prendas de piel | AY87: Confección de prendas de vestir | AZ87: 7 | BA87: 5 | BB87: 0 | BC87: 0 | BD87: 7 | BE87: 5 | BF87: 12 | BG87: 0 | BT87: 5308 | BU87: 12 | BV87: 50006 | BW87: 2
C88: 15001 | D88: TUNJA | E88: 0 | F88: 0 | G88: Natural | H88: 15 | I88: BOYACÁ | J88: 0 | K88: MICRO | L88: 4721 | M88: COMERCIO AL POR MAYOR Y AL POR MENOR; REPARACIÓN DE VEHÍCULOS AUTOMOTORES Y MOTOCICLETAS | N88: G | O88: Comercio al por menor de alimentos (víveres en general), bebidas y tabaco, en establecimientos especializados | P88: Comercio al por menor de alimentos (víveres en general), bebidas y tabaco, en establecimientos especializados | Q88: 0 | R88: 0 | S88: 0 | T88: 0 | U88: 0 | V88: 0 | W88: 0 | X88: 0 | AJ88: 0 | AK88: 0 | AL88: 5001 | AM88: MEDELLÍN | AN88: 0 | AO88: 0 | AP88: Natural | AQ88: 5 | AR88: ANTIOQUIA | AS88: 0 | AT88: PEQUEÑA | AU88: 1709 | AV88: INDUSTRIAS MANUFACTURERAS | AW88: C | AX88: Fabricación de papel, cartón y productos de papel y cartón | AY88: Fabricación de papel, cartón y productos de papel y cartón | AZ88: 0 | BA88: 0 | BB88: 0 | BC88: 0 | BD88: 0 | BE88: 0 | BF88: 0 | BG88: 0 | BT88: 5440 | BU88: 14 | BV88: 5148 | BW88: 2
C89: 15238 | D89: DUITAMA | E89: 1 | F89: 1 | G89: Natural | H89: 15 | I89: BOYACÁ | J89: Aprobado con subsidio | K89: MICRO | L89: 4923 | M89: TRANSPORTE Y ALMACENAMIENTO | N89: H | O89: Transporte terrestre publico automotor | P89: Transporte terrestre publico automotor | Q89: 0 | R89: 1 | S89: 0 | T89: 1 | U89: 0 | V89: 0 | W89: 1 | X89: 0 | AJ89: 0 | AK89: 0 | AL89: 5360 | AM89: ITAGUI | AN89: 7 | AO89: 25 | AP89: Natural | AQ89: 5 | AR89: ANTIOQUIA | AS89: Aprobado con subsidio | AT89: MEDIANA | AU89: 1011 | AV89: INDUSTRIAS MANUFACTURERAS | AW89: C | AX89: Procesamiento y conservación de carne, pescado, crustáceos y moluscos | AY89: Elaboración de productos alimenticios | AZ89: 3 | BA89: 4 | BB89: 0 | BC89: 7 | BD89: 0 | BE89: 0 | BF89: 7 | BG89: 0 | BT89: 63130 | BU89: 2 | BV89: 5045 | BW89: 2
C90: 85001 | D90: YOPAL | E90: 1 | F90: 2 | G90: Natural | H90: 85 | I90: CASANARE | J90: Aprobado con subsidio | K90: MICRO | L90: 4542 | M90: COMERCIO AL POR MAYOR Y AL POR MENOR; REPARACIÓN DE VEHÍCULOS AUTOMOTORES Y MOTOCICLETAS | N90: G | O90: Comercio, mantenimiento y reparación de motocicletas y de sus partes, piezas y accesorios | P90: Comercio, mantenimiento y reparación de motocicletas y de sus partes, piezas y accesorios | Q90: 1 | R90: 0 | S90: 0 | T90: 1 | U90: 0 | V90: 0 | W90: 1 | X90: 0 | AJ90: 0 | AK90: 0 | AL90: 5001 | AM90: MEDELLÍN | AN90: 0 | AO90: 0 | AP90: Natural | AQ90: 5 | AR90: ANTIOQUIA | AS90: 0 | AT90: MICRO | AU90: 1089 | AV90: INDUSTRIAS MANUFACTURERAS | AW90: C | AX90: Elaboración de otros productos alimenticios | AY90: Elaboración de productos alimenticios | AZ90: 0 | BA90: 0 | BB90: 0 | BC90: 0 | BD90: 0 | BE90: 0 | BF90: 0 | BG90: 0 | BT90: 19001 | BU90: 4 | BV90: 76109 | BW90: 2
C91: 15537 | D91: PAZ DE RÍO | E91: 2 | F91: 2 | G91: Natural | H91: 15 | I91: BOYACÁ | J91: Aprobado con subsidio | K91: PEQUEÑA | L91: 4923 | M91: TRANSPORTE Y ALMACENAMIENTO | N91: H | O91: Transporte terrestre publico automotor | P91: Transporte terrestre publico automotor | Q91: 1 | R91: 1 | S91: 0 | T91: 2 | U91: 0 | V91: 0 | W91: 2 | X91: 0 | AJ91: 0 | AK91: 0 | AL91: 5761 | AM91: SOPETRÁN | AN91: 0 | AO91: 0 | AP91: Natural | AQ91: 5 | AR91: ANTIOQUIA | AS91: 0 | AT91: MICRO | AU91: 1081 | AV91: INDUSTRIAS MANUFACTURERAS | AW91: C | AX91: Elaboración de otros productos alimenticios | AY91: Elaboración de productos alimenticios | AZ91: 0 | BA91: 0 | BB91: 0 | BC91: 0 | BD91: 0 | BE91: 0 | BF91: 0 | BG91: 0 | BT91: 5321 | BU91: 1 | BV91: 5642 | BW91: 2
C92: 11001 | D92: BOGOTÁ, D.C. | E92: 1 | F92: 1 | G92: Natural | H92: 11 | I92: BOGOTÁ, D.C. | J92: Aprobado con subsidio | K92: MICRO | L92: 4663 | M92: COMERCIO AL POR MAYOR Y AL POR MENOR; REPARACIÓN DE VEHÍCULOS AUTOMOTORES Y MOTOCICLETAS | N92: G | O92: Comercio al por mayor especializado de otros productos | P92: Comercio al por mayor especializado de otros productos | Q92: 0 | R92: 1 | S92: 0 | T92: 1 | U92: 0 | V92: 0 | W92: 1 | X92: 0 | AJ92: 0 | AK92: 0 | AL92: 5615 | AM92: RIONEGRO | AN92: 0 | AO92: 0 | AP92: Natural | AQ92: 5 | AR92: ANTIOQUIA | AS92: 0 | AT92: MICRO | AU92: 1610 | AV92: INDUSTRIAS MANUFACTURERAS | AW92: C | AX92: Aserrado, acepillado e impregnación de la madera | AY92: Transformación de la madera y fabricación de productos de madera y de corcho, excepto muebles; fabricación de artículos de cestería y espartería | AZ92: 0 | BA92: 0 | BB92: 0 | BC92: 0 | BD92: 0 | BE92: 0 | BF92: 0 | BG92: 0 | BT92: 41298 | BU92: 0 | BV92: 5664 | BW92: 2
C93: 11001 | D93: BOGOTÁ, D.C. | E93: 0 | F93: 0 | G93: Natural | H93: 11 | I93: BOGOTÁ, D.C. | J93: 0 | K93: PEQUEÑA | L93: 1410 | M93: INDUSTRIAS MANUFACTURERAS | N93: C | O93: Confección de prendas de vestir, excepto prendas de piel | P93: Confección de prendas de vestir | Q93: 0 | R93: 0 | S93: 0 | T93: 0 | U93: 0 | V93: 0 | W93: 0 | X93: 0 | AJ93: 0 | AK93: 0 | AL93: 5148 | AM93: EL CARMEN DE VIBORAL | AN93: 0 | AO93: 0 | AP93: Natural | AQ93: 5 | AR93: ANTIOQUIA | AS93: 0 | AT93: MICRO | AU93: 1630 | AV93: INDUSTRIAS MANUFACTURERAS | AW93: C | AX93: Fabricación de partes y piezas de madera, de carpintería y ebanistería para la construcción | AY93: Transformación de la madera y fabricación de productos de madera y de corcho, excepto muebles; fabricación de artículos de cestería y espartería | AZ93: 0 | BA93: 0 | BB93: 0 | BC93: 0 | BD93: 0 | BE93: 0 | BF93: 0 | BG93: 0 | BT93: 25286 | BU93: 24 | BV93: 63130 | BW93: 2
C94: 15753 | D94: SOATÁ | E94: 2 | F94: 1 | G94: Natural | H94: 15 | I94: BOYACÁ | J94: Aprobado con subsidio | K94: MICRO | L94: 4631 | M94: COMERCIO AL POR MAYOR Y AL POR MENOR; REPARACIÓN DE VEHÍCULOS AUTOMOTORES Y MOTOCICLETAS | N94: G | O94: Comercio al por mayor de alimentos, bebidas y tabaco | P94: Comercio al por mayor de alimentos, bebidas y tabaco | Q94: 0 | R94: 2 | S94: 0 | T94: 0 | U94: 0 | V94: 2 | W94: 2 | X94: 0 | AJ94: 0 | AK94: 0 | AL94: 19130 | AM94: CAJIBÍO | AN94: 2 | AO94: 10 | AP94: Natural | AQ94: 19 | AR94: CAUCA | AS94: Aprobado con subsidio | AT94: MICRO | AU94: 1610 | AV94: INDUSTRIAS MANUFACTURERAS | AW94: C | AX94: Aserrado, acepillado e impregnación de la madera | AY94: Transformación de la madera y fabricación de productos de madera y de corcho, excepto muebles; fabricación de artículos de cestería y espartería | AZ94: 0 | BA94: 2 | BB94: 0 | BC94: 2 | BD94: 0 | BE94: 0 | BF94: 2 | BG94: 0 | BT94: 70124 | BU94: 1 | BV94: 13836 | BW94: 2
C95: 54874 | D95: VILLA DEL ROSARIO | E95: 0 | F95: 0 | G95: Natural | H95: 54 | I95: NORTE DE SANTANDER | J95: 0 | K95: MICRO | L95: 5630 | M95: ALOJAMIENTO Y SERVICIOS DE COMIDA | N95: I | O95: Expendio de bebidas alcohólicas para el consumo dentro del establecimiento | P95: Expendio de bebidas alcohólicas para el consumo dentro del establecimiento | Q95: 0 | R95: 0 | S95: 0 | T95: 0 | U95: 0 | V95: 0 | W95: 0 | X95: 0 | AJ95: 0 | AK95: 0 | AL95: 5376 | AM95: LA CEJA | AN95: 1 | AO95: 2 | AP95: Natural | AQ95: 5 | AR95: ANTIOQUIA | AS95: Aprobado con subsidio | AT95: MICRO | AU95: 1610 | AV95: INDUSTRIAS MANUFACTURERAS | AW95: C | AX95: Aserrado, acepillado e impregnación de la madera | AY95: Transformación de la madera y fabricación de productos de madera y de corcho, excepto muebles; fabricación de artículos de cestería y espartería | AZ95: 0 | BA95: 1 | BB95: 0 | BC95: 1 | BD95: 0 | BE95: 0 | BF95: 1 | BG95: 0 | BT95: 52227 | BU95: 1 | BV95: 5400 | BW95: 2
C96: 11001 | D96: BOGOTÁ, D.C. | E96: 0 | F96: 0 | G96: Natural | H96: 11 | I96: BOGOTÁ, D.C. | J96: 0 | K96: MICRO | L96: 4642 | M96: COMERCIO AL POR MAYOR Y AL POR MENOR; REPARACIÓN DE VEHÍCULOS AUTOMOTORES Y MOTOCICLETAS | N96: G | O96: Comercio al por mayor de artículos y enseres domésticos (incluidas prendas de vestir) | P96: Comercio al por mayor de artículos y enseres domésticos (incluidas prendas de vestir) | Q96: 0 | R96: 0 | S96: 0 | T96: 0 | U96: 0 | V96: 0 | W96: 0 | X96: 0 | AJ96: 0 | AK96: 0 | AL96: 73001 | AM96: IBAGUÉ | AN96: 13 | AO96: 2 | AP96: Natural | AQ96: 73 | AR96: TOLIMA | AS96: Aprobado con subsidio | AT96: MICRO | AU96: 1410 | AV96: INDUSTRIAS MANUFACTURERAS | AW96: C | AX96: Confección de prendas de vestir, excepto prendas de piel | AY96: Confección de prendas de vestir | AZ96: 13 | BA96: 0 | BB96: 0 | BC96: 5 | BD96: 8 | BE96: 0 | BF96: 13 | BG96: 0 | BT96: 86001 | BU96: 3 | BV96: 8634 | BW96: 2
C97: 11001 | D97: BOGOTÁ, D.C. | E97: 2 | F97: 4 | G97: Natural | H97: 11 | I97: BOGOTÁ, D.C. | J97: Aprobado con subsidio | K97: MICRO | L97: 1081 | M97: INDUSTRIAS MANUFACTURERAS | N97: C | O97: Elaboración de otros productos alimenticios | P97: Elaboración de productos alimenticios | Q97: 1 | R97: 1 | S97: 0 | T97: 2 | U97: 0 | V97: 0 | W97: 2 | X97: 0 | AJ97: 0 | AK97: 0 | AL97: 54001 | AM97: CÚCUTA | AN97: 0 | AO97: 0 | AP97: Natural | AQ97: 54 | AR97: NORTE DE SANTANDER | AS97: 0 | AT97: MICRO | AU97: 1410 | AV97: INDUSTRIAS MANUFACTURERAS | AW97: C | AX97: Confección de prendas de vestir, excepto prendas de piel | AY97: Confección de prendas de vestir | AZ97: 0 | BA97: 0 | BB97: 0 | BC97: 0 | BD97: 0 | BE97: 0 | BF97: 0 | BG97: 0 | BT97: 5380 | BU97: 53 | BV97: 73268 | BW97: 2
C98: 11001 | D98: BOGOTÁ, D.C. | E98: 5 | F98: 2 | G98: Natural | H98: 11 | I98: BOGOTÁ, D.C. | J98: Aprobado con subsidio | K98: MICRO | L98: 4923 | M98: TRANSPORTE Y ALMACENAMIENTO | N98: H | O98: Transporte terrestre publico automotor | P98: Transporte terrestre publico automotor | Q98: 1 | R98: 4 | S98: 0 | T98: 2 | U98: 1 | V98: 2 | W98: 5 | X98: 0 | AJ98: 0 | AK98: 0 | AL98: 76147 | AM98: CARTAGO | AN98: 0 | AO98: 0 | AP98: Natural | AQ98: 76 | AR98: VALLE DEL CAUCA | AS98: 0 | AT98: MEDIANA | AU98: 1410 | AV98: INDUSTRIAS MANUFACTURERAS | AW98: C | AX98: Confección de prendas de vestir, excepto prendas de piel | AY98: Confección de prendas de vestir | AZ98: 0 | BA98: 0 | BB98: 0 | BC98: 0 | BD98: 0 | BE98: 0 | BF98: 0 | BG98: 0 | BT98: 25745 | BU98: 1 | BV98: 17541 | BW98: 2
C99: 85001 | D99: YOPAL | E99: 0 | F99: 0 | G99: Natural | H99: 85 | I99: CASANARE | J99: 0 | K99: MICRO | L99: 811 | M99: EXPLOTACIÓN DE MINAS Y CANTERAS | N99: B | O99: Extracción de piedra, arena, arcillas, cal, yeso, caolín, bentonitas y similares | P99: Extracción de piedra, arena, arcillas, cal, yeso, caolín, bentonitas y similares | Q99: 0 | R99: 0 | S99: 0 | T99: 0 | U99: 0 | V99: 0 | W99: 0 | X99: 0 | AJ99: 0 | AK99: 0 | AL99: 66170 | AM99: DOSQUEBRADAS | AN99: 3 | AO99: 8 | AP99: Natural | AQ99: 66 | AR99: RISARALDA | AS99: Aprobado con subsidio | AT99: PEQUEÑA | AU99: 2511 | AV99: INDUSTRIAS MANUFACTURERAS | AW99: C | AX99: Fabricación de productos metálicos para uso estructural, tanques, depósitos y generadores de vapor. | AY99: Fabricación de productos elaborados de metal, excepto maquinaria y equipo | AZ99: 1 | BA99: 2 | BB99: 0 | BC99: 2 | BD99: 1 | BE99: 0 | BF99: 3 | BG99: 0 | BT99: 25430 | BU99: 15 | BV99: 19300 | BW99: 2
C100: 11001 | D100: BOGOTÁ, D.C. | E100: 0 | F100: 0 | G100: Natural | H100: 11 | I100: BOGOTÁ, D.C. | J100: 0 | K100: MICRO | L100: 2592 | M100: INDUSTRIAS MANUFACTURERAS | N100: C | O100: Fabricación de otros productos elaborados de metal y actividades de servicios relacionadas con el trabajo de metales | P100: Fabricación de productos elaborados de metal, excepto maquinaria y equipo | Q100: 0 | R100: 0 | S100: 0 | T100: 0 | U100: 0 | V100: 0 | W100: 0 | X100: 0 | AJ100: 0 | AK100: 0 | AL100: 76001 | AM100: CALI | AN100: 1 | AO100: 2 | AP100: Natural | AQ100: 76 | AR100: VALLE DEL CAUCA | AS100: Aprobado con subsidio | AT100: MICRO | AU100: 1522 | AV100: INDUSTRIAS MANUFACTURERAS | AW100: C | AX100: Fabricación de calzado | AY100: Curtido y recurtido de cueros; fabricación de calzado; fabricación de artículos de viaje, maletas, bolsos de mano y artículos similares, y fabricación de artículos de talabartería y guarnicionería; adobo y teñido de pieles | AZ100: 1 | BA100: 0 | BB100: 0 | BC100: 1 | BD100: 0 | BE100: 0 | BF100: 1 | BG100: 0 | BT100: 13836 | BU100: 2 | BV100: 20621 | BW100: 2
C101: 11001 | D101: BOGOTÁ, D.C. | E101: 5 | F101: 0 | G101: Natural | H101: 11 | I101: BOGOTÁ, D.C. | J101: Aprobado con subsidio | K101: MICRO | L101: 5611 | M101: ALOJAMIENTO Y SERVICIOS DE COMIDA | N101: I | O101: Actividades de restaurantes, cafeterías y servicio móvil de comidas | P101: Actividades de restaurantes, cafeterías y servicio móvil de comidas | Q101: 2 | R101: 3 | S101: 0 | T101: 0 | U101: 2 | V101: 3 | W101: 4 | X101: 1 | AJ101: 0 | AK101: 0 | AL101: 76001 | AM101: CALI | AN101: 0 | AO101: 0 | AP101: Natural | AQ101: 76 | AR101: VALLE DEL CAUCA | AS101: 0 | AT101: PEQUEÑA | AU101: 3311 | AV101: INDUSTRIAS MANUFACTURERAS | AW101: C | AX101: Mantenimiento y reparación especializado de productos elaborados en metal y de maquinaria y equipo | AY101: Instalación, mantenimiento y reparación especializado de maquinaria y equipo | AZ101: 0 | BA101: 0 | BB101: 0 | BC101: 0 | BD101: 0 | BE101: 0 | BF101: 0 | BG101: 0 | BT101: 76111 | BU101: 5 | BV101: 25740 | BW101: 2
C102: 5266 | D102: ENVIGADO | E102: 2 | F102: 0 | G102: Natural | H102: 5 | I102: ANTIOQUIA | J102: Aprobado con subsidio | K102: MICRO | L102: 4541 | M102: COMERCIO AL POR MAYOR Y AL POR MENOR; REPARACIÓN DE VEHÍCULOS AUTOMOTORES Y MOTOCICLETAS | N102: G | O102: Comercio, mantenimiento y reparación de motocicletas y de sus partes, piezas y accesorios | P102: Comercio, mantenimiento y reparación de motocicletas y de sus partes, piezas y accesorios | Q102: 2 | R102: 0 | S102: 0 | T102: 2 | U102: 0 | V102: 0 | W102: 2 | X102: 0 | AJ102: 0 | AK102: 0 | AL102: 76001 | AM102: CALI | AN102: 1 | AO102: 0 | AP102: Natural | AQ102: 76 | AR102: VALLE DEL CAUCA | AS102: Aprobado con subsidio | AT102: MICRO | AU102: 1811 | AV102: INDUSTRIAS MANUFACTURERAS | AW102: C | AX102: Actividades de impresión y actividades de servicios relacionados con la impresión | AY102: Actividades de impresión y de producción de copias a partir de grabaciones originales | AZ102: 0 | BA102: 1 | BB102: 0 | BC102: 1 | BD102: 0 | BE102: 0 | BF102: 1 | BG102: 0 | BT102: 8296 | BU102: 6 | BV102: 25743 | BW102: 2
C103: 76001 | D103: CALI | E103: 0 | F103: 0 | G103: Natural | H103: 76 | I103: VALLE DEL CAUCA | J103: 0 | K103: MICRO | L103: 4530 | M103: COMERCIO AL POR MAYOR Y AL POR MENOR; REPARACIÓN DE VEHÍCULOS AUTOMOTORES Y MOTOCICLETAS | N103: G | O103: Comercio de partes, piezas (autopartes) y accesorios (lujos) para vehículos automotores | P103: Comercio de partes, piezas (autopartes) y accesorios (lujos) para vehículos automotores | Q103: 0 | R103: 0 | S103: 0 | T103: 0 | U103: 0 | V103: 0 | W103: 0 | X103: 0 | AJ103: 0 | AK103: 0 | AL103: 76001 | AM103: CALI | AN103: 3 | AO103: 1 | AP103: Natural | AQ103: 76 | AR103: VALLE DEL CAUCA | AS103: Aprobado con subsidio | AT103: MICRO | AU103: 2023 | AV103: INDUSTRIAS MANUFACTURERAS | AW103: C | AX103: Fabricación de otros productos químicos | AY103: Fabricación de sustancias y productos químicos | AZ103: 3 | BA103: 0 | BB103: 0 | BC103: 3 | BD103: 0 | BE103: 0 | BF103: 3 | BG103: 0 | BT103: 13001 | BU103: 27 | BV103: 50226 | BW103: 2
C104: 66001 | D104: PEREIRA | E104: 0 | F104: 0 | G104: Natural | H104: 66 | I104: RISARALDA | J104: 0 | K104: MICRO | L104: 5530 | M104: ALOJAMIENTO Y SERVICIOS DE COMIDA | N104: I | O104: Servicios por horas | P104: Servicios por horas | Q104: 0 | R104: 0 | S104: 0 | T104: 0 | U104: 0 | V104: 0 | W104: 0 | X104: 0 | AJ104: 0 | AK104: 0 | AL104: 76001 | AM104: CALI | AN104: 2 | AO104: 3 | AP104: Natural | AQ104: 76 | AR104: VALLE DEL CAUCA | AS104: Aprobado con subsidio | AT104: MICRO | AU104: 1081 | AV104: INDUSTRIAS MANUFACTURERAS | AW104: C | AX104: Elaboración de otros productos alimenticios | AY104: Elaboración de productos alimenticios | AZ104: 2 | BA104: 0 | BB104: 0 | BC104: 1 | BD104: 1 | BE104: 0 | BF104: 2 | BG104: 0 | BT104: 25799 | BU104: 6 | BV104: 15516 | BW104: 2
C105: 66001 | D105: PEREIRA | E105: 0 | F105: 0 | G105: Natural | H105: 66 | I105: RISARALDA | J105: 0 | K105: MICRO | L105: 121 | M105: AGRICULTURA, GANADERÍA, CAZA, SILVICULTURA Y PESCA | N105: A | O105: Cultivos agrícolas permanentes | P105: Cultivos agrícolas permanentes | Q105: 0 | R105: 0 | S105: 0 | T105: 0 | U105: 0 | V105: 0 | W105: 0 | X105: 0 | AJ105: 0 | AK105: 0 | AL105: 76001 | AM105: CALI | AN105: 1 | AO105: 0 | AP105: Natural | AQ105: 76 | AR105: VALLE DEL CAUCA | AS105: Aprobado con subsidio | AT105: MICRO | AU105: 2511 | AV105: INDUSTRIAS MANUFACTURERAS | AW105: C | AX105: Fabricación de productos metálicos para uso estructural, tanques, depósitos y generadores de vapor. | AY105: Fabricación de productos elaborados de metal, excepto maquinaria y equipo | AZ105: 0 | BA105: 1 | BB105: 0 | BC105: 1 | BD105: 0 | BE105: 0 | BF105: 1 | BG105: 0 | BT105: 25126 | BU105: 7 | BV105: 25183 | BW105: 2
C106: 66001 | D106: PEREIRA | E106: 3 | F106: 0 | G106: Natural | H106: 66 | I106: RISARALDA | J106: Aprobado con subsidio | K106: MICRO | L106: 4290 | M106: CONSTRUCCIÓN | N106: F | O106: Construcción de otras obras de ingeniería civil | P106: Construcción de otras obras de ingeniería civil | Q106: 1 | R106: 2 | S106: 0 | T106: 1 | U106: 1 | V106: 1 | W106: 3 | X106: 0 | AJ106: 0 | AK106: 0 | AL106: 76001 | AM106: CALI | AN106: 1 | AO106: 2 | AP106: Natural | AQ106: 76 | AR106: VALLE DEL CAUCA | AS106: Aprobado con subsidio | AT106: MICRO | AU106: 1521 | AV106: INDUSTRIAS MANUFACTURERAS | AW106: C | AX106: Fabricación de calzado | AY106: Curtido y recurtido de cueros; fabricación de calzado; fabricación de artículos de viaje, maletas, bolsos de mano y artículos similares, y fabricación de artículos de talabartería y guarnicionería; adobo y teñido de pieles | AZ106: 0 | BA106: 1 | BB106: 0 | BC106: 1 | BD106: 0 | BE106: 0 | BF106: 1 | BG106: 0 | BT106: 25817 | BU106: 18 | BV106: 76020 | BW106: 2
C107: 66001 | D107: PEREIRA | E107: 0 | F107: 0 | G107: Natural | H107: 66 | I107: RISARALDA | J107: 0 | K107: MICRO | L107: 4711 | M107: COMERCIO AL POR MAYOR Y AL POR MENOR; REPARACIÓN DE VEHÍCULOS AUTOMOTORES Y MOTOCICLETAS | N107: G | O107: Comercio al por menor en establecimientos no especializados | P107: Comercio al por menor en establecimientos no especializados | Q107: 0 | R107: 0 | S107: 0 | T107: 0 | U107: 0 | V107: 0 | W107: 0 | X107: 0 | AJ107: 0 | AK107: 0 | AL107: 76001 | AM107: CALI | AN107: 0 | AO107: 0 | AP107: Natural | AQ107: 76 | AR107: VALLE DEL CAUCA | AS107: 0 | AT107: MICRO | AU107: 1410 | AV107: INDUSTRIAS MANUFACTURERAS | AW107: C | AX107: Confección de prendas de vestir, excepto prendas de piel | AY107: Confección de prendas de vestir | AZ107: 0 | BA107: 0 | BB107: 0 | BC107: 0 | BD107: 0 | BE107: 0 | BF107: 0 | BG107: 0 | BT107: 8758 | BU107: 6 | BV107: 19142 | BW107: 2
C108: 66001 | D108: PEREIRA | E108: 1 | F108: 8 | G108: Natural | H108: 66 | I108: RISARALDA | J108: Aprobado con subsidio | K108: PEQUEÑA | L108: 4773 | M108: COMERCIO AL POR MAYOR Y AL POR MENOR; REPARACIÓN DE VEHÍCULOS AUTOMOTORES Y MOTOCICLETAS | N108: G | O108: Comercio al por menor de otros productos en establecimientos especializados | P108: Comercio al por menor de otros productos en establecimientos especializados | Q108: 0 | R108: 0 | S108: 1 | T108: 1 | U108: 0 | V108: 0 | W108: 0 | X108: 1 | AJ108: 0 | AK108: 0 | AL108: 66001 | AM108: PEREIRA | AN108: 4 | AO108: 2 | AP108: Natural | AQ108: 66 | AR108: RISARALDA | AS108: Aprobado con subsidio | AT108: MICRO | AU108: 1410 | AV108: INDUSTRIAS MANUFACTURERAS | AW108: C | AX108: Confección de prendas de vestir, excepto prendas de piel | AY108: Confección de prendas de vestir | AZ108: 2 | BA108: 2 | BB108: 0 | BC108: 2 | BD108: 2 | BE108: 0 | BF108: 4 | BG108: 0 | BT108: 5400 | BU108: 2 | BV108: 5138 | BW108: 2
C109: 63001 | D109: ARMENIA | E109: 0 | F109: 0 | G109: Natural | H109: 63 | I109: QUINDÍO | J109: 0 | K109: MICRO | L109: 5611 | M109: ALOJAMIENTO Y SERVICIOS DE COMIDA | N109: I | O109: Actividades de restaurantes, cafeterías y servicio móvil de comidas | P109: Actividades de restaurantes, cafeterías y servicio móvil de comidas | Q109: 0 | R109: 0 | S109: 0 | T109: 0 | U109: 0 | V109: 0 | W109: 0 | X109: 0 | AJ109: 0 | AK109: 0 | AL109: 76001 | AM109: CALI | AN109: 0 | AO109: 0 | AP109: Natural | AQ109: 76 | AR109: VALLE DEL CAUCA | AS109: 0 | AT109: MICRO | AU109: 1921 | AV109: INDUSTRIAS MANUFACTURERAS | AW109: C | AX109: Fabricación de productos de la refinación del petróleo | AY109: Coquización, fabricación de productos de la refinación del petróleo y actividad de mezcla de combustibles | AZ109: 0 | BA109: 0 | BB109: 0 | BC109: 0 | BD109: 0 | BE109: 0 | BF109: 0 | BG109: 0 | BT109: 76130 | BU109: 7 | BV109: 68655 | BW109: 2
C110: 63001 | D110: ARMENIA | E110: 0 | F110: 0 | G110: Natural | H110: 63 | I110: QUINDÍO | J110: 0 | K110: MICRO | L110: 8530 | M110: EDUCACIÓN | N110: P | O110: Establecimientos que combinan diferentes niveles de educación | P110: Establecimientos que combinan diferentes niveles de educación | Q110: 0 | R110: 0 | S110: 0 | T110: 0 | U110: 0 | V110: 0 | W110: 0 | X110: 0 | AJ110: 0 | AK110: 0 | AL110: 11001 | AM110: BOGOTÁ, D.C. | AN110: 0 | AO110: 0 | AP110: Natural | AQ110: 11 | AR110: BOGOTÁ, D.C. | AS110: 0 | AT110: PEQUEÑA | AU110: 2229 | AV110: INDUSTRIAS MANUFACTURERAS | AW110: C | AX110: Fabricación de productos de plástico | AY110: Fabricación de productos de caucho y de plástico | AZ110: 0 | BA110: 0 | BB110: 0 | BC110: 0 | BD110: 0 | BE110: 0 | BF110: 0 | BG110: 0 | BT110: 76364 | BU110: 6 | BV110: 15189 | BW110: 2
C111: 66170 | D111: DOSQUEBRADAS | E111: 1 | F111: 0 | G111: Natural | H111: 66 | I111: RISARALDA | J111: Aprobado con subsidio | K111: MICRO | L111: 4775 | M111: COMERCIO AL POR MAYOR Y AL POR MENOR; REPARACIÓN DE VEHÍCULOS AUTOMOTORES Y MOTOCICLETAS | N111: G | O111: Comercio al por menor de otros productos en establecimientos especializados | P111: Comercio al por menor de otros productos en establecimientos especializados | Q111: 0 | R111: 1 | S111: 0 | T111: 1 | U111: 0 | V111: 0 | W111: 1 | X111: 0 | AJ111: 0 | AK111: 0 | AL111: 25290 | AM111: FUSAGASUGÁ | AN111: 0 | AO111: 0 | AP111: Natural | AQ111: 25 | AR111: CUNDINAMARCA | AS111: 0 | AT111: MICRO | AU111: 3110 | AV111: INDUSTRIAS MANUFACTURERAS | AW111: C | AX111: Fabricación de muebles | AY111: Fabricación de muebles, colchones y somieres | AZ111: 0 | BA111: 0 | BB111: 0 | BC111: 0 | BD111: 0 | BE111: 0 | BF111: 0 | BG111: 0 | BT111: 25758 | BU111: 4 | BV111: 15176 | BW111: 1
C112: 66170 | D112: DOSQUEBRADAS | E112: 5 | F112: 4 | G112: Natural | H112: 66 | I112: RISARALDA | J112: Aprobado con subsidio | K112: PEQUEÑA | L112: 6910 | M112: ACTIVIDADES PROFESIONALES, CIENTÍFICAS Y TÉCNICAS | N112: M | O112: Actividades jurídicas | P112: Actividades jurídicas | Q112: 4 | R112: 1 | S112: 0 | T112: 3 | U112: 2 | V112: 0 | W112: 5 | X112: 0 | AJ112: 0 | AK112: 0 | AL112: 54001 | AM112: CÚCUTA | AN112: 2 | AO112: 0 | AP112: Natural | AQ112: 54 | AR112: NORTE DE SANTANDER | AS112: Aprobado con subsidio | AT112: PEQUEÑA | AU112: 3312 | AV112: INDUSTRIAS MANUFACTURERAS | AW112: C | AX112: Mantenimiento y reparación especializado de productos elaborados en metal y de maquinaria y equipo | AY112: Instalación, mantenimiento y reparación especializado de maquinaria y equipo | AZ112: 0 | BA112: 2 | BB112: 0 | BC112: 2 | BD112: 0 | BE112: 0 | BF112: 1 | BG112: 1 | BT112: 25473 | BU112: 25 | BV112: 18205 | BW112: 1
C113: 66001 | D113: PEREIRA | E113: 0 | F113: 0 | G113: Natural | H113: 66 | I113: RISARALDA | J113: 0 | K113: PEQUEÑA | L113: 4754 | M113: COMERCIO AL POR MAYOR Y AL POR MENOR; REPARACIÓN DE VEHÍCULOS AUTOMOTORES Y MOTOCICLETAS | N113: G | O113: Comercio al por menor de otros enseres domésticos en establecimientos especializados | P113: Comercio al por menor de otros enseres domésticos en establecimientos especializados | Q113: 0 | R113: 0 | S113: 0 | T113: 0 | U113: 0 | V113: 0 | W113: 0 | X113: 0 | AJ113: 0 | AK113: 0 | AL113: 11001 | AM113: BOGOTÁ, D.C. | AN113: 0 | AO113: 0 | AP113: Natural | AQ113: 11 | AR113: BOGOTÁ, D.C. | AS113: 0 | AT113: MICRO | AU113: 3110 | AV113: INDUSTRIAS MANUFACTURERAS | AW113: C | AX113: Fabricación de muebles | AY113: Fabricación de muebles, colchones y somieres | AZ113: 0 | BA113: 0 | BB113: 0 | BC113: 0 | BD113: 0 | BE113: 0 | BF113: 0 | BG113: 0 | BT113: 25214 | BU113: 43 | BV113: 52560 | BW113: 1
C114: 17777 | D114: SUPÍA | E114: 0 | F114: 0 | G114: Natural | H114: 17 | I114: CALDAS | J114: 0 | K114: PEQUEÑA | L114: 4759 | M114: COMERCIO AL POR MAYOR Y AL POR MENOR; REPARACIÓN DE VEHÍCULOS AUTOMOTORES Y MOTOCICLETAS | N114: G | O114: Comercio al por menor de otros enseres domésticos en establecimientos especializados | P114: Comercio al por menor de otros enseres domésticos en establecimientos especializados | Q114: 0 | R114: 0 | S114: 0 | T114: 0 | U114: 0 | V114: 0 | W114: 0 | X114: 0 | AJ114: 0 | AK114: 0 | AL114: 50001 | AM114: VILLAVICENCIO | AN114: 0 | AO114: 0 | AP114: Natural | AQ114: 50 | AR114: META | AS114: 0 | AT114: MICRO | AU114: 1104 | AV114: INDUSTRIAS MANUFACTURERAS | AW114: C | AX114: Elaboración de bebidas | AY114: Elaboración de bebidas | AZ114: 0 | BA114: 0 | BB114: 0 | BC114: 0 | BD114: 0 | BE114: 0 | BF114: 0 | BG114: 0 | BT114: 76100 | BU114: 0 | BV114: 85010 | BW114: 1
C115: 18205 | D115: CURILLO | E115: 2 | F115: 8 | G115: Natural | H115: 18 | I115: CAQUETÁ | J115: Aprobado con subsidio | K115: MICRO | L115: 1040 | M115: INDUSTRIAS MANUFACTURERAS | N115: C | O115: Elaboración de productos lácteos | P115: Elaboración de productos alimenticios | Q115: 0 | R115: 2 | S115: 0 | T115: 2 | U115: 0 | V115: 0 | W115: 2 | X115: 0 | AJ115: 0 | AK115: 0 | AL115: 50001 | AM115: VILLAVICENCIO | AN115: 12 | AO115: 2 | AP115: Natural | AQ115: 50 | AR115: META | AS115: Aprobado con subsidio | AT115: MICRO | AU115: 1081 | AV115: INDUSTRIAS MANUFACTURERAS | AW115: C | AX115: Elaboración de otros productos alimenticios | AY115: Elaboración de productos alimenticios | AZ115: 6 | BA115: 6 | BB115: 0 | BC115: 4 | BD115: 4 | BE115: 4 | BF115: 12 | BG115: 0 | BT115: 54498 | BU115: 0 | BV115: 5368 | BW115: 1
C116: 19001 | D116: POPAYÁN | E116: 3 | F116: 0 | G116: Natural | H116: 19 | I116: CAUCA | J116: Aprobado con subsidio | K116: MICRO | L116: 8559 | M116: EDUCACIÓN | N116: P | O116: Otros tipos de educación | P116: Otros tipos de educación | Q116: 1 | R116: 2 | S116: 0 | T116: 0 | U116: 1 | V116: 2 | W116: 3 | X116: 0 | AJ116: 0 | AK116: 0 | AL116: 50001 | AM116: VILLAVICENCIO | AN116: 0 | AO116: 0 | AP116: Natural | AQ116: 50 | AR116: META | AS116: 0 | AT116: MICRO | AU116: 1081 | AV116: INDUSTRIAS MANUFACTURERAS | AW116: C | AX116: Elaboración de otros productos alimenticios | AY116: Elaboración de productos alimenticios | AZ116: 0 | BA116: 0 | BB116: 0 | BC116: 0 | BD116: 0 | BE116: 0 | BF116: 0 | BG116: 0 | BT116: 68406 | BU116: 1 | BV116: 85139 | BW116: 1
C117: 19698 | D117: SANTANDER DE QUILICHAO | E117: 0 | F117: 0 | G117: Natural | H117: 19 | I117: CAUCA | J117: 0 | K117: MICRO | L117: 4719 | M117: COMERCIO AL POR MAYOR Y AL POR MENOR; REPARACIÓN DE VEHÍCULOS AUTOMOTORES Y MOTOCICLETAS | N117: G | O117: Comercio al por menor en establecimientos no especializados | P117: Comercio al por menor en establecimientos no especializados | Q117: 0 | R117: 0 | S117: 0 | T117: 0 | U117: 0 | V117: 0 | W117: 0 | X117: 0 | AJ117: 0 | AK117: 0 | AL117: 18001 | AM117: FLORENCIA | AN117: 2 | AO117: 3 | AP117: Natural | AQ117: 18 | AR117: CAQUETÁ | AS117: Aprobado con subsidio | AT117: MICRO | AU117: 1040 | AV117: INDUSTRIAS MANUFACTURERAS | AW117: C | AX117: Elaboración de productos lácteos | AY117: Elaboración de productos alimenticios | AZ117: 0 | BA117: 2 | BB117: 0 | BC117: 0 | BD117: 0 | BE117: 2 | BF117: 2 | BG117: 0 | BT117: 25200 | BU117: 1 | BV117: 20011 | BW117: 1
C118: 76001 | D118: CALI | E118: 3 | F118: 1 | G118: Natural | H118: 76 | I118: VALLE DEL CAUCA | J118: Aprobado con subsidio | K118: MICRO | L118: 4752 | M118: COMERCIO AL POR MAYOR Y AL POR MENOR; REPARACIÓN DE VEHÍCULOS AUTOMOTORES Y MOTOCICLETAS | N118: G | O118: Comercio al por menor de otros enseres domésticos en establecimientos especializados | P118: Comercio al por menor de otros enseres domésticos en establecimientos especializados | Q118: 3 | R118: 0 | S118: 0 | T118: 3 | U118: 0 | V118: 0 | W118: 3 | X118: 0 | AJ118: 0 | AK118: 0 | AL118: 18753 | AM118: SAN VICENTE DEL CAGUÁN | AN118: 3 | AO118: 1 | AP118: Natural | AQ118: 18 | AR118: CAQUETÁ | AS118: Aprobado con subsidio | AT118: MICRO | AU118: 1104 | AV118: INDUSTRIAS MANUFACTURERAS | AW118: C | AX118: Elaboración de bebidas | AY118: Elaboración de bebidas | AZ118: 0 | BA118: 3 | BB118: 0 | BC118: 0 | BD118: 0 | BE118: 3 | BF118: 3 | BG118: 0 | BT118: 63594 | BU118: 1 | BV118: 17380 | BW118: 1
C119: 41001 | D119: NEIVA | E119: 43 | F119: 78 | G119: Natural | H119: 41 | I119: HUILA | J119: Aprobado con subsidio | K119: PEQUEÑA | L119: 4752 | M119: COMERCIO AL POR MAYOR Y AL POR MENOR; REPARACIÓN DE VEHÍCULOS AUTOMOTORES Y MOTOCICLETAS | N119: G | O119: Comercio al por menor de otros enseres domésticos en establecimientos especializados | P119: Comercio al por menor de otros enseres domésticos en establecimientos especializados | Q119: 1 | R119: 42 | S119: 0 | T119: 15 | U119: 1 | V119: 27 | W119: 42 | X119: 1 | AJ119: 0 | AK119: 0 | AL119: 18001 | AM119: FLORENCIA | AN119: 0 | AO119: 0 | AP119: Natural | AQ119: 18 | AR119: CAQUETÁ | AS119: 0 | AT119: MICRO | AU119: 1081 | AV119: INDUSTRIAS MANUFACTURERAS | AW119: C | AX119: Elaboración de otros productos alimenticios | AY119: Elaboración de productos alimenticios | AZ119: 0 | BA119: 0 | BB119: 0 | BC119: 0 | BD119: 0 | BE119: 0 | BF119: 0 | BG119: 0 | BT119: 23660 | BU119: 0 | BV119: 19698 | BW119: 1
C120: 41001 | D120: NEIVA | E120: 1 | F120: 8 | G120: Natural | H120: 41 | I120: HUILA | J120: Aprobado con subsidio | K120: PEQUEÑA | L120: 4711 | M120: COMERCIO AL POR MAYOR Y AL POR MENOR; REPARACIÓN DE VEHÍCULOS AUTOMOTORES Y MOTOCICLETAS | N120: G | O120: Comercio al por menor en establecimientos no especializados | P120: Comercio al por menor en establecimientos no especializados | Q120: 1 | R120: 0 | S120: 0 | T120: 1 | U120: 0 | V120: 0 | W120: 1 | X120: 0 | AJ120: 0 | AK120: 0 | AL120: 18001 | AM120: FLORENCIA | AN120: 3 | AO120: 3 | AP120: Natural | AQ120: 18 | AR120: CAQUETÁ | AS120: Aprobado con subsidio | AT120: MICRO | AU120: 2511 | AV120: INDUSTRIAS MANUFACTURERAS | AW120: C | AX120: Fabricación de productos metálicos para uso estructural, tanques, depósitos y generadores de vapor. | AY120: Fabricación de productos elaborados de metal, excepto maquinaria y equipo | AZ120: 0 | BA120: 3 | BB120: 0 | BC120: 2 | BD120: 0 | BE120: 1 | BF120: 3 | BG120: 0 | BT120: 63401 | BU120: 8 | BV120: 52835 | BW120: 1
C121: 41551 | D121: PITALITO | E121: 2 | F121: 3 | G121: Natural | H121: 41 | I121: HUILA | J121: Aprobado con subsidio | K121: MICRO | L121: 4754 | M121: COMERCIO AL POR MAYOR Y AL POR MENOR; REPARACIÓN DE VEHÍCULOS AUTOMOTORES Y MOTOCICLETAS | N121: G | O121: Comercio al por menor de otros enseres domésticos en establecimientos especializados | P121: Comercio al por menor de otros enseres domésticos en establecimientos especializados | Q121: 1 | R121: 1 | S121: 0 | T121: 1 | U121: 1 | V121: 0 | W121: 2 | X121: 0 | AJ121: 0 | AK121: 0 | AL121: 5001 | AM121: MEDELLÍN | AN121: 2 | AO121: 1 | AP121: Natural | AQ121: 5 | AR121: ANTIOQUIA | AS121: Aprobado con subsidio | AT121: MICRO | AU121: 1081 | AV121: INDUSTRIAS MANUFACTURERAS | AW121: C | AX121: Elaboración de otros productos alimenticios | AY121: Elaboración de productos alimenticios | AZ121: 0 | BA121: 2 | BB121: 0 | BC121: 1 | BD121: 0 | BE121: 1 | BF121: 2 | BG121: 0 | BT121: 8634 | BU121: 2 | BV121: 76670 | BW121: 1
C122: 41551 | D122: PITALITO | E122: 2 | F122: 0 | G122: Natural | H122: 41 | I122: HUILA | J122: Aprobado con subsidio | K122: MICRO | L122: 4620 | M122: COMERCIO AL POR MAYOR Y AL POR MENOR; REPARACIÓN DE VEHÍCULOS AUTOMOTORES Y MOTOCICLETAS | N122: G | O122: Comercio al por mayor de materias primas agropecuarias; animales vivos | P122: Comercio al por mayor de materias primas agropecuarias; animales vivos | Q122: 1 | R122: 1 | S122: 0 | T122: 2 | U122: 0 | V122: 0 | W122: 2 | X122: 0 | AJ122: 0 | AK122: 0 | AL122: 11001 | AM122: BOGOTÁ, D.C. | AN122: 2 | AO122: 0 | AP122: Natural | AQ122: 11 | AR122: BOGOTÁ, D.C. | AS122: Aprobado con subsidio | AT122: MICRO | AU122: 1313 | AV122: INDUSTRIAS MANUFACTURERAS | AW122: C | AX122: Preparación, hilatura, tejeduría y acabado de productos textiles | AY122: Fabricación de productos textiles | AZ122: 0 | BA122: 2 | BB122: 0 | BC122: 2 | BD122: 0 | BE122: 0 | BF122: 2 | BG122: 0 | BT122: 68229 | BU122: 0 | BV122: 19130 | BW122: 1
C123: 54498 | D123: OCAÑA | E123: 2 | F123: 3 | G123: Natural | H123: 54 | I123: NORTE DE SANTANDER | J123: Aprobado con subsidio | K123: MICRO | L123: 4541 | M123: COMERCIO AL POR MAYOR Y AL POR MENOR; REPARACIÓN DE VEHÍCULOS AUTOMOTORES Y MOTOCICLETAS | N123: G | O123: Comercio, mantenimiento y reparación de motocicletas y de sus partes, piezas y accesorios | P123: Comercio, mantenimiento y reparación de motocicletas y de sus partes, piezas y accesorios | Q123: 1 | R123: 1 | S123: 0 | T123: 2 | U123: 0 | V123: 0 | W123: 2 | X123: 0 | AJ123: 0 | AK123: 0 | AL123: 66400 | AM123: LA VIRGINIA | AN123: 2 | AO123: 1 | AP123: Natural | AQ123: 66 | AR123: RISARALDA | AS123: Aprobado con subsidio | AT123: MICRO | AU123: 2511 | AV123: INDUSTRIAS MANUFACTURERAS | AW123: C | AX123: Fabricación de productos metálicos para uso estructural, tanques, depósitos y generadores de vapor. | AY123: Fabricación de productos elaborados de metal, excepto maquinaria y equipo | AZ123: 0 | BA123: 2 | BB123: 0 | BC123: 2 | BD123: 0 | BE123: 0 | BF123: 2 | BG123: 0 | BT123: 54405 | BU123: 6 | BV123: 66400 | BW123: 1
C124: 8001 | D124: BARRANQUILLA | E124: 0 | F124: 0 | G124: Natural | H124: 8 | I124: ATLÁNTICO | J124: 0 | K124: PEQUEÑA | L124: 6910 | M124: ACTIVIDADES PROFESIONALES, CIENTÍFICAS Y TÉCNICAS | N124: M | O124: Actividades jurídicas | P124: Actividades jurídicas | Q124: 0 | R124: 0 | S124: 0 | T124: 0 | U124: 0 | V124: 0 | W124: 0 | X124: 0 | AJ124: 0 | AK124: 0 | AL124: 11001 | AM124: BOGOTÁ, D.C. | AN124: 0 | AO124: 0 | AP124: Natural | AQ124: 11 | AR124: BOGOTÁ, D.C. | AS124: 0 | AT124: MICRO | AU124: 3312 | AV124: INDUSTRIAS MANUFACTURERAS | AW124: C | AX124: Mantenimiento y reparación especializado de productos elaborados en metal y de maquinaria y equipo | AY124: Instalación, mantenimiento y reparación especializado de maquinaria y equipo | AZ124: 0 | BA124: 0 | BB124: 0 | BC124: 0 | BD124: 0 | BE124: 0 | BF124: 0 | BG124: 0 | BT124: 73268 | BU124: 2 | BV124: 47288 | BW124: 1
C125: 52001 | D125: PASTO | E125: 0 | F125: 0 | G125: Natural | H125: 52 | I125: NARIÑO | J125: 0 | K125: MICRO | L125: 4530 | M125: COMERCIO AL POR MAYOR Y AL POR MENOR; REPARACIÓN DE VEHÍCULOS AUTOMOTORES Y MOTOCICLETAS | N125: G | O125: Comercio de partes, piezas (autopartes) y accesorios (lujos) para vehículos automotores | P125: Comercio de partes, piezas (autopartes) y accesorios (lujos) para vehículos automotores | Q125: 0 | R125: 0 | S125: 0 | T125: 0 | U125: 0 | V125: 0 | W125: 0 | X125: 0 | AJ125: 0 | AK125: 0 | AL125: 11001 | AM125: BOGOTÁ, D.C. | AN125: 2 | AO125: 0 | AP125: Natural | AQ125: 11 | AR125: BOGOTÁ, D.C. | AS125: Aprobado con subsidio | AT125: MICRO | AU125: 1811 | AV125: INDUSTRIAS MANUFACTURERAS | AW125: C | AX125: Actividades de impresión y actividades de servicios relacionados con la impresión | AY125: Actividades de impresión y de producción de copias a partir de grabaciones originales | AZ125: 1 | BA125: 1 | BB125: 0 | BC125: 2 | BD125: 0 | BE125: 0 | BF125: 2 | BG125: 0 | BT125: 73443 | BU125: 1 | BV125: 54518 | BW125: 1
C126: 52001 | D126: PASTO | E126: 0 | F126: 0 | G126: Natural | H126: 52 | I126: NARIÑO | J126: 0 | K126: PEQUEÑA | L126: 5611 | M126: ALOJAMIENTO Y SERVICIOS DE COMIDA | N126: I | O126: Actividades de restaurantes, cafeterías y servicio móvil de comidas | P126: Actividades de restaurantes, cafeterías y servicio móvil de comidas | Q126: 0 | R126: 0 | S126: 0 | T126: 0 | U126: 0 | V126: 0 | W126: 0 | X126: 0 | AJ126: 0 | AK126: 0 | AL126: 11001 | AM126: BOGOTÁ, D.C. | AN126: 0 | AO126: 0 | AP126: Natural | AQ126: 11 | AR126: BOGOTÁ, D.C. | AS126: 0 | AT126: PEQUEÑA | AU126: 1020 | AV126: INDUSTRIAS MANUFACTURERAS | AW126: C | AX126: Procesamiento y conservación de frutas, legumbres, hortalizas y tubérculos | AY126: Elaboración de productos alimenticios | AZ126: 0 | BA126: 0 | BB126: 0 | BC126: 0 | BD126: 0 | BE126: 0 | BF126: 0 | BG126: 0 | BT126: 5607 | BU126: 3 | BV126: 68079 | BW126: 1
C127: 52001 | D127: PASTO | E127: 1 | F127: 2 | G127: Natural | H127: 52 | I127: NARIÑO | J127: Aprobado con subsidio | K127: PEQUEÑA | L127: 4731 | M127: COMERCIO AL POR MAYOR Y AL POR MENOR; REPARACIÓN DE VEHÍCULOS AUTOMOTORES Y MOTOCICLETAS | N127: G | O127: Comercio al por menor de combustible, lubricantes, aditivos y productos de limpieza para automotores, en establecimientos especializados | P127: Comercio al por menor de combustible, lubricantes, aditivos y productos de limpieza para automotores, en establecimientos especializados | Q127: 0 | R127: 1 | S127: 0 | T127: 1 | U127: 0 | V127: 0 | W127: 1 | X127: 0 | AJ127: 0 | AK127: 0 | AL127: 76001 | AM127: CALI | AN127: 0 | AO127: 0 | AP127: Natural | AQ127: 76 | AR127: VALLE DEL CAUCA | AS127: 0 | AT127: PEQUEÑA | AU127: 2310 | AV127: INDUSTRIAS MANUFACTURERAS | AW127: C | AX127: Fabricación de vidrio y productos de vidrio | AY127: Fabricación de otros productos minerales no metálicos | AZ127: 0 | BA127: 0 | BB127: 0 | BC127: 0 | BD127: 0 | BE127: 0 | BF127: 0 | BG127: 0 | BT127: 5579 | BU127: 1 | BV127: 54820 | BW127: 1
C128: 52001 | D128: PASTO | E128: 0 | F128: 0 | G128: Natural | H128: 52 | I128: NARIÑO | J128: 0 | K128: MICRO | L128: 4752 | M128: COMERCIO AL POR MAYOR Y AL POR MENOR; REPARACIÓN DE VEHÍCULOS AUTOMOTORES Y MOTOCICLETAS | N128: G | O128: Comercio al por menor de otros enseres domésticos en establecimientos especializados | P128: Comercio al por menor de otros enseres domésticos en establecimientos especializados | Q128: 0 | R128: 0 | S128: 0 | T128: 0 | U128: 0 | V128: 0 | W128: 0 | X128: 0 | AJ128: 0 | AK128: 0 | AL128: 11001 | AM128: BOGOTÁ, D.C. | AN128: 2 | AO128: 0 | AP128: Natural | AQ128: 11 | AR128: BOGOTÁ, D.C. | AS128: Aprobado con subsidio | AT128: MICRO | AU128: 1081 | AV128: INDUSTRIAS MANUFACTURERAS | AW128: C | AX128: Elaboración de otros productos alimenticios | AY128: Elaboración de productos alimenticios | AZ128: 2 | BA128: 0 | BB128: 0 | BC128: 0 | BD128: 2 | BE128: 0 | BF128: 2 | BG128: 0 | BT128: 5310 | BU128: 1 | BV128: 5209 | BW128: 1
C129: 52001 | D129: PASTO | E129: 0 | F129: 0 | G129: Natural | H129: 52 | I129: NARIÑO | J129: 0 | K129: MICRO | L129: 5512 | M129: ALOJAMIENTO Y SERVICIOS DE COMIDA | N129: I | O129: Actividades de alojamiento de estancias cortas | P129: Actividades de alojamiento de estancias cortas | Q129: 0 | R129: 0 | S129: 0 | T129: 0 | U129: 0 | V129: 0 | W129: 0 | X129: 0 | AJ129: 0 | AK129: 0 | AL129: 11001 | AM129: BOGOTÁ, D.C. | AN129: 0 | AO129: 0 | AP129: Natural | AQ129: 11 | AR129: BOGOTÁ, D.C. | AS129: 0 | AT129: MICRO | AU129: 1081 | AV129: INDUSTRIAS MANUFACTURERAS | AW129: C | AX129: Elaboración de otros productos alimenticios | AY129: Elaboración de productos alimenticios | AZ129: 0 | BA129: 0 | BB129: 0 | BC129: 0 | BD129: 0 | BE129: 0 | BF129: 0 | BG129: 0 | BT129: 5147 | BU129: 1 | BV129: 25123 | BW129: 1
C130: 52317 | D130: GUACHUCAL | E130: 2 | F130: 0 | G130: Natural | H130: 52 | I130: NARIÑO | J130: Aprobado con subsidio | K130: PEQUEÑA | L130: 4731 | M130: COMERCIO AL POR MAYOR Y AL POR MENOR; REPARACIÓN DE VEHÍCULOS AUTOMOTORES Y MOTOCICLETAS | N130: G | O130: Comercio al por menor de combustible, lubricantes, aditivos y productos de limpieza para automotores, en establecimientos especializados | P130: Comercio al por menor de combustible, lubricantes, aditivos y productos de limpieza para automotores, en establecimientos especializados | Q130: 0 | R130: 2 | S130: 0 | T130: 2 | U130: 0 | V130: 0 | W130: 2 | X130: 0 | AJ130: 0 | AK130: 0 | AL130: 25754 | AM130: SOACHA | AN130: 1 | AO130: 1 | AP130: Natural | AQ130: 25 | AR130: CUNDINAMARCA | AS130: Aprobado con subsidio | AT130: MICRO | AU130: 2399 | AV130: INDUSTRIAS MANUFACTURERAS | AW130: C | AX130: Fabricación de productos minerales no metálicos n.c.p. | AY130: Fabricación de otros productos minerales no metálicos | AZ130: 0 | BA130: 1 | BB130: 0 | BC130: 0 | BD130: 0 | BE130: 1 | BF130: 1 | BG130: 0 | BT130: 5042 | BU130: =COUNTIFS($AS$2:$AS$399999,"Aprobado con subsidio",$AL$2:$AL$399999,BT130) -> 1 | BV130: 15542 | BW130: 1
C131: 52001 | D131: PASTO | E131: 0 | F131: 0 | G131: Natural | H131: 52 | I131: NARIÑO | J131: 0 | K131: MICRO | L131: 4731 | M131: COMERCIO AL POR MAYOR Y AL POR MENOR; REPARACIÓN DE VEHÍCULOS AUTOMOTORES Y MOTOCICLETAS | N131: G | O131: Comercio al por menor de combustible, lubricantes, aditivos y productos de limpieza para automotores, en establecimientos especializados | P131: Comercio al por menor de combustible, lubricantes, aditivos y productos de limpieza para automotores, en establecimientos especializados | Q131: 0 | R131: 0 | S131: 0 | T131: 0 | U131: 0 | V131: 0 | W131: 0 | X131: 0 | AJ131: 0 | AK131: 0 | AL131: 11001 | AM131: BOGOTÁ, D.C. | AN131: 2 | AO131: 0 | AP131: Natural | AQ131: 11 | AR131: BOGOTÁ, D.C. | AS131: Aprobado con subsidio | AT131: MICRO | AU131: 3312 | AV131: INDUSTRIAS MANUFACTURERAS | AW131: C | AX131: Mantenimiento y reparación especializado de productos elaborados en metal y de maquinaria y equipo | AY131: Instalación, mantenimiento y reparación especializado de maquinaria y equipo | AZ131: 0 | BA131: 2 | BB131: 0 | BC131: 1 | BD131: 0 | BE131: 1 | BF131: 2 | BG131: 0 | BT131: 23162 | BU131: 1 | BV131: 5321 | BW131: 1
C132: 76001 | D132: CALI | E132: 0 | F132: 0 | G132: Natural | H132: 76 | I132: VALLE DEL CAUCA | J132: 0 | K132: MICRO | L132: 4774 | M132: COMERCIO AL POR MAYOR Y AL POR MENOR; REPARACIÓN DE VEHÍCULOS AUTOMOTORES Y MOTOCICLETAS | N132: G | O132: Comercio al por menor de otros productos en establecimientos especializados | P132: Comercio al por menor de otros productos en establecimientos especializados | Q132: 0 | R132: 0 | S132: 0 | T132: 0 | U132: 0 | V132: 0 | W132: 0 | X132: 0 | AJ132: 0 | AK132: 0 | AL132: 11001 | AM132: BOGOTÁ, D.C. | AN132: 0 | AO132: 0 | AP132: Natural | AQ132: 11 | AR132: BOGOTÁ, D.C. | AS132: 0 | AT132: MICRO | AU132: 2229 | AV132: INDUSTRIAS MANUFACTURERAS | AW132: C | AX132: Fabricación de productos de plástico | AY132: Fabricación de productos de caucho y de plástico | AZ132: 0 | BA132: 0 | BB132: 0 | BC132: 0 | BD132: 0 | BE132: 0 | BF132: 0 | BG132: 0 | BT132: 23417 | BU132: 1 | BV132: 70124 | BW132: 1
C133: 52560 | D133: POTOSÍ | E133: 2 | F133: 4 | G133: Natural | H133: 52 | I133: NARIÑO | J133: Aprobado con subsidio | K133: MICRO | L133: 1040 | M133: INDUSTRIAS MANUFACTURERAS | N133: C | O133: Elaboración de productos lácteos | P133: Elaboración de productos alimenticios | Q133: 1 | R133: 1 | S133: 0 | T133: 2 | U133: 0 | V133: 0 | W133: 2 | X133: 0 | AJ133: 0 | AK133: 0 | AL133: 11001 | AM133: BOGOTÁ, D.C. | AN133: 2 | AO133: 2 | AP133: Natural | AQ133: 11 | AR133: BOGOTÁ, D.C. | AS133: Aprobado con subsidio | AT133: MICRO | AU133: 1410 | AV133: INDUSTRIAS MANUFACTURERAS | AW133: C | AX133: Confección de prendas de vestir, excepto prendas de piel | AY133: Confección de prendas de vestir | AZ133: 2 | BA133: 0 | BB133: 0 | BC133: 2 | BD133: 0 | BE133: 0 | BF133: 2 | BG133: 0 | BT133: 76275 | BU133: 0 | BV133: 52227 | BW133: 1
C134: 52683 | D134: SANDONÁ | E134: 2 | F134: 2 | G134: Natural | H134: 52 | I134: NARIÑO | J134: Aprobado con subsidio | K134: MICRO | L134: 4711 | M134: COMERCIO AL POR MAYOR Y AL POR MENOR; REPARACIÓN DE VEHÍCULOS AUTOMOTORES Y MOTOCICLETAS | N134: G | O134: Comercio al por menor en establecimientos no especializados | P134: Comercio al por menor en establecimientos no especializados | Q134: 1 | R134: 1 | S134: 0 | T134: 0 | U134: 1 | V134: 1 | W134: 2 | X134: 0 | AJ134: 0 | AK134: 0 | AL134: 11001 | AM134: BOGOTÁ, D.C. | AN134: 4 | AO134: 7 | AP134: Natural | AQ134: 11 | AR134: BOGOTÁ, D.C. | AS134: Aprobado con subsidio | AT134: MICRO | AU134: 1410 | AV134: INDUSTRIAS MANUFACTURERAS | AW134: C | AX134: Confección de prendas de vestir, excepto prendas de piel | AY134: Confección de prendas de vestir | AZ134: 1 | BA134: 3 | BB134: 0 | BC134: 4 | BD134: 0 | BE134: 0 | BF134: 4 | BG134: 0 | BT134: 17541 | BU134: 2 | BV134: 25745 | BW134: 1
C135: 54001 | D135: CÚCUTA | E135: 1 | F135: 8 | G135: Natural | H135: 54 | I135: NORTE DE SANTANDER | J135: Aprobado con subsidio | K135: MICRO | L135: 2599 | M135: INDUSTRIAS MANUFACTURERAS | N135: C | O135: Fabricación de otros productos elaborados de metal y actividades de servicios relacionadas con el trabajo de metales | P135: Fabricación de productos elaborados de metal, excepto maquinaria y equipo | Q135: 0 | R135: 1 | S135: 0 | T135: 1 | U135: 0 | V135: 0 | W135: 1 | X135: 0 | AJ135: 0 | AK135: 0 | AL135: 76001 | AM135: CALI | AN135: 0 | AO135: 0 | AP135: Natural | AQ135: 76 | AR135: VALLE DEL CAUCA | AS135: 0 | AT135: MICRO | AU135: 2511 | AV135: INDUSTRIAS MANUFACTURERAS | AW135: C | AX135: Fabricación de productos metálicos para uso estructural, tanques, depósitos y generadores de vapor. | AY135: Fabricación de productos elaborados de metal, excepto maquinaria y equipo | AZ135: 0 | BA135: 0 | BB135: 0 | BC135: 0 | BD135: 0 | BE135: 0 | BF135: 0 | BG135: 0 | BT135: 19300 | BU135: 2 | BV135: 68406 | BW135: 1
C136: 54001 | D136: CÚCUTA | E136: 1 | F136: 5 | G136: Natural | H136: 54 | I136: NORTE DE SANTANDER | J136: Aprobado con subsidio | K136: MICRO | L136: 4923 | M136: TRANSPORTE Y ALMACENAMIENTO | N136: H | O136: Transporte terrestre publico automotor | P136: Transporte terrestre publico automotor | Q136: 0 | R136: 1 | S136: 0 | T136: 1 | U136: 0 | V136: 0 | W136: 1 | X136: 0 | AJ136: 0 | AK136: 0 | AL136: 15087 | AM136: BELÉN | AN136: 0 | AO136: 0 | AP136: Natural | AQ136: 15 | AR136: BOYACÁ | AS136: 0 | AT136: MICRO | AU136: 1040 | AV136: INDUSTRIAS MANUFACTURERAS | AW136: C | AX136: Elaboración de productos lácteos | AY136: Elaboración de productos alimenticios | AZ136: 0 | BA136: 0 | BB136: 0 | BC136: 0 | BD136: 0 | BE136: 0 | BF136: 0 | BG136: 0 | BT136: 19845 | BU136: 3 | BV136: 25200 | BW136: 1
C137: 54001 | D137: CÚCUTA | E137: 0 | F137: 0 | G137: Natural | H137: 54 | I137: NORTE DE SANTANDER | J137: 0 | K137: MICRO | L137: 8521 | M137: EDUCACIÓN | N137: P | O137: Educación secundaria y de formación laboral | P137: Educación secundaria y de formación laboral | Q137: 0 | R137: 0 | S137: 0 | T137: 0 | U137: 0 | V137: 0 | W137: 0 | X137: 0 | AJ137: 0 | AK137: 0 | AL137: 11001 | AM137: BOGOTÁ, D.C. | AN137: 0 | AO137: 0 | AP137: Natural | AQ137: 11 | AR137: BOGOTÁ, D.C. | AS137: 0 | AT137: MICRO | AU137: 2410 | AV137: INDUSTRIAS MANUFACTURERAS | AW137: C | AX137: Industrias básicas de hierro y de acero | AY137: Fabricación de productos metalúrgicos básicos | AZ137: 0 | BA137: 0 | BB137: 0 | BC137: 0 | BD137: 0 | BE137: 0 | BF137: 0 | BG137: 0 | BT137: 15764 | BU137: 1 | BV137: 63594 | BW137: 1
C138: 54498 | D138: OCAÑA | E138: 0 | F138: 0 | G138: Natural | H138: 54 | I138: NORTE DE SANTANDER | J138: 0 | K138: MICRO | L138: 4923 | M138: TRANSPORTE Y ALMACENAMIENTO | N138: H | O138: Transporte terrestre publico automotor | P138: Transporte terrestre publico automotor | Q138: 0 | R138: 0 | S138: 0 | T138: 0 | U138: 0 | V138: 0 | W138: 0 | X138: 0 | AJ138: 0 | AK138: 0 | AL138: 11001 | AM138: BOGOTÁ, D.C. | AN138: 3 | AO138: 0 | AP138: Natural | AQ138: 11 | AR138: BOGOTÁ, D.C. | AS138: Aprobado con subsidio | AT138: MICRO | AU138: 1521 | AV138: INDUSTRIAS MANUFACTURERAS | AW138: C | AX138: Fabricación de calzado | AY138: Curtido y recurtido de cueros; fabricación de calzado; fabricación de artículos de viaje, maletas, bolsos de mano y artículos similares, y fabricación de artículos de talabartería y guarnicionería; adobo y teñido de pieles | AZ138: 0 | BA138: 3 | BB138: 0 | BC138: 0 | BD138: 0 | BE138: 3 | BF138: 3 | BG138: 0 | BT138: 20621 | BU138: 2 | BV138: 73443 | BW138: 1
C139: 54518 | D139: PAMPLONA | E139: 2 | F139: 4 | G139: Natural | H139: 54 | I139: NORTE DE SANTANDER | J139: Aprobado con subsidio | K139: PEQUEÑA | L139: 5611 | M139: ALOJAMIENTO Y SERVICIOS DE COMIDA | N139: I | O139: Actividades de restaurantes, cafeterías y servicio móvil de comidas | P139: Actividades de restaurantes, cafeterías y servicio móvil de comidas | Q139: 2 | R139: 0 | S139: 0 | T139: 2 | U139: 0 | V139: 0 | W139: 2 | X139: 0 | AJ139: 0 | AK139: 0 | AL139: 11001 | AM139: BOGOTÁ, D.C. | AN139: 12 | AO139: 39 | AP139: Natural | AQ139: 11 | AR139: BOGOTÁ, D.C. | AS139: Aprobado con subsidio | AT139: MEDIANA | AU139: 1081 | AV139: INDUSTRIAS MANUFACTURERAS | AW139: C | AX139: Elaboración de otros productos alimenticios | AY139: Elaboración de productos alimenticios | AZ139: 9 | BA139: 3 | BB139: 0 | BC139: 12 | BD139: 0 | BE139: 0 | BF139: 12 | BG139: 0 | BT139: 8433 | BU139: 4 | BV139: 5579 | BW139: 1
C140: 54001 | D140: CÚCUTA | E140: 0 | F140: 0 | G140: Natural | H140: 54 | I140: NORTE DE SANTANDER | J140: 0 | K140: MICRO | L140: 4752 | M140: COMERCIO AL POR MAYOR Y AL POR MENOR; REPARACIÓN DE VEHÍCULOS AUTOMOTORES Y MOTOCICLETAS | N140: G | O140: Comercio al por menor de otros enseres domésticos en establecimientos especializados | P140: Comercio al por menor de otros enseres domésticos en establecimientos especializados | Q140: 0 | R140: 0 | S140: 0 | T140: 0 | U140: 0 | V140: 0 | W140: 0 | X140: 0 | AJ140: 0 | AK140: 0 | AL140: 47288 | AM140: FUNDACIÓN | AN140: 4 | AO140: 0 | AP140: Natural | AQ140: 47 | AR140: MAGDALENA | AS140: Aprobado con subsidio | AT140: MICRO | AU140: 1011 | AV140: INDUSTRIAS MANUFACTURERAS | AW140: C | AX140: Procesamiento y conservación de carne, pescado, crustáceos y moluscos | AY140: Elaboración de productos alimenticios | AZ140: 0 | BA140: 4 | BB140: 0 | BC140: 3 | BD140: 0 | BE140: 1 | BF140: 4 | BG140: 0 | BT140: 25181 | BU140: 0 | BV140: 5310 | BW140: 1
C141: 54001 | D141: CÚCUTA | E141: 0 | F141: 0 | G141: Natural | H141: 54 | I141: NORTE DE SANTANDER | J141: 0 | K141: MICRO | L141: 8559 | M141: EDUCACIÓN | N141: P | O141: Otros tipos de educación | P141: Otros tipos de educación | Q141: 0 | R141: 0 | S141: 0 | T141: 0 | U141: 0 | V141: 0 | W141: 0 | X141: 0 | AJ141: 0 | AK141: 0 | AL141: 11001 | AM141: BOGOTÁ, D.C. | AN141: 0 | AO141: 0 | AP141: Natural | AQ141: 11 | AR141: BOGOTÁ, D.C. | AS141: 0 | AT141: MICRO | AU141: 1011 | AV141: INDUSTRIAS MANUFACTURERAS | AW141: C | AX141: Procesamiento y conservación de carne, pescado, crustáceos y moluscos | AY141: Elaboración de productos alimenticios | AZ141: 0 | BA141: 0 | BB141: 0 | BC141: 0 | BD141: 0 | BE141: 0 | BF141: 0 | BG141: 0 | BT141: 81001 | BU141: 1 | BV141: 5147 | BW141: 1
C142: 68001 | D142: BUCARAMANGA | E142: 1 | F142: 1 | G142: Natural | H142: 68 | I142: SANTANDER | J142: Aprobado con subsidio | K142: PEQUEÑA | L142: 1610 | M142: INDUSTRIAS MANUFACTURERAS | N142: C | O142: Aserrado, acepillado e impregnación de la madera | P142: Transformación de la madera y fabricación de productos de madera y de corcho, excepto muebles; fabricación de artículos de cestería y espartería | Q142: 0 | R142: 1 | S142: 0 | T142: 1 | U142: 0 | V142: 0 | W142: 1 | X142: 0 | AJ142: 0 | AK142: 0 | AL142: 5045 | AM142: APARTADÓ | AN142: 24 | AO142: 32 | AP142: Natural | AQ142: 5 | AR142: ANTIOQUIA | AS142: Aprobado con subsidio | AT142: PEQUEÑA | AU142: 1089 | AV142: INDUSTRIAS MANUFACTURERAS | AW142: C | AX142: Elaboración de otros productos alimenticios | AY142: Elaboración de productos alimenticios | AZ142: 20 | BA142: 4 | BB142: 0 | BC142: 24 | BD142: 0 | BE142: 0 | BF142: 24 | BG142: 0 | BT142: 85410 | BU142: 0 | BV142: 5042 | BW142: 1
C143: 11001 | D143: BOGOTÁ, D.C. | E143: 0 | F143: 0 | G143: Natural | H143: 11 | I143: BOGOTÁ, D.C. | J143: 0 | K143: MICRO | L143: 4773 | M143: COMERCIO AL POR MAYOR Y AL POR MENOR; REPARACIÓN DE VEHÍCULOS AUTOMOTORES Y MOTOCICLETAS | N143: G | O143: Comercio al por menor de otros productos en establecimientos especializados | P143: Comercio al por menor de otros productos en establecimientos especializados | Q143: 0 | R143: 0 | S143: 0 | T143: 0 | U143: 0 | V143: 0 | W143: 0 | X143: 0 | AJ143: 0 | AK143: 0 | AL143: 5001 | AM143: MEDELLÍN | AN143: 1 | AO143: 0 | AP143: Natural | AQ143: 5 | AR143: ANTIOQUIA | AS143: Aprobado con subsidio | AT143: MICRO | AU143: 1081 | AV143: INDUSTRIAS MANUFACTURERAS | AW143: C | AX143: Elaboración de otros productos alimenticios | AY143: Elaboración de productos alimenticios | AZ143: 1 | BA143: 0 | BB143: 0 | BC143: 1 | BD143: 0 | BE143: 0 | BF143: 1 | BG143: 0 | BT143: 25740 | BU143: 2 | BV143: 23162 | BW143: 1
C144: 68001 | D144: BUCARAMANGA | E144: 3 | F144: 2 | G144: Natural | H144: 68 | I144: SANTANDER | J144: Aprobado con subsidio | K144: MICRO | L144: 4774 | M144: COMERCIO AL POR MAYOR Y AL POR MENOR; REPARACIÓN DE VEHÍCULOS AUTOMOTORES Y MOTOCICLETAS | N144: G | O144: Comercio al por menor de otros productos en establecimientos especializados | P144: Comercio al por menor de otros productos en establecimientos especializados | Q144: 3 | R144: 0 | S144: 0 | T144: 3 | U144: 0 | V144: 0 | W144: 3 | X144: 0 | AJ144: 0 | AK144: 0 | AL144: 5001 | AM144: MEDELLÍN | AN144: 19 | AO144: 2 | AP144: Natural | AQ144: 5 | AR144: ANTIOQUIA | AS144: Aprobado con subsidio | AT144: MICRO | AU144: 1410 | AV144: INDUSTRIAS MANUFACTURERAS | AW144: C | AX144: Confección de prendas de vestir, excepto prendas de piel | AY144: Confección de prendas de vestir | AZ144: 16 | BA144: 3 | BB144: 0 | BC144: 6 | BD144: 13 | BE144: 0 | BF144: 18 | BG144: 1 | BT144: 25486 | BU144: 0 | BV144: 23417 | BW144: 1
C145: 68001 | D145: BUCARAMANGA | E145: 0 | F145: 0 | G145: Natural | H145: 68 | I145: SANTANDER | J145: 0 | K145: MICRO | L145: 4729 | M145: COMERCIO AL POR MAYOR Y AL POR MENOR; REPARACIÓN DE VEHÍCULOS AUTOMOTORES Y MOTOCICLETAS | N145: G | O145: Comercio al por menor de alimentos (víveres en general), bebidas y tabaco, en establecimientos especializados | P145: Comercio al por menor de alimentos (víveres en general), bebidas y tabaco, en establecimientos especializados | Q145: 0 | R145: 0 | S145: 0 | T145: 0 | U145: 0 | V145: 0 | W145: 0 | X145: 0 | AJ145: 0 | AK145: 0 | AL145: 5266 | AM145: ENVIGADO | AN145: 0 | AO145: 0 | AP145: Natural | AQ145: 5 | AR145: ANTIOQUIA | AS145: 0 | AT145: MICRO | AU145: 1081 | AV145: INDUSTRIAS MANUFACTURERAS | AW145: C | AX145: Elaboración de otros productos alimenticios | AY145: Elaboración de productos alimenticios | AZ145: 0 | BA145: 0 | BB145: 0 | BC145: 0 | BD145: 0 | BE145: 0 | BF145: 0 | BG145: 0 | BT145: 25288 | BU145: 1 | BV145: 15764 | BW145: 1
C146: 68406 | D146: LEBRIJA | E146: 0 | F146: 0 | G146: Natural | H146: 68 | I146: SANTANDER | J146: 0 | K146: MICRO | L146: 4752 | M146: COMERCIO AL POR MAYOR Y AL POR MENOR; REPARACIÓN DE VEHÍCULOS AUTOMOTORES Y MOTOCICLETAS | N146: G | O146: Comercio al por menor de otros enseres domésticos en establecimientos especializados | P146: Comercio al por menor de otros enseres domésticos en establecimientos especializados | Q146: 0 | R146: 0 | S146: 0 | T146: 0 | U146: 0 | V146: 0 | W146: 0 | X146: 0 | AJ146: 0 | AK146: 0 | AL146: 5631 | AM146: SABANETA | AN146: 0 | AO146: 0 | AP146: Natural | AQ146: 5 | AR146: ANTIOQUIA | AS146: 0 | AT146: MICRO | AU146: 2599 | AV146: INDUSTRIAS MANUFACTURERAS | AW146: C | AX146: Fabricación de otros productos elaborados de metal y actividades de servicios relacionadas con el trabajo de metales | AY146: Fabricación de productos elaborados de metal, excepto maquinaria y equipo | AZ146: 0 | BA146: 0 | BB146: 0 | BC146: 0 | BD146: 0 | BE146: 0 | BF146: 0 | BG146: 0 | BT146: 25873 | BU146: 1 | BV146: 81001 | BW146: 1
C147: 68406 | D147: LEBRIJA | E147: 0 | F147: 0 | G147: Natural | H147: 68 | I147: SANTANDER | J147: 0 | K147: MEDIANA | L147: 4711 | M147: COMERCIO AL POR MAYOR Y AL POR MENOR; REPARACIÓN DE VEHÍCULOS AUTOMOTORES Y MOTOCICLETAS | N147: G | O147: Comercio al por menor en establecimientos no especializados | P147: Comercio al por menor en establecimientos no especializados | Q147: 0 | R147: 0 | S147: 0 | T147: 0 | U147: 0 | V147: 0 | W147: 0 | X147: 0 | AJ147: 0 | AK147: 0 | AL147: 5360 | AM147: ITAGUI | AN147: 0 | AO147: 0 | AP147: Natural | AQ147: 5 | AR147: ANTIOQUIA | AS147: 0 | AT147: PEQUEÑA | AU147: 1020 | AV147: INDUSTRIAS MANUFACTURERAS | AW147: C | AX147: Procesamiento y conservación de frutas, legumbres, hortalizas y tubérculos | AY147: Elaboración de productos alimenticios | AZ147: 0 | BA147: 0 | BB147: 0 | BC147: 0 | BD147: 0 | BE147: 0 | BF147: 0 | BG147: 0 | BT147: 5030 | BU147: 4 | BV147: 25288 | BW147: 1
C148: 68307 | D148: GIRÓN | E148: 0 | F148: 0 | G148: Natural | H148: 68 | I148: SANTANDER | J148: 0 | K148: PEQUEÑA | L148: 8513 | M148: EDUCACIÓN | N148: P | O148: Educación de la primera infancia, preescolar y básica primaria | P148: Educación de la primera infancia, preescolar y básica primaria | Q148: 0 | R148: 0 | S148: 0 | T148: 0 | U148: 0 | V148: 0 | W148: 0 | X148: 0 | AJ148: 0 | AK148: 0 | AL148: 11001 | AM148: BOGOTÁ, D.C. | AN148: 0 | AO148: 0 | AP148: Natural | AQ148: 11 | AR148: BOGOTÁ, D.C. | AS148: 0 | AT148: MICRO | AU148: 1081 | AV148: INDUSTRIAS MANUFACTURERAS | AW148: C | AX148: Elaboración de otros productos alimenticios | AY148: Elaboración de productos alimenticios | AZ148: 0 | BA148: 0 | BB148: 0 | BC148: 0 | BD148: 0 | BE148: 0 | BF148: 0 | BG148: 0 | BT148: 19455 | BU148: 1 | BV148: 25873 | BW148: 1
C149: 11001 | D149: BOGOTÁ, D.C. | E149: 12 | F149: 11 | G149: Natural | H149: 11 | I149: BOGOTÁ, D.C. | J149: Aprobado con subsidio | K149: MICRO | L149: 4731 | M149: COMERCIO AL POR MAYOR Y AL POR MENOR; REPARACIÓN DE VEHÍCULOS AUTOMOTORES Y MOTOCICLETAS | N149: G | O149: Comercio al por menor de combustible, lubricantes, aditivos y productos de limpieza para automotores, en establecimientos especializados | P149: Comercio al por menor de combustible, lubricantes, aditivos y productos de limpieza para automotores, en establecimientos especializados | Q149: 7 | R149: 5 | S149: 0 | T149: 5 | U149: 3 | V149: 4 | W149: 12 | X149: 0 | AJ149: 0 | AK149: 0 | AL149: 8001 | AM149: BARRANQUILLA | AN149: 7 | AO149: 12 | AP149: Natural | AQ149: 8 | AR149: ATLÁNTICO | AS149: Aprobado con subsidio | AT149: PEQUEÑA | AU149: 1089 | AV149: INDUSTRIAS MANUFACTURERAS | AW149: C | AX149: Elaboración de otros productos alimenticios | AY149: Elaboración de productos alimenticios | AZ149: 5 | BA149: 2 | BB149: 0 | BC149: 2 | BD149: 5 | BE149: 0 | BF149: 7 | BG149: 0 | BT149: 76113 | BU149: 1 | BV149: 19455 | BW149: 1
C150: 54001 | D150: CÚCUTA | E150: 2 | F150: 2 | G150: Natural | H150: 54 | I150: NORTE DE SANTANDER | J150: Aprobado con subsidio | K150: MICRO | L150: 1410 | M150: INDUSTRIAS MANUFACTURERAS | N150: C | O150: Confección de prendas de vestir, excepto prendas de piel | P150: Confección de prendas de vestir | Q150: 1 | R150: 1 | S150: 0 | T150: 2 | U150: 0 | V150: 0 | W150: 2 | X150: 0 | AJ150: 0 | AK150: 0 | AL150: 8001 | AM150: BARRANQUILLA | AN150: 0 | AO150: 0 | AP150: Natural | AQ150: 8 | AR150: ATLÁNTICO | AS150: 0 | AT150: MICRO | AU150: 3250 | AV150: INDUSTRIAS MANUFACTURERAS | AW150: C | AX150: Fabricación de instrumentos, aparatos y materiales médicos y odontológicos (incluido mobiliario) | AY150: Otras industrias manufactureras | AZ150: 0 | BA150: 0 | BB150: 0 | BC150: 0 | BD150: 0 | BE150: 0 | BF150: 0 | BG150: 0 | BT150: 76403 | BU150: 1 | BV150: 76113 | BW150: 1
C151: 68001 | D151: BUCARAMANGA | E151: 1 | F151: 0 | G151: Natural | H151: 68 | I151: SANTANDER | J151: Aprobado con subsidio | K151: MICRO | L151: 7420 | M151: ACTIVIDADES PROFESIONALES, CIENTÍFICAS Y TÉCNICAS | N151: M | O151: Actividades de fotografía | P151: Actividades de fotografía | Q151: 0 | R151: 1 | S151: 0 | T151: 0 | U151: 0 | V151: 1 | W151: 1 | X151: 0 | AJ151: 0 | AK151: 0 | AL151: 70001 | AM151: SINCELEJO | AN151: 4 | AO151: 2 | AP151: Natural | AQ151: 70 | AR151: SUCRE | AS151: Aprobado con subsidio | AT151: MICRO | AU151: 1081 | AV151: INDUSTRIAS MANUFACTURERAS | AW151: C | AX151: Elaboración de otros productos alimenticios | AY151: Elaboración de productos alimenticios | AZ151: 3 | BA151: 1 | BB151: 0 | BC151: 3 | BD151: 0 | BE151: 1 | BF151: 4 | BG151: 0 | BT151: 41524 | BU151: 0 | BV151: 76403 | BW151: 1
C152: 68081 | D152: BARRANCABERMEJA | E152: 0 | F152: 0 | G152: Natural | H152: 68 | I152: SANTANDER | J152: 0 | K152: MICRO | L152: 4731 | M152: COMERCIO AL POR MAYOR Y AL POR MENOR; REPARACIÓN DE VEHÍCULOS AUTOMOTORES Y MOTOCICLETAS | N152: G | O152: Comercio al por menor de combustible, lubricantes, aditivos y productos de limpieza para automotores, en establecimientos especializados | P152: Comercio al por menor de combustible, lubricantes, aditivos y productos de limpieza para automotores, en establecimientos especializados | Q152: 0 | R152: 0 | S152: 0 | T152: 0 | U152: 0 | V152: 0 | W152: 0 | X152: 0 | AJ152: 0 | AK152: 0 | AL152: 11001 | AM152: BOGOTÁ, D.C. | AN152: 0 | AO152: 0 | AP152: Natural | AQ152: 11 | AR152: BOGOTÁ, D.C. | AS152: 0 | AT152: MICRO | AU152: 1081 | AV152: INDUSTRIAS MANUFACTURERAS | AW152: C | AX152: Elaboración de otros productos alimenticios | AY152: Elaboración de productos alimenticios | AZ152: 0 | BA152: 0 | BB152: 0 | BC152: 0 | BD152: 0 | BE152: 0 | BF152: 0 | BG152: 0 | BT152: 17614 | BU152: 1 | BV152: 17614 | BW152: 1
C153: 68679 | D153: SAN GIL | E153: 5 | F153: 10 | G153: Natural | H153: 68 | I153: SANTANDER | J153: Aprobado con subsidio | K153: PEQUEÑA | L153: 4711 | M153: COMERCIO AL POR MAYOR Y AL POR MENOR; REPARACIÓN DE VEHÍCULOS AUTOMOTORES Y MOTOCICLETAS | N153: G | O153: Comercio al por menor en establecimientos no especializados | P153: Comercio al por menor en establecimientos no especializados | Q153: 2 | R153: 3 | S153: 0 | T153: 5 | U153: 0 | V153: 0 | W153: 5 | X153: 0 | AJ153: 0 | AK153: 0 | AL153: 11001 | AM153: BOGOTÁ, D.C. | AN153: 1 | AO153: 5 | AP153: Natural | AQ153: 11 | AR153: BOGOTÁ, D.C. | AS153: Aprobado con subsidio | AT153: MICRO | AU153: 1081 | AV153: INDUSTRIAS MANUFACTURERAS | AW153: C | AX153: Elaboración de otros productos alimenticios | AY153: Elaboración de productos alimenticios | AZ153: 1 | BA153: 0 | BB153: 0 | BC153: 1 | BD153: 0 | BE153: 0 | BF153: 1 | BG153: 0 | BT153: 17433 | BU153: 1 | BV153: 17433 | BW153: 1
C154: 47288 | D154: FUNDACIÓN | E154: 0 | F154: 0 | G154: Natural | H154: 47 | I154: MAGDALENA | J154: 0 | K154: MICRO | L154: 4664 | M154: COMERCIO AL POR MAYOR Y AL POR MENOR; REPARACIÓN DE VEHÍCULOS AUTOMOTORES Y MOTOCICLETAS | N154: G | O154: Comercio al por mayor especializado de otros productos | P154: Comercio al por mayor especializado de otros productos | Q154: 0 | R154: 0 | S154: 0 | T154: 0 | U154: 0 | V154: 0 | W154: 0 | X154: 0 | AJ154: 0 | AK154: 0 | AL154: 15238 | AM154: DUITAMA | AN154: 2 | AO154: 6 | AP154: Natural | AQ154: 15 | AR154: BOYACÁ | AS154: Aprobado con subsidio | AT154: MICRO | AU154: 2599 | AV154: INDUSTRIAS MANUFACTURERAS | AW154: C | AX154: Fabricación de otros productos elaborados de metal y actividades de servicios relacionadas con el trabajo de metales | AY154: Fabricación de productos elaborados de metal, excepto maquinaria y equipo | AZ154: 0 | BA154: 2 | BB154: 0 | BC154: 2 | BD154: 0 | BE154: 0 | BF154: 2 | BG154: 0 | BT154: 25743 | BU154: 2 | BV154: 54261 | BW154: 1
C155: 5001 | D155: MEDELLÍN | E155: 0 | F155: 0 | G155: Natural | H155: 5 | I155: ANTIOQUIA | J155: 0 | K155: PEQUEÑA | L155: 4390 | M155: CONSTRUCCIÓN | N155: F | O155: Otras actividades especializadas para la construcción de edificios y obras de ingeniería civil | P155: Otras actividades especializadas para la construcción de edificios y obras de ingeniería civil | Q155: 0 | R155: 0 | S155: 0 | T155: 0 | U155: 0 | V155: 0 | W155: 0 | X155: 0 | AJ155: 0 | AK155: 0 | AL155: 25269 | AM155: FACATATIVÁ | AN155: 3 | AO155: 3 | AP155: Natural | AQ155: 25 | AR155: CUNDINAMARCA | AS155: Aprobado con subsidio | AT155: PEQUEÑA | AU155: 1081 | AV155: INDUSTRIAS MANUFACTURERAS | AW155: C | AX155: Elaboración de otros productos alimenticios | AY155: Elaboración de productos alimenticios | AZ155: 2 | BA155: 0 | BB155: 1 | BC155: 3 | BD155: 0 | BE155: 0 | BF155: 2 | BG155: 1 | BT155: 54261 | BU155: 1 | BV155: 70771 | BW155: 1
C156: 68861 | D156: VÉLEZ | E156: 1 | F156: 0 | G156: Natural | H156: 68 | I156: SANTANDER | J156: Aprobado con subsidio | K156: MICRO | L156: 1089 | M156: INDUSTRIAS MANUFACTURERAS | N156: C | O156: Elaboración de otros productos alimenticios | P156: Elaboración de productos alimenticios | Q156: 1 | R156: 0 | S156: 0 | T156: 1 | U156: 0 | V156: 0 | W156: 1 | X156: 0 | AJ156: 0 | AK156: 0 | AL156: 17001 | AM156: MANIZALES | AN156: 0 | AO156: 0 | AP156: Natural | AQ156: 17 | AR156: CALDAS | AS156: 0 | AT156: PEQUEÑA | AU156: 1084 | AV156: INDUSTRIAS MANUFACTURERAS | AW156: C | AX156: Elaboración de otros productos alimenticios | AY156: Elaboración de productos alimenticios | AZ156: 0 | BA156: 0 | BB156: 0 | BC156: 0 | BD156: 0 | BE156: 0 | BF156: 0 | BG156: 0 | BT156: 50226 | BU156: 2 | BV156: 17174 | BW156: 1
C157: 68001 | D157: BUCARAMANGA | E157: 1 | F157: 0 | G157: Natural | H157: 68 | I157: SANTANDER | J157: Aprobado con subsidio | K157: MICRO | L157: 6621 | M157: ACTIVIDADES FINANCIERAS Y DE SEGUROS | N157: K | O157: Actividades de servicios auxiliares de los servicios de seguros y pensiones | P157: Actividades de servicios auxiliares de los servicios de seguros y pensiones | Q157: 1 | R157: 0 | S157: 0 | T157: 1 | U157: 0 | V157: 0 | W157: 1 | X157: 0 | AJ157: 0 | AK157: 0 | AL157: 17001 | AM157: MANIZALES | AN157: 0 | AO157: 0 | AP157: Natural | AQ157: 17 | AR157: CALDAS | AS157: 0 | AT157: MICRO | AU157: 1084 | AV157: INDUSTRIAS MANUFACTURERAS | AW157: C | AX157: Elaboración de otros productos alimenticios | AY157: Elaboración de productos alimenticios | AZ157: 0 | BA157: 0 | BB157: 0 | BC157: 0 | BD157: 0 | BE157: 0 | BF157: 0 | BG157: 0 | BT157: 15755 | BU157: 0 | BV157: 20178 | BW157: 1
C158: 68001 | D158: BUCARAMANGA | E158: 4 | F158: 85 | G158: Natural | H158: 68 | I158: SANTANDER | J158: Aprobado con subsidio | K158: MEDIANA | L158: 4711 | M158: COMERCIO AL POR MAYOR Y AL POR MENOR; REPARACIÓN DE VEHÍCULOS AUTOMOTORES Y MOTOCICLETAS | N158: G | O158: Comercio al por menor en establecimientos no especializados | P158: Comercio al por menor en establecimientos no especializados | Q158: 4 | R158: 0 | S158: 0 | T158: 4 | U158: 0 | V158: 0 | W158: 4 | X158: 0 | AJ158: 0 | AK158: 0 | AL158: 17001 | AM158: MANIZALES | AN158: 11 | AO158: 35 | AP158: Natural | AQ158: 17 | AR158: CALDAS | AS158: Aprobado con subsidio | AT158: PEQUEÑA | AU158: 1523 | AV158: INDUSTRIAS MANUFACTURERAS | AW158: C | AX158: Fabricación de calzado | AY158: Curtido y recurtido de cueros; fabricación de calzado; fabricación de artículos de viaje, maletas, bolsos de mano y artículos similares, y fabricación de artículos de talabartería y guarnicionería; adobo y teñido de pieles | AZ158: 10 | BA158: 1 | BB158: 0 | BC158: 5 | BD158: 6 | BE158: 0 | BF158: 11 | BG158: 0 | BT158: 70771 | BU158: 1 | BV158: 23189 | BW158: 1
C159: 68895 | D159: ZAPATOCA | E159: 0 | F159: 0 | G159: Natural | H159: 68 | I159: SANTANDER | J159: 0 | K159: MICRO | L159: 4752 | M159: COMERCIO AL POR MAYOR Y AL POR MENOR; REPARACIÓN DE VEHÍCULOS AUTOMOTORES Y MOTOCICLETAS | N159: G | O159: Comercio al por menor de otros enseres domésticos en establecimientos especializados | P159: Comercio al por menor de otros enseres domésticos en establecimientos especializados | Q159: 0 | R159: 0 | S159: 0 | T159: 0 | U159: 0 | V159: 0 | W159: 0 | X159: 0 | AJ159: 0 | AK159: 0 | AL159: 17001 | AM159: MANIZALES | AN159: 10 | AO159: 19 | AP159: Natural | AQ159: 17 | AR159: CALDAS | AS159: Aprobado con subsidio | AT159: PEQUEÑA | AU159: 1081 | AV159: INDUSTRIAS MANUFACTURERAS | AW159: C | AX159: Elaboración de otros productos alimenticios | AY159: Elaboración de productos alimenticios | AZ159: 10 | BA159: 0 | BB159: 0 | BC159: 8 | BD159: 2 | BE159: 0 | BF159: 9 | BG159: 1 | BT159: 17873 | BU159: 3 | BV159: 23466 | BW159: 1
C160: 68079 | D160: BARICHARA | E160: 0 | F160: 0 | G160: Natural | H160: 68 | I160: SANTANDER | J160: 0 | K160: PEQUEÑA | L160: 5511 | M160: ALOJAMIENTO Y SERVICIOS DE COMIDA | N160: I | O160: Actividades de alojamiento de estancias cortas | P160: Actividades de alojamiento de estancias cortas | Q160: 0 | R160: 0 | S160: 0 | T160: 0 | U160: 0 | V160: 0 | W160: 0 | X160: 0 | AJ160: 0 | AK160: 0 | AL160: 76001 | AM160: CALI | AN160: 0 | AO160: 0 | AP160: Natural | AQ160: 76 | AR160: VALLE DEL CAUCA | AS160: 0 | AT160: MICRO | AU160: 1089 | AV160: INDUSTRIAS MANUFACTURERAS | AW160: C | AX160: Elaboración de otros productos alimenticios | AY160: Elaboración de productos alimenticios | AZ160: 0 | BA160: 0 | BB160: 0 | BC160: 0 | BD160: 0 | BE160: 0 | BF160: 0 | BG160: 0 | BT160: 17174 | BU160: 1 | BV160: 68077 | BW160: 1
C161: 11001 | D161: BOGOTÁ, D.C. | E161: 3 | F161: 0 | G161: Natural | H161: 11 | I161: BOGOTÁ, D.C. | J161: Aprobado con subsidio | K161: MICRO | L161: 8121 | M161: ACTIVIDADES DE SERVICIOS ADMINISTRATIVOS Y DE APOYO | N161: N | O161: Actividades de limpieza | P161: Actividades de limpieza | Q161: 2 | R161: 1 | S161: 0 | T161: 0 | U161: 2 | V161: 1 | W161: 3 | X161: 0 | AJ161: 0 | AK161: 0 | AL161: 17001 | AM161: MANIZALES | AN161: 0 | AO161: 0 | AP161: Natural | AQ161: 17 | AR161: CALDAS | AS161: 0 | AT161: PEQUEÑA | AU161: 1523 | AV161: INDUSTRIAS MANUFACTURERAS | AW161: C | AX161: Fabricación de calzado | AY161: Curtido y recurtido de cueros; fabricación de calzado; fabricación de artículos de viaje, maletas, bolsos de mano y artículos similares, y fabricación de artículos de talabartería y guarnicionería; adobo y teñido de pieles | AZ161: 0 | BA161: 0 | BB161: 0 | BC161: 0 | BD161: 0 | BE161: 0 | BF161: 0 | BG161: 0 | BT161: 15516 | BU161: 2 | BV161: 73026 | BW161: 1
C162: 73001 | D162: IBAGUÉ | E162: 0 | F162: 0 | G162: Natural | H162: 73 | I162: TOLIMA | J162: 0 | K162: MICRO | L162: 4751 | M162: COMERCIO AL POR MAYOR Y AL POR MENOR; REPARACIÓN DE VEHÍCULOS AUTOMOTORES Y MOTOCICLETAS | N162: G | O162: Comercio al por menor de otros enseres domésticos en establecimientos especializados | P162: Comercio al por menor de otros enseres domésticos en establecimientos especializados | Q162: 0 | R162: 0 | S162: 0 | T162: 0 | U162: 0 | V162: 0 | W162: 0 | X162: 0 | AJ162: 0 | AK162: 0 | AL162: 66170 | AM162: DOSQUEBRADAS | AN162: 2 | AO162: 3 | AP162: Natural | AQ162: 66 | AR162: RISARALDA | AS162: Aprobado con subsidio | AT162: MICRO | AU162: 2511 | AV162: INDUSTRIAS MANUFACTURERAS | AW162: C | AX162: Fabricación de productos metálicos para uso estructural, tanques, depósitos y generadores de vapor. | AY162: Fabricación de productos elaborados de metal, excepto maquinaria y equipo | AZ162: 0 | BA162: 2 | BB162: 0 | BC162: 0 | BD162: 0 | BE162: 2 | BF162: 2 | BG162: 0 | BT162: 25769 | BU162: 3 | BV162: 5861 | BW162: 1
C163: 11001 | D163: BOGOTÁ, D.C. | E163: 0 | F163: 0 | G163: Natural | H163: 11 | I163: BOGOTÁ, D.C. | J163: 0 | K163: MICRO | L163: 6910 | M163: ACTIVIDADES PROFESIONALES, CIENTÍFICAS Y TÉCNICAS | N163: M | O163: Actividades jurídicas | P163: Actividades jurídicas | Q163: 0 | R163: 0 | S163: 0 | T163: 0 | U163: 0 | V163: 0 | W163: 0 | X163: 0 | AJ163: 0 | AK163: 0 | AL163: 73001 | AM163: IBAGUÉ | AN163: 1 | AO163: 0 | AP163: Natural | AQ163: 73 | AR163: TOLIMA | AS163: Aprobado con subsidio | AT163: MICRO | AU163: 1081 | AV163: INDUSTRIAS MANUFACTURERAS | AW163: C | AX163: Elaboración de otros productos alimenticios | AY163: Elaboración de productos alimenticios | AZ163: 0 | BA163: 1 | BB163: 0 | BC163: 1 | BD163: 0 | BE163: 0 | BF163: 1 | BG163: 0 | BT163: 20178 | BU163: 1 | BV163: 66088 | BW163: 1
C164: 73001 | D164: IBAGUÉ | E164: 4 | F164: 0 | G164: Natural | H164: 73 | I164: TOLIMA | J164: Aprobado con subsidio | K164: MICRO | L164: 4773 | M164: COMERCIO AL POR MAYOR Y AL POR MENOR; REPARACIÓN DE VEHÍCULOS AUTOMOTORES Y MOTOCICLETAS | N164: G | O164: Comercio al por menor de otros productos en establecimientos especializados | P164: Comercio al por menor de otros productos en establecimientos especializados | Q164: 3 | R164: 1 | S164: 0 | T164: 0 | U164: 3 | V164: 1 | W164: 4 | X164: 0 | AJ164: 0 | AK164: 0 | AL164: 54001 | AM164: CÚCUTA | AN164: 1 | AO164: 0 | AP164: Natural | AQ164: 54 | AR164: NORTE DE SANTANDER | AS164: Aprobado con subsidio | AT164: MICRO | AU164: 1410 | AV164: INDUSTRIAS MANUFACTURERAS | AW164: C | AX164: Confección de prendas de vestir, excepto prendas de piel | AY164: Confección de prendas de vestir | AZ164: 0 | BA164: 1 | BB164: 0 | BC164: 1 | BD164: 0 | BE164: 0 | BF164: 1 | BG164: 0 | BT164: 15131 | BU164: 0 | BV164: 5541 | BW164: 1
C165: 76001 | D165: CALI | E165: 2 | F165: 9 | G165: Natural | H165: 76 | I165: VALLE DEL CAUCA | J165: Aprobado con subsidio | K165: MICRO | L165: 1811 | M165: INDUSTRIAS MANUFACTURERAS | N165: C | O165: Actividades de impresión y actividades de servicios relacionados con la impresión | P165: Actividades de impresión y de producción de copias a partir de grabaciones originales | Q165: 2 | R165: 0 | S165: 0 | T165: 2 | U165: 0 | V165: 0 | W165: 2 | X165: 0 | AJ165: 0 | AK165: 0 | AL165: 11001 | AM165: BOGOTÁ, D.C. | AN165: 2 | AO165: 0 | AP165: Natural | AQ165: 11 | AR165: BOGOTÁ, D.C. | AS165: Aprobado con subsidio | AT165: MICRO | AU165: 1811 | AV165: INDUSTRIAS MANUFACTURERAS | AW165: C | AX165: Actividades de impresión y actividades de servicios relacionados con la impresión | AY165: Actividades de impresión y de producción de copias a partir de grabaciones originales | AZ165: 1 | BA165: 1 | BB165: 0 | BC165: 2 | BD165: 0 | BE165: 0 | BF165: 2 | BG165: 0 | BT165: 25183 | BU165: 2 | BV165: 70820 | BW165: 1
C166: 73001 | D166: IBAGUÉ | E166: 1 | F166: 0 | G166: Natural | H166: 73 | I166: TOLIMA | J166: Aprobado con subsidio | K166: MICRO | L166: 4752 | M166: COMERCIO AL POR MAYOR Y AL POR MENOR; REPARACIÓN DE VEHÍCULOS AUTOMOTORES Y MOTOCICLETAS | N166: G | O166: Comercio al por menor de otros enseres domésticos en establecimientos especializados | P166: Comercio al por menor de otros enseres domésticos en establecimientos especializados | Q166: 0 | R166: 1 | S166: 0 | T166: 1 | U166: 0 | V166: 0 | W166: 1 | X166: 0 | AJ166: 0 | AK166: 0 | AL166: 54518 | AM166: PAMPLONA | AN166: 3 | AO166: 1 | AP166: Natural | AQ166: 54 | AR166: NORTE DE SANTANDER | AS166: Aprobado con subsidio | AT166: PEQUEÑA | AU166: 1081 | AV166: INDUSTRIAS MANUFACTURERAS | AW166: C | AX166: Elaboración de otros productos alimenticios | AY166: Elaboración de productos alimenticios | AZ166: 3 | BA166: 0 | BB166: 0 | BC166: 1 | BD166: 2 | BE166: 0 | BF166: 3 | BG166: 0 | BT166: 23189 | BU166: 1 | BV166: 52399 | BW166: 1
C167: 73001 | D167: IBAGUÉ | E167: 0 | F167: 0 | G167: Natural | H167: 73 | I167: TOLIMA | J167: 0 | K167: MICRO | L167: 4752 | M167: COMERCIO AL POR MAYOR Y AL POR MENOR; REPARACIÓN DE VEHÍCULOS AUTOMOTORES Y MOTOCICLETAS | N167: G | O167: Comercio al por menor de otros enseres domésticos en establecimientos especializados | P167: Comercio al por menor de otros enseres domésticos en establecimientos especializados | Q167: 0 | R167: 0 | S167: 0 | T167: 0 | U167: 0 | V167: 0 | W167: 0 | X167: 0 | AJ167: 0 | AK167: 0 | AL167: 68079 | AM167: BARICHARA | AN167: 0 | AO167: 0 | AP167: Natural | AQ167: 68 | AR167: SANTANDER | AS167: 0 | AT167: MICRO | AU167: 1081 | AV167: INDUSTRIAS MANUFACTURERAS | AW167: C | AX167: Elaboración de otros productos alimenticios | AY167: Elaboración de productos alimenticios | AZ167: 0 | BA167: 0 | BB167: 0 | BC167: 0 | BD167: 0 | BE167: 0 | BF167: 0 | BG167: 0 | BT167: 52473 | BU167: 0 | BV167: 52356 | BW167: 1
C168: 73268 | D168: ESPINAL | E168: 0 | F168: 0 | G168: Natural | H168: 73 | I168: TOLIMA | J168: 0 | K168: PEQUEÑA | L168: 4290 | M168: CONSTRUCCIÓN | N168: F | O168: Construcción de otras obras de ingeniería civil | P168: Construcción de otras obras de ingeniería civil | Q168: 0 | R168: 0 | S168: 0 | T168: 0 | U168: 0 | V168: 0 | W168: 0 | X168: 0 | AJ168: 0 | AK168: 0 | AL168: 68861 | AM168: VÉLEZ | AN168: 1 | AO168: 2 | AP168: Natural | AQ168: 68 | AR168: SANTANDER | AS168: Aprobado con subsidio | AT168: PEQUEÑA | AU168: 1089 | AV168: INDUSTRIAS MANUFACTURERAS | AW168: C | AX168: Elaboración de otros productos alimenticios | AY168: Elaboración de productos alimenticios | AZ168: 0 | BA168: 1 | BB168: 0 | BC168: 1 | BD168: 0 | BE168: 0 | BF168: 1 | BG168: 0 | BT168: 19573 | BU168: 3 | BV168: 41551 | BW168: 1
C169: 5001 | D169: MEDELLÍN | E169: 0 | F169: 0 | G169: Natural | H169: 5 | I169: ANTIOQUIA | J169: 0 | K169: MICRO | L169: 4719 | M169: COMERCIO AL POR MAYOR Y AL POR MENOR; REPARACIÓN DE VEHÍCULOS AUTOMOTORES Y MOTOCICLETAS | N169: G | O169: Comercio al por menor en establecimientos no especializados | P169: Comercio al por menor en establecimientos no especializados | Q169: 0 | R169: 0 | S169: 0 | T169: 0 | U169: 0 | V169: 0 | W169: 0 | X169: 0 | AJ169: 0 | AK169: 0 | AL169: 52001 | AM169: PASTO | AN169: 0 | AO169: 0 | AP169: Natural | AQ169: 52 | AR169: NARIÑO | AS169: 0 | AT169: MICRO | AU169: 3250 | AV169: INDUSTRIAS MANUFACTURERAS | AW169: C | AX169: Fabricación de instrumentos, aparatos y materiales médicos y odontológicos (incluido mobiliario) | AY169: Otras industrias manufactureras | AZ169: 0 | BA169: 0 | BB169: 0 | BC169: 0 | BD169: 0 | BE169: 0 | BF169: 0 | BG169: 0 | BT169: 23466 | BU169: 1 | BV169: 5264 | BW169: 1
C170: 63001 | D170: ARMENIA | E170: 0 | F170: 0 | G170: Natural | H170: 63 | I170: QUINDÍO | J170: 0 | K170: PEQUEÑA | L170: 4752 | M170: COMERCIO AL POR MAYOR Y AL POR MENOR; REPARACIÓN DE VEHÍCULOS AUTOMOTORES Y MOTOCICLETAS | N170: G | O170: Comercio al por menor de otros enseres domésticos en establecimientos especializados | P170: Comercio al por menor de otros enseres domésticos en establecimientos especializados | Q170: 0 | R170: 0 | S170: 0 | T170: 0 | U170: 0 | V170: 0 | W170: 0 | X170: 0 | AJ170: 0 | AK170: 0 | AL170: 17001 | AM170: MANIZALES | AN170: 3 | AO170: 21 | AP170: Natural | AQ170: 17 | AR170: CALDAS | AS170: Aprobado con subsidio | AT170: PEQUEÑA | AU170: 1081 | AV170: INDUSTRIAS MANUFACTURERAS | AW170: C | AX170: Elaboración de otros productos alimenticios | AY170: Elaboración de productos alimenticios | AZ170: 2 | BA170: 1 | BB170: 0 | BC170: 3 | BD170: 0 | BE170: 0 | BF170: 3 | BG170: 0 | BT170: 76020 | BU170: 2 | BV170: 25377 | BW170: 1
C171: 76001 | D171: CALI | E171: 0 | F171: 0 | G171: Natural | H171: 76 | I171: VALLE DEL CAUCA | J171: 0 | K171: MICRO | L171: 5611 | M171: ALOJAMIENTO Y SERVICIOS DE COMIDA | N171: I | O171: Actividades de restaurantes, cafeterías y servicio móvil de comidas | P171: Actividades de restaurantes, cafeterías y servicio móvil de comidas | Q171: 0 | R171: 0 | S171: 0 | T171: 0 | U171: 0 | V171: 0 | W171: 0 | X171: 0 | AJ171: 0 | AK171: 0 | AL171: 17001 | AM171: MANIZALES | AN171: 0 | AO171: 0 | AP171: Natural | AQ171: 17 | AR171: CALDAS | AS171: 0 | AT171: MICRO | AU171: 1812 | AV171: INDUSTRIAS MANUFACTURERAS | AW171: C | AX171: Actividades de impresión y actividades de servicios relacionados con la impresión | AY171: Fabricación de papel, cartón y productos de papel y cartón | AZ171: 0 | BA171: 0 | BB171: 0 | BC171: 0 | BD171: 0 | BE171: 0 | BF171: 0 | BG171: 0 | BT171: 25099 | BU171: 0 | BV171: 76233 | BW171: 1
C172: 50001 | D172: VILLAVICENCIO | E172: 7 | F172: 10 | G172: Natural | H172: 50 | I172: META | J172: Aprobado con subsidio | K172: PEQUEÑA | L172: 5511 | M172: ALOJAMIENTO Y SERVICIOS DE COMIDA | N172: I | O172: Actividades de alojamiento de estancias cortas | P172: Actividades de alojamiento de estancias cortas | Q172: 4 | R172: 3 | S172: 0 | T172: 4 | U172: 3 | V172: 0 | W172: 7 | X172: 0 | AJ172: 0 | AK172: 0 | AL172: 17001 | AM172: MANIZALES | AN172: 3 | AO172: 17 | AP172: Natural | AQ172: 17 | AR172: CALDAS | AS172: Aprobado con subsidio | AT172: PEQUEÑA | AU172: 1523 | AV172: INDUSTRIAS MANUFACTURERAS | AW172: C | AX172: Fabricación de calzado | AY172: Curtido y recurtido de cueros; fabricación de calzado; fabricación de artículos de viaje, maletas, bolsos de mano y artículos similares, y fabricación de artículos de talabartería y guarnicionería; adobo y teñido de pieles | AZ172: 3 | BA172: 0 | BB172: 0 | BC172: 2 | BD172: 1 | BE172: 0 | BF172: 3 | BG172: 0 | BT172: 76622 | BU172: 0 | BV172: 25402 | BW172: 1
C173: 73001 | D173: IBAGUÉ | E173: 0 | F173: 0 | G173: Natural | H173: 73 | I173: TOLIMA | J173: 0 | K173: MICRO | L173: 4752 | M173: COMERCIO AL POR MAYOR Y AL POR MENOR; REPARACIÓN DE VEHÍCULOS AUTOMOTORES Y MOTOCICLETAS | N173: G | O173: Comercio al por menor de otros enseres domésticos en establecimientos especializados | P173: Comercio al por menor de otros enseres domésticos en establecimientos especializados | Q173: 0 | R173: 0 | S173: 0 | T173: 0 | U173: 0 | V173: 0 | W173: 0 | X173: 0 | AJ173: 0 | AK173: 0 | AL173: 52001 | AM173: PASTO | AN173: 0 | AO173: 0 | AP173: Natural | AQ173: 52 | AR173: NARIÑO | AS173: 0 | AT173: MICRO | AU173: 2229 | AV173: INDUSTRIAS MANUFACTURERAS | AW173: C | AX173: Fabricación de productos de plástico | AY173: Fabricación de productos de caucho y de plástico | AZ173: 0 | BA173: 0 | BB173: 0 | BC173: 0 | BD173: 0 | BE173: 0 | BF173: 0 | BG173: 0 | BT173: 68077 | BU173: 1 | BV173: 73449 | BW173: 1
C174: 76834 | D174: TULUÁ | E174: 1 | F174: 5 | G174: Natural | H174: 76 | I174: VALLE DEL CAUCA | J174: Aprobado con subsidio | K174: PEQUEÑA | L174: 4751 | M174: COMERCIO AL POR MAYOR Y AL POR MENOR; REPARACIÓN DE VEHÍCULOS AUTOMOTORES Y MOTOCICLETAS | N174: G | O174: Comercio al por menor de otros enseres domésticos en establecimientos especializados | P174: Comercio al por menor de otros enseres domésticos en establecimientos especializados | Q174: 1 | R174: 0 | S174: 0 | T174: 0 | U174: 1 | V174: 0 | W174: 1 | X174: 0 | AJ174: 0 | AK174: 0 | AL174: 76001 | AM174: CALI | AN174: 0 | AO174: 0 | AP174: Natural | AQ174: 76 | AR174: VALLE DEL CAUCA | AS174: 0 | AT174: PEQUEÑA | AU174: 1690 | AV174: INDUSTRIAS MANUFACTURERAS | AW174: C | AX174: Fabricación de otros productos de madera; fabricación de artículos de corcho, cestería y espartería | AY174: Transformación de la madera y fabricación de productos de madera y de corcho, excepto muebles; fabricación de artículos de cestería y espartería | AZ174: 0 | BA174: 0 | BB174: 0 | BC174: 0 | BD174: 0 | BE174: 0 | BF174: 0 | BG174: 0 | BT174: 5591 | BU174: 0 | BV174: 25718 | BW174: 1
C175: 76020 | D175: ALCALÁ | E175: 6 | F175: 1 | G175: Natural | H175: 76 | I175: VALLE DEL CAUCA | J175: Aprobado con subsidio | K175: MICRO | L175: 4752 | M175: COMERCIO AL POR MAYOR Y AL POR MENOR; REPARACIÓN DE VEHÍCULOS AUTOMOTORES Y MOTOCICLETAS | N175: G | O175: Comercio al por menor de otros enseres domésticos en establecimientos especializados | P175: Comercio al por menor de otros enseres domésticos en establecimientos especializados | Q175: 2 | R175: 4 | S175: 0 | T175: 2 | U175: 2 | V175: 2 | W175: 6 | X175: 0 | AJ175: 0 | AK175: 0 | AL175: 76001 | AM175: CALI | AN175: 3 | AO175: 4 | AP175: Natural | AQ175: 76 | AR175: VALLE DEL CAUCA | AS175: Aprobado con subsidio | AT175: PEQUEÑA | AU175: 1089 | AV175: INDUSTRIAS MANUFACTURERAS | AW175: C | AX175: Elaboración de otros productos alimenticios | AY175: Elaboración de productos alimenticios | AZ175: 1 | BA175: 2 | BB175: 0 | BC175: 2 | BD175: 1 | BE175: 0 | BF175: 2 | BG175: 1 | BT175: 73026 | BU175: 1 | BV175: 15491 | BW175: 1
C176: 76001 | D176: CALI | E176: 0 | F176: 0 | G176: Natural | H176: 76 | I176: VALLE DEL CAUCA | J176: 0 | K176: PEQUEÑA | L176: 4762 | M176: COMERCIO AL POR MAYOR Y AL POR MENOR; REPARACIÓN DE VEHÍCULOS AUTOMOTORES Y MOTOCICLETAS | N176: G | O176: Comercio al por menor de artículos culturales y de entretenimiento, en establecimientos especializados | P176: Comercio al por menor de artículos culturales y de entretenimiento, en establecimientos especializados | Q176: 0 | R176: 0 | S176: 0 | T176: 0 | U176: 0 | V176: 0 | W176: 0 | X176: 0 | AJ176: 0 | AK176: 0 | AL176: 52001 | AM176: PASTO | AN176: 4 | AO176: 0 | AP176: Natural | AQ176: 52 | AR176: NARIÑO | AS176: Aprobado con subsidio | AT176: MICRO | AU176: 1410 | AV176: INDUSTRIAS MANUFACTURERAS | AW176: C | AX176: Confección de prendas de vestir, excepto prendas de piel | AY176: Confección de prendas de vestir | AZ176: 3 | BA176: 1 | BB176: 0 | BC176: 4 | BD176: 0 | BE176: 0 | BF176: 4 | BG176: 0 | BT176: 5861 | BU176: 1 | BV176: 20250 | BW176: 1
C177: 76001 | D177: CALI | E177: 0 | F177: 0 | G177: Natural | H177: 76 | I177: VALLE DEL CAUCA | J177: 0 | K177: PEQUEÑA | L177: 150 | M177: AGRICULTURA, GANADERÍA, CAZA, SILVICULTURA Y PESCA | N177: A | O177: Explotación mixta (agrícola y pecuaria) | P177: Explotación mixta (agrícola y pecuaria) | Q177: 0 | R177: 0 | S177: 0 | T177: 0 | U177: 0 | V177: 0 | W177: 0 | X177: 0 | AJ177: 0 | AK177: 0 | AL177: 76001 | AM177: CALI | AN177: 3 | AO177: 2 | AP177: Natural | AQ177: 76 | AR177: VALLE DEL CAUCA | AS177: Aprobado con subsidio | AT177: PEQUEÑA | AU177: 1089 | AV177: INDUSTRIAS MANUFACTURERAS | AW177: C | AX177: Elaboración de otros productos alimenticios | AY177: Elaboración de productos alimenticios | AZ177: 2 | BA177: 1 | BB177: 0 | BC177: 3 | BD177: 0 | BE177: 0 | BF177: 3 | BG177: 0 | BT177: 66088 | BU177: 1 | BV177: 25736 | BW177: 1
C178: 11001 | D178: BOGOTÁ, D.C. | E178: 0 | F178: 0 | G178: Natural | H178: 11 | I178: BOGOTÁ, D.C. | J178: 0 | K178: MICRO | L178: 2599 | M178: INDUSTRIAS MANUFACTURERAS | N178: C | O178: Fabricación de otros productos elaborados de metal y actividades de servicios relacionadas con el trabajo de metales | P178: Fabricación de productos elaborados de metal, excepto maquinaria y equipo | Q178: 0 | R178: 0 | S178: 0 | T178: 0 | U178: 0 | V178: 0 | W178: 0 | X178: 0 | AJ178: 0 | AK178: 0 | AL178: 76001 | AM178: CALI | AN178: 0 | AO178: 0 | AP178: Natural | AQ178: 76 | AR178: VALLE DEL CAUCA | AS178: 0 | AT178: PEQUEÑA | AU178: 1089 | AV178: INDUSTRIAS MANUFACTURERAS | AW178: C | AX178: Elaboración de otros productos alimenticios | AY178: Elaboración de productos alimenticios | AZ178: 0 | BA178: 0 | BB178: 0 | BC178: 0 | BD178: 0 | BE178: 0 | BF178: 0 | BG178: 0 | BT178: 20710 | BU178: 0 | BV178: 25295 | BW178: 1
C179: 76001 | D179: CALI | E179: 3 | F179: 0 | G179: Natural | H179: 76 | I179: VALLE DEL CAUCA | J179: Aprobado con subsidio | K179: MICRO | L179: 5611 | M179: ALOJAMIENTO Y SERVICIOS DE COMIDA | N179: I | O179: Actividades de restaurantes, cafeterías y servicio móvil de comidas | P179: Actividades de restaurantes, cafeterías y servicio móvil de comidas | Q179: 1 | R179: 2 | S179: 0 | T179: 2 | U179: 0 | V179: 1 | W179: 3 | X179: 0 | AJ179: 0 | AK179: 0 | AL179: 76001 | AM179: CALI | AN179: 0 | AO179: 0 | AP179: Natural | AQ179: 76 | AR179: VALLE DEL CAUCA | AS179: 0 | AT179: MICRO | AU179: 1521 | AV179: INDUSTRIAS MANUFACTURERAS | AW179: C | AX179: Fabricación de calzado | AY179: Curtido y recurtido de cueros; fabricación de calzado; fabricación de artículos de viaje, maletas, bolsos de mano y artículos similares, y fabricación de artículos de talabartería y guarnicionería; adobo y teñido de pieles | AZ179: 0 | BA179: 0 | BB179: 0 | BC179: 0 | BD179: 0 | BE179: 0 | BF179: 0 | BG179: 0 | BT179: 5541 | BU179: 1 | BV179: 68689 | BW179: 1
C180: 5001 | D180: MEDELLÍN | E180: 0 | F180: 0 | G180: Natural | H180: 5 | I180: ANTIOQUIA | J180: 0 | K180: PEQUEÑA | L180: 1410 | M180: INDUSTRIAS MANUFACTURERAS | N180: C | O180: Confección de prendas de vestir, excepto prendas de piel | P180: Confección de prendas de vestir | Q180: 0 | R180: 0 | S180: 0 | T180: 0 | U180: 0 | V180: 0 | W180: 0 | X180: 0 | AJ180: 0 | AK180: 0 | AL180: 76001 | AM180: CALI | AN180: 2 | AO180: 5 | AP180: Natural | AQ180: 76 | AR180: VALLE DEL CAUCA | AS180: Aprobado con subsidio | AT180: PEQUEÑA | AU180: 2511 | AV180: INDUSTRIAS MANUFACTURERAS | AW180: C | AX180: Fabricación de productos metálicos para uso estructural, tanques, depósitos y generadores de vapor. | AY180: Fabricación de productos elaborados de metal, excepto maquinaria y equipo | AZ180: 0 | BA180: 1 | BB180: 1 | BC180: 2 | BD180: 0 | BE180: 0 | BF180: 1 | BG180: 1 | BT180: 70820 | BU180: 1 | BV180: 76036 | BW180: 1
C181: 76122 | D181: CAICEDONIA | E181: 1 | F181: 1 | G181: Natural | H181: 76 | I181: VALLE DEL CAUCA | J181: Aprobado con subsidio | K181: MICRO | L181: 6920 | M181: ACTIVIDADES PROFESIONALES, CIENTÍFICAS Y TÉCNICAS | N181: M | O181: Actividades de contabilidad, teneduría de libros, auditoria financiera y asesoría tributaria | P181: Actividades de contabilidad, teneduría de libros, auditoria financiera y asesoría tributaria | Q181: 1 | R181: 0 | S181: 0 | T181: 1 | U181: 0 | V181: 0 | W181: 1 | X181: 0 | AJ181: 0 | AK181: 0 | AL181: 5001 | AM181: MEDELLÍN | AN181: 6 | AO181: 15 | AP181: Natural | AQ181: 5 | AR181: ANTIOQUIA | AS181: Aprobado con subsidio | AT181: PEQUEÑA | AU181: 1051 | AV181: INDUSTRIAS MANUFACTURERAS | AW181: C | AX181: Elaboración de productos de molinería, almidones y productos derivados del almidón | AY181: Elaboración de productos alimenticios | AZ181: 2 | BA181: 4 | BB181: 0 | BC181: 6 | BD181: 0 | BE181: 0 | BF181: 6 | BG181: 0 | BT181: 52399 | BU181: 1 | BV181: 8573 | BW181: 1
C182: 76248 | D182: EL CERRITO | E182: 0 | F182: 0 | G182: Natural | H182: 76 | I182: VALLE DEL CAUCA | J182: 0 | K182: MICRO | L182: 3110 | M182: INDUSTRIAS MANUFACTURERAS | N182: C | O182: Fabricación de muebles | P182: Fabricación de muebles, colchones y somieres | Q182: 0 | R182: 0 | S182: 0 | T182: 0 | U182: 0 | V182: 0 | W182: 0 | X182: 0 | AJ182: 0 | AK182: 0 | AL182: 5001 | AM182: MEDELLÍN | AN182: 0 | AO182: 0 | AP182: Natural | AQ182: 5 | AR182: ANTIOQUIA | AS182: 0 | AT182: PEQUEÑA | AU182: 3110 | AV182: INDUSTRIAS MANUFACTURERAS | AW182: C | AX182: Fabricación de muebles | AY182: Fabricación de muebles, colchones y somieres | AZ182: 0 | BA182: 0 | BB182: 0 | BC182: 0 | BD182: 0 | BE182: 0 | BF182: 0 | BG182: 0 | BT182: 52356 | BU182: 1 | BV182: 68755 | BW182: 1
C183: 50001 | D183: VILLAVICENCIO | E183: 0 | F183: 0 | G183: Natural | H183: 50 | I183: META | J183: 0 | K183: MICRO | L183: 4719 | M183: COMERCIO AL POR MAYOR Y AL POR MENOR; REPARACIÓN DE VEHÍCULOS AUTOMOTORES Y MOTOCICLETAS | N183: G | O183: Comercio al por menor en establecimientos no especializados | P183: Comercio al por menor en establecimientos no especializados | Q183: 0 | R183: 0 | S183: 0 | T183: 0 | U183: 0 | V183: 0 | W183: 0 | X183: 0 | AJ183: 0 | AK183: 0 | AL183: 5001 | AM183: MEDELLÍN | AN183: 0 | AO183: 0 | AP183: Natural | AQ183: 5 | AR183: ANTIOQUIA | AS183: 0 | AT183: MICRO | AU183: 1811 | AV183: INDUSTRIAS MANUFACTURERAS | AW183: C | AX183: Actividades de impresión y actividades de servicios relacionados con la impresión | AY183: Actividades de impresión y de producción de copias a partir de grabaciones originales | AZ183: 0 | BA183: 0 | BB183: 0 | BC183: 0 | BD183: 0 | BE183: 0 | BF183: 0 | BG183: 0 | BT183: 41551 | BU183: 1 | BV183: 85162 | BW183: 1
C184: 76892 | D184: YUMBO | E184: 0 | F184: 0 | G184: Natural | H184: 76 | I184: VALLE DEL CAUCA | J184: 0 | K184: MICRO | L184: 1690 | M184: INDUSTRIAS MANUFACTURERAS | N184: C | O184: Fabricación de otros productos de madera; fabricación de artículos de corcho, cestería y espartería | P184: Transformación de la madera y fabricación de productos de madera y de corcho, excepto muebles; fabricación de artículos de cestería y espartería | Q184: 0 | R184: 0 | S184: 0 | T184: 0 | U184: 0 | V184: 0 | W184: 0 | X184: 0 | AJ184: 0 | AK184: 0 | AL184: 5001 | AM184: MEDELLÍN | AN184: 0 | AO184: 0 | AP184: Natural | AQ184: 5 | AR184: ANTIOQUIA | AS184: 0 | AT184: PEQUEÑA | AU184: 1410 | AV184: INDUSTRIAS MANUFACTURERAS | AW184: C | AX184: Confección de prendas de vestir, excepto prendas de piel | AY184: Confección de prendas de vestir | AZ184: 0 | BA184: 0 | BB184: 0 | BC184: 0 | BD184: 0 | BE184: 0 | BF184: 0 | BG184: 0 | BT184: 5264 | BU184: 1 | BV184: 5154 | BW184: 1
C185: 76400 | D185: LA UNIÓN | E185: 10 | F185: 12 | G185: Natural | H185: 76 | I185: VALLE DEL CAUCA | J185: Aprobado con subsidio | K185: PEQUEÑA | L185: 130 | M185: AGRICULTURA, GANADERÍA, CAZA, SILVICULTURA Y PESCA | N185: A | O185: Propagación de plantas (actividades de los viveros, excepto viveros forestales) | P185: Propagación de plantas (actividades de los viveros, excepto viveros forestales) | Q185: 1 | R185: 9 | S185: 0 | T185: 9 | U185: 0 | V185: 1 | W185: 10 | X185: 0 | AJ185: 0 | AK185: 0 | AL185: 5001 | AM185: MEDELLÍN | AN185: 2 | AO185: 0 | AP185: Natural | AQ185: 5 | AR185: ANTIOQUIA | AS185: Aprobado con subsidio | AT185: MICRO | AU185: 1410 | AV185: INDUSTRIAS MANUFACTURERAS | AW185: C | AX185: Confección de prendas de vestir, excepto prendas de piel | AY185: Confección de prendas de vestir | AZ185: 2 | BA185: 0 | BB185: 0 | BC185: 0 | BD185: 2 | BE185: 0 | BF185: 2 | BG185: 0 | BT185: 25377 | BU185: 1 | BV185: 50318 | BW185: 1
C186: 76001 | D186: CALI | E186: 1 | F186: 0 | G186: Natural | H186: 76 | I186: VALLE DEL CAUCA | J186: Aprobado con subsidio | K186: MICRO | L186: 4741 | M186: COMERCIO AL POR MAYOR Y AL POR MENOR; REPARACIÓN DE VEHÍCULOS AUTOMOTORES Y MOTOCICLETAS | N186: G | O186: Comercio al por menor de equipos de informática y de comunicaciones, en establecimientos especializados | P186: Comercio al por menor de equipos de informática y de comunicaciones, en establecimientos especializados | Q186: 0 | R186: 1 | S186: 0 | T186: 0 | U186: 0 | V186: 1 | W186: 1 | X186: 0 | AJ186: 0 | AK186: 0 | AL186: 8001 | AM186: BARRANQUILLA | AN186: 0 | AO186: 0 | AP186: Natural | AQ186: 8 | AR186: ATLÁNTICO | AS186: 0 | AT186: MICRO | AU186: 1410 | AV186: INDUSTRIAS MANUFACTURERAS | AW186: C | AX186: Confección de prendas de vestir, excepto prendas de piel | AY186: Confección de prendas de vestir | AZ186: 0 | BA186: 0 | BB186: 0 | BC186: 0 | BD186: 0 | BE186: 0 | BF186: 0 | BG186: 0 | BT186: 76233 | BU186: 1 | BV186: 15469 | BW186: 1
C187: 76001 | D187: CALI | E187: 2 | F187: 1 | G187: Natural | H187: 76 | I187: VALLE DEL CAUCA | J187: Aprobado con subsidio | K187: MICRO | L187: 1081 | M187: INDUSTRIAS MANUFACTURERAS | N187: C | O187: Elaboración de otros productos alimenticios | P187: Elaboración de productos alimenticios | Q187: 1 | R187: 1 | S187: 0 | T187: 0 | U187: 1 | V187: 1 | W187: 2 | X187: 0 | AJ187: 0 | AK187: 0 | AL187: 5615 | AM187: RIONEGRO | AN187: 2 | AO187: 0 | AP187: Natural | AQ187: 5 | AR187: ANTIOQUIA | AS187: Aprobado con subsidio | AT187: MICRO | AU187: 1081 | AV187: INDUSTRIAS MANUFACTURERAS | AW187: C | AX187: Elaboración de otros productos alimenticios | AY187: Elaboración de productos alimenticios | AZ187: 1 | BA187: 1 | BB187: 0 | BC187: 2 | BD187: 0 | BE187: 0 | BF187: 2 | BG187: 0 | BT187: 25402 | BU187: 1 | BV187: 5887 | BW187: 1
C188: 76122 | D188: CAICEDONIA | E188: 1 | F188: 19 | G188: Natural | H188: 76 | I188: VALLE DEL CAUCA | J188: Aprobado con subsidio | K188: MEDIANA | L188: 4669 | M188: COMERCIO AL POR MAYOR Y AL POR MENOR; REPARACIÓN DE VEHÍCULOS AUTOMOTORES Y MOTOCICLETAS | N188: G | O188: Comercio al por mayor especializado de otros productos | P188: Comercio al por mayor especializado de otros productos | Q188: 0 | R188: 1 | S188: 0 | T188: 1 | U188: 0 | V188: 0 | W188: 1 | X188: 0 | AJ188: 0 | AK188: 0 | AL188: 8001 | AM188: BARRANQUILLA | AN188: 0 | AO188: 0 | AP188: Natural | AQ188: 8 | AR188: ATLÁNTICO | AS188: 0 | AT188: MICRO | AU188: 1811 | AV188: INDUSTRIAS MANUFACTURERAS | AW188: C | AX188: Actividades de impresión y actividades de servicios relacionados con la impresión | AY188: Actividades de impresión y de producción de copias a partir de grabaciones originales | AZ188: 0 | BA188: 0 | BB188: 0 | BC188: 0 | BD188: 0 | BE188: 0 | BF188: 0 | BG188: 0 | BT188: 73449 | BU188: 1 | BV188: 15646 | BW188: 1
C189: 76001 | D189: CALI | E189: 1 | F189: 9 | G189: Natural | H189: 76 | I189: VALLE DEL CAUCA | J189: Aprobado con subsidio | K189: PEQUEÑA | L189: 1410 | M189: INDUSTRIAS MANUFACTURERAS | N189: C | O189: Confección de prendas de vestir, excepto prendas de piel | P189: Confección de prendas de vestir | Q189: 1 | R189: 0 | S189: 0 | T189: 1 | U189: 0 | V189: 0 | W189: 1 | X189: 0 | AJ189: 0 | AK189: 0 | AL189: 11001 | AM189: BOGOTÁ, D.C. | AN189: 4 | AO189: 1 | AP189: Natural | AQ189: 11 | AR189: BOGOTÁ, D.C. | AS189: Aprobado con subsidio | AT189: MICRO | AU189: 1410 | AV189: INDUSTRIAS MANUFACTURERAS | AW189: C | AX189: Confección de prendas de vestir, excepto prendas de piel | AY189: Confección de prendas de vestir | AZ189: 2 | BA189: 2 | BB189: 0 | BC189: 4 | BD189: 0 | BE189: 0 | BF189: 4 | BG189: 0 | BT189: 25718 | BU189: 1 | BV189: 50568 | BW189: 1
C190: 76834 | D190: TULUÁ | E190: 6 | F190: 0 | G190: Natural | H190: 76 | I190: VALLE DEL CAUCA | J190: Aprobado con subsidio | K190: MICRO | L190: 4774 | M190: COMERCIO AL POR MAYOR Y AL POR MENOR; REPARACIÓN DE VEHÍCULOS AUTOMOTORES Y MOTOCICLETAS | N190: G | O190: Comercio al por menor de otros productos en establecimientos especializados | P190: Comercio al por menor de otros productos en establecimientos especializados | Q190: 3 | R190: 3 | S190: 0 | T190: 4 | U190: 2 | V190: 0 | W190: 6 | X190: 0 | AJ190: 0 | AK190: 0 | AL190: 23001 | AM190: MONTERÍA | AN190: 0 | AO190: 0 | AP190: Natural | AQ190: 23 | AR190: CÓRDOBA | AS190: 0 | AT190: MICRO | AU190: 1089 | AV190: INDUSTRIAS MANUFACTURERAS | AW190: C | AX190: Elaboración de otros productos alimenticios | AY190: Elaboración de productos alimenticios | AZ190: 0 | BA190: 0 | BB190: 0 | BC190: 0 | BD190: 0 | BE190: 0 | BF190: 0 | BG190: 0 | BT190: 63190 | BU190: 0 | BV190: 41396 | BW190: 1
C191: 76111 | D191: GUADALAJARA DE BUGA | E191: 1 | F191: 1 | G191: Natural | H191: 76 | I191: VALLE DEL CAUCA | J191: Aprobado con subsidio | K191: MICRO | L191: 4923 | M191: TRANSPORTE Y ALMACENAMIENTO | N191: H | O191: Transporte terrestre publico automotor | P191: Transporte terrestre publico automotor | Q191: 0 | R191: 1 | S191: 0 | T191: 0 | U191: 0 | V191: 1 | W191: 1 | X191: 0 | AJ191: 0 | AK191: 0 | AL191: 50001 | AM191: VILLAVICENCIO | AN191: 0 | AO191: 0 | AP191: Natural | AQ191: 50 | AR191: META | AS191: 0 | AT191: MICRO | AU191: 1410 | AV191: INDUSTRIAS MANUFACTURERAS | AW191: C | AX191: Confección de prendas de vestir, excepto prendas de piel | AY191: Confección de prendas de vestir | AZ191: 0 | BA191: 0 | BB191: 0 | BC191: 0 | BD191: 0 | BE191: 0 | BF191: 0 | BG191: 0 | BT191: 20045 | BU191: 0 | BV191: 5313 | BW191: 1
C192: 76001 | D192: CALI | E192: 0 | F192: 0 | G192: Natural | H192: 76 | I192: VALLE DEL CAUCA | J192: 0 | K192: PEQUEÑA | L192: 4773 | M192: COMERCIO AL POR MAYOR Y AL POR MENOR; REPARACIÓN DE VEHÍCULOS AUTOMOTORES Y MOTOCICLETAS | N192: G | O192: Comercio al por menor de otros productos en establecimientos especializados | P192: Comercio al por menor de otros productos en establecimientos especializados | Q192: 0 | R192: 0 | S192: 0 | T192: 0 | U192: 0 | V192: 0 | W192: 0 | X192: 0 | AJ192: 0 | AK192: 0 | AL192: 25899 | AM192: ZIPAQUIRÁ | AN192: 12 | AO192: 9 | AP192: Natural | AQ192: 25 | AR192: CUNDINAMARCA | AS192: Aprobado con subsidio | AT192: PEQUEÑA | AU192: 1040 | AV192: INDUSTRIAS MANUFACTURERAS | AW192: C | AX192: Elaboración de productos lácteos | AY192: Elaboración de productos alimenticios | AZ192: 12 | BA192: 0 | BB192: 0 | BC192: 3 | BD192: 9 | BE192: 0 | BF192: 12 | BG192: 0 | BT192: 5670 | BU192: 4 | BV192: 81300 | BW192: 1
C193: 5088 | D193: BELLO | E193: 2 | F193: 0 | G193: Natural | H193: 5 | I193: ANTIOQUIA | J193: Aprobado con subsidio | K193: MICRO | L193: 4752 | M193: COMERCIO AL POR MAYOR Y AL POR MENOR; REPARACIÓN DE VEHÍCULOS AUTOMOTORES Y MOTOCICLETAS | N193: G | O193: Comercio al por menor de otros enseres domésticos en establecimientos especializados | P193: Comercio al por menor de otros enseres domésticos en establecimientos especializados | Q193: 0 | R193: 2 | S193: 0 | T193: 2 | U193: 0 | V193: 0 | W193: 2 | X193: 0 | AJ193: 0 | AK193: 0 | AL193: 41001 | AM193: NEIVA | AN193: 4 | AO193: 0 | AP193: Natural | AQ193: 41 | AR193: HUILA | AS193: Aprobado con subsidio | AT193: MICRO | AU193: 1709 | AV193: INDUSTRIAS MANUFACTURERAS | AW193: C | AX193: Fabricación de papel, cartón y productos de papel y cartón | AY193: Fabricación de papel, cartón y productos de papel y cartón | AZ193: 1 | BA193: 3 | BB193: 0 | BC193: 3 | BD193: 1 | BE193: 0 | BF193: 4 | BG193: 0 | BT193: 81736 | BU193: 0 | BV193: 50287 | BW193: 1
C194: 41551 | D194: PITALITO | E194: 1 | F194: 31 | G194: Natural | H194: 41 | I194: HUILA | J194: Aprobado con subsidio | K194: MEDIANA | L194: 4711 | M194: COMERCIO AL POR MAYOR Y AL POR MENOR; REPARACIÓN DE VEHÍCULOS AUTOMOTORES Y MOTOCICLETAS | N194: G | O194: Comercio al por menor en establecimientos no especializados | P194: Comercio al por menor en establecimientos no especializados | Q194: 1 | R194: 0 | S194: 0 | T194: 1 | U194: 0 | V194: 0 | W194: 1 | X194: 0 | AJ194: 0 | AK194: 0 | AL194: 54001 | AM194: CÚCUTA | AN194: 0 | AO194: 0 | AP194: Natural | AQ194: 54 | AR194: NORTE DE SANTANDER | AS194: 0 | AT194: MICRO | AU194: 1081 | AV194: INDUSTRIAS MANUFACTURERAS | AW194: C | AX194: Elaboración de otros productos alimenticios | AY194: Elaboración de productos alimenticios | AZ194: 0 | BA194: 0 | BB194: 0 | BC194: 0 | BD194: 0 | BE194: 0 | BF194: 0 | BG194: 0 | BT194: 15491 | BU194: =COUNTIFS($AS$2:$AS$399999,"Aprobado con subsidio",$AL$2:$AL$399999,BT194) -> 1 | BV194: 5190 | BW194: 1
C195: 15001 | D195: TUNJA | E195: 0 | F195: 0 | G195: Natural | H195: 15 | I195: BOYACÁ | J195: 0 | K195: MICRO | L195: 7420 | M195: ACTIVIDADES PROFESIONALES, CIENTÍFICAS Y TÉCNICAS | N195: M | O195: Actividades de fotografía | P195: Actividades de fotografía | Q195: 0 | R195: 0 | S195: 0 | T195: 0 | U195: 0 | V195: 0 | W195: 0 | X195: 0 | AJ195: 0 | AK195: 0 | AL195: 68307 | AM195: GIRÓN | AN195: 13 | AO195: 3 | AP195: Natural | AQ195: 68 | AR195: SANTANDER | AS195: Aprobado con subsidio | AT195: MICRO | AU195: 1410 | AV195: INDUSTRIAS MANUFACTURERAS | AW195: C | AX195: Confección de prendas de vestir, excepto prendas de piel | AY195: Confección de prendas de vestir | AZ195: 9 | BA195: 4 | BB195: 0 | BC195: 7 | BD195: 5 | BE195: 1 | BF195: 13 | BG195: 0 | BT195: 20250 | BU195: 1 | BV195: 63272 | BW195: 1
C196: 15001 | D196: TUNJA | E196: 0 | F196: 0 | G196: Natural | H196: 15 | I196: BOYACÁ | J196: 0 | K196: MICRO | L196: 8512 | M196: EDUCACIÓN | N196: P | O196: Educación de la primera infancia, preescolar y básica primaria | P196: Educación de la primera infancia, preescolar y básica primaria | Q196: 0 | R196: 0 | S196: 0 | T196: 0 | U196: 0 | V196: 0 | W196: 0 | X196: 0 | AJ196: 0 | AK196: 0 | AL196: 68547 | AM196: PIEDECUESTA | AN196: 0 | AO196: 0 | AP196: Natural | AQ196: 68 | AR196: SANTANDER | AS196: 0 | AT196: PEQUEÑA | AU196: 1410 | AV196: INDUSTRIAS MANUFACTURERAS | AW196: C | AX196: Confección de prendas de vestir, excepto prendas de piel | AY196: Confección de prendas de vestir | AZ196: 0 | BA196: 0 | BB196: 0 | BC196: 0 | BD196: 0 | BE196: 0 | BF196: 0 | BG196: 0 | BT196: 66687 | BU196: 0 | BV196: 15835 | BW196: 1
C197: 11001 | D197: BOGOTÁ, D.C. | E197: 3 | F197: 8 | G197: Natural | H197: 11 | I197: BOGOTÁ, D.C. | J197: Aprobado con subsidio | K197: PEQUEÑA | L197: 8521 | M197: EDUCACIÓN | N197: P | O197: Educación secundaria y de formación laboral | P197: Educación secundaria y de formación laboral | Q197: 1 | R197: 2 | S197: 0 | T197: 3 | U197: 0 | V197: 0 | W197: 3 | X197: 0 | AJ197: 0 | AK197: 0 | AL197: 68001 | AM197: BUCARAMANGA | AN197: 0 | AO197: 0 | AP197: Natural | AQ197: 68 | AR197: SANTANDER | AS197: 0 | AT197: MICRO | AU197: 1084 | AV197: INDUSTRIAS MANUFACTURERAS | AW197: C | AX197: Elaboración de otros productos alimenticios | AY197: Elaboración de productos alimenticios | AZ197: 0 | BA197: 0 | BB197: 0 | BC197: 0 | BD197: 0 | BE197: 0 | BF197: 0 | BG197: 0 | BT197: 44001 | BU197: 0 | BV197: 5656 | BW197: 1
C198: 11001 | D198: BOGOTÁ, D.C. | E198: 4 | F198: 5 | G198: Natural | H198: 11 | I198: BOGOTÁ, D.C. | J198: Aprobado con subsidio | K198: MICRO | L198: 5611 | M198: ALOJAMIENTO Y SERVICIOS DE COMIDA | N198: I | O198: Actividades de restaurantes, cafeterías y servicio móvil de comidas | P198: Actividades de restaurantes, cafeterías y servicio móvil de comidas | Q198: 1 | R198: 3 | S198: 0 | T198: 4 | U198: 0 | V198: 0 | W198: 4 | X198: 0 | AJ198: 0 | AK198: 0 | AL198: 73001 | AM198: IBAGUÉ | AN198: 2 | AO198: 2 | AP198: Natural | AQ198: 73 | AR198: TOLIMA | AS198: Aprobado con subsidio | AT198: MICRO | AU198: 3110 | AV198: INDUSTRIAS MANUFACTURERAS | AW198: C | AX198: Fabricación de muebles | AY198: Fabricación de muebles, colchones y somieres | AZ198: 2 | BA198: 0 | BB198: 0 | BC198: 2 | BD198: 0 | BE198: 0 | BF198: 2 | BG198: 0 | BT198: 76736 | BU198: 0 | BV198: 76126 | BW198: 1
C199: 11001 | D199: BOGOTÁ, D.C. | E199: 26 | F199: 45 | G199: Natural | H199: 11 | I199: BOGOTÁ, D.C. | J199: Aprobado con subsidio | K199: PEQUEÑA | L199: 4210 | M199: CONSTRUCCIÓN | N199: F | O199: Construcción de carreteras y vías de ferrocarril | P199: Construcción de carreteras y vías de ferrocarril | Q199: 13 | R199: 12 | S199: 1 | T199: 20 | U199: 4 | V199: 2 | W199: 24 | X199: 2 | AJ199: 0 | AK199: 0 | AL199: 76001 | AM199: CALI | AN199: 0 | AO199: 0 | AP199: Natural | AQ199: 76 | AR199: VALLE DEL CAUCA | AS199: 0 | AT199: MICRO | AU199: 1081 | AV199: INDUSTRIAS MANUFACTURERAS | AW199: C | AX199: Elaboración de otros productos alimenticios | AY199: Elaboración de productos alimenticios | AZ199: 0 | BA199: 0 | BB199: 0 | BC199: 0 | BD199: 0 | BE199: 0 | BF199: 0 | BG199: 0 | BT199: 54810 | BU199: 0 | BV199: 70823 | BW199: 1
C200: 5360 | D200: ITAGUI | E200: 0 | F200: 0 | G200: Natural | H200: 5 | I200: ANTIOQUIA | J200: 0 | K200: MICRO | L200: 4754 | M200: COMERCIO AL POR MAYOR Y AL POR MENOR; REPARACIÓN DE VEHÍCULOS AUTOMOTORES Y MOTOCICLETAS | N200: G | O200: Comercio al por menor de otros enseres domésticos en establecimientos especializados | P200: Comercio al por menor de otros enseres domésticos en establecimientos especializados | Q200: 0 | R200: 0 | S200: 0 | T200: 0 | U200: 0 | V200: 0 | W200: 0 | X200: 0 | AJ200: 0 | AK200: 0 | AL200: 5001 | AM200: MEDELLÍN | AN200: 6 | AO200: 3 | AP200: Natural | AQ200: 5 | AR200: ANTIOQUIA | AS200: Aprobado con subsidio | AT200: MICRO | AU200: 2221 | AV200: INDUSTRIAS MANUFACTURERAS | AW200: C | AX200: Fabricación de productos de plástico | AY200: Fabricación de productos de caucho y de plástico | AZ200: 2 | BA200: 4 | BB200: 0 | BC200: 6 | BD200: 0 | BE200: 0 | BF200: 6 | BG200: 0 | BT200: 25736 | BU200: 1 | BV200: 52260 | BW200: 1
... 925 more rows

Sheet Hoja4 (hidden)
A1: Descripción Sección Rev. 4 | B1: Sección Rev. 4 | C1: Nombre | D1: Seccion | E1: Total | G1: Nombre | H1: Seccion | I1: Total empleadores | J1: Empleadores % | K1: Total empleados | L1: Empleados % | M1: Monto | N1: Hombres | O1: Mujeres | P1: no disponible | Q1: Actividad | R1: Indice | T1: cod_dpto | U1: Departamento | V1: % empleadores general | W1: ="% empleadores sección "&Visor!$N$4 -> % empleadores sección C
A2: AGRICULTURA, GANADERÍA, CAZA, SILVICULTURA Y PESCA | B2: A | C2: Agricultura, ganadería, caza, silvicultura y pesca | D2: =B2 -> A | E2: =COUNTIFS(insumos2!$N$2:$N$399999,Hoja4!D2,insumos2!$J$2:$J$399999,"Aprobado con subsidio") -> 559 | G2: =MID(VLOOKUP(H2,$B$2:$C$23,2,FALSE),1,36) -> Comercio al por mayor y al por menor | H2: =_xlfn._xlws.SORT($D$2:$E$23,2,-1) -> G | I2: 4870 | J2: =I2/$I$24 -> 0.2269444056 | K2: =SUMIFS(insumos2!$E$2:$E$399999,insumos2!$J$2:$J$399999,"Aprobado con subsidio",insumos2!$N$2:$N$399999,Hoja4!H2) -> 47635 | L2: =K2/$K$24 -> 0.09786961265 | M2: =SUMIFS(insumos1!$K$2:$K$372158,insumos1!$H$2:$H$372158,Hoja4!H2) -> 26998802184 | N2: =SUMIFS(insumos2!$R$2:$R$399999,insumos2!$J$2:$J$399999,"Aprobado con subsidio",insumos2!$N$2:$N$399999,Hoja4!H2) -> 20349 | O2: =SUMIFS(insumos2!$Q$2:$Q$399999,insumos2!$J$2:$J$399999,"Aprobado con subsidio",insumos2!$N$2:$N$399999,Hoja4!H2) -> 27204 | P2: =SUMIFS(insumos2!$S$2:$S$399999,insumos2!$J$2:$J$399999,"Aprobado con subsidio",insumos2!$N$2:$N$399999,Hoja4!H2) -> 82 | Q2: =G2 -> Comercio al por mayor y al por menor | R2: =O2/N2*100 -> 133.6871591 | T2: 11 | U2: BOGOTÁ, D.C. | V2: =(VLOOKUP(T2,_xlfn.ANCHORARRAY(insumos2!$AB$2),2,0)/SUM(insumos2!$AC$2:$AC$34)) -> 0.3346847477 | W2: =VLOOKUP(T2,insumos2!$BJ$2:$BK$34,2,FALSE)/insumos2!$BQ$30 -> 0.2963075061
A3: EXPLOTACIÓN DE MINAS Y CANTERAS | B3: B | C3: Explotación de minas y canteras | D3: =B3 -> B | E3: =COUNTIFS(insumos2!$N$2:$N$399999,Hoja4!D3,insumos2!$J$2:$J$399999,"Aprobado con subsidio") -> 98 | G3: =MID(VLOOKUP(H3,$B$2:$C$23,2,FALSE),1,30) -> Industrias manufactureras | H3: C | I3: 3304 | J3: 0.1539680321 | K3: =SUMIFS(insumos2!$E$2:$E$399999,insumos2!$J$2:$J$399999,"Aprobado con subsidio",insumos2!$N$2:$N$399999,Hoja4!H3) -> 48833 | L3: =K3/$K$24 -> 0.1003309918 | M3: =SUMIFS(insumos1!$K$2:$K$372158,insumos1!$H$2:$H$372158,Hoja4!H3) -> 27935328710 | N3: =SUMIFS(insumos2!$R$2:$R$399999,insumos2!$J$2:$J$399999,"Aprobado con subsidio",insumos2!$N$2:$N$399999,Hoja4!H3) -> 23218 | O3: =SUMIFS(insumos2!$Q$2:$Q$399999,insumos2!$J$2:$J$399999,"Aprobado con subsidio",insumos2!$N$2:$N$399999,Hoja4!H3) -> 25520 | P3: =SUMIFS(insumos2!$S$2:$S$399999,insumos2!$J$2:$J$399999,"Aprobado con subsidio",insumos2!$N$2:$N$399999,Hoja4!H3) -> 95 | Q3: =G3 -> Industrias manufactureras | R3: 109.9147213 | T3: 5 | U3: ANTIOQUIA | V3: =(VLOOKUP(T3,_xlfn.ANCHORARRAY(insumos2!$AB$2),2,0)/SUM(insumos2!$AC$2:$AC$34)) -> 0.2117992451 | W3: =VLOOKUP(T3,insumos2!$BJ$2:$BK$34,2,FALSE)/insumos2!$BQ$30 -> 0.2814769976
A4: INDUSTRIAS MANUFACTURERAS | B4: C | C4: Industrias manufactureras | D4: C | E4: =COUNTIFS(insumos2!$N$2:$N$399999,Hoja4!D4,insumos2!$J$2:$J$399999,"Aprobado con subsidio") -> 3304 | G4: =MID(VLOOKUP(H4,$B$2:$C$23,2,FALSE),1,85) -> Actividades profesionales, científicas y técnicas | H4: M | I4: 2574 | J4: 0.1199496715 | K4: =SUMIFS(insumos2!$E$2:$E$399999,insumos2!$J$2:$J$399999,"Aprobado con subsidio",insumos2!$N$2:$N$399999,Hoja4!H4) -> 21715 | L4: 0.04461506537 | M4: =SUMIFS(insumos1!$K$2:$K$372158,insumos1!$H$2:$H$372158,Hoja4!H4) -> 12144841047 | N4: =SUMIFS(insumos2!$R$2:$R$399999,insumos2!$J$2:$J$399999,"Aprobado con subsidio",insumos2!$N$2:$N$399999,Hoja4!H4) -> 11357 | O4: =SUMIFS(insumos2!$Q$2:$Q$399999,insumos2!$J$2:$J$399999,"Aprobado con subsidio",insumos2!$N$2:$N$399999,Hoja4!H4) -> 10340 | P4: =SUMIFS(insumos2!$S$2:$S$399999,insumos2!$J$2:$J$399999,"Aprobado con subsidio",insumos2!$N$2:$N$399999,Hoja4!H4) -> 18 | Q4: Actividades profesionales, científicas y técnicas | R4: 91.04517038 | T4: 76 | U4: VALLE DEL CAUCA | V4: =(VLOOKUP(T4,_xlfn.ANCHORARRAY(insumos2!$AB$2),2,0)/SUM(insumos2!$AC$2:$AC$34)) -> 0.09124376718 | W4: =VLOOKUP(T4,insumos2!$BJ$2:$BK$34,2,FALSE)/insumos2!$BQ$30 -> 0.1019975787
A5: SUMINISTRO DE ELECTRICIDAD, GAS, VAPOR Y AIRE ACONDICIONADO | B5: D | C5: Suministro de electricidad, gas, vapor y aire acondicionado | D5: D | E5: =COUNTIFS(insumos2!$N$2:$N$399999,Hoja4!D5,insumos2!$J$2:$J$399999,"Aprobado con subsidio") -> 28 | G5: =MID(VLOOKUP(H5,$B$2:$C$23,2,FALSE),1,30) -> Construcción | H5: F | I5: 2023 | J5: 0.09427279929 | K5: =SUMIFS(insumos2!$E$2:$E$399999,insumos2!$J$2:$J$399999,"Aprobado con subsidio",insumos2!$N$2:$N$399999,Hoja4!H5) -> 45579 | L5: 0.09364540936 | M5: =SUMIFS(insumos1!$K$2:$K$372158,insumos1!$H$2:$H$372158,Hoja4!H5) -> 20122016148 | N5: =SUMIFS(insumos2!$R$2:$R$399999,insumos2!$J$2:$J$399999,"Aprobado con subsidio",insumos2!$N$2:$N$399999,Hoja4!H5) -> 37708 | O5: =SUMIFS(insumos2!$Q$2:$Q$399999,insumos2!$J$2:$J$399999,"Aprobado con subsidio",insumos2!$N$2:$N$399999,Hoja4!H5) -> 7826 | P5: =SUMIFS(insumos2!$S$2:$S$399999,insumos2!$J$2:$J$399999,"Aprobado con subsidio",insumos2!$N$2:$N$399999,Hoja4!H5) -> 45 | Q5: Construcción | R5: 20.75421661 | T5: 8 | U5: ATLÁNTICO | V5: =(VLOOKUP(T5,_xlfn.ANCHORARRAY(insumos2!$AB$2),2,0)/SUM(insumos2!$AC$2:$AC$34)) -> 0.03779300061 | W5: =VLOOKUP(T5,insumos2!$BJ$2:$BK$34,2,FALSE)/insumos2!$BQ$30 -> 0.03420096852
A6: DISTRIBUCIÓN DE AGUA; EVACUACIÓN Y TRATAMIENTO DE AGUAS RESIDUALES, GESTIÓN DE DESECHOS Y ACTIVIDADES DE SANEAMIENTO AMBIENTAL | B6: E | C6: Distribución de agua; evacuación y tratamiento de aguas residuales, gestión de desechos y actividades de saneamiento ambiental | D6: E | E6: =COUNTIFS(insumos2!$N$2:$N$399999,Hoja4!D6,insumos2!$J$2:$J$399999,"Aprobado con subsidio") -> 89 | G6: =MID(VLOOKUP(H6,$B$2:$C$23,2,FALSE),1,35) -> Actividades de servicios administra | H6: N | I6: 1623 | J6: 0.07563260171 | K6: =SUMIFS(insumos2!$E$2:$E$399999,insumos2!$J$2:$J$399999,"Aprobado con subsidio",insumos2!$N$2:$N$399999,Hoja4!H6) -> 184019 | L6: 0.3780805763 | M6: =SUMIFS(insumos1!$K$2:$K$372158,insumos1!$H$2:$H$372158,Hoja4!H6) -> 108594175565 | N6: =SUMIFS(insumos2!$R$2:$R$399999,insumos2!$J$2:$J$399999,"Aprobado con subsidio",insumos2!$N$2:$N$399999,Hoja4!H6) -> 65306 | O6: =SUMIFS(insumos2!$Q$2:$Q$399999,insumos2!$J$2:$J$399999,"Aprobado con subsidio",insumos2!$N$2:$N$399999,Hoja4!H6) -> 118430 | P6: =SUMIFS(insumos2!$S$2:$S$399999,insumos2!$J$2:$J$399999,"Aprobado con subsidio",insumos2!$N$2:$N$399999,Hoja4!H6) -> 283 | Q6: Actividades de servicios administra | R6: 181.3462775 | T6: 25 | U6: CUNDINAMARCA | V6: =(VLOOKUP(T6,_xlfn.ANCHORARRAY(insumos2!$AB$2),2,0)/SUM(insumos2!$AC$2:$AC$34)) -> 0.04715969989 | W6: =VLOOKUP(T6,insumos2!$BJ$2:$BK$34,2,FALSE)/insumos2!$BQ$30 -> 0.06476997579
A7: CONSTRUCCIÓN | B7: F | C7: Construcción | D7: F | E7: =COUNTIFS(insumos2!$N$2:$N$399999,Hoja4!D7,insumos2!$J$2:$J$399999,"Aprobado con subsidio") -> 2023 | G7: =MID(VLOOKUP(H7,$B$2:$C$23,2,FALSE),1,30) -> Alojamiento y servicios de com | H7: I | I7: 1282 | J7: 0.05974183326 | K7: =SUMIFS(insumos2!$E$2:$E$399999,insumos2!$J$2:$J$399999,"Aprobado con subsidio",insumos2!$N$2:$N$399999,Hoja4!H7) -> 24433 | L7: 0.05019939637 | M7: =SUMIFS(insumos1!$K$2:$K$372158,insumos1!$H$2:$H$372158,Hoja4!H7) -> 13876759498 | N7: =SUMIFS(insumos2!$R$2:$R$399999,insumos2!$J$2:$J$399999,"Aprobado con subsidio",insumos2!$N$2:$N$399999,Hoja4!H7) -> 8871 | O7: =SUMIFS(insumos2!$Q$2:$Q$399999,insumos2!$J$2:$J$399999,"Aprobado con subsidio",insumos2!$N$2:$N$399999,Hoja4!H7) -> 15477 | P7: =SUMIFS(insumos2!$S$2:$S$399999,insumos2!$J$2:$J$399999,"Aprobado con subsidio",insumos2!$N$2:$N$399999,Hoja4!H7) -> 85 | Q7: Alojamiento y servicios de com | R7: 174.4673656 | T7: 68 | U7: SANTANDER | V7: =(VLOOKUP(T7,_xlfn.ANCHORARRAY(insumos2!$AB$2),2,0)/SUM(insumos2!$AC$2:$AC$34)) -> 0.04907032015 | W7: =VLOOKUP(T7,insumos2!$BJ$2:$BK$34,2,FALSE)/insumos2!$BQ$30 -> 0.05629539952
A8: COMERCIO AL POR MAYOR Y AL POR MENOR; REPARACIÓN DE VEHÍCULOS AUTOMOTORES Y MOTOCICLETAS | B8: G | C8: Comercio al por mayor y al por menor; reparación de vehículos automotores y motocicletas | D8: G | E8: =COUNTIFS(insumos2!$N$2:$N$399999,Hoja4!D8,insumos2!$J$2:$J$399999,"Aprobado con subsidio") -> 4870 | G8: =MID(VLOOKUP(H8,$B$2:$C$23,2,FALSE),1,40) -> información y comunicaciones | H8: J | I8: 1098 | J8: 0.05116734237 | K8: =SUMIFS(insumos2!$E$2:$E$399999,insumos2!$J$2:$J$399999,"Aprobado con subsidio",insumos2!$N$2:$N$399999,Hoja4!H8) -> 25918 | L8: 0.05325043814 | M8: =SUMIFS(insumos1!$K$2:$K$372158,insumos1!$H$2:$H$372158,Hoja4!H8) -> 17930142733 | N8: =SUMIFS(insumos2!$R$2:$R$399999,insumos2!$J$2:$J$399999,"Aprobado con subsidio",insumos2!$N$2:$N$399999,Hoja4!H8) -> 14749 | O8: =SUMIFS(insumos2!$Q$2:$Q$399999,insumos2!$J$2:$J$399999,"Aprobado con subsidio",insumos2!$N$2:$N$399999,Hoja4!H8) -> 11151 | P8: =SUMIFS(insumos2!$S$2:$S$399999,insumos2!$J$2:$J$399999,"Aprobado con subsidio",insumos2!$N$2:$N$399999,Hoja4!H8) -> 18 | Q8: información y comunicaciones | R8: 75.60512577 | T8: 13 | U8: BOLÍVAR | V8: =(VLOOKUP(T8,_xlfn.ANCHORARRAY(insumos2!$AB$2),2,0)/SUM(insumos2!$AC$2:$AC$34)) -> 0.01864019759 | W8: =VLOOKUP(T8,insumos2!$BJ$2:$BK$34,2,FALSE)/insumos2!$BQ$30 -> 0.008777239709
A9: TRANSPORTE Y ALMACENAMIENTO | B9: H | C9: Transporte y almacenamiento | D9: H | E9: =COUNTIFS(insumos2!$N$2:$N$399999,Hoja4!D9,insumos2!$J$2:$J$399999,"Aprobado con subsidio") -> 919 | G9: =MID(VLOOKUP(H9,$B$2:$C$23,2,FALSE),1,42) -> Actividades de atención de la salud humana | H9: Q | I9: 961 | J9: 0.0447830747 | K9: =SUMIFS(insumos2!$E$2:$E$399999,insumos2!$J$2:$J$399999,"Aprobado con subsidio",insumos2!$N$2:$N$399999,Hoja4!H9) -> 24225 | L9: 0.04977204506 | M9: =SUMIFS(insumos1!$K$2:$K$372158,insumos1!$H$2:$H$372158,Hoja4!H9) -> 14927469168 | N9: =SUMIFS(insumos2!$R$2:$R$399999,insumos2!$J$2:$J$399999,"Aprobado con subsidio",insumos2!$N$2:$N$399999,Hoja4!H9) -> 4113 | O9: =SUMIFS(insumos2!$Q$2:$Q$399999,insumos2!$J$2:$J$399999,"Aprobado con subsidio",insumos2!$N$2:$N$399999,Hoja4!H9) -> 20103 | P9: =SUMIFS(insumos2!$S$2:$S$399999,insumos2!$J$2:$J$399999,"Aprobado con subsidio",insumos2!$N$2:$N$399999,Hoja4!H9) -> 9 | Q9: Actividades de atención de la salud humana | R9: 488.7673231 | T9: 66 | U9: RISARALDA | V9: =(VLOOKUP(T9,_xlfn.ANCHORARRAY(insumos2!$AB$2),2,0)/SUM(insumos2!$AC$2:$AC$34)) -> 0.02357984995 | W9: =VLOOKUP(T9,insumos2!$BJ$2:$BK$34,2,FALSE)/insumos2!$BQ$30 -> 0.0284503632
A10: ALOJAMIENTO Y SERVICIOS DE COMIDA | B10: I | C10: Alojamiento y servicios de comida | D10: I | E10: =COUNTIFS(insumos2!$N$2:$N$399999,Hoja4!D10,insumos2!$J$2:$J$399999,"Aprobado con subsidio") -> 1282 | G10: =MID(VLOOKUP(H10,$B$2:$C$23,2,FALSE),1,30) -> Transporte y almacenamiento | H10: H | I10: 919 | J10: 0.04282585395 | K10: =SUMIFS(insumos2!$E$2:$E$399999,insumos2!$J$2:$J$399999,"Aprobado con subsidio",insumos2!$N$2:$N$399999,Hoja4!H10) -> 21513 | L10: 0.0442000415 | M10: =SUMIFS(insumos1!$K$2:$K$372158,insumos1!$H$2:$H$372158,Hoja4!H10) -> 11675772341 | N10: =SUMIFS(insumos2!$R$2:$R$399999,insumos2!$J$2:$J$399999,"Aprobado con subsidio",insumos2!$N$2:$N$399999,Hoja4!H10) -> 13719 | O10: =SUMIFS(insumos2!$Q$2:$Q$399999,insumos2!$J$2:$J$399999,"Aprobado con subsidio",insumos2!$N$2:$N$399999,Hoja4!H10) -> 7781 | P10: =SUMIFS(insumos2!$S$2:$S$399999,insumos2!$J$2:$J$399999,"Aprobado con subsidio",insumos2!$N$2:$N$399999,Hoja4!H10) -> 13 | Q10: Transporte y almacenamiento | R10: 56.71696188 | T10: 54 | U10: NORTE DE SANTANDER | V10: =(VLOOKUP(T10,_xlfn.ANCHORARRAY(insumos2!$AB$2),2,0)/SUM(insumos2!$AC$2:$AC$34)) -> 0.02381285242 | W10: =VLOOKUP(T10,insumos2!$BJ$2:$BK$34,2,FALSE)/insumos2!$BQ$30 -> 0.02481840194
A11: INFORMACIÓN Y COMUNICACIONES | B11: J | C11: información y comunicaciones | D11: J | E11: =COUNTIFS(insumos2!$N$2:$N$399999,Hoja4!D11,insumos2!$J$2:$J$399999,"Aprobado con subsidio") -> 1098 | G11: =MID(VLOOKUP(H11,$B$2:$C$23,2,FALSE),1,30) -> Educación | H11: P | I11: 649 | J11: 0.03024372058 | K11: =SUMIFS(insumos2!$E$2:$E$399999,insumos2!$J$2:$J$399999,"Aprobado con subsidio",insumos2!$N$2:$N$399999,Hoja4!H11) -> 7511 | L11: 0.01543190219 | M11: =SUMIFS(insumos1!$K$2:$K$372158,insumos1!$H$2:$H$372158,Hoja4!H11) -> 3749038726 | N11: =SUMIFS(insumos2!$R$2:$R$399999,insumos2!$J$2:$J$399999,"Aprobado con subsidio",insumos2!$N$2:$N$399999,Hoja4!H11) -> 1376 | O11: =SUMIFS(insumos2!$Q$2:$Q$399999,insumos2!$J$2:$J$399999,"Aprobado con subsidio",insumos2!$N$2:$N$399999,Hoja4!H11) -> 6132 | P11: =SUMIFS(insumos2!$S$2:$S$399999,insumos2!$J$2:$J$399999,"Aprobado con subsidio",insumos2!$N$2:$N$399999,Hoja4!H11) -> 3 | Q11: Educación | R11: 445.6395349 | T11: 15 | U11: BOYACÁ | V11: =(VLOOKUP(T11,_xlfn.ANCHORARRAY(insumos2!$AB$2),2,0)/SUM(insumos2!$AC$2:$AC$34)) -> 0.01425975115 | W11: =VLOOKUP(T11,insumos2!$BJ$2:$BK$34,2,FALSE)/insumos2!$BQ$30 -> 0.009987893462
A12: ACTIVIDADES FINANCIERAS Y DE SEGUROS | B12: K | C12: Actividades financieras y de seguros | D12: K | E12: =COUNTIFS(insumos2!$N$2:$N$399999,Hoja4!D12,insumos2!$J$2:$J$399999,"Aprobado con subsidio") -> 315 | G12: =MID(VLOOKUP(H12,$B$2:$C$23,2,FALSE),1,30) -> Agricultura, ganadería, caza, | H12: A | I12: 559 | J12: 0.02604967613 | K12: =SUMIFS(insumos2!$E$2:$E$399999,insumos2!$J$2:$J$399999,"Aprobado con subsidio",insumos2!$N$2:$N$399999,Hoja4!H12) -> 12673 | L12: 0.02603761102 | M12: =SUMIFS(insumos1!$K$2:$K$372158,insumos1!$H$2:$H$372158,Hoja4!H12) -> 7039161055 | N12: =SUMIFS(insumos2!$R$2:$R$399999,insumos2!$J$2:$J$399999,"Aprobado con subsidio",insumos2!$N$2:$N$399999,Hoja4!H12) -> 5788 | O12: =SUMIFS(insumos2!$Q$2:$Q$399999,insumos2!$J$2:$J$399999,"Aprobado con subsidio",insumos2!$N$2:$N$399999,Hoja4!H12) -> 6871 | P12: =SUMIFS(insumos2!$S$2:$S$399999,insumos2!$J$2:$J$399999,"Aprobado con subsidio",insumos2!$N$2:$N$399999,Hoja4!H12) -> 14 | Q12: Agricultura, ganadería, caza, | R12: 118.7111265 | T12: 73 | U12: TOLIMA | V12: =(VLOOKUP(T12,_xlfn.ANCHORARRAY(insumos2!$AB$2),2,0)/SUM(insumos2!$AC$2:$AC$34)) -> 0.01826739363 | W12: =VLOOKUP(T12,insumos2!$BJ$2:$BK$34,2,FALSE)/insumos2!$BQ$30 -> 0.0142251816
